Workbook

Sheet Lookups (hidden)
A4: 1 | B4: ENG | C4: =VLOOKUP(B4,$B$5:$C215,2,0) -> England | D4: =VLOOKUP(B4,B5:D214,3,FALSE) -> ENG
A5: =A4+1 -> 2 | B5: 02N | C5: NHS Airedale, Wharfdale and Craven CCG | D5: E38000001 | E5: NHS Airedale, Wharfdale and Craven CCG | G5: 1 | H5: the current level of obesity increases by 1% every 5 years | I5: 33 | J5: Obesity levels increase by 1% every 5 years | K5: obesity levels were to rise by 1% every 5 years
A6: =A5+1 -> 3 | B6: 09C | C6: NHS Ashford CCG | D6: E38000002 | E6: NHS Ashford CCG | G6: =G5+1 -> 2 | H6: the current level of obesity increases by 2% every 5 years | I6: 23 | J6: Obesity levels increase by 2% every 5 years | K6: obesity levels were to rise by 2% every 5 years
A7: 4 | B7: 10Y | C7: NHS Aylesbury Vale CCG | D7: E38000003 | E7: NHS Aylesbury Vale CCG | G7: =G6+1 -> 3 | H7: the current level of obesity increases by 3% every 5 years | I7: 13 | J7: Obesity levels increase by 3% every 5 years | K7: obesity levels were to rise by 3% every 5 years
A8: 5 | B8: 07L | C8: NHS Barking and Dagenham CCG | D8: E38000004 | E8: NHS Barking and Dagenham CCG | G8: 4 | H8: the current level of obesity increases by 5% every 5 years | I8: 3 | J8: Obesity levels increase by 5% every 5 years | K8: obesity levels were to rise by 5% every 5 years
A9: 6 | B9: 07M | C9: NHS Barnet CCG | D9: E38000005 | E9: NHS Barnet CCG | G9: 5 | H9: the current level of obesity decreases by 1% every 5 years | I9: 73 | J9: Obesity levels decrease by 1% every 5 years | K9: obesity levels were to decline by 1% every 5 years
A10: 7 | B10: 02P | C10: NHS Barnsley CCG | D10: E38000006 | E10: NHS Barnsley CCG | G10: 6 | H10: the current level of obesity decreases by 2% every 5 years | I10: 63 | J10: Obesity levels decrease by 2% every 5 years | K10: obesity levels were to decline by 2% every 5 years
A11: 8 | B11: 99E | C11: NHS Basildon and Brentwood CCG | D11: E38000007 | E11: NHS Basildon and Brentwood CCG | G11: 7 | H11: the current level of obesity decreases by 3% every 5 years | I11: 53 | J11: Obesity levels decrease by 3% every 5 years | K11: obesity levels were to decline by 3% every 5 years
A12: 9 | B12: 02Q | C12: NHS Bassetlaw CCG | D12: E38000008 | E12: NHS Bassetlaw CCG | G12: 8 | H12: the current level of obesity decreases by 5% every 5 years | I12: 43 | J12: Obesity levels decrease by 5% every 5 years | K12: obesity levels were to decline by 5% every 5 years
A13: 10 | B13: 11E | C13: NHS Bath and North East Somerset CCG | D13: E38000009 | E13: NHS Bath and North East Somerset CCG
A14: 11 | B14: 06F | C14: NHS Bedfordshire CCG | D14: E38000010 | E14: NHS Bedfordshire CCG
A15: 12 | B15: 07N | C15: NHS Bexley CCG | D15: E38000011 | E15: NHS Bexley CCG
A16: 13 | B16: 13P | C16: NHS Birmingham Crosscity CCG | D16: E38000012 | E16: NHS Birmingham Crosscity CCG
A17: 14 | B17: 04X | C17: NHS Birmingham South and Central CCG | D17: E38000013 | E17: NHS Birmingham South and Central CCG
A18: 15 | B18: 00Q | C18: NHS Blackburn with Darwen CCG | D18: E38000014 | E18: NHS Blackburn with Darwen CCG
A19: 16 | B19: 00R | C19: NHS Blackpool CCG | D19: E38000015 | E19: NHS Blackpool CCG
A20: 17 | B20: 00T | C20: NHS Bolton CCG | D20: E38000016 | E20: NHS Bolton CCG
A21: 18 | B21: 10G | C21: NHS Bracknell and Ascot CCG | D21: E38000017 | E21: NHS Bracknell and Ascot CCG
A22: 19 | B22: 02W | C22: NHS Bradford City CCG | D22: E38000018 | E22: NHS Bradford City CCG
A23: 20 | B23: 02R | C23: NHS Bradford Districts CCG | D23: E38000019 | E23: NHS Bradford Districts CCG
A24: 21 | B24: 07P | C24: NHS Brent CCG | D24: E38000020 | E24: NHS Brent CCG
A25: 22 | B25: 09D | C25: NHS Brighton and Hove CCG | D25: E38000021 | E25: NHS Brighton and Hove CCG
A26: 23 | B26: 11H | C26: NHS Bristol CCG | D26: E38000022 | E26: NHS Bristol CCG
A27: 24 | B27: 07Q | C27: NHS Bromley CCG | D27: E38000023 | E27: NHS Bromley CCG
A28: 25 | B28: 00V | C28: NHS Bury CCG | D28: E38000024 | E28: NHS Bury CCG
A29: 26 | B29: 02T | C29: NHS Calderdale CCG | D29: E38000025 | E29: NHS Calderdale CCG
A30: 27 | B30: 06H | C30: NHS Cambridgeshire and Peterborough CCG | D30: E38000026 | E30: NHS Cambridgeshire and Peterborough CCG
A31: 28 | B31: 07R | C31: NHS Camden CCG | D31: E38000027 | E31: NHS Camden CCG
A32: 29 | B32: 04Y | C32: NHS Cannock Chase CCG | D32: E38000028 | E32: NHS Cannock Chase CCG
A33: 30 | B33: 09E | C33: NHS Canterbury and Coastal CCG | D33: E38000029 | E33: NHS Canterbury and Coastal CCG
A34: 31 | B34: 99F | C34: NHS Castle Point and Rochford CCG | D34: E38000030 | E34: NHS Castle Point and Rochford CCG
A35: 32 | B35: 09A | C35: NHS Central London (Westminster) CCG | D35: E38000031 | E35: NHS Central London (Westminster) CCG
A36: 33 | B36: 00W | C36: NHS Central Manchester CCG | D36: E38000032 | E36: NHS Central Manchester CCG
A37: 34 | B37: 10H | C37: NHS Chiltern CCG | D37: E38000033 | E37: NHS Chiltern CCG
A38: 35 | B38: 00X | C38: NHS Chorley and South Ribble CCG | D38: E38000034 | E38: NHS Chorley and South Ribble CCG
A39: 36 | B39: 07T | C39: NHS City and Hackney CCG | D39: E38000035 | E39: NHS City and Hackney CCG
A40: 37 | B40: 09G | C40: NHS Coastal West Sussex CCG | D40: E38000213 | E40: NHS Coastal West Sussex CCG
A41: 38 | B41: 03V | C41: NHS Corby CCG | D41: E38000037 | E41: NHS Corby CCG
A42: 39 | B42: 05A | C42: NHS Coventry and Rugby CCG | D42: E38000038 | E42: NHS Coventry and Rugby CCG
A43: 40 | B43: 09H | C43: NHS Crawley CCG | D43: E38000039 | E43: NHS Crawley CCG
A44: 41 | B44: 07V | C44: NHS Croydon CCG | D44: E38000040 | E44: NHS Croydon CCG
A45: 42 | B45: 01H | C45: NHS Cumbria CCG | D45: E38000041 | E45: NHS Cumbria CCG
A46: 43 | B46: 00C | C46: NHS Darlington CCG | D46: E38000042 | E46: NHS Darlington CCG
A47: 44 | B47: 09J | C47: NHS Dartford, Gravesham and Swanley CCG | D47: E38000043 | E47: NHS Dartford, Gravesham and Swanley CCG
A48: 45 | B48: 02X | C48: NHS Doncaster CCG | D48: E38000044 | E48: NHS Doncaster CCG
A49: 46 | B49: 11J | C49: NHS Dorset CCG | D49: E38000045 | E49: NHS Dorset CCG
A50: 47 | B50: 05C | C50: NHS Dudley CCG | D50: E38000046 | E50: NHS Dudley CCG
A51: 48 | B51: 00D | C51: NHS Durham Dales, Easington and Sedgefield CCG | D51: E38000047 | E51: NHS Durham Dales, Easington and Sedgefield CCG
A52: 49 | B52: 07W | C52: NHS Ealing CCG | D52: E38000048 | E52: NHS Ealing CCG
A53: 50 | B53: 06K | C53: NHS East and North Hertfordshire CCG | D53: E38000049 | E53: NHS East and North Hertfordshire CCG
A54: 51 | B54: 01A | C54: NHS East Lancashire CCG | D54: E38000050 | E54: NHS East Lancashire CCG
A55: 52 | B55: 03W | C55: NHS East Leicestershire and Rutland CCG | D55: E38000051 | E55: NHS East Leicestershire and Rutland CCG
A56: 53 | B56: 02Y | C56: NHS East Riding of Yorkshire CCG | D56: E38000052 | E56: NHS East Riding of Yorkshire CCG
A57: 54 | B57: 05D | C57: NHS East Staffordshire CCG | D57: E38000053 | E57: NHS East Staffordshire CCG
A58: 55 | B58: 09L | C58: NHS East Surrey CCG | D58: E38000054 | E58: NHS East Surrey CCG
A59: 56 | B59: 09F | C59: NHS Eastbourne, Hailsham and Seaford CCG | D59: E38000055 | E59: NHS Eastbourne, Hailsham and Seaford CCG
A60: 57 | B60: 01C | C60: NHS Eastern Cheshire CCG | D60: E38000056 | E60: NHS Eastern Cheshire CCG
A61: 58 | B61: 07X | C61: NHS Enfield CCG | D61: E38000057 | E61: NHS Enfield CCG
A62: 59 | B62: 03X | C62: NHS Erewash CCG | D62: E38000058 | E62: NHS Erewash CCG
A63: 60 | B63: 10K | C63: NHS Fareham and Gosport CCG | D63: E38000059 | E63: NHS Fareham and Gosport CCG
A64: 61 | B64: 02M | C64: NHS Fylde & Wyre CCG | D64: E38000060 | E64: NHS Fylde & Wyre CCG
A65: 62 | B65: 11M | C65: NHS Gloucestershire CCG | D65: E38000062 | E65: NHS Gloucestershire CCG
A66: 63 | B66: 06M | C66: NHS Great Yarmouth and Waveney CCG | D66: E38000063 | E66: NHS Great Yarmouth and Waveney CCG
A67: 64 | B67: 03A | C67: NHS Greater Huddersfield CCG | D67: E38000064 | E67: NHS Greater Huddersfield CCG
A68: 65 | B68: 01E | C68: NHS Greater Preston CCG | D68: E38000065 | E68: NHS Greater Preston CCG
A69: 66 | B69: 08A | C69: NHS Greenwich CCG | D69: E38000066 | E69: NHS Greenwich CCG
A70: =A69+1 -> 67 | B70: 09N | C70: NHS Guildford and Waverley CCG | D70: E38000214 | E70: NHS Guildford and Waverley CCG
A71: 68 | B71: 01F | C71: NHS Halton CCG | D71: E38000068 | E71: NHS Halton CCG
A72: 69 | B72: 03D | C72: NHS Hambleton, Richmondshire and Whitby CCG | D72: E38000069 | E72: NHS Hambleton, Richmondshire and Whitby CCG
A73: 70 | B73: 08C | C73: NHS Hammersmith and Fulham CCG | D73: E38000070 | E73: NHS Hammersmith and Fulham CCG
A74: 71 | B74: 03Y | C74: NHS Hardwick CCG | D74: E38000071 | E74: NHS Hardwick CCG
A75: 72 | B75: 08D | C75: NHS Haringey CCG | D75: E38000072 | E75: NHS Haringey CCG
A76: 73 | B76: 03E | C76: NHS Harrogate and Rural District CCG | D76: E38000073 | E76: NHS Harrogate and Rural District CCG
A77: 74 | B77: 08E | C77: NHS Harrow CCG | D77: E38000074 | E77: NHS Harrow CCG
A78: 75 | B78: 00K | C78: NHS Hartlepool and Stockton-On-Tees CCG | D78: E38000075 | E78: NHS Hartlepool and Stockton-On-Tees CCG
A79: 76 | B79: 09P | C79: NHS Hastings and Rother CCG | D79: E38000076 | E79: NHS Hastings and Rother CCG
A80: 77 | B80: 08F | C80: NHS Havering CCG | D80: E38000077 | E80: NHS Havering CCG
A81: 78 | B81: 05F | C81: NHS Herefordshire CCG | D81: E38000078 | E81: NHS Herefordshire CCG
A82: 79 | B82: 06N | C82: NHS Herts Valleys CCG | D82: E38000079 | E82: NHS Herts Valleys CCG
A83: 80 | B83: 01D | C83: NHS Heywood, Middleton and Rochdale CCG | D83: E38000080 | E83: NHS Heywood, Middleton and Rochdale CCG
A84: 81 | B84: 99K | C84: NHS High Weald Lewes Havens CCG | D84: E38000081 | E84: NHS High Weald Lewes Havens CCG
A85: 82 | B85: 08G | C85: NHS Hillingdon CCG | D85: E38000082 | E85: NHS Hillingdon CCG
A86: 83 | B86: 09X | C86: NHS Horsham and Mid Sussex CCG | D86: E38000083 | E86: NHS Horsham and Mid Sussex CCG
A87: 84 | B87: 07Y | C87: NHS Hounslow CCG | D87: E38000084 | E87: NHS Hounslow CCG
A88: 85 | B88: 03F | C88: NHS Hull CCG | D88: E38000085 | E88: NHS Hull CCG
A89: 86 | B89: 06L | C89: NHS Ipswich and East Suffolk CCG | D89: E38000086 | E89: NHS Ipswich and East Suffolk CCG
A90: 87 | B90: 10L | C90: NHS Isle of Wight CCG | D90: E38000087 | E90: NHS Isle of Wight CCG
A91: 88 | B91: 08H | C91: NHS Islington CCG | D91: E38000088 | E91: NHS Islington CCG
A92: 89 | B92: 11N | C92: NHS Kernow CCG | D92: E38000089 | E92: NHS Kernow CCG
A93: 90 | B93: 08J | C93: NHS Kingston CCG | D93: E38000090 | E93: NHS Kingston CCG
A94: 91 | B94: 01J | C94: NHS Knowsley CCG | D94: E38000091 | E94: NHS Knowsley CCG
A95: 92 | B95: 08K | C95: NHS Lambeth CCG | D95: E38000092 | E95: NHS Lambeth CCG
A96: 93 | B96: 01K | C96: NHS Lancashire North CCG | D96: E38000093 | E96: NHS Lancashire North CCG
A97: 94 | B97: 02V | C97: NHS Leeds North CCG | D97: E38000094 | E97: NHS Leeds North CCG
A98: 95 | B98: 03G | C98: NHS Leeds South and East CCG | D98: E38000095 | E98: NHS Leeds South and East CCG
A99: 96 | B99: 03C | C99: NHS Leeds West CCG | D99: E38000096 | E99: NHS Leeds West CCG
A100: 97 | B100: 04C | C100: NHS Leicester City CCG | D100: E38000097 | E100: NHS Leicester City CCG
A101: 98 | B101: 08L | C101: NHS Lewisham CCG | D101: E38000098 | E101: NHS Lewisham CCG
A102: 99 | B102: 03T | C102: NHS Lincolnshire East CCG | D102: E38000099 | E102: NHS Lincolnshire East CCG
A103: 100 | B103: 04D | C103: NHS Lincolnshire West CCG | D103: E38000100 | E103: NHS Lincolnshire West CCG
A104: 101 | B104: 99A | C104: NHS Liverpool CCG | D104: E38000101 | E104: NHS Liverpool CCG
A105: 102 | B105: 06P | C105: NHS Luton CCG | D105: E38000102 | E105: NHS Luton CCG
A106: 103 | B106: 04E | C106: NHS Mansfield and Ashfield CCG | D106: E38000103 | E106: NHS Mansfield and Ashfield CCG
A107: 104 | B107: 09W | C107: NHS Medway CCG | D107: E38000104 | E107: NHS Medway CCG
A108: 105 | B108: 08R | C108: NHS Merton CCG | D108: E38000105 | E108: NHS Merton CCG
A109: 106 | B109: 06Q | C109: NHS Mid Essex CCG | D109: E38000106 | E109: NHS Mid Essex CCG
A110: 107 | B110: 04F | C110: NHS Milton Keynes CCG | D110: E38000107 | E110: NHS Milton Keynes CCG
A111: 108 | B111: 04G | C111: NHS Nene CCG | D111: E38000108 | E111: NHS Nene CCG
A112: 109 | B112: 04H | C112: NHS Newark & Sherwood CCG | D112: E38000109 | E112: NHS Newark & Sherwood CCG
A113: 110 | B113: 10M | C113: NHS Newbury and District CCG | D113: E38000110 | E113: NHS Newbury and District CCG
A114: 111 | B114: 13T | C114: NHS Newcastle Gateshead CCG | D114: E38000212 | E114: NHS Newcastle Gateshead CCG
A115: 112 | B115: 08M | C115: NHS Newham CCG | D115: E38000113 | E115: NHS Newham CCG
A116: 113 | B116: 10N | C116: NHS North & West Reading CCG | D116: E38000114 | E116: NHS North & West Reading CCG
A117: 114 | B117: 04J | C117: NHS North Derbyshire CCG | D117: E38000115 | E117: NHS North Derbyshire CCG
A118: 115 | B118: 00J | C118: NHS North Durham CCG | D118: E38000116 | E118: NHS North Durham CCG
A119: 116 | B119: 06T | C119: NHS North East Essex CCG | D119: E38000117 | E119: NHS North East Essex CCG
A120: 117 | B120: 99M | C120: NHS North East Hampshire and Farnham CCG | D120: E38000118 | E120: NHS North East Hampshire and Farnham CCG
A121: 118 | B121: 03H | C121: NHS North East Lincolnshire CCG | D121: E38000119 | E121: NHS North East Lincolnshire CCG
A122: 119 | B122: 10J | C122: NHS North Hampshire CCG | D122: E38000120 | E122: NHS North Hampshire CCG
A123: 120 | B123: 03J | C123: NHS North Kirklees CCG | D123: E38000121 | E123: NHS North Kirklees CCG
A124: 121 | B124: 03K | C124: NHS North Lincolnshire CCG | D124: E38000122 | E124: NHS North Lincolnshire CCG
A125: 122 | B125: 01M | C125: NHS North Manchester CCG | D125: E38000123 | E125: NHS North Manchester CCG
A126: 123 | B126: 06V | C126: NHS North Norfolk CCG | D126: E38000124 | E126: NHS North Norfolk CCG
A127: 124 | B127: 11T | C127: NHS North Somerset CCG | D127: E38000125 | E127: NHS North Somerset CCG
A128: 125 | B128: 05G | C128: NHS North Staffordshire CCG | D128: E38000126 | E128: NHS North Staffordshire CCG
A129: 126 | B129: 99C | C129: NHS North Tyneside CCG | D129: E38000127 | E129: NHS North Tyneside CCG
A130: 127 | B130: 09Y | C130: NHS North West Surrey CCG | D130: E38000128 | E130: NHS North West Surrey CCG
A131: 128 | B131: 99P | C131: NHS North, East, West Devon CCG | D131: E38000129 | E131: NHS North, East, West Devon CCG
A132: 129 | B132: 00L | C132: NHS Northumberland CCG | D132: E38000130 | E132: NHS Northumberland CCG
A133: 130 | B133: 06W | C133: NHS Norwich CCG | D133: E38000131 | E133: NHS Norwich CCG
A134: =A133+1 -> 131 | B134: 04K | C134: NHS Nottingham City CCG | D134: E38000132 | E134: NHS Nottingham City CCG
A135: 132 | B135: 04L | C135: NHS Nottingham North and East CCG | D135: E38000133 | E135: NHS Nottingham North and East CCG
A136: 133 | B136: 04M | C136: NHS Nottingham West CCG | D136: E38000134 | E136: NHS Nottingham West CCG
A137: 134 | B137: 00Y | C137: NHS Oldham CCG | D137: E38000135 | E137: NHS Oldham CCG
A138: 135 | B138: 10Q | C138: NHS Oxfordshire CCG | D138: E38000136 | E138: NHS Oxfordshire CCG
A139: 136 | B139: 10R | C139: NHS Portsmouth CCG | D139: E38000137 | E139: NHS Portsmouth CCG
A140: 137 | B140: 08N | C140: NHS Redbridge CCG | D140: E38000138 | E140: NHS Redbridge CCG
A141: 138 | B141: 05J | C141: NHS Redditch and Bromsgrove CCG | D141: E38000139 | E141: NHS Redditch and Bromsgrove CCG
A142: 139 | B142: 08P | C142: NHS Richmond CCG | D142: E38000140 | E142: NHS Richmond CCG
A143: 140 | B143: 03L | C143: NHS Rotherham CCG | D143: E38000141 | E143: NHS Rotherham CCG
A144: 141 | B144: 04N | C144: NHS Rushcliffe CCG | D144: E38000142 | E144: NHS Rushcliffe CCG
A145: 142 | B145: 01G | C145: NHS Salford CCG | D145: E38000143 | E145: NHS Salford CCG
A146: 143 | B146: 05L | C146: NHS Sandwell and West Birmingham CCG | D146: E38000144 | E146: NHS Sandwell and West Birmingham CCG
A147: 144 | B147: 03M | C147: NHS Scarborough and Ryedale CCG | D147: E38000145 | E147: NHS Scarborough and Ryedale CCG
A148: 145 | B148: 03N | C148: NHS Sheffield CCG | D148: E38000146 | E148: NHS Sheffield CCG
A149: 146 | B149: 05N | C149: NHS Shropshire CCG | D149: E38000147 | E149: NHS Shropshire CCG
A150: 147 | B150: 10T | C150: NHS Slough CCG | D150: E38000148 | E150: NHS Slough CCG
A151: 148 | B151: 05P | C151: NHS Solihull CCG | D151: E38000149 | E151: NHS Solihull CCG
A152: 149 | B152: 11X | C152: NHS Somerset CCG | D152: E38000150 | E152: NHS Somerset CCG
A153: 150 | B153: 01R | C153: NHS South Cheshire CCG | D153: E38000151 | E153: NHS South Cheshire CCG
A154: 151 | B154: 99Q | C154: NHS South Devon and Torbay CCG | D154: E38000152 | E154: NHS South Devon and Torbay CCG
A155: 152 | B155: 05Q | C155: NHS South East Staffs and Seisdon Peninsular CCG | D155: E38000153 | E155: NHS South East Staffs and Seisdon Peninsular CCG
A156: 153 | B156: 10V | C156: NHS South Eastern Hampshire CCG | D156: E38000154 | E156: NHS South Eastern Hampshire CCG
A157: 154 | B157: 12A | C157: NHS South Gloucestershire CCG | D157: E38000155 | E157: NHS South Gloucestershire CCG
A158: 155 | B158: 10A | C158: NHS South Kent Coast CCG | D158: E38000156 | E158: NHS South Kent Coast CCG
A159: 156 | B159: 99D | C159: NHS South Lincolnshire CCG | D159: E38000157 | E159: NHS South Lincolnshire CCG
A160: 157 | B160: 01N | C160: NHS South Manchester CCG | D160: E38000158 | E160: NHS South Manchester CCG
A161: 158 | B161: 06Y | C161: NHS South Norfolk CCG | D161: E38000159 | E161: NHS South Norfolk CCG
A162: 159 | B162: 10W | C162: NHS South Reading CCG | D162: E38000160 | E162: NHS South Reading CCG
A163: 160 | B163: 01T | C163: NHS South Sefton CCG | D163: E38000161 | E163: NHS South Sefton CCG
A164: 161 | B164: 00M | C164: NHS South Tees CCG | D164: E38000162 | E164: NHS South Tees CCG
A165: 162 | B165: 00N | C165: NHS South Tyneside CCG | D165: E38000163 | E165: NHS South Tyneside CCG
A166: 163 | B166: 05R | C166: NHS South Warwickshire CCG | D166: E38000164 | E166: NHS South Warwickshire CCG
A167: 164 | B167: 04Q | C167: NHS South West Lincolnshire CCG | D167: E38000165 | E167: NHS South West Lincolnshire CCG
A168: 165 | B168: 05T | C168: NHS South Worcestershire CCG | D168: E38000166 | E168: NHS South Worcestershire CCG
A169: 166 | B169: 10X | C169: NHS Southampton CCG | D169: E38000167 | E169: NHS Southampton CCG
A170: 167 | B170: 99G | C170: NHS Southend CCG | D170: E38000168 | E170: NHS Southend CCG
A171: 168 | B171: 04R | C171: NHS Southern Derbyshire CCG | D171: E38000169 | E171: NHS Southern Derbyshire CCG
A172: 169 | B172: 01V | C172: NHS Southport and Formby CCG | D172: E38000170 | E172: NHS Southport and Formby CCG
A173: 170 | B173: 08Q | C173: NHS Southwark CCG | D173: E38000171 | E173: NHS Southwark CCG
A174: 171 | B174: 01X | C174: NHS St Helens CCG | D174: E38000172 | E174: NHS St Helens CCG
A175: 172 | B175: 05V | C175: NHS Stafford and Surrounds CCG | D175: E38000173 | E175: NHS Stafford and Surrounds CCG
A176: 173 | B176: 01W | C176: NHS Stockport CCG | D176: E38000174 | E176: NHS Stockport CCG
A177: 174 | B177: 05W | C177: NHS Stoke on Trent CCG | D177: E38000175 | E177: NHS Stoke on Trent CCG
A178: 175 | B178: 00P | C178: NHS Sunderland CCG | D178: E38000176 | E178: NHS Sunderland CCG
A179: 176 | B179: 99H | C179: NHS Surrey Downs CCG | D179: E38000177 | E179: NHS Surrey Downs CCG
A180: 177 | B180: 10C | C180: NHS Surrey Heath CCG | D180: E38000178 | E180: NHS Surrey Heath CCG
A181: 178 | B181: 08T | C181: NHS Sutton CCG | D181: E38000179 | E181: NHS Sutton CCG
A182: 179 | B182: 10D | C182: NHS Swale CCG | D182: E38000180 | E182: NHS Swale CCG
A183: 180 | B183: 12D | C183: NHS Swindon CCG | D183: E38000181 | E183: NHS Swindon CCG
A184: 181 | B184: 01Y | C184: NHS Tameside and Glossop CCG | D184: E38000182 | E184: NHS Tameside and Glossop CCG
A185: 182 | B185: 05X | C185: NHS Telford and Wrekin CCG | D185: E38000183 | E185: NHS Telford and Wrekin CCG
A186: 183 | B186: 10E | C186: NHS Thanet CCG | D186: E38000184 | E186: NHS Thanet CCG
A187: 184 | B187: 07G | C187: NHS Thurrock CCG | D187: E38000185 | E187: NHS Thurrock CCG
A188: 185 | B188: 08V | C188: NHS Tower Hamlets CCG | D188: E38000186 | E188: NHS Tower Hamlets CCG
A189: 186 | B189: 02A | C189: NHS Trafford CCG | D189: E38000187 | E189: NHS Trafford CCG
A190: 187 | B190: 03Q | C190: NHS Vale of York CCG | D190: E38000188 | E190: NHS Vale of York CCG
A191: 188 | B191: 02D | C191: NHS Vale Royal CCG | D191: E38000189 | E191: NHS Vale Royal CCG
A192: 189 | B192: 03R | C192: NHS Wakefield CCG | D192: E38000190 | E192: NHS Wakefield CCG
A193: 190 | B193: 05Y | C193: NHS Walsall CCG | D193: E38000191 | E193: NHS Walsall CCG
A194: 191 | B194: 08W | C194: NHS Waltham Forest CCG | D194: E38000192 | E194: NHS Waltham Forest CCG
A195: 192 | B195: 08X | C195: NHS Wandsworth CCG | D195: E38000193 | E195: NHS Wandsworth CCG
A196: 193 | B196: 02E | C196: NHS Warrington CCG | D196: E38000194 | E196: NHS Warrington CCG
A197: 194 | B197: 05H | C197: NHS Warwickshire North CCG | D197: E38000195 | E197: NHS Warwickshire North CCG
A198: =A197+1 -> 195 | B198: 02F | C198: NHS West Cheshire CCG | D198: E38000196 | E198: NHS West Cheshire CCG
A199: 196 | B199: 07H | C199: NHS West Essex CCG | D199: E38000197 | E199: NHS West Essex CCG
A200: 197 | B200: 11A | C200: NHS West Hampshire CCG | D200: E38000198 | E200: NHS West Hampshire CCG
A201: 198 | B201: 99J | C201: NHS West Kent CCG | D201: E38000199 | E201: NHS West Kent CCG
A202: 199 | B202: 02G | C202: NHS West Lancashire CCG | D202: E38000200 | E202: NHS West Lancashire CCG
A203: 200 | B203: 04V | C203: NHS West Leicestershire CCG | D203: E38000201 | E203: NHS West Leicestershire CCG
... 11 more rows

Sheet Guide to tool
O1: National Cardiovascular Intelligence Network
B5: Estimating the impact of obesity on diabetes prevalence
B7: The diabetes prevalence model estimates the number of people aged 16 years and over who have diabetes (diagnosed and undiagnosed). The prevalence model adjusts for the age, sex, ethnic group and deprivation pattern of the local population. Office for National Statistics population projections produced in 2014 were used as a basis to produce the population estimates. Full details of the model methodology can be found on the National Cardiovascular (NCVIN) website: www.ncvin.org.uk
B8: These estimates have assumed no change in the proportion of people who are overweight or obese in future years. However, this is subject to uncertainty. Different scenarios have been created assuming different levels of obesity in future years and the impact on diabetes prevalence.
B10: Methodology
B11: The risk of developing type 2 diabetes is higher among people who are overweight or obese.1 Approximately 85% of people with diabetes are overweight or obese.2 The sex-specific relative risks of having diabetes for people who are overweight or obese for all adults aged 16 years and over were calculated from 3 years of Health Survey for England (HSE) data, 2012, 2013 and 2014. A range of scenarios were constructed assuming different increases or decreases of obesity in future years. These included: increasing obesity prevalence by 1%, 3% or 5% every 5 years; decreasing obesity level by 1%, 3%, or 5% every 5 years. The scenarios do not represent actual forecasts in obesity prevalence. The prevalence of people who are overweight was assumed to remain the same.
B12: The sex-specific relative risks of having diabetes for people who are overweight or obese were combined with the estimated prevalence of obesity using the range of scenarios, to create obesity adjustment factors for each scenario. These factors were applied to the estimated diabetes prevalence rates for men and women produced by the diabetes prevalence model. This method assumes that sex-specific obesity prevalence is an independent factor from age and ethnicity and applies the adjustment uniformly for men and women at each new time point on the trend.
B13: It is important to note that these scenarios were designed to assess the possible impacts of plausible changes in obesity rates. They do not provide a definitive forecast of future changes in the prevalence of obesity and its impact on diabetes.
B17: References
B18: 1. McCulloch DK, Robertson RP. Risk factors for type 2 diabetes mellitus Available from: http://www.uptodate.com/contents/risk-factors-for-type-2-diabetes-mellitus
B19: 2. NHS Digital. National Diabetes Audit 2012-2013: report 1: care processes and treatment targets. Available from: http://www.hscic.gov.uk/catalogue/PUB14970

Sheet Output
O1: National Cardiovascular Intelligence Network
B5: Estimating the impact of obesity on diabetes prevalence
B6: =Data_lookup!C1 -> England
C8: CCG: | K8: Scenario:
B11: ="Using the diabetes prevalence model, it was estimated that in 2015 that there were "&TEXT(Data_lookup!$G$7,"#,##0")&" people aged 16 years and older living with diabetes (diagnosed and undiagnosed) in "&Output!B6&". This equals "&Data_lookup!E7&"% of this age group. By 2020, diabetes prevalence is expected to increase to "&TEXT(Data_lookup!$G$8,"#,##0")&" or "&Data_lookup!E8&"%. By 2035, it is expected to increase to "&TEXT(Data_lookup!$G$11,"#,##0")&" or "&Data_lookup!E11&"%." -> Using the diabetes prevalence model, it was estimated that in 2015 that there were 3,807,050 people aged 16 years and older living with diabetes (diagnosed and undiagnosed) in England. This equals 8.6% of this age group. By 2020, diabetes prevalence is expected to increase to 4,085,150 or 8.9%. By 2035, it is expected to increase to 4,936,100 or 9.7%.
B12: These estimates have assumed no change in the proportion of people who are overweight or obese in future years. However, this is subject to uncertainty. Different scenarios have been constructed assuming different levels of obesity in future years.
B14: ="Scenario selected: "&Data_lookup!D2&"" -> Scenario selected: Obesity levels increase by 3% every 5 years
B16: ="If "&Data_lookup!E2&", "&Data_lookup!Q11&"" -> If obesity levels were to rise by 3% every 5 years, it is estimated there would be 4,137,250 (9%) people with diabetes in England in 2020. This represents an additional 52,100 people with diabetes compared to if obesity levels remained as there are now. By 2035, it is estimated that there would be 5,199,300 (10.2%) people with diabetes if obesity levels continued to increase at the same rate. This represents an additional 263,200 people.
B23: Comparison of diabetes prevalence using different levels of obesity
C26: =Data_lookup!K3 -> Obesity levels maintained | E26: =Data_lookup!L3 -> Obesity levels increase by 3% every 5 years | G26: Difference
C27: Prevalence | D27: Number | E27: Prevalence | F27: Number
B28: =Data_lookup!J4 -> 2015 | C28: =Data_lookup!K4 -> 0.08581180435 | D28: =Data_lookup!G7 -> 3807050 | E28: =Data_lookup!L4 -> 0.08581180435 | F28: =Data_lookup!P10 -> 3807050 | G28: =Data_lookup!N10 -> 0
B29: =Data_lookup!J5 -> 2020 | C29: =Data_lookup!K5 -> 0.08897294392 | D29: =Data_lookup!G8 -> 4085150 | E29: =Data_lookup!L5 -> 0.09010775268 | F29: =Data_lookup!P11 -> 4137250 | G29: =Data_lookup!N11 -> 52100
B30: =Data_lookup!J6 -> 2025 | C30: =Data_lookup!K6 -> 0.09232588594 | D30: =Data_lookup!G9 -> 4389900 | E30: =Data_lookup!L6 -> 0.09471539165 | F30: =Data_lookup!P12 -> 4503500 | G30: =Data_lookup!N12 -> 113600
B31: =Data_lookup!J7 -> 2030 | C31: =Data_lookup!K7 -> 0.0949374031 | D31: =Data_lookup!G10 -> 4675200 | E31: =Data_lookup!L7 -> 0.09867787782 | F31: =Data_lookup!P13 -> 4859350 | G31: =Data_lookup!N13 -> 184200
B32: =Data_lookup!J8 -> 2035 | C32: =Data_lookup!K8 -> 0.0971852999 | D32: =Data_lookup!G11 -> 4936100 | E32: =Data_lookup!L8 -> 0.1023672293 | F32: =Data_lookup!P14 -> 5199300 | G32: =Data_lookup!N14 -> 263200
B34: For any enquiries, contact ncvin@phe.gov.uk
B35: Last updated: October 2016

Sheet Data_lookup (hidden)
A1: CCG: | B1: 1 | C1: =VLOOKUP(B1,Lookups!A4:C214,3,FALSE) -> England | D1: =IF(C1="ENGLAND","England",A3) -> England
A2: Scenario | B2: 3 | C2: =VLOOKUP(B2,Lookups!G5:I12,3,FALSE) -> 13 | D2: =VLOOKUP(B2,Lookups!G5:J12,4,FALSE) -> Obesity levels increase by 3% every 5 years | E2: =VLOOKUP(B2,Lookups!G5:K12,5,FALSE) -> obesity levels were to rise by 3% every 5 years
A3: =Output!B6 -> England | K3: Obesity levels maintained | L3: =D2 -> Obesity levels increase by 3% every 5 years
I4: =C2+1 -> 14 | J4: 2015 | K4: =D7 -> 0.08581180435 | L4: =VLOOKUP($C$1,All_data!$A$4:$CD$214,$I4,FALSE) -> 0.08581180435 | M4: =L4-K4 -> 0 | P4: =SUM(L4-K4)/K4 -> 0 | R4: =ROUND(L4*100,1) -> 8.6
I5: =I4+2 -> 16 | J5: 2020 | K5: =D8 -> 0.08897294392 | L5: =VLOOKUP($C$1,All_data!$A$4:$CD$214,$I5,FALSE) -> 0.09010775268 | M5: =L5-K5 -> 0.00113480876 | P5: =SUM(L5-K5)/K5 -> 0.01275453761 | R5: =ROUND(L5*100,1) -> 9
D6: =C1 -> England | I6: =I5+2 -> 18 | J6: 2025 | K6: =D9 -> 0.09232588594 | L6: =VLOOKUP($C$1,All_data!$A$4:$CD$214,$I6,FALSE) -> 0.09471539165 | M6: 0.00238950571 | P6: =SUM(L6-K6)/K6 -> 0.02588121073 | R6: 9.5
C7: 2015 | D7: =VLOOKUP($D$6,Baseline!$B$2:$L$211,3,FALSE) -> 0.08581180435 | E7: =ROUND(D7*100,1) -> 8.6 | F7: =VLOOKUP($D$6,Baseline!$B$2:$L$211,2,FALSE) -> 3807042.416 | G7: =MROUND(F7,50) -> 3807050 | I7: 20 | J7: 2030 | K7: =D10 -> 0.0949374031 | L7: =VLOOKUP($C$1,All_data!$A$4:$CD$214,$I7,FALSE) -> 0.09867787782 | M7: 0.003740474719 | P7: =SUM(L7-K7)/K7 -> 0.03939937893 | R7: 9.9
C8: 2020 | D8: =VLOOKUP($D$6,Baseline!$B$2:$L$211,5,FALSE) -> 0.08897294392 | E8: =ROUND(D8*100,1) -> 8.9 | F8: =VLOOKUP($D$6,Baseline!$B$2:$L$211,4,FALSE) -> 4085166.028 | G8: =MROUND(F8,50) -> 4085150 | I8: 22 | J8: 2035 | K8: =D11 -> 0.0971852999 | L8: =VLOOKUP($C$1,All_data!$A$4:$CD$214,$I8,FALSE) -> 0.1023672293 | M8: 0.00518192937 | N8: =IF(M8<0,"fewer","additional") -> additional | O8: =ROUND(L8*100,1) -> 10.2 | P8: =SUM(L8-K8)/K8 -> 0.05332009445 | R8: 10.2
C9: 2025 | D9: =VLOOKUP($D$6,Baseline!$B$2:$L$211,7,FALSE) -> 0.09232588594 | E9: =ROUND(D9*100,1) -> 9.2 | F9: =VLOOKUP($D$6,Baseline!$B$2:$L$211,6,FALSE) -> 4389883.527 | G9: =MROUND(F9,50) -> 4389900 | R9: =SUM(K8-K4)/K4 -> 0.1325399884 | S9: =SUM(L8-L4)/L4 -> 0.1929271275 | T9: =S9-R9 -> 0.06038713915
C10: 2030 | D10: =VLOOKUP($D$6,Baseline!$B$2:$L$211,9,FALSE) -> 0.0949374031 | E10: =ROUND(D10*100,1) -> 9.5 | F10: =VLOOKUP($D$6,Baseline!$B$2:$L$211,8,FALSE) -> 4675175.327 | G10: =MROUND(F10,50) -> 4675200 | I10: =C2 -> 13 | J10: 2015 | K10: =F7 -> 3807042.416 | L10: =VLOOKUP($C$1,All_data!$A$4:$CD$214,$I10,FALSE) -> 3807042.416 | M10: =L10-K10 -> 0 | P10: =MROUND(L10,50) -> 3807050
C11: 2035 | D11: =VLOOKUP($D$6,Baseline!$B$2:$L$211,11,FALSE) -> 0.0971852999 | E11: =ROUND(D11*100,1) -> 9.7 | F11: =VLOOKUP($D$6,Baseline!$B$2:$L$211,10,FALSE) -> 4936101.637 | G11: =MROUND(F11,50) -> 4936100 | I11: =I10+2 -> 15 | J11: 2020 | K11: =F8 -> 4085166.028 | L11: =VLOOKUP($C$1,All_data!$A$4:$CD$214,$I11,FALSE) -> 4137270.432 | M11: =L11-K11 -> 52104.40376 | N11: =IF(M11>0,O11,-O11) -> 52100 | O11: =MROUND(ABS(M11),50) -> 52100 | P11: =MROUND(L11,50) -> 4137250 | Q11: =IF(M8<0,Q13,Q12) -> it is estimated there would be 4,137,250 (9%) people with diabetes in England in 2020. This represents an additional 52,100 people with diabetes compared to if obesity levels remained as there are now. By 2035, it is estimated that there would be 5,199,300 (10.2%) people with diabetes if obesity levels continued to increase at the same rate. This represents an additional 263,200 people.
I12: =I11+2 -> 17 | J12: 2025 | K12: 4389883.527 | L12: =VLOOKUP($C$1,All_data!$A$4:$CD$214,$I12,FALSE) -> 4503499.028 | M12: 113615.5006 | N12: =IF(M12>0,O12,-O12) -> 113600 | O12: =MROUND(ABS(M12),50) -> 113600 | P12: =MROUND(L12,50) -> 4503500 | Q12: ="it is estimated there would be "&TEXT(Data_lookup!$P$11,"#,##0")&" ("&R5&"%) people with diabetes in "&D1&" in 2020. This represents an additional "&TEXT(Data_lookup!$O$11,"#,##0")&" people with diabetes compared to if obesity levels remained as there are now. By 2035, it is estimated that there would be "&TEXT(Data_lookup!$P$14,"#,##0")&" (" &R8& "%) people with diabetes if obesity levels continued to increase at the same rate. This represents an additional "&TEXT(Data_lookup!$O$14,"#,##0")&" people. " -> it is estimated there would be 4,137,250 (9%) people with diabetes in England in 2020. This represents an additional 52,100 people with diabetes compared to if obesity levels remained as there are now. By 2035, it is estimated that there would be 5,199,300 (10.2%) people with diabetes if obesity levels continued to increase at the same rate. This represents an additional 263,200 people.
I13: 19 | J13: 2030 | K13: 4675175.327 | L13: =VLOOKUP($C$1,All_data!$A$4:$CD$214,$I13,FALSE) -> 4859374.331 | M13: 184199.0042 | N13: =IF(M13>0,O13,-O13) -> 184200 | O13: 184200 | P13: =MROUND(L13,50) -> 4859350 | Q13: ="it is estimated there would be "&TEXT(Data_lookup!$P$11,"#,##0")&" ("&R5&"%) people with diabetes in "&D1&" in 2020. This represents "&TEXT(Data_lookup!$O$11,"#,##0")&" fewer people with diabetes compared to if obesity levels remained as there are now. By 2035, if obesity levels continued to decline at the same rate, it is estimated that there would be "&TEXT(Data_lookup!$P$14,"#,##0")&" (" &R8& "%) people with diabetes . This represents "&TEXT(Data_lookup!$O$14,"#,##0")&" fewer people with diabetes. " -> it is estimated there would be 4,137,250 (9%) people with diabetes in England in 2020. This represents 52,100 fewer people with diabetes compared to if obesity levels remained as there are now. By 2035, if obesity levels continued to decline at the same rate, it is estimated that there would be 5,199,300 (10.2%) people with diabetes . This represents 263,200 fewer people with diabetes.
I14: 21 | J14: 2035 | K14: 4936101.637 | L14: =VLOOKUP($C$1,All_data!$A$4:$CD$214,$I14,FALSE) -> 5199295.042 | M14: =L14-K14 -> 263193.4055 | N14: =IF(M14>0,O14,-O14) -> 263200 | O14: 263200 | P14: =MROUND(L14,50) -> 5199300
K16: =K14-K10 -> 1129059.221 | L16: =M14/K16 -> 0.2331085923
K30: =M26/K28 -> 

Sheet All_data (hidden)
C1: +5% | D1: +5% | E1: +5% | F1: +5% | G1: +5% | H1: +5% | I1: +5% | J1: +5% | K1: +5% | L1: +5% | M1: +3% | N1: +3% | O1: +3% | P1: +3% | Q1: +3% | R1: +3% | S1: +3% | T1: +3% | U1: +3% | V1: +3% | W1: +2% | X1: +2% | Y1: +2% | Z1: +2% | AA1: +2% | AB1: +2% | AC1: +2% | AD1: +2% | AE1: +2% | AF1: +2% | AG1: +1% | AH1: +1% | AI1: +1% | AJ1: +1% | AK1: +1% | AL1: +1% | AM1: +1% | AN1: +1% | AO1: +1% | AP1: +1% | AQ1: -5% | AR1: -5% | AS1: -5% | AT1: -5% | AU1: -5% | AV1: -5% | AW1: -5% | AX1: -5% | AY1: -5% | AZ1: -5% | BA1: -3% | BB1: -3% | BC1: -3% | BD1: -3% | BE1: -3% | BF1: -3% | BG1: -3% | BH1: -3% | BI1: -3% | BJ1: -3% | BK1: -2% | BL1: -2% | BM1: -2% | BN1: -2% | BO1: -2% | BP1: -2% | BQ1: -2% | BR1: -2% | BS1: -2% | BT1: -2% | BU1: -1% | BV1: -1% | BW1: -1% | BX1: -1% | BY1: -1% | BZ1: -1% | CA1: -1% | CB1: -1% | CC1: -1% | CD1: -1%
C2: 2015 | D2: 2015 | E2: 2020 | F2: 2020 | G2: 2025 | H2: 2025 | I2: 2030 | J2: 2030 | K2: 2035 | L2: 2035 | M2: 2015 | N2: 2015 | O2: 2020 | P2: 2020 | Q2: 2025 | R2: 2025 | S2: 2030 | T2: 2030 | U2: 2035 | V2: 2035 | W2: 2015 | X2: 2015 | Y2: 2020 | Z2: 2020 | AA2: 2025 | AB2: 2025 | AC2: 2030 | AD2: 2030 | AE2: 2035 | AF2: 2035 | AG2: 2015 | AH2: 2015 | AI2: 2020 | AJ2: 2020 | AK2: 2025 | AL2: 2025 | AM2: 2030 | AN2: 2030 | AO2: 2035 | AP2: 2035 | AQ2: 2015 | AR2: 2015 | AS2: 2020 | AT2: 2020 | AU2: 2025 | AV2: 2025 | AW2: 2030 | AX2: 2030 | AY2: 2035 | AZ2: 2035 | BA2: 2015 | BB2: 2015 | BC2: 2020 | BD2: 2020 | BE2: 2025 | BF2: 2025 | BG2: 2030 | BH2: 2030 | BI2: 2035 | BJ2: 2035 | BK2: 2015 | BL2: 2015 | BM2: 2020 | BN2: 2020 | BO2: 2025 | BP2: 2025 | BQ2: 2030 | BR2: 2030 | BS2: 2035 | BT2: 2035 | BU2: 2015 | BV2: 2015 | BW2: 2020 | BX2: 2020 | BY2: 2025 | BZ2: 2025 | CA2: 2030 | CB2: 2030 | CC2: 2035 | CD2: 2035
A3: 2015 residence population | C3: Number | D3: Prevalence | E3: Number | F3: Prevalence | G3: Number | H3: Prevalence | I3: Number | J3: Prevalence | K3: Number | L3: Prevalence | M3: Number | N3: Prevalence | O3: Number | P3: Prevalence | Q3: Number | R3: Prevalence | S3: Number | T3: Prevalence | U3: Number | V3: Prevalence | W3: Number | X3: Prevalence | Y3: Number | Z3: Prevalence | AA3: Number | AB3: Prevalence | AC3: Number | AD3: Prevalence | AE3: Number | AF3: Prevalence | AG3: Number | AH3: Prevalence | AI3: Number | AJ3: Prevalence | AK3: Number | AL3: Prevalence | AM3: Number | AN3: Prevalence | AO3: Number | AP3: Prevalence | AQ3: Number | AR3: Prevalence | AS3: Number | AT3: Prevalence | AU3: Number | AV3: Prevalence | AW3: Number | AX3: Prevalence | AY3: Number | AZ3: Prevalence | BA3: Number | BB3: Prevalence | BC3: Number | BD3: Prevalence | BE3: Number | BF3: Prevalence | BG3: Number | BH3: Prevalence | BI3: Number | BJ3: Prevalence | BK3: Number | BL3: Prevalence | BM3: Number | BN3: Prevalence | BO3: Number | BP3: Prevalence | BQ3: Number | BR3: Prevalence | BS3: Number | BT3: Prevalence | BU3: Number | BV3: Prevalence | BW3: Number | BX3: Prevalence | BY3: Number | BZ3: Prevalence | CA3: Number | CB3: Prevalence | CC3: Number | CD3: Prevalence
A4: England | B4: ENG | C4: 3807042.416 | D4: 0.08581180435 | E4: 4172006.701 | F4: 0.09086429185 | G4: 4581108.302 | H4: 0.096347632 | I4: 4988291.982 | J4: 0.1012957704 | K4: 5388020.7 | L4: 0.1060829874 | M4: 3807042.416 | N4: 0.08581180435 | O4: 4137270.432 | P4: 0.09010775268 | Q4: 4503499.028 | R4: 0.09471539165 | S4: 4859374.331 | T4: 0.09867787782 | U4: 5199295.042 | V4: 0.1023672293 | W4: 3807042.416 | X4: 0.08581180435 | Y4: 4119902.297 | Z4: 0.08972948309 | AA4: 4465254.072 | AB4: 0.09391104244 | AC4: 4796762.919 | AD4: 0.09740644638 | AE4: 5108962.816 | AF4: 0.1005887074 | AG4: 3807042.416 | AH4: 0.08581180435 | AI4: 4102534.163 | AJ4: 0.08935121351 | AK4: 4427382.239 | AL4: 0.09311454053 | AM4: 4735367.224 | AN4: 0.09615970215 | AO4: 5021248.709 | AP4: 0.09886173291 | AQ4: 3807042.416 | AR4: 0.08581180435 | AS4: 3998325.355 | AT4: 0.08708159599 | AU4: 4207986.789 | AV4: 0.08850032261 | AW4: 4391855.657 | AX4: 0.08918411434 | AY4: 4547119.128 | AZ4: 0.08952674979 | BA4: 3807042.416 | BB4: 0.08581180435 | BC4: 4033061.625 | BD4: 0.08783813516 | BE4: 4279626.12 | BF4: 0.09000700601 | BG4: 4501703.237 | BH4: 0.09141475667 | BI4: 4695559.352 | BJ4: 0.09244934107 | BK4: 3807042.416 | BL4: 0.08581180435 | BM4: 4050429.759 | BN4: 0.08821640475 | BO4: 4316005.467 | BP4: 0.09077211868 | BQ4: 4558355.252 | BR4: 0.09256517239 | BS4: 4773306.783 | BT4: 0.09398008497 | BU4: 3807042.416 | BV4: 0.08581180435 | BW4: 4067797.894 | BX4: 0.08859467434 | BY4: 4352757.936 | BZ4: 0.09154507865 | CA4: 4616175.309 | CB4: 0.09373930719 | CC4: 4853471.021 | CD4: 0.09555841257
A6: NHS Airedale, Wharfdale and Craven CCG | B6: E38000001 | C6: 12033.47528 | D6: 0.09339859731 | E6: 13023.59757 | F6: 0.09870848544 | G6: 14255.30832 | H6: 0.1046184377 | I6: 15570.77235 | J6: 0.1110769893 | K6: 16734.20354 | L6: 0.1165821621 | M6: 12033.47528 | N6: 0.09339859731 | O6: 12914.93384 | P6: 0.09788490103 | Q6: 14013.46742 | R6: 0.1028435889 | S6: 15167.79555 | T6: 0.1082022796 | U6: 16147.11238 | V6: 0.1124920746 | W6: 12033.47528 | X6: 0.09339859731 | Y6: 12860.60198 | Z6: 0.09747310883 | AA6: 13894.29101 | AB6: 0.1019689639 | AC6: 14972.08188 | AD6: 0.1068061198 | AE6: 15866.10527 | AF6: 0.1105343826 | AG6: 12033.47528 | AH6: 0.09339859731 | AI6: 12806.27012 | AJ6: 0.09706131663 | AK6: 13776.27731 | AL6: 0.1011028718 | AM6: 14780.16835 | AN6: 0.1054370691 | AO6: 15593.24266 | AP6: 0.1086334308 | AQ6: 12033.47528 | AR6: 0.09339859731 | AS6: 12480.27894 | AT6: 0.09459056341 | AU6: 13092.61169 | AV6: 0.09608551071 | AW6: 13706.40387 | AX6: 0.09777717128 | AY6: 14118.31185 | AZ6: 0.09835803159 | BA6: 12033.47528 | BB6: 0.09339859731 | BC6: 12588.94266 | BD6: 0.09541414781 | BE6: 13315.84944 | BF6: 0.09772383269 | BG6: 14049.77056 | BH6: 0.1002266412 | BI6: 14580.08236 | BJ6: 0.1015750478 | BK6: 12033.47528 | BL6: 0.09339859731 | BM6: 12643.27453 | BN6: 0.09582594002 | BO6: 13429.21236 | BP6: 0.09855579307 | BQ6: 14226.85607 | BR6: 0.1014899135 | BS6: 14821.94047 | BT6: 0.1032600005 | BU6: 12033.47528 | BV6: 0.09339859731 | BW6: 12697.60639 | BX6: 0.09623773222 | BY6: 13543.73798 | BZ6: 0.09939628637 | CA6: 14407.5927 | CB6: 0.1027792317 | CC6: 15071.31681 | CD6: 0.1049973305
A7: NHS Ashford CCG | B7: E38000002 | C7: 8276.584873 | D7: 0.08336608454 | E7: 9395.095859 | F7: 0.08920523983 | G7: 10603.10301 | H7: 0.09523174967 | I7: 11765.86307 | J7: 0.1006661796 | K7: 12935.53109 | L7: 0.1058900712 | M7: 8276.584873 | N7: 0.08336608454 | O7: 9316.896784 | P7: 0.08846274957 | Q7: 10423.47059 | R7: 0.09361838142 | S7: 11461.84429 | T7: 0.09806506064 | U7: 12482.57394 | V7: 0.1021821704 | W7: 8276.584873 | X7: 0.08336608454 | Y7: 9277.797247 | Z7: 0.08809150443 | AA7: 10334.9498 | AB7: 0.09282333217 | AC7: 11314.19154 | AD7: 0.09680177569 | AE7: 12265.76914 | AF7: 0.1004074095 | AG7: 8276.584873 | AH7: 0.08336608454 | AI7: 9238.697709 | AJ7: 0.0877202593 | AK7: 10247.29264 | AL7: 0.09203603949 | AM7: 11169.40575 | AN7: 0.09556301976 | AO7: 12055.24805 | AP7: 0.09868408684 | AQ7: 8276.584873 | AR7: 0.08336608454 | AS7: 9004.100484 | AT7: 0.08549278849 | AU7: 9739.485602 | AV7: 0.08747517157 | AW7: 10359.32298 | AX7: 0.08863212684 | AY7: 10917.29793 | AZ7: 0.08936884358 | BA7: 8276.584873 | BB7: 0.08336608454 | BC7: 9082.299559 | BD7: 0.08623527876 | BE7: 9905.300144 | BF7: 0.08896443456 | BG7: 10618.36996 | BH7: 0.0908484767 | BI7: 11273.56672 | BJ7: 0.09228525472 | BK7: 8276.584873 | BL7: 0.08336608454 | BM7: 9121.399097 | BN7: 0.08660652389 | BO7: 9989.502841 | BP7: 0.08972070093 | BQ7: 10751.96901 | BR7: 0.09199152133 | BS7: 11460.16697 | BT7: 0.09381276169 | BU7: 8276.584873 | BV7: 0.08336608454 | BW7: 9160.498634 | BX7: 0.08697776903 | BY7: 10074.56916 | BZ7: 0.09048472387 | CA7: 10888.32259 | CB7: 0.09315813306 | CC7: 11652.56775 | CD7: 0.09538775173
A8: NHS Aylesbury Vale CCG | B8: E38000003 | C8: 12549.16895 | D8: 0.07637960408 | E8: 14250.30856 | F8: 0.08155149687 | G8: 16063.27764 | H8: 0.08708271515 | I8: 17788.5885 | J8: 0.09192118903 | K8: 19592.64885 | L8: 0.09695491315 | M8: 12549.16895 | N8: 0.07637960408 | O8: 14131.69799 | P8: 0.08087271368 | Q8: 15791.08617 | R8: 0.08560710274 | S8: 17328.33081 | T8: 0.08954284213 | U8: 18905.46508 | V8: 0.09355436006 | W8: 12549.16895 | X8: 0.07637960408 | Y8: 14072.3927 | Z8: 0.08053332209 | AA8: 15656.95336 | AB8: 0.08487993797 | AC8: 17104.79754 | AD8: 0.08838775082 | AE8: 18576.54934 | AF8: 0.09192670893 | AG8: 12549.16895 | AH8: 0.07637960408 | AI8: 14013.08742 | AJ8: 0.0801939305 | AK8: 15524.12916 | AL8: 0.08415986749 | AM8: 16885.60458 | AN8: 0.08725508776 | AO8: 18257.16664 | AP8: 0.09034623237 | AQ8: 12549.16895 | AR8: 0.07637960408 | AS8: 13657.2557 | AT8: 0.07815758095 | AU8: 14754.66482 | AV8: 0.07998842472 | AW8: 15659.21052 | AX8: 0.08091778898 | AY8: 16530.7763 | AZ8: 0.08180312897 | BA8: 12549.16895 | BB8: 0.07637960408 | BC8: 13775.86627 | BD8: 0.07883636413 | BE8: 15005.91848 | BF8: 0.08135052848 | BG8: 16051.38486 | BH8: 0.08294432026 | BI8: 17071.27362 | BJ8: 0.08447779899 | BK8: 12549.16895 | BL8: 0.07637960408 | BM8: 13835.17156 | BN8: 0.07917575572 | BO8: 15133.50823 | BP8: 0.0820422218 | BQ8: 16253.64208 | BR8: 0.08398946919 | BS8: 17354.36588 | BT8: 0.08587869102 | BU8: 12549.16895 | BV8: 0.07637960408 | BW8: 13894.47684 | BX8: 0.07951514732 | BY8: 15262.4066 | BZ8: 0.08274100941 | CA8: 16460.0694 | CB8: 0.08505616682 | CC8: 17646.25816 | CD8: 0.08732313025
A9: NHS Barking and Dagenham CCG | B9: E38000004 | C9: 13631.49895 | D9: 0.09217946273 | E9: 15250.01817 | F9: 0.09460309036 | G9: 17231.832 | H9: 0.09836643453 | I9: 19437.77535 | J9: 0.103216734 | K9: 21812.49115 | L9: 0.108736247 | M9: 13631.49895 | N9: 0.09217946273 | O9: 15122.76532 | P9: 0.09381368062 | Q9: 16939.35489 | R9: 0.09669685404 | S9: 18934.79142 | T9: 0.1005458338 | U9: 21047.66521 | V9: 0.1049235554 | W9: 13631.49895 | X9: 0.09217946273 | Y9: 15059.13889 | Z9: 0.09341897576 | AA9: 16795.22554 | AB9: 0.09587410403 | AC9: 18690.5073 | AD9: 0.09924865814 | AE9: 20681.58658 | AF9: 0.103098637 | AG9: 13631.49895 | AH9: 0.09217946273 | AI9: 14995.51247 | AJ9: 0.09302427089 | AK9: 16652.50234 | AL9: 0.09505938086 | AM9: 18450.96642 | AN9: 0.09797666958 | AO9: 20326.11809 | AP9: 0.1013266106 | AQ9: 13631.49895 | AR9: 0.09217946273 | AS9: 14613.75392 | AT9: 0.09065604169 | AU9: 15825.69204 | AV9: 0.09033960523 | AW9: 17110.72482 | AX9: 0.09085983866 | AY9: 18404.66974 | AZ9: 0.09174810438 | BA9: 13631.49895 | BB9: 0.09217946273 | BC9: 14741.00677 | BD9: 0.09144545142 | BE9: 16095.67092 | BF9: 0.09188075645 | BG9: 17539.30513 | BH9: 0.09313564748 | BI9: 19006.23571 | BJ9: 0.09474693774 | BK9: 13631.49895 | BL9: 0.09217946273 | BM9: 14804.63319 | BN9: 0.09184015629 | BO9: 16232.76956 | BP9: 0.09266337231 | BQ9: 17760.33812 | BR9: 0.09430935705 | BS9: 19321.31345 | BT9: 0.09631761439 | BU9: 13631.49895 | BV9: 0.09217946273 | BW9: 14868.25962 | BX9: 0.09223486116 | BY9: 16371.27435 | BZ9: 0.093454015 | CA9: 17985.92833 | CB9: 0.09550726597 | CC9: 19646.18548 | CD9: 0.09793711605
A10: NHS Barnet CCG | B10: E38000005 | C10: 25808.20804 | D10: 0.08565049793 | E10: 29339.88246 | F10: 0.09058874417 | G10: 33321.37004 | H10: 0.09651653932 | I10: 37710.37861 | J10: 0.102809102 | K10: 42228.87951 | L10: 0.1091016367 | M10: 25808.20804 | N10: 0.08565049793 | O10: 29094.88249 | P10: 0.08983229124 | Q10: 32755.90056 | R10: 0.09487863677 | S10: 36735.17321 | T10: 0.1001504177 | U10: 40750.23424 | V10: 0.1052814402 | W10: 25808.20804 | X10: 0.08565049793 | Y10: 28972.3825 | Z10: 0.08945406477 | AA10: 32477.24372 | AB10: 0.09407149729 | AC10: 36261.54538 | AD10: 0.09885917497 | AE10: 40042.49095 | AF10: 0.1034529297 | AG10: 25808.20804 | AH10: 0.08565049793 | AI10: 28849.88251 | AJ10: 0.08907583831 | AK10: 32201.30549 | AL10: 0.09327223234 | AM10: 35797.11391 | AN10: 0.09759300413 | AO10: 39355.26034 | AP10: 0.1016774152 | AQ10: 25808.20804 | AR10: 0.08565049793 | AS10: 28114.88259 | AT10: 0.08680647951 | AU10: 30602.76678 | AV10: 0.08864200782 | AW10: 33198.5998 | AX10: 0.09050872356 | AY10: 35640.50598 | AZ10: 0.09208005472 | BA10: 25808.20804 | BB10: 0.08565049793 | BC10: 28359.88256 | BD10: 0.08756293245 | BE10: 31124.7386 | BF10: 0.09015391787 | BG10: 34029.54849 | BH10: 0.09277412348 | BI10: 36803.51919 | BJ10: 0.09508479097 | BK10: 25808.20804 | BL10: 0.08565049793 | BM10: 28482.38255 | BN10: 0.08794115891 | BO10: 31389.80242 | BP10: 0.09092168469 | BQ10: 34458.0961 | BR10: 0.09394246484 | BS10: 37412.66197 | BT10: 0.09665855932 | BU10: 25808.20804 | BV10: 0.08565049793 | BW10: 28604.88254 | BX10: 0.08831938538 | BY10: 31657.58484 | BZ10: 0.09169732604 | CA10: 34895.47944 | CB10: 0.09513489486 | CC10: 38040.74016 | CD10: 0.09828124881
A11: NHS Barnsley CCG | B11: E38000006 | C11: 17198.33243 | D11: 0.08820562329 | E11: 18895.97133 | F11: 0.09388835996 | G11: 20729.64602 | H11: 0.09959472479 | I11: 22536.19415 | J11: 0.1048195077 | K11: 24314.2723 | L11: 0.1098503312 | M11: 17198.33243 | N11: 0.08820562329 | O11: 18738.99262 | P11: 0.0931083803 | Q11: 20379.17945 | R11: 0.09791092272 | S11: 21954.8838 | T11: 0.1021157386 | U11: 23464.19115 | V11: 0.1060097188 | W11: 17198.33243 | X11: 0.08820562329 | Y11: 18660.50327 | Z11: 0.09271839047 | AA11: 20206.47358 | AB11: 0.09708116448 | AC11: 21672.55891 | AD11: 0.1008025996 | AE11: 23057.30571 | AF11: 0.1041714363 | AG11: 17198.33243 | AH11: 0.08820562329 | AI11: 18582.01391 | AJ11: 0.09232840064 | AK11: 20035.45263 | AL11: 0.09625950145 | AM11: 21395.71589 | AN11: 0.09951495761 | AO11: 22662.21312 | AP11: 0.1023864332 | AQ11: 17198.33243 | AR11: 0.08820562329 | AS11: 18111.07779 | AT11: 0.08998846166 | AU11: 19044.71062 | AV11: 0.09149952252 | AW11: 19846.76719 | AX11: 0.09231054505 | AY11: 20526.58078 | AZ11: 0.09273778251 | BA11: 17198.33243 | BB11: 0.08820562329 | BC11: 18268.0565 | BD11: 0.09076844132 | BE11: 19368.21821 | BF11: 0.09305380135 | BG11: 20342.08753 | BH11: 0.09461436059 | BI11: 21195.20336 | BJ11: 0.09575857665 | BK11: 17198.33243 | BL11: 0.08820562329 | BM11: 18346.54585 | BN11: 0.09115843115 | BO11: 19532.49942 | BP11: 0.09384308357 | BQ11: 20597.54054 | BR11: 0.09580251414 | BS11: 21545.40283 | BT11: 0.09734075553 | BU11: 17198.33243 | BV11: 0.08820562329 | BW11: 18425.03521 | BX11: 0.09154842098 | BY11: 19698.46555 | BZ11: 0.094640461 | CA11: 20858.26044 | CB11: 0.09701516485 | CC11: 21906.48837 | CD11: 0.09897211698
A12: NHS Basildon and Brentwood CCG | B12: E38000007 | C12: 17185.61921 | D12: 0.08270269111 | E12: 18619.08727 | F12: 0.0866084625 | G12: 20443.34522 | H12: 0.09146092171 | I12: 22331.44384 | J12: 0.09568705047 | K12: 24353.99784 | L12: 0.09997536057 | M12: 17185.61921 | N12: 0.08270269111 | O12: 18463.65966 | P12: 0.08588547614 | Q12: 20096.19527 | R12: 0.08990781706 | S12: 21752.90184 | T12: 0.09320808057 | U12: 23498.87078 | V12: 0.09646498679 | W12: 17185.61921 | X12: 0.08270269111 | Y12: 18385.94586 | Z12: 0.08552398296 | AA12: 19925.12378 | AB12: 0.089142465 | AC12: 21471.92146 | AD12: 0.0920041197 | AE12: 23089.57015 | AF12: 0.09478477075 | AG12: 17185.61921 | AH12: 0.08270269111 | AI12: 18308.23205 | AJ12: 0.08516248978 | AK12: 19755.72128 | AL12: 0.0883845798 | AM12: 21196.39683 | AN12: 0.09082353598 | AO12: 22692.13238 | AP12: 0.09315325277 | AQ12: 17185.61921 | AR12: 0.08270269111 | AS12: 17841.94923 | AT12: 0.0829935307 | AU12: 18774.35506 | AV12: 0.0839940724 | AW12: 19654.82462 | AX12: 0.08421811902 | AY12: 20543.82337 | AZ12: 0.08433425028 | BA12: 17185.61921 | BB12: 0.08270269111 | BC12: 17997.37684 | BD12: 0.08371651706 | BE12: 19094.80117 | BF12: 0.08542770747 | BG12: 20147.78612 | BH12: 0.0863303887 | BI12: 21216.41475 | BJ12: 0.08709529864 | BK12: 17185.61921 | BL12: 0.08270269111 | BM12: 18075.09064 | BN12: 0.08407801024 | BO12: 19257.52771 | BP12: 0.08615572528 | BQ12: 20402.0226 | BR12: 0.08741975575 | BS12: 21568.69293 | BT12: 0.0885414324 | BU12: 17185.61921 | BV12: 0.08270269111 | BW12: 18152.80445 | BX12: 0.08443950342 | BY12: 19421.92324 | BZ12: 0.08689120993 | CA12: 20661.50088 | CB12: 0.08853158319 | CC12: 21931.92181 | CD12: 0.09003251973
A13: NHS Bassetlaw CCG | B13: E38000008 | C13: 8439.134465 | D13: 0.08934082644 | E13: 9315.054762 | F13: 0.09689052176 | G13: 10094.28121 | H13: 0.1035098565 | I13: 10893.80444 | J13: 0.1095956181 | K13: 11639.02647 | L13: 0.1149874182 | M13: 8439.134465 | N13: 0.08934082644 | O13: 9237.683993 | P13: 0.09608574988 | Q13: 9923.650804 | R13: 0.10176016 | S13: 10612.95334 | T13: 0.1067701543 | U13: 11232.14266 | V13: 0.1109676217 | W13: 8439.134465 | X13: 0.08934082644 | Y13: 9198.998609 | Z13: 0.09568336394 | AA13: 9839.56611 | AB13: 0.1008979298 | AC13: 10476.55244 | AD13: 0.1053979118 | AE13: 11037.39056 | AF13: 0.109043574 | AG13: 8439.134465 | AH13: 0.08934082644 | AI13: 9160.313225 | AJ13: 0.095280978 | AK13: 9756.301754 | AL13: 0.1000441115 | AM13: 10342.80001 | AN13: 0.104052314 | AO13: 10848.28299 | AP13: 0.1071752914 | AQ13: 8439.134465 | AR13: 0.08934082644 | AS13: 8928.20092 | AT13: 0.09286666236 | AU13: 9273.942726 | AV13: 0.09509785404 | AW13: 9594.449418 | AX13: 0.096523636 | AY13: 9826.081515 | AZ13: 0.09707648207 | BA13: 8439.134465 | BB13: 0.08934082644 | BC13: 9005.571688 | BD13: 0.09367143424 | BE13: 9431.447715 | BF13: 0.09671295852 | BG13: 9833.755776 | BH13: 0.09893114462 | BI13: 10146.11178 | BJ13: 0.1002382116 | BK13: 8439.134465 | BL13: 0.08934082644 | BM13: 9044.257072 | BN13: 0.09407382018 | BO13: 9511.430717 | BP13: 0.09753312876 | BQ13: 9957.173946 | BR13: 0.1001727761 | BS13: 10313.73165 | BT13: 0.1018942072 | BU13: 8439.134465 | BV13: 0.08934082644 | BW13: 9082.942456 | BX13: 0.09447620612 | BY13: 9592.234057 | BZ13: 0.09836171101 | CA13: 10083.13673 | CB13: 0.1014400074 | CC13: 10486.56205 | CD13: 0.10360168
A14: NHS Bath and North East Somerset CCG | B14: E38000009 | C14: 11199.87872 | D14: 0.07355759044 | E14: 12061.29336 | F14: 0.07776462516 | G14: 13112.12957 | H14: 0.08257008547 | I14: 14126.24847 | J14: 0.08593654013 | K14: 15104.65337 | L14: 0.08960995116 | M14: 11199.87872 | N14: 0.07355759044 | O14: 11960.77792 | P14: 0.07711655653 | Q14: 12889.79985 | R14: 0.08117002425 | S14: 13760.59829 | T14: 0.08371212002 | U14: 14574.76984 | V14: 0.0864663612 | W14: 11199.87872 | X14: 0.07355759044 | Y14: 11910.5202 | Z14: 0.07679252222 | AA14: 12780.23833 | AB14: 0.08048009024 | AC14: 13583.01303 | AD14: 0.0826317863 | AE14: 14321.14477 | AF14: 0.08496170369 | AG14: 11199.87872 | AH14: 0.07355759044 | AI14: 11860.26247 | AJ14: 0.07646848791 | AK14: 12671.7457 | AL14: 0.07979688729 | AM14: 13408.87592 | AN14: 0.08157242927 | AO14: 14074.87057 | AP14: 0.08350065599 | AQ14: 11199.87872 | AR14: 0.07355759044 | AS14: 11558.71614 | AT14: 0.07452428203 | AU14: 12043.23668 | AV14: 0.07583902192 | AW14: 12434.57128 | AX14: 0.07564528093 | AY14: 12743.66074 | AZ14: 0.07560311305 | BA14: 11199.87872 | BB14: 0.07355759044 | BC14: 11659.23159 | BD14: 0.07517235066 | BE14: 12248.46412 | BF14: 0.07713138612 | BG14: 12746.13286 | BH14: 0.07754065496 | BI14: 13160.43517 | BJ14: 0.07807567137 | BK14: 11199.87872 | BL14: 0.07355759044 | BM14: 11709.48931 | BN14: 0.07549638497 | BO14: 12352.68117 | BP14: 0.07778766482 | BQ14: 12906.81543 | BR14: 0.07851816177 | BS14: 13378.72601 | BT14: 0.07937070485 | BU14: 11199.87872 | BV14: 0.07355759044 | BW14: 11759.74703 | BX14: 0.07582041928 | BY14: 12457.96712 | BZ14: 0.07845067458 | CA14: 13070.81093 | CB14: 0.07951582266 | CC14: 13603.8025 | CD14: 0.08070599489
A15: NHS Bedfordshire CCG | B15: E38000010 | C15: 28640.43738 | D15: 0.08118498038 | E15: 32394.06103 | F15: 0.08606743458 | G15: 36548.57849 | H15: 0.09138972416 | I15: 40745.99909 | J15: 0.09637180484 | K15: 44959.26236 | L15: 0.101245918 | M15: 28640.43738 | N15: 0.08118498038 | O15: 32124.85266 | P15: 0.08535217775 | Q15: 35930.44263 | R15: 0.08984407538 | S15: 39694.44811 | T15: 0.0938846928 | U15: 43386.60995 | V15: 0.09770438669 | W15: 28640.43738 | X15: 0.08118498038 | Y15: 31990.24848 | Z15: 0.08499454934 | AA15: 35625.83241 | AB15: 0.0890823975 | AC15: 39183.74154 | AD15: 0.09267677753 | AE15: 42633.87079 | AF15: 0.09600925729 | AG15: 28640.43738 | AH15: 0.08118498038 | AI15: 31855.6443 | AJ15: 0.08463692093 | AK15: 35324.19399 | AL15: 0.08832815061 | AM15: 38682.95129 | AN15: 0.0914923162 | AO15: 41902.94844 | AP15: 0.0943632582 | AQ15: 28640.43738 | AR15: 0.08118498038 | AS15: 31048.01921 | AT15: 0.08249115046 | AU15: 33576.77147 | AV15: 0.08395872041 | AW15: 35881.00818 | AX15: 0.08486520384 | AY15: 37952.02286 | AZ15: 0.08546597951 | BA15: 28640.43738 | BB15: 0.08118498038 | BC15: 31317.22757 | BD15: 0.08320640728 | BE15: 34147.35841 | BF15: 0.08538547313 | BG15: 36777.00907 | BH15: 0.08698441124 | BI15: 39188.97643 | BJ15: 0.08825153454 | BK15: 28640.43738 | BL15: 0.08118498038 | BM15: 31451.83175 | BN15: 0.08356403569 | BO15: 34437.1096 | BP15: 0.08610999599 | BQ15: 37239.10624 | BR15: 0.0880773563 | BS15: 39836.84639 | BT15: 0.08971050397 | BU15: 28640.43738 | BV15: 0.08118498038 | BW15: 31586.43594 | BX15: 0.0839216641 | BY15: 34729.83259 | BZ15: 0.08684194986 | CA15: 37710.73086 | CB15: 0.08919283552 | CC15: 40504.85562 | CD15: 0.09121482598
A16: NHS Bexley CCG | B16: E38000011 | C16: 15834.93129 | D16: 0.08233637318 | E16: 17168.81614 | F16: 0.0852050429 | G16: 18897.70323 | H16: 0.08913170093 | I16: 20762.43005 | J16: 0.0927556739 | K16: 22852.74666 | L16: 0.09696515044 | M16: 15834.93129 | N16: 0.08233637318 | O16: 17025.29825 | P16: 0.08449279526 | Q16: 18576.42749 | R16: 0.08761639226 | S16: 20224.03145 | T16: 0.0903503907 | U16: 22049.9628 | V16: 0.0935589053 | W16: 15834.93129 | X16: 0.08233637318 | Y16: 16953.5393 | Z16: 0.08413667144 | AA16: 18418.10651 | AB16: 0.08686966562 | AC16: 19962.54751 | AD16: 0.08918221724 | AE16: 21665.71588 | AF16: 0.0919285297 | AG16: 15834.93129 | AH16: 0.08233637318 | AI16: 16881.78035 | AJ16: 0.08378054763 | AK16: 18261.33012 | AL16: 0.08613022413 | AM16: 19706.14076 | AN16: 0.08803672604 | AO16: 21292.60567 | AP16: 0.09034540764 | AQ16: 15834.93129 | AR16: 0.08233637318 | AS16: 16451.22665 | AT16: 0.08164380471 | AU16: 17353.1083 | AV16: 0.08184656307 | AW16: 18271.53391 | AX16: 0.08162765329 | AY16: 19275.79685 | AZ16: 0.08178800426 | BA16: 15834.93129 | BB16: 0.08233637318 | BC16: 16594.74455 | BD16: 0.08235605235 | BE16: 17649.67053 | BF16: 0.08324530954 | BG16: 18730.2902 | BH16: 0.08367713633 | BI16: 19907.21822 | BJ16: 0.08446715132 | BK16: 15834.93129 | BL16: 0.08233637318 | BM16: 16666.5035 | BN16: 0.08271217617 | BO16: 17800.26853 | BP16: 0.08395561048 | BQ16: 18966.88592 | BR16: 0.08473412224 | BS16: 20237.9331 | BT16: 0.08587038824 | BU16: 15834.93129 | BV16: 0.08233637318 | BW16: 16738.26245 | BX16: 0.08306829999 | BY16: 17952.41113 | BZ16: 0.08467319656 | CA16: 19208.35974 | CB16: 0.08581290092 | CC16: 20578.92836 | CD16: 0.08731724527
A17: NHS Birmingham Crosscity CCG | B17: E38000012 | C17: 56451.72004 | D17: 0.09904505586 | E17: 60652.24717 | F17: 0.1024496591 | G17: 65582.73422 | H17: 0.1067844441 | I17: 71044.55883 | J17: 0.1113062587 | K17: 76736.22737 | L17: 0.1160384506 | M17: 56451.72004 | N17: 0.09904505586 | O17: 60146.31568 | P17: 0.101595074 | Q17: 64469.68907 | R17: 0.1049721393 | S17: 69205.71437 | T17: 0.1084253218 | U17: 74044.83717 | V17: 0.111968603 | W17: 56451.72004 | X17: 0.09904505586 | Y17: 59893.34994 | Z17: 0.1011677814 | AA17: 63921.19326 | AB17: 0.1040790564 | AC17: 68312.64312 | AD17: 0.1070261376 | AE17: 72756.62193 | AF17: 0.1100205987 | AG17: 56451.72004 | AH17: 0.09904505586 | AI17: 59640.38419 | AJ17: 0.1007404888 | AK17: 63378.04864 | AL17: 0.1031946865 | AM17: 67436.9125 | AN17: 0.1056541212 | AO17: 71505.74331 | AP17: 0.1081290539 | AQ17: 56451.72004 | AR17: 0.09904505586 | AS17: 58122.58972 | AT17: 0.09817673343 | AU17: 60231.55563 | AV17: 0.09807144006 | AW17: 62537.16187 | AX17: 0.0979776303 | AY17: 64744.24769 | AZ17: 0.09790450279 | BA17: 56451.72004 | BB17: 0.09904505586 | BC17: 58628.52121 | BD17: 0.09903131856 | BE17: 61258.98192 | BF17: 0.09974433685 | BG17: 64103.99629 | BH17: 0.1004324063 | BI17: 66861.13295 | BJ17: 0.1011055995 | BK17: 56451.72004 | BL17: 0.09904505586 | BM17: 58881.48696 | BN17: 0.09945861113 | BO17: 61780.72183 | BP17: 0.1005938547 | BQ17: 64912.06442 | BR17: 0.1016984151 | BS17: 67969.8782 | BT17: 0.1027822141 | BU17: 56451.72004 | BV17: 0.09904505586 | BW17: 59134.4527 | BX17: 0.09988590369 | BY17: 62307.81292 | BZ17: 0.1014520856 | CA17: 65736.79316 | CB17: 0.1029905263 | CC17: 69113.08917 | CD17: 0.1045109469
A18: NHS Birmingham South and Central CCG | B18: E38000013 | C18: 15780.74086 | D18: 0.09908791197 | E18: 16939.30429 | F18: 0.1026500078 | G18: 18305.5846 | H18: 0.107401928 | I18: 19797.2186 | J18: 0.1114080957 | K18: 21398.52862 | L18: 0.1163089935 | M18: 15780.74086 | N18: 0.09908791197 | O18: 16798.13286 | P18: 0.1017945271 | Q18: 17995.46845 | R18: 0.1055824246 | S18: 19285.42573 | T18: 0.1085280007 | U18: 20649.04496 | V18: 0.1122352699 | W18: 15780.74086 | X18: 0.09908791197 | Y18: 16727.54715 | Z18: 0.1013667867 | AA18: 17842.64679 | AB18: 0.1046857943 | AC18: 19036.86338 | AD18: 0.1071292256 | AE18: 20290.30981 | AF18: 0.1102854104 | AG18: 15780.74086 | AH18: 0.09908791197 | AI18: 16656.96144 | AJ18: 0.1009390464 | AK18: 17691.31607 | AL18: 0.1037979117 | AM18: 18793.12733 | AN18: 0.1057576102 | AO18: 19941.97195 | AP18: 0.1083920641 | AQ18: 15780.74086 | AR18: 0.09908791197 | AS18: 16233.44715 | AT18: 0.09837260422 | AU18: 16814.64155 | AV18: 0.09865431559 | AW18: 17429.4136 | AX18: 0.09808336297 | AY18: 18059.06755 | AZ18: 0.09815777555 | BA18: 15780.74086 | BB18: 0.09908791197 | BC18: 16374.61858 | BD18: 0.09922808494 | BE18: 17100.90262 | BF18: 0.1003338572 | BG18: 17865.4998 | BH18: 0.1005374215 | BI18: 18648.5662 | BJ18: 0.1013619209 | BK18: 15780.74086 | BL18: 0.09908791197 | BM18: 16445.20429 | BN18: 0.0996558253 | BO18: 17246.26956 | BP18: 0.1011867494 | BQ18: 18090.40381 | BR18: 0.1018030603 | BS18: 18957.32353 | BT18: 0.1030401322 | BU18: 15780.74086 | BV18: 0.09908791197 | BW18: 16515.79001 | BX18: 0.1000835657 | BY18: 17393.12745 | BZ18: 0.1020483892 | CA18: 18319.94486 | CB18: 0.1030947938 | CC18: 19275.67868 | CD18: 0.1047705114
A19: NHS Blackburn with Darwen CCG | B19: E38000014 | C19: 10981.76037 | D19: 0.09768511269 | E19: 11716.09537 | F19: 0.1039767072 | G19: 12421.21602 | H19: 0.1100391213 | I19: 13208.23079 | J19: 0.1164541597 | K19: 13814.89839 | L19: 0.1214816953 | M19: 10981.76037 | N19: 0.09768511269 | O19: 11618.47258 | P19: 0.1031103353 | Q19: 12210.67134 | R19: 0.1081739133 | S19: 12866.69378 | T19: 0.1134429006 | U19: 13330.51773 | V19: 0.1172222804 | W19: 10981.76037 | X19: 0.09768511269 | Y19: 11569.66119 | Z19: 0.1026771493 | AA19: 12106.91735 | AB19: 0.1072547604 | AC19: 12700.81957 | AD19: 0.1119804229 | AE19: 13098.67229 | AF19: 0.1151835411 | AG19: 10981.76037 | AH19: 0.09768511269 | AI19: 11520.84979 | AJ19: 0.1022439634 | AK19: 12004.17559 | AL19: 0.1063445747 | AM19: 12538.16611 | AN19: 0.110546342 | AO19: 12873.54648 | AP19: 0.1132038909 | AQ19: 10981.76037 | AR19: 0.09768511269 | AS19: 11227.98143 | AT19: 0.0996448476 | AU19: 11408.98198 | AV19: 0.1010717752 | AW19: 11628.11298 | AX19: 0.1025225972 | AY19: 11656.65206 | AZ19: 0.1025030958 | BA19: 10981.76037 | BB19: 0.09768511269 | BC19: 11325.60422 | BD19: 0.1005112195 | BE19: 11603.33092 | BF19: 0.1027935056 | BG19: 11919.12831 | BH19: 0.1050884175 | BI19: 12037.63668 | BJ19: 0.1058532948 | BK19: 10981.76037 | BL19: 0.09768511269 | BM19: 11374.41561 | BN19: 0.1009444055 | BO19: 11702.02373 | BP19: 0.1036678219 | BQ19: 12069.21451 | BR19: 0.1064116955 | BS19: 12237.18216 | BT19: 0.1076080035 | BU19: 10981.76037 | BV19: 0.09768511269 | BW19: 11423.227 | BX19: 0.1013775914 | BY19: 11801.72879 | BZ19: 0.1045511055 | CA19: 12222.39515 | CB19: 0.1077622567 | CC19: 12442.93058 | CD19: 0.109417258
A20: NHS Blackpool CCG | B20: E38000015 | C20: 11046.12441 | D20: 0.09617033269 | E20: 11435.1234 | F20: 0.1009278323 | G20: 12055.74392 | H20: 0.1066125214 | I20: 12645.85226 | J20: 0.111299527 | K20: 13289.56155 | L20: 0.1160863168 | M20: 11046.12441 | N20: 0.09617033269 | O20: 11340.08914 | P20: 0.100089048 | Q20: 11852.02324 | R20: 0.104810959 | S20: 12319.87031 | T20: 0.1084304727 | U20: 12825.31659 | V20: 0.1120310673 | W20: 11046.12441 | X20: 0.09617033269 | Y20: 11292.57201 | Z20: 0.09966965585 | AA20: 11751.63205 | AB20: 0.1039231699 | AC20: 12161.55071 | AD20: 0.1070370596 | AE20: 12603.10896 | AF20: 0.1100900503 | AG20: 11046.12441 | AH20: 0.09617033269 | AI20: 11245.05488 | AJ20: 0.09925026369 | AK20: 11652.22028 | AL20: 0.1030440421 | AM20: 12006.30518 | AN20: 0.1056707022 | AO20: 12387.34162 | AP20: 0.1082052902 | AQ20: 11046.12441 | AR20: 0.09617033269 | AS20: 10959.95209 | AT20: 0.09673391073 | AU20: 11076.31761 | AV20: 0.09795116386 | AW20: 11137.69976 | AX20: 0.09802587361 | AY20: 11221.03349 | AZ20: 0.09801741345 | BA20: 11046.12441 | BB20: 0.09617033269 | BC20: 11054.98635 | BD20: 0.09757269505 | BE20: 11264.36746 | BF20: 0.0996141445 | BG20: 11415.46101 | BH20: 0.1004705247 | BI20: 11586.18059 | BJ20: 0.1012070282 | BK20: 11046.12441 | BL20: 0.09617033269 | BM20: 11102.50348 | BN20: 0.09799208721 | BO20: 11359.86152 | BP20: 0.1004586269 | BQ20: 11558.71164 | BR20: 0.1017313118 | BS20: 11777.43097 | BT20: 0.102877629 | BU20: 11046.12441 | BV20: 0.09617033269 | BW20: 11150.02061 | BX20: 0.09841147937 | BY20: 11456.33502 | BZ20: 0.1013117706 | CA20: 11704.91579 | CB20: 0.1030180935 | CC20: 11974.62643 | CD20: 0.104600161
A21: NHS Bolton CCG | B21: E38000016 | C21: 20427.51896 | D21: 0.09155395735 | E21: 22108.79363 | F21: 0.09740414851 | G21: 23906.46926 | H21: 0.1029918545 | I21: 25620.72609 | J21: 0.107740648 | K21: 27216.43127 | L21: 0.1122049442 | M21: 20427.51896 | N21: 0.09155395735 | O21: 21924.85612 | P21: 0.0965937797 | Q21: 23501.62929 | R21: 0.1012477567 | S21: 24958.73102 | T21: 0.1049568167 | U21: 26263.23486 | V21: 0.1082752097 | W21: 20427.51896 | X21: 0.09155395735 | Y21: 21832.88736 | Z21: 0.09618859529 | AA21: 23302.12883 | AB21: 0.1003882855 | AC21: 24637.21999 | AD21: 0.1036047939 | AE21: 25806.99402 | AF21: 0.1063942695 | AG21: 20427.51896 | AH21: 0.09155395735 | AI21: 21740.9186 | AJ21: 0.09578341088 | AK21: 23104.57471 | AL21: 0.09953719932 | AM21: 24321.95169 | AN21: 0.1022790231 | AO21: 25363.9765 | AP21: 0.1045678451 | AQ21: 20427.51896 | AR21: 0.09155395735 | AS21: 21189.10606 | AT21: 0.09335230445 | AU21: 21960.12325 | AV21: 0.09460676913 | AW21: 22558.01197 | AX21: 0.09486127826 | AY21: 22969.29092 | AZ21: 0.09469529567 | BA21: 20427.51896 | BB21: 0.09155395735 | BC21: 21373.04358 | BD21: 0.09416267326 | BE21: 22333.82168 | BF21: 0.09621670552 | BG21: 23122.0818 | BH21: 0.09723331286 | BI21: 23719.01774 | BJ21: 0.09778618791 | BK21: 20427.51896 | BL21: 0.09155395735 | BM21: 21465.01233 | BN21: 0.09456785767 | BO21: 22523.59042 | BP21: 0.09703425134 | BQ21: 23412.99119 | BR21: 0.09845664923 | BS21: 24111.69658 | BT21: 0.09940508155 | BU21: 20427.51896 | BV21: 0.09155395735 | BW21: 21556.98109 | BX21: 0.09497304207 | BY21: 22715.3055 | BZ21: 0.09786018225 | CA21: 23709.8985 | CB21: 0.09970520814 | CC21: 24516.58198 | CD21: 0.1010742991
A22: NHS Bracknell and Ascot CCG | B22: E38000017 | C22: 7489.148292 | D22: 0.06865739175 | E22: 8394.95309 | F22: 0.07380827405 | G22: 9415.730725 | H22: 0.07900428532 | I22: 10354.79746 | J22: 0.08380379948 | K22: 11374.20735 | L22: 0.08881936084 | M22: 7489.148292 | N22: 0.06865739175 | O22: 8325.163955 | P22: 0.07319468925 | Q22: 9256.364728 | R22: 0.0776670979 | S22: 10087.25429 | T22: 0.08163850995 | U22: 10975.78721 | V22: 0.08570816189 | W22: 7489.148292 | X22: 0.06865739175 | Y22: 8290.269387 | Z22: 0.07288789685 | AA22: 9177.831003 | AB22: 0.07700814736 | AC22: 9957.316645 | AD22: 0.08058689418 | AE22: 10785.08618 | AF22: 0.08421900811 | AG22: 7489.148292 | AH22: 0.06865739175 | AI22: 8255.37482 | AJ22: 0.07258110444 | AK22: 9100.063461 | AL22: 0.07635562562 | AM22: 9829.901981 | AN22: 0.07955569748 | AO22: 10599.91228 | AP22: 0.0827730148 | AQ22: 7489.148292 | AR22: 0.06865739175 | AS22: 8046.007414 | AT22: 0.07074035004 | AU22: 8649.548045 | AV22: 0.07257549962 | AW22: 9117.011433 | AX22: 0.07378610742 | AY22: 9598.973797 | AZ22: 0.07495684677 | BA22: 7489.148292 | BB22: 0.06865739175 | BC22: 8115.796549 | BD22: 0.07135393484 | BE22: 8796.65512 | BF22: 0.07380982648 | BG22: 9344.978433 | BH22: 0.07563109771 | BI22: 9912.347055 | BJ22: 0.07740392828 | BK22: 7489.148292 | BL22: 0.06865739175 | BM22: 8150.691117 | BN22: 0.07166072724 | BO22: 8871.357931 | BP22: 0.07443663308 | BQ22: 9462.548524 | BR22: 0.07658261998 | BS22: 10076.48024 | BT22: 0.07868561796 | BU22: 7489.148292 | BV22: 0.06865739175 | BW22: 8185.585684 | BX22: 0.07196751964 | BY22: 8946.826925 | BZ22: 0.07506986848 | CA22: 9582.542656 | CB22: 0.07755376057 | CC22: 10245.71555 | CD22: 0.0800071494
A23: NHS Bradford City CCG | B23: E38000018 | C23: 6664.512105 | D23: 0.1107061811 | E23: 6998.737793 | F23: 0.1152624801 | G23: 7495.72921 | H23: 0.1211333098 | I23: 8131.368545 | J23: 0.127691089 | K23: 8560.065373 | L23: 0.1326319395 | M23: 6664.512105 | N23: 0.1107061811 | O23: 6940.718425 | P23: 0.1143069569 | Q23: 7369.447588 | R23: 0.1190925596 | S23: 7922.451957 | T23: 0.1244103636 | U23: 8261.633028 | V23: 0.128007949 | W23: 6664.512105 | X23: 0.1107061811 | Y23: 6911.708741 | Z23: 0.1138291953 | AA23: 7307.217462 | AB23: 0.1180869015 | AC23: 7820.987476 | AD23: 0.1228170144 | AE23: 8118.790458 | AF23: 0.1257947081 | AG23: 6664.512105 | AH23: 0.1107061811 | AI23: 6882.699057 | AJ23: 0.1133514337 | AK23: 7245.594459 | AL23: 0.1170910546 | AM23: 7721.493116 | AN23: 0.1212546029 | AO23: 7980.087925 | AP23: 0.123645614 | AQ23: 6664.512105 | AR23: 0.1107061811 | AS23: 6708.640952 | AT23: 0.1104848642 | AU23: 6888.60603 | AV23: 0.1113220108 | AW23: 7164.817874 | AX23: 0.1125128435 | AY23: 7230.345658 | AZ23: 0.112028907 | BA23: 6664.512105 | BB23: 0.1107061811 | BC23: 6766.66032 | BD23: 0.1114403874 | BE23: 7005.17368 | BF23: 0.1132057802 | BG23: 7342.830594 | BH23: 0.1153082694 | BI23: 7465.074547 | BJ23: 0.1156658591 | BK23: 6664.512105 | BL23: 0.1107061811 | BM23: 6795.670005 | BN23: 0.111918149 | BO23: 7064.36819 | BP23: 0.1141623819 | BQ23: 7434.637616 | BR23: 0.1167499626 | BS23: 7588.016751 | BT23: 0.1175707585 | BU23: 6664.512105 | BV23: 0.1107061811 | BW23: 6824.679689 | BX23: 0.1123959106 | BY23: 7124.169824 | BZ23: 0.1151287948 | CA23: 7528.337501 | CB23: 0.1182213804 | CC23: 7714.780656 | CD23: 0.1195348723
A24: NHS Bradford Districts CCG | B24: E38000019 | C24: 26121.64091 | D24: 0.1007157654 | E24: 28207.5851 | F24: 0.1058366543 | G24: 30599.0336 | H24: 0.1115613009 | I24: 33085.48255 | J24: 0.1175327977 | K24: 35408.67639 | L24: 0.1231349158 | M24: 26121.64091 | N24: 0.1007157654 | O24: 27972.49016 | P24: 0.1049545631 | Q24: 30080.32161 | R24: 0.109670124 | S24: 32229.91358 | T24: 0.1144934763 | U24: 34167.61257 | V24: 0.1188190728 | W24: 26121.64091 | X24: 0.1007157654 | Y24: 27854.9427 | Z24: 0.1045135175 | AA24: 29824.70632 | AB24: 0.1087381739 | AC24: 31814.38956 | AD24: 0.1130173697 | AE24: 33573.58598 | AF24: 0.1167533245 | AG24: 26121.64091 | AH24: 0.1007157654 | AI24: 27737.39523 | AJ24: 0.104072472 | AK24: 29571.58485 | AL24: 0.1078153159 | AM24: 31406.9337 | AN24: 0.1115699243 | AO24: 32996.7762 | AP24: 0.1147474482 | AQ24: 26121.64091 | AR24: 0.1007157654 | AS24: 27032.11042 | AT24: 0.1014261985 | AU24: 28105.22595 | AV24: 0.1024691044 | AW24: 29127.2006 | AX24: 0.1034714053 | AY24: 29878.89029 | AZ24: 0.1039048904 | BA24: 26121.64091 | BB24: 0.1007157654 | BC24: 27267.20535 | BD24: 0.1023082896 | BE24: 28584.03702 | BF24: 0.1042148061 | BG24: 29856.21001 | BH24: 0.1060611368 | BI24: 30855.03626 | BJ24: 0.1072994723 | BK24: 26121.64091 | BL24: 0.1007157654 | BM24: 27384.75282 | BN24: 0.1027493352 | BO24: 28827.18326 | BP24: 0.1051012953 | BQ24: 30232.18417 | BR24: 0.1073967466 | BS24: 31366.30498 | BT24: 0.1090774272 | BU24: 26121.64091 | BV24: 0.1007157654 | BW24: 27502.30029 | BX24: 0.1031903808 | BY24: 29072.82332 | BZ24: 0.1059968766 | CA24: 30615.91011 | CB24: 0.1087598938 | CC24: 31893.46666 | CD24: 0.1109106505
A25: NHS Brent CCG | B25: E38000020 | C25: 29551.57219 | D25: 0.1143017413 | E25: 33463.98426 | F25: 0.1223367122 | G25: 37624.216 | H25: 0.1313327842 | I25: 41988.2682 | J25: 0.139886288 | K25: 46455.10907 | L25: 0.148324103 | M25: 29551.57219 | N25: 0.1143017413 | O25: 33184.68138 | P25: 0.1213156444 | Q25: 36985.81178 | R25: 0.1291043416 | S25: 40902.12275 | T25: 0.1362677331 | U25: 44827.57293 | V25: 0.1431276275 | W25: 29551.57219 | X25: 0.1143017413 | Y25: 33045.02993 | Z25: 0.1208051105 | AA25: 36671.21354 | AB25: 0.1280061908 | AC25: 40374.61469 | AD25: 0.1345103101 | AE25: 44048.56406 | AF25: 0.1406403706 | AG25: 29551.57219 | AH25: 0.1143017413 | AI25: 32905.37849 | AJ25: 0.1202945766 | AK25: 36359.68456 | AL25: 0.1269187537 | AM25: 39857.34918 | AN25: 0.1327870109 | AO25: 43292.13337 | AP25: 0.1382252023 | AQ25: 29551.57219 | AR25: 0.1143017413 | AS25: 32067.46984 | AT25: 0.1172313733 | AU25: 34554.96492 | AV25: 0.120619118 | AW25: 36963.22629 | AX25: 0.1231450769 | AY25: 39203.32512 | AZ25: 0.125170259 | BA25: 29551.57219 | BB25: 0.1143017413 | BC25: 32346.77272 | BD25: 0.118252441 | BE25: 35144.26113 | BF25: 0.1226761419 | BG25: 37888.70429 | BH25: 0.1262283592 | BI25: 40483.44691 | BJ25: 0.1292574933 | BK25: 29551.57219 | BL25: 0.1143017413 | BM25: 32486.42417 | BN25: 0.1187629749 | BO25: 35443.51311 | BP25: 0.1237207243 | BQ25: 38366.00377 | BR25: 0.1278185094 | BS25: 41153.92678 | BT25: 0.1313982337 | BU25: 29551.57219 | BV25: 0.1143017413 | BW25: 32626.07561 | BX25: 0.1192735088 | BY25: 35745.83434 | BZ25: 0.1247760204 | CA25: 38853.14414 | CB25: 0.129441445 | CC25: 41845.24875 | CD25: 0.1336055196
A26: NHS Brighton and Hove CCG | B26: E38000021 | C26: 16418.79392 | D26: 0.06896334813 | E26: 17867.62069 | F26: 0.07232097745 | G26: 19617.78237 | H26: 0.07686014093 | I26: 21517.82586 | J26: 0.08111975366 | K26: 23417.63014 | L26: 0.08538478139 | M26: 16418.79392 | N26: 0.06896334813 | O26: 17719.36672 | P26: 0.07172090474 | Q26: 19286.69434 | R26: 0.07556297736 | S26: 20964.10928 | T26: 0.0790323052 | U26: 22600.80831 | V26: 0.08240650592 | W26: 16418.79392 | X26: 0.06896334813 | Y26: 17645.23974 | Z26: 0.07142086838 | AA26: 19123.53798 | AB26: 0.07492375011 | AC26: 20695.18585 | AD26: 0.07801849448 | AE26: 22209.84221 | AF26: 0.08098097504 | AG26: 16418.79392 | AH26: 0.06896334813 | AI26: 17571.11276 | AJ26: 0.07112083203 | AK26: 18961.97339 | AL26: 0.07429075924 | AM26: 20431.48406 | AN26: 0.07702436879 | AO26: 21830.20757 | AP26: 0.07959676063 | AQ26: 16418.79392 | AR26: 0.06896334813 | AS26: 17126.35087 | AT26: 0.0693206139 | AU26: 18026.01299 | AV26: 0.07062377759 | AW26: 18956.0612 | AX26: 0.07146219257 | AY26: 19778.13158 | AZ26: 0.07211453212 | BA26: 16418.79392 | BB26: 0.06896334813 | BC26: 17274.60483 | BD26: 0.06992068661 | BE26: 18331.63271 | BF26: 0.07182115936 | BG26: 19427.86957 | BH26: 0.0732408564 | BI26: 20420.59438 | BJ26: 0.07445706403 | BK26: 16418.79392 | BL26: 0.06896334813 | BM26: 17348.73182 | BN26: 0.07022072297 | BO26: 18486.83023 | BP26: 0.07242920478 | BQ26: 19671.19668 | BR26: 0.07415817191 | BS26: 20757.09234 | BT26: 0.07568399454 | BU26: 16418.79392 | BV26: 0.06896334813 | BW26: 17422.8588 | BX26: 0.07052075932 | BY26: 18643.61951 | BZ26: 0.07304348657 | CA26: 19919.54067 | CB26: 0.07509440049 | CC26: 21104.05046 | CD26: 0.07694906461
A27: NHS Bristol CCG | B27: E38000022 | C27: 26558.94772 | D27: 0.07307254643 | E27: 28464.74783 | F27: 0.07495457086 | G27: 30884.9273 | H27: 0.07825308428 | I27: 33575.54427 | J27: 0.08145449848 | K27: 36326.29665 | L27: 0.08478736031 | M27: 26558.94772 | N27: 0.07307254643 | O27: 28228.0463 | P27: 0.07433127844 | Q27: 30362.49212 | R27: 0.07692939121 | S27: 32708.98837 | T27: 0.07935222798 | U27: 35055.67636 | V27: 0.08182167015 | W27: 26558.94772 | X27: 0.07307254643 | Y27: 28109.69554 | Z27: 0.07401963223 | AA27: 30105.04209 | AB27: 0.07627709054 | AC27: 32288.12832 | AD27: 0.07833121864 | AE27: 34447.50277 | AF27: 0.08040216313 | AG27: 26558.94772 | AH27: 0.07307254643 | AI27: 27991.34477 | AJ27: 0.07370798602 | AK27: 29850.10377 | AL27: 0.07563115378 | AM27: 31875.44006 | AN27: 0.0773300341 | AO27: 33856.95602 | AP27: 0.079023798 | AQ27: 26558.94772 | AR27: 0.07307254643 | AS27: 27281.24018 | AT27: 0.07183810876 | AU27: 28373.21971 | AV27: 0.07188917529 | AW27: 29566.43137 | AX27: 0.07172836334 | AY27: 30664.8163 | AZ27: 0.07157318715 | BA27: 26558.94772 | BB27: 0.07307254643 | BC27: 27517.94171 | BD27: 0.07246140118 | BE27: 28855.46756 | BF27: 0.07311104582 | BG27: 30304.80248 | BH27: 0.07351965667 | BI27: 31664.20962 | BJ27: 0.07390582022 | BK27: 26558.94772 | BL27: 0.07307254643 | BM27: 27636.29248 | BN27: 0.07277304739 | BO27: 29100.35905 | BP27: 0.07373152695 | BQ27: 30685.60478 | BR27: 0.07444348564 | BS27: 32187.65442 | BT27: 0.07512756609 | BU27: 26558.94772 | BV27: 0.07307254643 | BW27: 27754.64324 | BX27: 0.0730846936 | BY27: 29347.76225 | BZ27: 0.07435837198 | CA27: 31074.2584 | CB27: 0.07538636196 | CC27: 32727.37068 | CD27: 0.07638729036
A28: NHS Bromley CCG | B28: E38000023 | C28: 21435.47357 | D28: 0.08227956997 | E28: 23410.12588 | F28: 0.08535119542 | G28: 25958.04773 | H28: 0.08957228341 | I28: 28735.32915 | J28: 0.09384496785 | K28: 31672.84966 | L28: 0.09844237478 | M28: 21435.47357 | N28: 0.08227956997 | O28: 23214.45164 | P28: 0.0846377849 | Q28: 25516.79256 | R28: 0.08804966378 | S28: 27990.68985 | T28: 0.09141309552 | U28: 30560.56359 | V28: 0.09498527876 | W28: 21435.47357 | X28: 0.08227956997 | Y28: 23116.61452 | Z28: 0.08428107964 | AA28: 25299.34711 | AB28: 0.08729933439 | AC28: 27629.04101 | AD28: 0.09023200853 | AE28: 30028.17558 | AF28: 0.09333056375 | AG28: 21435.47357 | AH28: 0.08227956997 | AI28: 23018.7774 | AJ28: 0.08392437438 | AK28: 25084.02307 | AL28: 0.0865563253 | AM28: 27274.41426 | AN28: 0.08907385453 | AO28: 29511.21789 | AP28: 0.0917238077 | AQ28: 21435.47357 | AR28: 0.08227956997 | AS28: 22431.75469 | AT28: 0.08178414281 | AU28: 23836.62865 | AV28: 0.08225199672 | AW28: 25290.26226 | AX28: 0.0825939329 | AY28: 26716.8563 | AZ28: 0.08303865325 | BA28: 21435.47357 | BB28: 0.08227956997 | BC28: 22627.42893 | BD28: 0.08249755333 | BE28: 24243.94111 | BF28: 0.08365749176 | BG28: 25924.75121 | BH28: 0.08466607189 | BI28: 27591.71346 | BJ28: 0.08575779654 | BK28: 21435.47357 | BL28: 0.08227956997 | BM28: 22725.26605 | BN28: 0.08285425859 | BO28: 24450.77947 | BP28: 0.08437121972 | BQ28: 26251.97807 | BR28: 0.08573474222 | BS28: 28049.93089 | BT28: 0.087181982 | BU28: 21435.47357 | BV28: 0.08227956997 | BW28: 22823.10317 | BX28: 0.08321096385 | BY28: 24659.73925 | BZ28: 0.08509226796 | CA28: 26585.95163 | CB28: 0.08682544621 | CC28: 28522.39216 | CD28: 0.08865043874
A29: NHS Bury CCG | B29: E38000024 | C29: 13006.21014 | D29: 0.08656955628 | E29: 14062.38958 | F29: 0.0915520155 | G29: 15301.35449 | H29: 0.0970528637 | I29: 16419.89503 | J29: 0.1014450453 | K29: 17532.80414 | L29: 0.1058744211 | M29: 13006.21014 | N29: 0.08656955628 | O29: 13945.23192 | P29: 0.09078927031 | Q29: 15041.94923 | R29: 0.09540751764 | S29: 15995.03755 | T29: 0.09882019988 | U29: 16918.01791 | V29: 0.1021619439 | W29: 13006.21014 | X29: 0.08656955628 | Y29: 13886.65309 | Z29: 0.09040789771 | AA29: 14914.11731 | AB29: 0.09459671008 | AC29: 15788.6971 | AD29: 0.09754539167 | AE29: 16623.75474 | AF29: 0.1003849924 | AG29: 13006.21014 | AH29: 0.08656955628 | AI29: 13828.07426 | AJ29: 0.09002652511 | AK29: 14787.53253 | AL29: 0.09379381284 | AM29: 15586.36312 | AN29: 0.09629533624 | AO29: 16338.02027 | AP29: 0.09865954272 | AQ29: 13006.21014 | AR29: 0.08656955628 | AS29: 13476.60127 | AT29: 0.08773828952 | AU29: 14054.21382 | AV29: 0.08914254609 | AW29: 14454.29581 | AX29: 0.0893012221 | AY29: 14793.51201 | AZ29: 0.08933280199 | BA29: 13006.21014 | BB29: 0.08656955628 | BC29: 13593.75893 | BD29: 0.08850103472 | BE29: 14293.66483 | BF29: 0.09066132707 | BG29: 14816.30649 | BH29: 0.09153778874 | BI29: 15277.06579 | BJ29: 0.09225281275 | BK29: 13006.21014 | BL29: 0.08656955628 | BM29: 13652.33776 | BN29: 0.08888240732 | BO29: 14415.26104 | BP29: 0.09143258304 | BQ29: 15003.00732 | BR29: 0.09269125983 | BS29: 15530.33316 | BT29: 0.09378220507 | BU29: 13006.21014 | BV29: 0.08656955628 | BW29: 13710.91659 | BX29: 0.08926377991 | BY29: 14538.1044 | BZ29: 0.09221174932 | CA29: 15193.55751 | CB29: 0.09386851299 | CC29: 15791.47343 | CD29: 0.09535913907
A30: NHS Calderdale CCG | B30: E38000025 | C30: 15116.21689 | D30: 0.08989187017 | E30: 16485.31581 | F30: 0.09562248152 | G30: 18098.09233 | H30: 0.1020991331 | I30: 19656.12219 | J30: 0.1078702788 | K30: 21120.40512 | L30: 0.1132097187 | M30: 15116.21689 | N30: 0.08989187017 | O30: 16348.18115 | P30: 0.09482703685 | Q30: 17791.72179 | R30: 0.1003707649 | S30: 19148.86135 | T30: 0.1050864963 | U30: 20381.61043 | V30: 0.1092496271 | W30: 15116.21689 | X30: 0.08989187017 | Y30: 16279.61382 | Z30: 0.09442931452 | AA30: 17640.74592 | AB30: 0.09951904503 | AC30: 18902.50007 | AD30: 0.1037344972 | AE30: 20027.99148 | AF30: 0.1073541567 | AG30: 15116.21689 | AH30: 0.08989187017 | AI30: 16211.04649 | AJ30: 0.09403159219 | AK30: 17491.24299 | AL30: 0.0986756346 | AM30: 18660.92236 | AN30: 0.1024087496 | AO30: 19684.62154 | AP30: 0.1055136232 | AQ30: 15116.21689 | AR30: 0.08989187017 | AS30: 15799.64251 | AT30: 0.09164525819 | AU30: 16625.15703 | AV30: 0.09378967071 | AW30: 17309.28459 | AX30: 0.09499113481 | AY30: 17828.57069 | AZ30: 0.09556480857 | BA30: 15116.21689 | BB30: 0.08989187017 | BC30: 15936.77717 | BD30: 0.09244070286 | BE30: 16907.96061 | BF30: 0.09538508749 | BG30: 17741.50915 | BH30: 0.09736312782 | BI30: 18409.66205 | BJ30: 0.09867957787 | BK30: 15116.21689 | BL30: 0.08989187017 | BM30: 16005.3445 | BN30: 0.09283842519 | BO30: 17051.5718 | BP30: 0.09619526007 | BQ30: 17964.4216 | BR30: 0.09858644275 | BS30: 18714.01595 | BT30: 0.1003109774 | BU30: 15116.21689 | BV30: 0.08989187017 | BW30: 16073.91183 | BX30: 0.09323614752 | BY30: 17196.65593 | BZ30: 0.09701374212 | CA30: 18191.93001 | CB30: 0.09983497978 | CC30: 19027.83079 | CD30: 0.1019930896
A31: NHS Cambridgeshire and Peterborough CCG | B31: E38000026 | C31: 55218.42214 | D31: 0.07811790473 | E31: 61487.70335 | F31: 0.08333699731 | G31: 68676.6225 | H31: 0.08915568286 | I31: 75698.04562 | J31: 0.09416585264 | K31: 82568.9867 | L31: 0.09913909504 | M31: 55218.42214 | N31: 0.07811790473 | O31: 60976.77717 | P31: 0.0826445165 | Q31: 67515.23325 | R31: 0.08764797255 | S31: 73744.81811 | T31: 0.09173610254 | U31: 79681.68583 | V31: 0.0956723649 | W31: 55218.42214 | X31: 0.07811790473 | Y31: 60721.31407 | Z31: 0.0822982761 | AA31: 66942.91403 | AB31: 0.0869049903 | AC31: 72796.19445 | AD31: 0.09055604624 | AE31: 78299.69931 | AF31: 0.09401303858 | AG31: 55218.42214 | AH31: 0.07811790473 | AI31: 60465.85098 | AJ31: 0.0819520357 | AK31: 66376.17841 | AL31: 0.08616925666 | AM31: 71865.99009 | AN31: 0.08939890293 | AO31: 76957.76721 | AP31: 0.09240180488 | AQ31: 55218.42214 | AR31: 0.07811790473 | AS31: 58933.07241 | AT31: 0.07987459328 | AU31: 63093.02033 | AV31: 0.08190707559 | AW31: 66661.45649 | AX31: 0.08292463613 | AY31: 69704.09134 | AZ31: 0.08369244692 | BA31: 55218.42214 | BB31: 0.07811790473 | BC31: 59443.9986 | BD31: 0.08056707409 | BE31: 64165.07195 | BF31: 0.08329880819 | BG31: 68325.75393 | BH31: 0.08499496682 | BI31: 71975.06812 | BJ31: 0.08641916783 | BK31: 55218.42214 | BL31: 0.07811790473 | BM31: 59699.4617 | BN31: 0.08091331449 | BO31: 64709.47316 | BP31: 0.08400554739 | BQ31: 69184.08694 | BR31: 0.08606270456 | BS31: 73164.52073 | BT31: 0.08784732216 | BU31: 55218.42214 | BV31: 0.07811790473 | BW31: 59954.92479 | BX31: 0.08125955489 | BY31: 65259.45797 | BZ31: 0.08471953521 | CA31: 70060.11691 | CB31: 0.08715245673 | CC31: 74390.94789 | CD31: 0.08931987115
A32: NHS Camden CCG | B32: E38000027 | C32: 15681.91226 | D32: 0.07803499336 | E32: 18018.87351 | F32: 0.08210550219 | G32: 20402.33253 | H32: 0.08810819023 | I32: 22890.97212 | J32: 0.09394636837 | K32: 25345.63617 | L32: 0.09962907301 | M32: 15681.91226 | N32: 0.07803499336 | O32: 17868.96155 | P32: 0.08142240752 | Q32: 20057.14996 | R32: 0.08661750715 | S32: 22300.75948 | T32: 0.09152408882 | U32: 24460.37895 | V32: 0.09614928833 | W32: 15681.91226 | X32: 0.07803499336 | Y32: 17794.00558 | Z32: 0.08108086018 | AA32: 19887.04797 | AB32: 0.08588291573 | AC32: 22014.11102 | AD32: 0.09034766074 | AE32: 24036.65673 | AF32: 0.09448371355 | AG32: 15681.91226 | AH32: 0.07803499336 | AI32: 17719.0496 | AJ32: 0.08073931285 | AK32: 19718.60551 | AL32: 0.08515549105 | AM32: 21733.02836 | AN32: 0.08919407521 | AO32: 23625.21534 | AP32: 0.09286641248 | AQ32: 15681.91226 | AR32: 0.07803499336 | AS32: 17269.31373 | AT32: 0.07869002884 | AU32: 18742.80093 | AV32: 0.08094144466 | AW32: 20160.35879 | AX32: 0.0827397143 | AY32: 21401.21124 | AZ32: 0.08412425802 | BA32: 15681.91226 | BB32: 0.07803499336 | BC32: 17419.22568 | BD32: 0.07937312351 | BE32: 19061.43099 | BF32: 0.08231745981 | BG32: 20663.26455 | BH32: 0.08480367952 | BI32: 22097.5012 | BJ32: 0.08686124684 | BK32: 15681.91226 | BL32: 0.07803499336 | BM32: 17494.18166 | BN32: 0.07971467084 | BO32: 19223.23533 | BP32: 0.0830162175 | BQ32: 20922.62962 | BR32: 0.08586813436 | BS32: 22462.19181 | BT32: 0.08829477912 | BU32: 15681.91226 | BV32: 0.07803499336 | BW32: 17569.13764 | BX32: 0.08005621818 | BY32: 19386.69919 | BZ32: 0.08372214194 | CA32: 21187.34223 | CB32: 0.08695453596 | CC32: 22838.21895 | CD32: 0.08977287324
A33: NHS Cannock Chase CCG | B33: E38000028 | C33: 9224.988787 | D33: 0.08315295463 | E33: 10114.90761 | F33: 0.08983044063 | G33: 11041.0655 | H33: 0.09668183453 | I33: 11955.2905 | J33: 0.1027086812 | K33: 12750.19056 | L33: 0.1076692329 | M33: 9224.988787 | N33: 0.08315295463 | O33: 10030.77986 | P33: 0.08908330247 | Q33: 10854.15167 | R33: 0.09504511097 | S33: 11646.62184 | T33: 0.1000568886 | U33: 12303.86975 | V33: 0.1039002681 | W33: 9224.988787 | X33: 0.08315295463 | Y33: 9988.71598 | Z33: 0.08870973339 | AA33: 10762.04269 | AB33: 0.09423855249 | AC33: 11496.71079 | AD33: 0.09876899301 | AE33: 12090.24139 | AF33: 0.1020962793 | AG33: 9224.988787 | AH33: 0.08315295463 | AI33: 9946.652102 | AJ33: 0.08833616431 | AK33: 10670.83234 | AL33: 0.09343986287 | AM33: 11349.71054 | AN33: 0.09750610427 | AO33: 11882.80467 | AP33: 0.1003445758 | AQ33: 9224.988787 | AR33: 0.08315295463 | AS33: 9694.268832 | AT33: 0.08609474984 | AU33: 10142.44132 | AV33: 0.08881297128 | AW33: 10527.23779 | AX33: 0.09044018719 | AY33: 10761.52682 | AZ33: 0.09087592318 | BA33: 9224.988787 | BB33: 0.08315295463 | BC33: 9778.396589 | BD33: 0.086841888 | BE33: 10314.97716 | BF33: 0.09032379303 | BG33: 10790.24681 | BH33: 0.09269971487 | BI33: 11112.57586 | BJ33: 0.09384036365 | BK33: 9224.988787 | BL33: 0.08315295463 | BM33: 9820.460467 | BN33: 0.08721545708 | BO33: 10402.59302 | BP33: 0.09109100719 | BQ33: 10925.88923 | BR33: 0.09386502771 | BS33: 11296.44221 | BT33: 0.09539302658 | BU33: 9224.988787 | BV33: 0.08315295463 | BW33: 9862.524345 | BX33: 0.08758902616 | BY33: 10491.1075 | BZ33: 0.09186609022 | CA33: 11064.32829 | CB33: 0.09505436678 | CC33: 11486.0241 | CD33: 0.09699395457
A34: NHS Canterbury and Coastal CCG | B34: E38000029 | C34: 14082.34642 | D34: 0.08175053071 | E34: 15554.30424 | F34: 0.08705117664 | G34: 17347.57864 | H34: 0.09304644196 | I34: 19159.5841 | J34: 0.09762347959 | K34: 21041.06595 | L34: 0.1029104272 | M34: 14082.34642 | N34: 0.08175053071 | O34: 15424.61462 | P34: 0.08632535605 | Q34: 17053.52477 | R34: 0.09146923822 | S34: 18664.17426 | T34: 0.09509922682 | U34: 20303.86506 | V34: 0.09930482766 | W34: 14082.34642 | X34: 0.08175053071 | Y34: 15359.76981 | Z34: 0.08596244575 | AA34: 16908.61842 | AB34: 0.09069201041 | AC34: 18423.56864 | AD34: 0.09387327343 | AE34: 19951.00898 | AF34: 0.09757903246 | AG34: 14082.34642 | AH34: 0.08175053071 | AI34: 15294.925 | AJ34: 0.08559953546 | AK34: 16765.12579 | AL34: 0.08992236531 | AM34: 18187.63484 | AN34: 0.0926711242 | AO34: 19608.37979 | AP34: 0.09590325636 | AQ34: 14082.34642 | AR34: 0.08175053071 | AS34: 14905.85613 | AT34: 0.08342207369 | AU34: 15933.85813 | AV34: 0.08546373164 | AW34: 16867.575 | AX34: 0.08594504737 | AY34: 17756.33302 | AZ34: 0.08684502112 | BA34: 14082.34642 | BB34: 0.08175053071 | BC34: 15035.54575 | BD34: 0.08414789428 | BE34: 16205.29247 | BF34: 0.08691961202 | BG34: 17289.70162 | BH34: 0.08809590147 | BI34: 18336.17079 | BJ34: 0.08968096834 | BK34: 14082.34642 | BL34: 0.08175053071 | BM34: 15100.39056 | BN34: 0.08451080457 | BO34: 16343.13022 | BP34: 0.08765892628 | BQ34: 17507.40623 | BR34: 0.08920516778 | BS34: 18639.8681 | BT34: 0.09116633131 | BU34: 14082.34642 | BV34: 0.08175053071 | BW34: 15165.23537 | BX34: 0.08487371487 | BY34: 16482.38169 | BZ34: 0.08840582325 | CA34: 17729.59943 | CB34: 0.09033730475 | CC34: 18953.00595 | CD34: 0.09269786731
A35: NHS Castle Point and Rochford CCG | B35: E38000030 | C35: 12503.66655 | D35: 0.08644680964 | E35: 13650.86339 | F35: 0.09256077698 | G35: 14969.43159 | H35: 0.09875598095 | I35: 16051.84887 | J35: 0.1032007771 | K35: 17177.32292 | L35: 0.1074926341 | M35: 12503.66655 | N35: 0.08644680964 | O35: 13537.0998 | P35: 0.09178939379 | Q35: 14715.5395 | R35: 0.09708101005 | S35: 15636.36804 | T35: 0.1005295618 | U35: 16574.94891 | V35: 0.1037230845 | W35: 12503.66655 | X35: 0.08644680964 | Y35: 13480.218 | Z35: 0.0914037022 | AA35: 14590.42441 | AB35: 0.09625560372 | AC35: 15434.58155 | AD35: 0.09923223317 | AE35: 16286.62676 | AF35: 0.1019188158 | AG35: 12503.66655 | AH35: 0.08644680964 | AI35: 13423.3362 | AJ35: 0.0910180106 | AK35: 14466.52996 | AL35: 0.09543825013 | AM35: 15236.71311 | AN35: 0.09796009458 | AO35: 16006.66113 | AP35: 0.1001668406 | AQ35: 12503.66655 | AR35: 0.08644680964 | AS35: 13082.04542 | AT35: 0.08870386103 | AU35: 13748.79655 | AV35: 0.09070323626 | AW35: 14129.63066 | AX35: 0.0908424242 | AY35: 14493.33568 | AZ35: 0.0906967189 | BA35: 12503.66655 | BB35: 0.08644680964 | BC35: 13195.80902 | BD35: 0.08947524422 | BE35: 13983.15848 | BF35: 0.09224936324 | BG35: 14483.65172 | BH35: 0.09311850146 | BI35: 14967.12676 | BJ35: 0.09366161929 | BK35: 12503.66655 | BL35: 0.08644680964 | BM35: 13252.69081 | BN35: 0.08986093582 | BO35: 14102.1704 | BP35: 0.09303450584 | BQ35: 14666.23204 | BR35: 0.09429234947 | BS35: 15215.28079 | BT35: 0.09521452312 | BU35: 12503.66655 | BV35: 0.08644680964 | BW35: 13309.57261 | BX35: 0.09024662741 | BY35: 14222.40295 | BZ35: 0.0938277012 | CA35: 14852.57677 | CB35: 0.09549039969 | CC35: 15471.14878 | CD35: 0.09681569949
A36: NHS Central London (Westminster) CCG | B36: E38000031 | C36: 11743.89296 | D36: 0.08032758519 | E36: 13529.26235 | F36: 0.0856607721 | G36: 15326.21513 | H36: 0.09247143196 | I36: 17180.48874 | J36: 0.0986817274 | K36: 19072.0028 | L36: 0.1050567522 | M36: 11743.89296 | N36: 0.08032758519 | O36: 13417.00195 | P36: 0.08494999337 | Q36: 15067.36952 | R36: 0.0909096749 | S36: 16737.95207 | T36: 0.09613987404 | U36: 18406.54264 | V36: 0.1013911129 | W36: 11743.89296 | X36: 0.08032758519 | Y36: 13360.87176 | Z36: 0.084594604 | AA36: 14939.81338 | AB36: 0.09014005903 | AC36: 16523.02537 | AD36: 0.09490537258 | AE36: 18088.02476 | AF36: 0.09963658016 | AG36: 11743.89296 | AH36: 0.08032758519 | AI36: 13304.74156 | AJ36: 0.08423921464 | AK36: 14813.5017 | AL36: 0.08937795162 | AM36: 16312.27186 | AN36: 0.09369484126 | AO36: 17778.73855 | AP36: 0.09793289938 | AQ36: 11743.89296 | AR36: 0.08032758519 | AS36: 12967.96038 | AT36: 0.08210687844 | AU36: 14081.76506 | AV36: 0.08496298453 | AW36: 15133.09691 | AX36: 0.08692186623 | AY36: 16106.92378 | AZ36: 0.08872382825 | BA36: 11743.89296 | BB36: 0.08032758519 | BC36: 13080.22077 | BD36: 0.08281765717 | BE36: 14320.69947 | BF36: 0.08640460644 | BG36: 15510.17159 | BH36: 0.08908771736 | BI36: 16630.33461 | BJ36: 0.09160699908 | BK36: 11743.89296 | BL36: 0.08032758519 | BM36: 13136.35097 | BN36: 0.08317304654 | BO36: 14442.03335 | BP36: 0.08713668006 | BQ36: 15704.64143 | BR36: 0.09020471813 | BS36: 16904.47761 | BT36: 0.09311709602 | BU36: 11743.89296 | BV36: 0.08032758519 | BW36: 13192.48117 | BX36: 0.08352843591 | BY36: 14564.61169 | BZ36: 0.08787626213 | CA36: 15903.12081 | CB36: 0.09134474903 | CC36: 17187.14244 | CD36: 0.09467413484
A37: NHS Central Manchester CCG | B37: E38000032 | C37: 11734.90614 | D37: 0.07909750699 | E37: 12799.58321 | F37: 0.08286665289 | G37: 13951.58965 | H37: 0.08737217968 | I37: 15292.47678 | J37: 0.09169250975 | K37: 16699.08181 | L37: 0.09708768494 | M37: 11734.90614 | N37: 0.07909750699 | O37: 12693.39199 | P37: 0.08217915313 | Q37: 13715.96211 | R37: 0.08589655631 | S37: 14898.96753 | T37: 0.08933305873 | U37: 16116.98211 | V37: 0.09370338434 | W37: 11734.90614 | X37: 0.07909750699 | Y37: 12640.29639 | Z37: 0.08183540325 | AA37: 13599.84758 | AB37: 0.08516938614 | AC37: 14707.85197 | AD37: 0.08818714458 | AE37: 15838.36412 | AF37: 0.09208351235 | AG37: 11734.90614 | AH37: 0.07909750699 | AI37: 12587.20078 | AJ37: 0.08149165337 | AK37: 13484.86587 | AL37: 0.08444931032 | AM37: 14520.44727 | AN37: 0.08706348048 | AO37: 15567.82139 | AP37: 0.09051058947 | AQ37: 11734.90614 | AR37: 0.07909750699 | AS37: 12268.62714 | AT37: 0.07942915408 | AU37: 12818.76494 | AV37: 0.08027783656 | AW37: 13471.90989 | AX37: 0.0807765313 | AY37: 14105.43047 | AZ37: 0.08200831669 | BA37: 11734.90614 | BB37: 0.07909750699 | BC37: 12374.81835 | BD37: 0.08011665384 | BE37: 13036.26729 | BF37: 0.08163995044 | BG37: 13807.2095 | BH37: 0.08278696187 | BI37: 14563.275 | BJ37: 0.08467020349 | BK37: 11734.90614 | BL37: 0.07909750699 | BM37: 12427.91396 | BN37: 0.08046040372 | BO37: 13146.7177 | BP37: 0.08233164889 | BQ37: 13980.13455 | BR37: 0.08382380713 | BS37: 14803.07682 | BT37: 0.08606440013 | BU37: 11734.90614 | BV37: 0.07909750699 | BW37: 12481.00957 | BX37: 0.08080415361 | BY37: 13258.30093 | BZ37: 0.08303044169 | CA37: 14156.62494 | CB37: 0.08488202989 | CC37: 15050.33297 | CD37: 0.08750193586
A38: NHS Chiltern CCG | B38: E38000033 | C38: 21618.35147 | D38: 0.08385056036 | E38: 23659.48702 | F38: 0.08913308851 | G38: 25730.17976 | H38: 0.09400869476 | I38: 27868.50868 | J38: 0.09867753233 | K38: 29920.45959 | L38: 0.1029609759 | M38: 21618.35147 | N38: 0.08385056036 | O38: 23462.29978 | P38: 0.08839021917 | Q38: 25293.588 | R38: 0.09241354766 | S38: 27147.14335 | T38: 0.09612330342 | U38: 28870.38672 | V38: 0.0993475111 | W38: 21618.35147 | X38: 0.08385056036 | Y38: 23363.70616 | Z38: 0.08801878449 | AA38: 25078.44061 | AB38: 0.09162747758 | AC38: 26796.79798 | AD38: 0.09488279153 | AE38: 28367.77664 | AF38: 0.09761795126 | AG38: 21618.35147 | AH38: 0.08385056036 | AI38: 23265.11254 | AJ38: 0.08764734982 | AK38: 24865.39223 | AL38: 0.09084907647 | AM38: 26453.25522 | AN38: 0.09366636648 | AO38: 27879.73381 | AP38: 0.09593851964 | AQ38: 21618.35147 | AR38: 0.08385056036 | AS38: 22673.55082 | AT38: 0.08541874177 | AU38: 23631.18091 | AV38: 0.08633971832 | AW38: 24531.11863 | AX38: 0.08686041578 | AY38: 25241.66852 | AZ38: 0.08686052485 | BA38: 21618.35147 | BB38: 0.08385056036 | BC38: 22870.73806 | BD38: 0.08616161112 | BE38: 24034.18868 | BF38: 0.0878121618 | BG38: 25145.77639 | BH38: 0.08903681182 | BI38: 26067.59252 | BJ38: 0.08970265837 | BK38: 21618.35147 | BL38: 0.08385056036 | BM38: 22969.33168 | BN38: 0.08653304579 | BO38: 24238.84107 | BP38: 0.088559887 | BQ38: 25462.77565 | BR38: 0.09015925095 | BS38: 26500.18059 | BT38: 0.09119126151 | BU38: 21618.35147 | BV38: 0.08385056036 | BW38: 23067.9253 | BX38: 0.08690448047 | BY38: 24445.59246 | BZ38: 0.08931528118 | CA38: 25786.31075 | CB38: 0.09130483233 | CC38: 26946.21581 | CD38: 0.09272613838
A39: NHS Chorley and South Ribble CCG | B39: E38000034 | C39: 11320.94427 | D39: 0.08088699824 | E39: 12617.25414 | F39: 0.08731663763 | G39: 13897.6011 | H39: 0.09322243827 | I39: 15108.32476 | J39: 0.09846405606 | K39: 16162.44436 | L39: 0.1031162713 | M39: 11320.94427 | N39: 0.08088699824 | O39: 12512.51992 | P39: 0.08659183338 | Q39: 13662.69466 | R39: 0.09164673099 | S39: 14718.58318 | T39: 0.09592403008 | U39: 15597.12472 | V39: 0.09950953631 | W39: 11320.94427 | X39: 0.08088699824 | Y39: 12460.15282 | Z39: 0.08622943126 | AA39: 13546.93547 | AB39: 0.09087024063 | AC39: 14529.29745 | AD39: 0.09469041612 | AE39: 15326.5384 | AF39: 0.09778319764 | AG39: 11320.94427 | AH39: 0.08088699824 | AI39: 12407.78571 | AJ39: 0.08586702914 | AK39: 13432.30565 | AL39: 0.09010132578 | AM39: 14343.68706 | AN39: 0.09348075507 | AO39: 15063.79454 | AP39: 0.09610689383 | AQ39: 11320.94427 | AR39: 0.08088699824 | AS39: 12093.58307 | AT39: 0.08369261641 | AU39: 12768.24321 | AV39: 0.08564692251 | AW39: 13305.1889 | AX39: 0.08671264923 | AY39: 13643.55965 | AZ39: 0.08704580609 | BA39: 11320.94427 | BB39: 0.08088699824 | BC39: 12198.31728 | BD39: 0.08441742065 | BE39: 12985.07992 | BF39: 0.08710142154 | BG39: 13637.27818 | BH39: 0.0888769433 | BI39: 14088.20599 | BJ39: 0.08988264637 | BK39: 11320.94427 | BL39: 0.08088699824 | BM39: 12250.68439 | BN39: 0.08477982277 | BO39: 13095.19232 | BP39: 0.08784003432 | BQ39: 13808.54756 | BR39: 0.08999314104 | BS39: 14321.0951 | BT39: 0.09136847709 | BU39: 11320.94427 | BV39: 0.08088699824 | BW39: 12303.0515 | BX39: 0.0851422249 | BY39: 13206.43407 | BZ39: 0.08858622262 | CA39: 13983.34815 | CB39: 0.09113235236 | CC39: 14561.22365 | CD39: 0.09290049538
A40: NHS City and Hackney CCG | B40: E38000035 | C40: 19903.35792 | D40: 0.09029742273 | E40: 22860.88703 | F40: 0.09555629088 | G40: 26125.85168 | H40: 0.1027767572 | I40: 29770.71093 | J40: 0.1110515926 | K40: 33574.84998 | L40: 0.1187061589 | M40: 19903.35792 | N40: 0.09029742273 | O40: 22670.54647 | P40: 0.09476068581 | Q40: 25683.25653 | R40: 0.1010356276 | S40: 29001.34213 | T40: 0.1081816701 | U40: 32398.62735 | V40: 0.114547544 | W40: 19903.35792 | X40: 0.09029742273 | Y40: 22575.37619 | Z40: 0.09436288327 | AA40: 25465.15075 | AB40: 0.100177619 | AC40: 28627.68292 | AD40: 0.1067878354 | AE40: 31835.63655 | AF40: 0.1125570519 | AG40: 19903.35792 | AH40: 0.09029742273 | AI40: 22480.20592 | AJ40: 0.09396508074 | AK40: 25249.17283 | AL40: 0.09932798122 | AM40: 28261.27899 | AN40: 0.1054210646 | AO40: 31288.96304 | AP40: 0.1106242506 | AQ40: 19903.35792 | AR40: 0.09029742273 | AS40: 21909.18424 | AT40: 0.09157826552 | AU40: 23997.99038 | AV40: 0.09440594171 | AW40: 26211.23323 | AX40: 0.09777392282 | AY40: 28333.97562 | AZ40: 0.1001766922 | BA40: 19903.35792 | BB40: 0.09029742273 | BC40: 22099.5248 | BD40: 0.09237387059 | BE40: 24406.53975 | BF40: 0.09601313828 | BG40: 26866.79359 | BH40: 0.1002193136 | BI40: 29259.12142 | BJ40: 0.1034476079 | BK40: 19903.35792 | BL40: 0.09029742273 | BM40: 22194.69508 | BN40: 0.09277167313 | BO40: 24614.00623 | BP40: 0.09682929279 | BQ40: 27204.88766 | BR40: 0.1014804822 | BS40: 29743.67816 | BT40: 0.1051607911 | BU40: 19903.35792 | BV40: 0.09029742273 | BW40: 22289.86536 | BX40: 0.09316947566 | BY40: 24823.60057 | BZ40: 0.09765381812 | CA40: 27549.9525 | CB40: 0.1027676533 | CC40: 30243.29751 | CD40: 0.1069272292
A41: NHS Coastal West Sussex CCG | B41: E38000036 | C41: 38235.09176 | D41: 0.09417510286 | E41: 42346.9392 | F41: 0.09997388735 | G41: 47248.67712 | H41: 0.1065359123 | I41: 52066.79552 | J41: 0.1122129214 | K41: 57021.59549 | L41: 0.118022924 | M41: 38235.09176 | N41: 0.09417510286 | O41: 41993.2099 | P41: 0.09913879291 | Q41: 46445.88504 | R41: 0.1047257836 | S41: 50717.35694 | T41: 0.1093046486 | U41: 55018.83417 | V41: 0.1138776218 | W41: 38235.09176 | X41: 0.09417510286 | Y41: 41816.34525 | Z41: 0.09872124568 | AA41: 46050.27837 | AB41: 0.1038337731 | AC41: 50061.97535 | AD41: 0.1078921882 | AE41: 54060.22637 | AF41: 0.1118935016 | AG41: 38235.09176 | AH41: 0.09417510286 | AI41: 41639.4806 | AJ41: 0.09830369846 | AK41: 45658.53127 | AL41: 0.1029504651 | AM41: 49419.31921 | AN41: 0.1065071535 | AO41: 53129.40211 | AP41: 0.1099668877 | AQ41: 38235.09176 | AR41: 0.09417510286 | AS41: 40578.29268 | AT41: 0.09579841514 | AU41: 43389.09981 | AV41: 0.09783337048 | AW41: 45823.63034 | AX41: 0.09875782401 | AY41: 48097.92735 | AZ41: 0.09955277425 | BA41: 38235.09176 | BB41: 0.09417510286 | BC41: 40932.02199 | BD41: 0.09663350958 | BE41: 44130.13865 | BF41: 0.09950425852 | BG41: 46973.45398 | BH41: 0.1012358922 | BI41: 49673.17865 | BJ41: 0.102813219 | BK41: 38235.09176 | BL41: 0.09417510286 | BM41: 41108.88664 | BN41: 0.0970510568 | BO41: 44506.44744 | BP41: 0.1003527564 | BQ41: 47566.45591 | BR41: 0.1025139136 | BS41: 50498.2363 | BT41: 0.104520918 | BU41: 38235.09176 | BV41: 0.09417510286 | BW41: 41285.75129 | BX41: 0.09746860402 | BY41: 44886.61581 | BZ41: 0.1012099567 | CA41: 48171.68425 | CB41: 0.103818285 | CC41: 51348.94116 | CD41: 0.1062817013
A42: NHS Corby CCG | B42: E38000037 | C42: 4052.528729 | D42: 0.07727934265 | E42: 4592.88192 | F42: 0.08213308155 | G42: 5223.491253 | H42: 0.08662506223 | I42: 5900.581976 | J42: 0.09188075328 | K42: 6563.828647 | L42: 0.09709805692 | M42: 4052.528729 | N42: 0.07727934265 | O42: 4554.663469 | P42: 0.08144963286 | Q42: 5135.081831 | R42: 0.08515890266 | S42: 5748.400223 | T42: 0.08951105922 | U42: 6334.300285 | V42: 0.09370266693 | W42: 4052.528729 | X42: 0.07727934265 | Y42: 4535.554244 | Z42: 0.08110790851 | AA42: 5091.514688 | AB42: 0.08443639615 | AC42: 5674.490139 | AD42: 0.08836017033 | AE42: 6224.438127 | AF42: 0.09207748708 | AG42: 4052.528729 | AH42: 0.07727934265 | AI42: 4516.445019 | AJ42: 0.08076618417 | AK42: 5048.37259 | AL42: 0.08372093847 | AM42: 5602.015156 | AN42: 0.08723162809 | AO42: 6117.760128 | AP42: 0.09049941018 | AQ42: 4052.528729 | AR42: 0.07727934265 | AS42: 4401.789666 | AT42: 0.0787158381 | AU42: 4798.445955 | AV42: 0.07957621815 | AW42: 5196.514497 | AX42: 0.0809173855 | AY42: 5541.123185 | AZ42: 0.08196927788 | BA42: 4052.528729 | BB42: 0.07727934265 | BC42: 4440.008117 | BD42: 0.07939928679 | BE42: 4880.054652 | BF42: 0.08092959621 | BG42: 5326.18485 | BH42: 0.08293654391 | BI42: 5721.656356 | BJ42: 0.08463988692 | BK42: 4052.528729 | BL42: 0.07727934265 | BM42: 4459.117343 | BN42: 0.07974101113 | BO42: 4921.496568 | BP42: 0.08161685851 | BQ42: 5393.060122 | BR42: 0.0839778904 | BS42: 5816.212872 | BT42: 0.08603865195 | BU42: 4052.528729 | BV42: 0.07727934265 | BW42: 4478.226568 | BX42: 0.08008273548 | BY42: 4963.36353 | BZ42: 0.08231116965 | CA42: 5461.314217 | CB42: 0.08504070721 | CC42: 5913.70871 | CD42: 0.08748089808
A43: NHS Coventry and Rugby CCG | B43: E38000038 | C43: 30575.75435 | D43: 0.08537851657 | E43: 33615.05212 | F43: 0.08844669821 | G43: 36880.73049 | H43: 0.09220643654 | I43: 40441.72445 | J43: 0.09589709867 | K43: 44116.98983 | L43: 0.100070294 | M43: 30575.75435 | N43: 0.08537851657 | O43: 33335.74319 | P43: 0.08771179075 | Q43: 36257.63733 | R43: 0.09064862576 | S43: 39399.85406 | T43: 0.09342657227 | U43: 42577.12704 | V43: 0.09657743284 | W43: 30575.75435 | X43: 0.08537851657 | Y43: 33196.08873 | Z43: 0.08734433702 | AA43: 35950.58422 | AB43: 0.08988095459 | AC43: 38893.84905 | AD43: 0.09222671216 | AE43: 41840.08241 | AF43: 0.09490559908 | AG43: 30575.75435 | AH43: 0.08537851657 | AI43: 33056.43426 | AJ43: 0.08697688329 | AK43: 35646.52674 | AL43: 0.08912077289 | AM43: 38397.66907 | AN43: 0.09105014956 | AO43: 41124.3997 | AP43: 0.09328222044 | AQ43: 30575.75435 | AR43: 0.08537851657 | AS43: 32218.50747 | AT43: 0.0847721609 | AU43: 33885.09032 | AV43: 0.08471696165 | AW43: 35621.52066 | AX43: 0.08446723101 | AY43: 37255.85049 | AZ43: 0.08450721428 | BA43: 30575.75435 | BB43: 0.08537851657 | BC43: 32497.8164 | BD43: 0.08550706836 | BE43: 34460.25323 | BF43: 0.08615494083 | BG43: 36509.27297 | BH43: 0.08657230619 | BI43: 38467.01371 | BJ43: 0.08725448829 | BK43: 30575.75435 | BL43: 0.08537851657 | BM43: 32637.47087 | BN43: 0.08587452209 | BO43: 34752.32815 | BP43: 0.08688516463 | BQ43: 36967.11607 | BR43: 0.08765796279 | BS43: 39101.37566 | BT43: 0.08869340756 | BU43: 30575.75435 | BV43: 0.08537851657 | BW43: 32777.12533 | BX43: 0.08624197583 | BY43: 35047.39871 | BZ43: 0.08762287791 | CA43: 37434.39891 | CB43: 0.08876600329 | CC43: 39755.45697 | CD43: 0.09017705614
A44: NHS Crawley CCG | B44: E38000039 | C44: 6825.548943 | D44: 0.07784613302 | E44: 7530.016012 | F44: 0.08206207511 | G44: 8477.74719 | H44: 0.08738143877 | I44: 9386.954137 | J44: 0.09262832186 | K44: 10363.93216 | L44: 0.09773606334 | M44: 6825.548943 | N44: 0.07784613302 | O44: 7467.431494 | P44: 0.08138002936 | Q44: 8334.514934 | R44: 0.08590512198 | S44: 9145.151033 | T44: 0.09024226399 | U44: 10001.78443 | V44: 0.0943208641 | W44: 6825.548943 | X44: 0.07784613302 | Y44: 7436.139235 | Z44: 0.08103900649 | AA44: 8263.931731 | AB44: 0.08517761009 | AC44: 9027.714563 | AD44: 0.0890834277 | AE44: 9828.444933 | AF44: 0.09268620269 | AG44: 6825.548943 | AH44: 0.07784613302 | AI44: 7404.846976 | AJ44: 0.08069798361 | AK44: 8194.037145 | AL44: 0.08445719589 | AM44: 8912.55834 | AN44: 0.08794709236 | AO44: 9660.129374 | AP44: 0.09109891903 | AQ44: 6825.548943 | AR44: 0.07784613302 | AS44: 7217.093423 | AT44: 0.07865184637 | AU44: 7789.130577 | AV44: 0.08028376187 | AW44: 8268.254299 | AX44: 0.08158924708 | AY44: 8750.316939 | AZ44: 0.08251902055 | BA44: 6825.548943 | BB44: 0.07784613302 | BC44: 7279.677941 | BD44: 0.07933389212 | BE44: 7921.344966 | BF44: 0.08164651584 | BG44: 8474.288816 | BH44: 0.08362234869 | BI44: 9035.160506 | BJ44: 0.08520521036 | BK44: 6825.548943 | BL44: 0.07784613302 | BM44: 7310.9702 | BN44: 0.07967491499 | BO44: 7988.485086 | BP44: 0.08233853933 | BQ44: 8580.547603 | BR44: 0.08467088615 | BS44: 9184.350903 | BT44: 0.08661213601 | BU44: 6825.548943 | BV44: 0.07784613302 | BW44: 7342.262459 | BX44: 0.08001593787 | BY44: 8056.313823 | BZ44: 0.08303766051 | CA44: 8688.997215 | CB44: 0.08574104219 | CC44: 9338.178934 | CD44: 0.08806279643
A45: NHS Croydon CCG | B45: E38000040 | C45: 30993.7701 | D45: 0.1042438117 | E45: 34750.34042 | F45: 0.1105009553 | G45: 38831.40048 | H45: 0.1167791425 | I45: 43209.77742 | J45: 0.123371909 | K45: 47681.0098 | L45: 0.1299351695 | M45: 30993.7701 | N45: 0.1042438117 | O45: 34460.00448 | P45: 0.1095777298 | Q45: 38171.40603 | R45: 0.1147943162 | S45: 42089.77129 | T45: 0.1201740843 | U45: 46006.48004 | V45: 0.1253719207 | W45: 30993.7701 | X45: 0.1042438117 | Y45: 34314.83651 | Z45: 0.1091161171 | AA45: 37846.16838 | AB45: 0.1138162167 | AC45: 41545.81811 | AD45: 0.1186209973 | AE45: 45204.97799 | AF45: 0.1231877534 | AG45: 30993.7701 | AH45: 0.1042438117 | AI45: 34169.66854 | AJ45: 0.1086545044 | AK45: 37524.10377 | AL45: 0.1128476596 | AM45: 41012.42679 | AN45: 0.1170980664 | AO45: 44426.70605 | AP45: 0.1210668903 | AQ45: 30993.7701 | AR45: 0.1042438117 | AS45: 33298.66073 | AT45: 0.1058848281 | AU45: 35658.35023 | AV45: 0.1072367082 | AW45: 38028.07934 | AX45: 0.1085772023 | AY45: 40219.83718 | AZ45: 0.1096027828 | BA45: 30993.7701 | BB45: 0.1042438117 | BC45: 33588.99667 | BD45: 0.1068080535 | BE45: 36267.57587 | BF45: 0.1090688556 | BG45: 38982.4092 | BH45: 0.1113019906 | BI45: 41536.92133 | BJ45: 0.1131919592 | BK45: 30993.7701 | BL45: 0.1042438117 | BM45: 33734.16464 | BN45: 0.1072696662 | BO45: 36576.94827 | BP45: 0.109999243 | BQ45: 39474.58854 | BR45: 0.1127072537 | BS45: 42226.7607 | BT45: 0.1150718353 | BU45: 30993.7701 | BV45: 0.1042438117 | BW45: 33879.3326 | BX45: 0.107731279 | BY45: 36889.49372 | BZ45: 0.1109391728 | CA45: 39976.91555 | CB45: 0.1141414903 | CC45: 42938.04396 | CD45: 0.1170101481
A46: NHS Cumbria CCG | B46: E38000041 | C46: 39116.6309 | D46: 0.09298428949 | E46: 41836.10216 | F46: 0.09965722287 | G46: 44739.1154 | H46: 0.1065521468 | I46: 47325.45097 | J46: 0.1125082041 | K46: 49443.8727 | L46: 0.1177515425 | M46: 39116.6309 | N46: 0.09298428949 | O46: 41488.25236 | P46: 0.09882861447 | Q46: 43982.10377 | R46: 0.104749223 | S46: 46103.53714 | T46: 0.1096033119 | U46: 47712.88825 | V46: 0.1136291694 | W46: 39116.6309 | X46: 0.09298428949 | Y46: 41314.32745 | Z46: 0.09841431027 | AA46: 43609.05718 | AB46: 0.103860763 | AC46: 45510.09047 | AD46: 0.1081924935 | AE46: 46884.36455 | AF46: 0.1116560242 | AG46: 39116.6309 | AH46: 0.09298428949 | AI46: 41140.40255 | AJ46: 0.09800000608 | AK46: 43239.65006 | AL46: 0.1029809709 | AM46: 44928.16666 | AN46: 0.1068090687 | AO46: 46079.85414 | AP46: 0.109740067 | AQ46: 39116.6309 | AR46: 0.09298428949 | AS46: 40096.85314 | AT46: 0.09551418089 | AU46: 41099.63641 | AV46: 0.09788424409 | AW46: 41672.27787 | AX46: 0.0990687473 | AY46: 41731.15593 | AZ46: 0.09938355781 | BA46: 39116.6309 | BB46: 0.09298428949 | BC46: 40444.70294 | BD46: 0.09634278928 | BE46: 41798.41637 | BF46: 0.09954848141 | BG46: 42713.44078 | BH46: 0.1015439349 | BI46: 43092.64393 | BJ46: 0.1026259679 | BK46: 39116.6309 | BL46: 0.09298428949 | BM46: 40618.62784 | BN46: 0.09675709348 | BO46: 42153.26558 | BP46: 0.1003936019 | BQ46: 43250.40279 | BR46: 0.1028204707 | BS46: 43805.74037 | BT46: 0.1043242209 | BU46: 39116.6309 | BV46: 0.09298428949 | BW46: 40792.55275 | BX46: 0.09717139768 | BY46: 42511.75426 | BZ46: 0.1012473903 | CA46: 43798.4358 | CB46: 0.1041233259 | CC46: 44541.00366 | CD46: 0.1060752647
A47: NHS Darlington CCG | B47: E38000042 | C47: 7395.399281 | D47: 0.08659718127 | E47: 7926.849577 | F47: 0.09230146224 | G47: 8558.275219 | H47: 0.09839359875 | I47: 9128.407937 | J47: 0.1036376923 | K47: 9675.763017 | L47: 0.1091579763 | M47: 7395.399281 | N47: 0.08659718127 | O47: 7860.808689 | P47: 0.09153247192 | Q47: 8413.083389 | R47: 0.0967243434 | S47: 8891.890789 | T47: 0.1009524386 | U47: 9335.909659 | V47: 0.1053238906 | W47: 7395.399281 | X47: 0.08659718127 | Y47: 7827.788245 | Z47: 0.09114797677 | AA47: 8341.53453 | AB47: 0.09590175362 | AC47: 8777.021547 | AD47: 0.09964829186 | AE47: 9173.241207 | AF47: 0.103488732 | AG47: 7395.399281 | AH47: 0.08659718127 | AI47: 7794.767801 | AJ47: 0.09076348161 | AK47: 8270.683709 | AL47: 0.09508718911 | AM47: 8664.382706 | AN47: 0.0983694676 | AO47: 9015.287412 | AP47: 0.1017067623 | AQ47: 7395.399281 | AR47: 0.08659718127 | AS47: 7596.645136 | AT47: 0.08845651067 | AU47: 7860.237573 | AV47: 0.09036833264 | AW47: 8034.163525 | AX47: 0.09121439061 | AY47: 8161.484424 | AZ47: 0.0920745084 | BA47: 7395.399281 | BB47: 0.08659718127 | BC47: 7662.686024 | BD47: 0.08922550098 | BE47: 7994.260801 | BF47: 0.09190918373 | BG47: 8235.694008 | BH47: 0.0935024297 | BI47: 8428.792585 | BJ47: 0.09509016906 | BK47: 7395.399281 | BL47: 0.08659718127 | BM47: 7695.706468 | BN47: 0.08960999614 | BO47: 8062.319471 | BP47: 0.09269164718 | BQ47: 8339.629916 | BR47: 0.09468244682 | BS47: 8568.798592 | BT47: 0.09666965921 | BU47: 7395.399281 | BV47: 0.08659718127 | BW47: 7728.726913 | BX47: 0.0899944913 | BY47: 8131.07618 | BZ47: 0.09348213589 | CA47: 8445.708757 | CB47: 0.09588679334 | CC47: 8713.156734 | CD47: 0.09829824835
A48: NHS Dartford, Gravesham and Swanley CCG | B48: E38000043 | C48: 17369.8563 | D48: 0.0842379064 | E48: 19147.14985 | F48: 0.08856221024 | G48: 21237.528 | H48: 0.09337639819 | I48: 23433.98469 | J48: 0.09781277523 | K48: 25735.59683 | L48: 0.102491425 | M48: 17369.8563 | N48: 0.0842379064 | O48: 18987.87383 | P48: 0.08782550339 | Q48: 20878.09793 | R48: 0.09179606899 | S48: 22828.92064 | T48: 0.09528725535 | U48: 24835.27795 | V48: 0.09890592574 | W48: 17369.8563 | X48: 0.0842379064 | Y48: 18908.23582 | Z48: 0.08745714996 | AA48: 20700.97494 | AB48: 0.09101730099 | AC48: 22535.05929 | AD48: 0.09406068657 | AE48: 24404.34657 | AF48: 0.09718975138 | AG48: 17369.8563 | AH48: 0.0842379064 | AI48: 18828.59781 | AJ48: 0.08708879653 | AK48: 20525.57997 | AL48: 0.09024613073 | AM48: 22246.9038 | AN48: 0.0928579339 | AO48: 23985.90497 | AP48: 0.09552331728 | AQ48: 17369.8563 | AR48: 0.0842379064 | AS48: 18350.76974 | AT48: 0.08487867597 | AU48: 19509.4988 | AV48: 0.08577866164 | AW48: 20634.66142 | AX48: 0.08612848075 | AY48: 21724.06195 | AZ48: 0.08651557927 | BA48: 17369.8563 | BB48: 0.0842379064 | BC48: 18510.04577 | BD48: 0.08561538283 | BE48: 19841.28041 | BF48: 0.08723742706 | BG48: 21150.22171 | BH48: 0.08828041453 | BI48: 22432.1985 | BJ48: 0.08933571684 | BK48: 17369.8563 | BL48: 0.0842379064 | BM48: 18589.68378 | BN48: 0.08598373625 | BO48: 20009.76326 | BP48: 0.08797820637 | BQ48: 21416.11314 | BR48: 0.08939023766 | BS48: 22803.09391 | BT48: 0.09081279932 | BU48: 17369.8563 | BV48: 0.0842379064 | BW48: 18669.32179 | BX48: 0.08635208968 | BY48: 20179.97413 | BZ48: 0.08872658342 | CA48: 21687.48667 | CB48: 0.09052294293 | CC48: 23185.51873 | CD48: 0.09233579741
A49: NHS Doncaster CCG | B49: E38000044 | C49: 21789.79794 | D49: 0.08843262151 | E49: 23376.80992 | F49: 0.09425372921 | G49: 25199.68476 | H49: 0.1001577296 | I49: 27086.79904 | J49: 0.1059651007 | K49: 28732.94628 | L49: 0.1113334868 | M49: 21789.79794 | N49: 0.08843262151 | O49: 23182.27139 | P49: 0.09346936293 | Q49: 24773.13646 | R49: 0.09846238655 | S49: 26387.7015 | T49: 0.1032301913 | U49: 27728.09378 | V49: 0.107439917 | W49: 21789.79794 | X49: 0.08843262151 | Y49: 23085.00213 | Z49: 0.09307717979 | AA49: 24562.93837 | AB49: 0.09762694108 | AC49: 26048.17092 | AD49: 0.1019019283 | AE49: 27247.12811 | AF49: 0.1055762869 | AG49: 21789.79794 | AH49: 0.08843262151 | AI49: 22987.73287 | AJ49: 0.09268499665 | AK49: 24354.79101 | AL49: 0.09679964629 | AM49: 25715.23297 | AN49: 0.1005994561 | AO49: 26780.10237 | AP49: 0.1037666707 | AQ49: 21789.79794 | AR49: 0.08843262151 | AS49: 22404.11729 | AT49: 0.09033189781 | AU49: 23148.97177 | AV49: 0.092007042 | AW49: 23852.43071 | AX49: 0.09331206757 | AY49: 24255.64281 | AZ49: 0.09398497681 | BA49: 21789.79794 | BB49: 0.08843262151 | BC49: 22598.65582 | BD49: 0.09111626409 | BE49: 23542.70866 | BF49: 0.09357197401 | BG49: 24448.11464 | BH49: 0.09564241703 | BI49: 25045.9992 | BJ49: 0.09704742405 | BK49: 21789.79794 | BL49: 0.08843262151 | BM49: 22695.92508 | BN49: 0.09150844723 | BO49: 23742.65318 | BP49: 0.09436666605 | BQ49: 24755.32846 | BR49: 0.096844255 | BS49: 25459.95828 | BT49: 0.09865141926 | BU49: 21789.79794 | BV49: 0.08843262151 | BW49: 22793.19434 | BX49: 0.09190063037 | BY49: 23944.64841 | BZ49: 0.09516950877 | CA49: 25068.87637 | CB49: 0.09807087227 | CC49: 25886.78543 | CD49: 0.1003052752
A50: NHS Dorset CCG | B50: E38000045 | C50: 57473.27514 | D50: 0.08979357427 | E50: 62902.40235 | F50: 0.09525471311 | G50: 69344.44166 | H50: 0.1013185495 | I50: 75667.9145 | J50: 0.1065355145 | K50: 81844.77324 | L50: 0.1116268047 | M50: 57473.27514 | N50: 0.08979357427 | O50: 62378.59069 | P50: 0.09446149174 | Q50: 68169.71843 | R50: 0.09960217181 | S50: 73712.68718 | T50: 0.1037826812 | U50: 78978.98058 | V50: 0.107718195 | W50: 57473.27514 | X50: 0.08979357427 | Y50: 62116.68485 | Z50: 0.09406488106 | AA50: 67590.82837 | AB50: 0.09875636067 | AC50: 72763.09228 | AD50: 0.1024457132 | AE50: 77607.28882 | AF50: 0.1058473661 | AG50: 57473.27514 | AH50: 0.08979357427 | AI50: 61854.77902 | AJ50: 0.09366827037 | AK50: 67017.58602 | AL50: 0.09791880136 | AM50: 71831.93553 | AN50: 0.1011347049 | AO50: 76275.3531 | AP50: 0.1040307598 | AQ50: 57473.27514 | AR50: 0.08979357427 | AS50: 60283.34403 | AT50: 0.09128860626 | AU50: 63696.7338 | AV50: 0.09306673359 | AW50: 66622.07329 | AX50: 0.09379955691 | AY50: 69075.71163 | AZ50: 0.09421128155 | BA50: 57473.27514 | BB50: 0.08979357427 | BC50: 60807.15569 | BD50: 0.09208182763 | BE50: 64781.09371 | BF50: 0.09465108225 | BG50: 68288.07472 | BH50: 0.09614517883 | BI50: 71329.77135 | BJ50: 0.09728555831 | BK50: 57473.27514 | BL50: 0.08979357427 | BM50: 61069.06152 | BN50: 0.09247843831 | BO50: 65331.74523 | BP50: 0.0954556343 | BQ50: 69147.28653 | BR50: 0.09735489331 | BS50: 72510.36344 | BT50: 0.09889574937 | BU50: 57473.27514 | BV50: 0.08979357427 | BW50: 61330.96736 | BX50: 0.092875049 | BY50: 65888.04445 | BZ50: 0.09626843817 | CA50: 70024.21342 | CB50: 0.09858954949 | CC50: 73727.65464 | CD50: 0.1005559938
A51: NHS Dudley CCG | B51: E38000046 | C51: 23662.70742 | D51: 0.09249748816 | E51: 25394.85107 | F51: 0.09819368599 | G51: 27117.65909 | H51: 0.1032974977 | I51: 28761.91201 | J51: 0.1077386575 | K51: 30291.46366 | L51: 0.1117766187 | M51: 23662.70742 | N51: 0.09249748816 | O51: 25183.57913 | P51: 0.09737676565 | Q51: 26658.42066 | R51: 0.1015481512 | S51: 28018.9229 | T51: 0.1049555098 | U51: 29230.91017 | V51: 0.1078631372 | W51: 23662.70742 | X51: 0.09249748816 | Y51: 25077.94316 | Z51: 0.09696830547 | AA51: 26432.11326 | AB51: 0.1006860935 | AC51: 27658.07552 | AD51: 0.103603819 | AE51: 28723.2836 | AF51: 0.1059899764 | AG51: 23662.70742 | AH51: 0.09249748816 | AI51: 24972.30719 | AJ51: 0.0965598453 | AK51: 26208.01374 | AL51: 0.09983244606 | AM51: 27304.23465 | AN51: 0.1022783737 | AO51: 28230.36969 | AP51: 0.1041711059 | AQ51: 23662.70742 | AR51: 0.09249748816 | AS51: 24338.49137 | AT51: 0.09410908427 | AU51: 24909.78203 | AV51: 0.09488717824 | AW51: 25324.47974 | AX51: 0.09486245035 | AY51: 25565.97426 | AZ51: 0.09433938842 | BA51: 23662.70742 | BB51: 0.09249748816 | BC51: 24549.76331 | BD51: 0.09492600461 | BE51: 25333.69443 | BF51: 0.09650195957 | BG51: 25957.56261 | BH51: 0.09723390248 | BI51: 26400.14169 | BJ51: 0.09741749701 | BK51: 23662.70742 | BL51: 0.09249748816 | BM51: 24655.39928 | BN51: 0.09533446478 | BO51: 25548.96244 | BP51: 0.09732196571 | BQ51: 26284.06429 | BR51: 0.09845693846 | BS51: 26837.04736 | BT51: 0.09902969505 | BU51: 23662.70742 | BV51: 0.09249748816 | BW51: 24761.03525 | BX51: 0.09574292496 | BY51: 25766.43833 | BZ51: 0.09815038217 | CA51: 26617.29773 | CB51: 0.09970519079 | CC51: 27287.53439 | CD51: 0.1006920088
A52: NHS Durham Dales, Easington and Sedgefield CCG | B52: E38000047 | C52: 21020.90635 | D52: 0.09307051428 | E52: 22655.99949 | F52: 0.09858149636 | G52: 24533.86376 | H52: 0.1043017761 | I52: 26282.18885 | J52: 0.1094726293 | K52: 27750.86364 | L52: 0.113826348 | M52: 21020.90635 | N52: 0.09307051428 | O52: 22467.57726 | P52: 0.09776162763 | Q52: 24118.68569 | R52: 0.1025367132 | S52: 25603.87596 | T52: 0.1066472674 | U52: 26779.69706 | V52: 0.109842892 | W52: 21020.90635 | X52: 0.09307051428 | Y52: 22373.36615 | Z52: 0.09735169327 | AA52: 23914.09072 | AB52: 0.1016669107 | AC52: 25274.43986 | AD52: 0.1052750744 | AE52: 26314.85492 | AF52: 0.1079362384 | AG52: 21020.90635 | AH52: 0.09307051428 | AI52: 22279.15503 | AJ52: 0.09694175891 | AK52: 23711.49181 | AL52: 0.1008055939 | AM52: 24951.40037 | AN52: 0.103929525 | AO52: 25863.4854 | AP52: 0.1060848458 | AQ52: 21020.90635 | AR52: 0.09307051428 | AS52: 21713.88834 | AT52: 0.09448215275 | AU52: 22537.81533 | AV52: 0.09581589715 | AW52: 23143.98049 | AX52: 0.09640111834 | AY52: 23423.65391 | AZ52: 0.09607733352 | BA52: 21020.90635 | BB52: 0.09307051428 | BC52: 21902.31057 | BD52: 0.09530202147 | BE52: 22921.05663 | BF52: 0.0974451859 | BG52: 23721.95433 | BH52: 0.0988085402 | BI52: 24187.51499 | BJ52: 0.09921047985 | BK52: 21020.90635 | BL52: 0.09307051428 | BM52: 21996.52169 | BN52: 0.09571195583 | BO52: 23115.67135 | BP52: 0.09827255909 | BQ52: 24020.03448 | BR52: 0.100050127 | BS52: 24587.59682 | BT52: 0.1008515046 | BU52: 21020.90635 | BV52: 0.09307051428 | BW52: 22090.7328 | BX52: 0.09612189019 | BY52: 23312.28212 | BZ52: 0.09910841816 | CA52: 24324.26039 | CB52: 0.1013173125 | CC52: 25000.11533 | CD52: 0.1025435412
A53: NHS Ealing CCG | B53: E38000048 | C53: 29144.51568 | D53: 0.1067799358 | E53: 32353.49154 | F53: 0.1142344875 | G53: 36046.96138 | H53: 0.1224254904 | I53: 39843.29803 | J53: 0.1301473118 | K53: 43572.67653 | L53: 0.1374185585 | M53: 29144.51568 | N53: 0.1067799358 | O53: 32084.48978 | P53: 0.1132846896 | Q53: 35437.50372 | R53: 0.1203556029 | S53: 38816.31709 | T53: 0.1267926997 | U53: 42051.31975 | V53: 0.1326205366 | W53: 29144.51568 | X53: 0.1067799358 | Y53: 31949.9889 | Z53: 0.1128097906 | AA53: 35137.17002 | AB53: 0.1193355863 | AC53: 38317.54343 | AD53: 0.1251634658 | AE53: 41323.13288 | AF53: 0.1303239967 | AG53: 29144.51568 | AH53: 0.1067799358 | AI53: 31815.48803 | AJ53: 0.1123348917 | AK53: 34839.7664 | AL53: 0.118325521 | AM53: 37828.4544 | AN53: 0.1235658666 | AO53: 40616.05121 | AP53: 0.128094018 | AQ53: 29144.51568 | AR53: 0.1067799358 | AS53: 31008.48276 | AT53: 0.1094854981 | AU53: 33116.87648 | AV53: 0.1124741084 | AW53: 35091.98014 | AX53: 0.1146272298 | AY53: 36793.99404 | AZ53: 0.1160400973 | BA53: 29144.51568 | BB53: 0.1067799358 | BC53: 31277.48451 | BD53: 0.1104352959 | BE53: 33679.45278 | BF53: 0.1143847738 | BG53: 35967.0455 | BH53: 0.1174856128 | BI53: 37990.60156 | BJ53: 0.119813932 | BK53: 29144.51568 | BL53: 0.1067799358 | BM53: 31411.98539 | BN53: 0.1109101949 | BO53: 33965.13606 | BP53: 0.1153550335 | BQ53: 36418.34554 | BR53: 0.1189597751 | BS53: 38617.33978 | BT53: 0.1217905253 | BU53: 29144.51568 | BV53: 0.1067799358 | BW53: 31546.48627 | BX53: 0.1113850938 | BY53: 34253.74942 | BZ53: 0.1163352446 | CA53: 36878.9504 | CB53: 0.1204643314 | CC53: 39263.56037 | CD53: 0.1238285618
A54: NHS East and North Hertfordshire CCG | B54: E38000049 | C54: 34535.38464 | D54: 0.07695392986 | E54: 38262.41735 | F54: 0.08150998541 | G54: 42579.09841 | H54: 0.08647960519 | I54: 47031.91617 | J54: 0.0910765224 | K54: 51707.34717 | L54: 0.09588930193 | M54: 34535.38464 | N54: 0.07695392986 | O54: 37943.64818 | P54: 0.08083091512 | Q54: 41857.32846 | R54: 0.08501366574 | S54: 45815.64876 | T54: 0.08872124083 | U54: 49894.60416 | V54: 0.0925276392 | W54: 34535.38464 | X54: 0.07695392986 | Y54: 37784.26359 | Z54: 0.08049137998 | AA54: 41501.64856 | AB54: 0.08429126769 | AC54: 45224.94439 | AD54: 0.08757735165 | AE54: 49026.9473 | AF54: 0.09091860267 | AG54: 34535.38464 | AH54: 0.07695392986 | AI54: 37624.879 | AJ54: 0.08015184484 | AK54: 41149.43871 | AL54: 0.08357591743 | AM54: 44645.70965 | AN54: 0.08645567321 | AO54: 48184.43793 | AP54: 0.0893562012 | AQ54: 34535.38464 | AR54: 0.07695392986 | AS54: 36668.57148 | AT54: 0.07811463397 | AU54: 39109.05058 | AV54: 0.07943181936 | AW54: 41404.86621 | AX54: 0.08017983387 | AY54: 43630.34024 | AZ54: 0.08091080084 | BA54: 34535.38464 | BB54: 0.07695392986 | BC54: 36987.34065 | BD54: 0.07879370426 | BE54: 39775.29976 | BF54: 0.08078499424 | BG54: 42441.21795 | BH54: 0.08218671175 | BI54: 45056.1346 | BJ54: 0.08355488205 | BK54: 34535.38464 | BL54: 0.07695392986 | BM54: 37146.72524 | BN54: 0.0791332394 | BO54: 40113.62943 | BP54: 0.08147215336 | BQ54: 42975.69867 | BR54: 0.08322172477 | BS54: 45802.9123 | BT54: 0.0849397528 | BU54: 34535.38464 | BV54: 0.07695392986 | BW54: 37306.10983 | BX54: 0.07947277455 | BY54: 40455.42914 | BZ54: 0.08216636026 | CA54: 43521.19923 | CB54: 0.08427807752 | CC54: 46572.90384 | CD54: 0.08636767273
A55: NHS East Lancashire CCG | B55: E38000050 | C55: 27935.45563 | D55: 0.09337964844 | E55: 29982.38768 | F55: 0.09965561286 | G55: 32346.01989 | H55: 0.1061290763 | I55: 34398.10927 | J55: 0.1117111889 | K55: 36289.04061 | L55: 0.1168428122 | M55: 27935.45563 | N55: 0.09337964844 | O55: 29732.78482 | P55: 0.09882598157 | Q55: 31798.04491 | R55: 0.1043311402 | S55: 33508.88801 | T55: 0.1088233567 | U55: 35017.1541 | V55: 0.1127476145 | W55: 27935.45563 | X55: 0.09337964844 | Y55: 29607.98338 | Z55: 0.09841116593 | AA55: 31528.00917 | AB55: 0.103445138 | AC55: 33077.02007 | AD55: 0.1074208238 | AE55: 34408.37445 | AF55: 0.1107874765 | AG55: 27935.45563 | AH55: 0.09337964844 | AI55: 29483.18195 | AJ55: 0.09799635029 | AK55: 31260.60792 | AL55: 0.1025677798 | AM55: 32653.53766 | AN55: 0.1060455237 | AO55: 33817.23919 | AP55: 0.1088841496 | AQ55: 27935.45563 | AR55: 0.09337964844 | AS55: 28734.37334 | AT55: 0.09550745643 | AU55: 29711.52482 | AV55: 0.09748515263 | AW55: 30284.13527 | AX55: 0.09835066014 | AY55: 30621.91841 | AZ55: 0.09859591219 | BA55: 27935.45563 | BB55: 0.09337964844 | BC55: 28983.97621 | BD55: 0.09633708771 | BE55: 30217.34787 | BF55: 0.09914478598 | BG55: 31041.81898 | BH55: 0.1008113113 | BI55: 31622.30765 | BJ55: 0.1018169478 | BK55: 27935.45563 | BL55: 0.09337964844 | BM55: 29108.77764 | BN55: 0.09675190336 | BO55: 30474.21114 | BP55: 0.09998756855 | BQ55: 31432.58143 | BR55: 0.1020803502 | BS55: 32146.27408 | BT55: 0.1035040057 | BU55: 27935.45563 | BV55: 0.09337964844 | BW55: 29233.57908 | BX55: 0.097166719 | BY55: 30733.70891 | BZ55: 0.100838995 | CA55: 31831.40055 | CB55: 0.1033755539 | CC55: 32686.52819 | CD55: 0.1052435063
A56: NHS East Leicestershire and Rutland CCG | B56: E38000051 | C56: 23057.33591 | D56: 0.08652557756 | E56: 25360.00355 | F56: 0.09273752485 | G56: 27881.09427 | H56: 0.09851976773 | I56: 30290.62147 | J56: 0.1036356284 | K56: 32553.62165 | L56: 0.1081443813 | M56: 23057.33591 | N56: 0.08652557756 | O56: 25148.7567 | P56: 0.09196502853 | Q56: 27408.57712 | R56: 0.09685009583 | S56: 29507.24336 | T56: 0.1009553967 | U56: 31411.95439 | V56: 0.1043517188 | W56: 23057.33591 | X56: 0.08652557756 | Y56: 25043.13328 | Z56: 0.09157878037 | AA56: 27175.72612 | AB56: 0.09602730079 | AC56: 29126.78025 | AD56: 0.09965368909 | AE56: 30865.50328 | AF56: 0.1025363872 | AG56: 23057.33591 | AH56: 0.08652557756 | AI56: 24937.50986 | AJ56: 0.09119253221 | AK56: 26945.14684 | AL56: 0.09521253301 | AM56: 28753.70454 | AN56: 0.09837725653 | AO56: 30334.89008 | AP56: 0.1007736698 | AQ56: 23057.33591 | AR56: 0.08652557756 | AS56: 24303.76933 | AT56: 0.08887504326 | AU56: 25609.37721 | AV56: 0.09049249899 | AW56: 26666.32983 | AX56: 0.09123556119 | AY56: 27466.71503 | AZ56: 0.09124548214 | BA56: 23057.33591 | BB56: 0.08652557756 | BC56: 24515.01617 | BD56: 0.08964753958 | BE56: 26045.54689 | BF56: 0.09203373459 | BG56: 27333.82718 | BH56: 0.09351932112 | BI56: 28364.68167 | BJ56: 0.09422856179 | BK56: 23057.33591 | BL56: 0.08652557756 | BM56: 24620.63959 | BN56: 0.09003378773 | BO56: 26267.0393 | BP56: 0.09281639329 | BQ56: 27678.07755 | BR56: 0.09469713133 | BS56: 28835.00297 | BT56: 0.09579098722 | BU56: 23057.33591 | BV56: 0.08652557756 | BW56: 24726.26302 | BX56: 0.09042003589 | BY56: 26490.80343 | BZ56: 0.09360707926 | CA56: 28029.42561 | CB56: 0.09589922544 | CC56: 29319.94438 | CD56: 0.09740198119
A57: NHS East Riding of Yorkshire CCG | B57: E38000052 | C57: 23929.68963 | D57: 0.09041672193 | E57: 26160.80936 | F57: 0.09697808927 | G57: 28518.61797 | H57: 0.1035760077 | I57: 30708.84475 | J57: 0.109167596 | K57: 32538.97547 | L57: 0.1141398045 | M57: 23929.68963 | N57: 0.09041672193 | O57: 25943.06717 | P57: 0.09617091924 | Q57: 28035.56198 | R57: 0.1018216096 | S57: 29915.41878 | T57: 0.1063470273 | U57: 31399.62338 | V57: 0.1101431997 | W57: 23929.68963 | X57: 0.09041672193 | Y57: 25834.19608 | Z57: 0.09576733422 | AA57: 27797.51756 | AB57: 0.1009570624 | AC57: 29530.07573 | AD57: 0.1049771622 | AE57: 30854.28042 | AF57: 0.1082302526 | AG57: 23929.68963 | AH57: 0.09041672193 | AI57: 25725.32498 | AJ57: 0.0953637492 | AK57: 27561.79553 | AL57: 0.1001009499 | AM57: 29152.21483 | AN57: 0.1036338956 | AO57: 30324.74325 | AP57: 0.1063727489 | AQ57: 23929.68963 | AR57: 0.09041672193 | AS57: 25072.09842 | AT57: 0.09294223909 | AU57: 26196.23341 | AV57: 0.09514140122 | AW57: 27038.06679 | AX57: 0.09611826091 | AY57: 27462.38457 | AZ57: 0.09633220348 | BA57: 23929.68963 | BB57: 0.09041672193 | BC57: 25289.84061 | BD57: 0.09374940913 | BE57: 26642.13125 | BF57: 0.09676084567 | BG57: 27714.12568 | BH57: 0.09852159856 | BI57: 28358.53022 | BJ57: 0.09947569181 | BK57: 23929.68963 | BL57: 0.09041672193 | BM57: 25398.7117 | BN57: 0.09415299415 | BO57: 26868.56374 | BP57: 0.0975832198 | BQ57: 28062.79151 | BR57: 0.09976107895 | BS57: 28827.89776 | BT57: 0.1011221333 | BU57: 23929.68963 | BV57: 0.09041672193 | BW57: 25507.5828 | BX57: 0.09455657917 | BY57: 27097.31862 | BZ57: 0.09841402855 | CA57: 28418.64608 | CB57: 0.1010261147 | CC57: 29311.85576 | CD57: 0.102819755
A58: NHS East Staffordshire CCG | B58: E38000053 | C58: 8679.528338 | D58: 0.0851936429 | E58: 9556.521025 | F58: 0.0913450681 | G58: 10497.25598 | H58: 0.09755814109 | I58: 11465.71957 | J58: 0.1034252172 | K58: 12299.42787 | L58: 0.1083841018 | M58: 8679.528338 | N58: 0.0851936429 | O58: 9477.062441 | P58: 0.09058557103 | Q58: 10319.65485 | R58: 0.09590757296 | S58: 11169.92809 | T58: 0.1007570638 | U58: 11869.35141 | V58: 0.104594214 | W58: 8679.528338 | X58: 0.0851936429 | Y58: 9437.333149 | Z58: 0.09020582249 | AA58: 10232.13506 | AB58: 0.09509419204 | AC58: 11026.2711 | AD58: 0.09946122225 | AE58: 11663.4983 | AF58: 0.1027802106 | AG58: 8679.528338 | AH58: 0.0851936429 | AI58: 9397.603857 | AJ58: 0.08982607395 | AK58: 10145.46913 | AL58: 0.09428874654 | AM58: 10885.40347 | AN58: 0.09819054186 | AO58: 11463.61147 | AP58: 0.1010187828 | AQ58: 8679.528338 | AR58: 0.0851936429 | AS58: 9159.228105 | AT58: 0.08754758273 | AU58: 9643.404394 | AV58: 0.08962271741 | AW58: 10097.24301 | AX58: 0.09108103023 | AY58: 10383.1438 | AZ58: 0.09149756613 | BA58: 8679.528338 | BB58: 0.0851936429 | BC58: 9238.686689 | BD58: 0.0883070798 | BE58: 9807.343899 | BF58: 0.09114631876 | BG58: 10349.2797 | BH58: 0.0933544985 | BI58: 10721.41602 | BJ58: 0.0944784633 | BK58: 8679.528338 | BL58: 0.0851936429 | BM58: 9278.415981 | BN58: 0.08868682834 | BO58: 9890.594428 | BP58: 0.09192002257 | BQ58: 10479.26333 | BR58: 0.09452700097 | BS58: 10898.59034 | BT58: 0.09603974564 | BU58: 8679.528338 | BV58: 0.0851936429 | BW58: 9318.145273 | BX58: 0.08906657688 | BY58: 9974.69881 | BZ58: 0.0927016618 | CA58: 10611.92693 | CB58: 0.0957236779 | CC58: 11081.27218 | CD58: 0.09764956098
A59: NHS East Surrey CCG | B59: E38000054 | C59: 11116.67142 | D59: 0.07628789058 | E59: 12389.29845 | F59: 0.08108179613 | G59: 13890.14711 | H59: 0.08612442405 | I59: 15325.44687 | J59: 0.09074755369 | K59: 16808.03469 | L59: 0.09559796774 | M59: 11116.67142 | N59: 0.07628789058 | O59: 12286.17436 | P59: 0.08040690024 | Q59: 13654.93044 | R59: 0.08466598737 | S59: 14929.46869 | T59: 0.08840282268 | U59: 16219.28195 | V59: 0.092249357 | W59: 11116.67142 | X59: 0.07628789058 | Y59: 12234.61231 | Z59: 0.08006945229 | AA59: 13539.01838 | AB59: 0.0839472866 | AC59: 14737.15405 | AD59: 0.08726405759 | AE59: 15937.47953 | AF59: 0.09064656771 | AG59: 11116.67142 | AH59: 0.07628789058 | AI59: 12183.05026 | AJ59: 0.07973200434 | AK59: 13424.23717 | AL59: 0.08323559755 | AM59: 14548.57355 | AN59: 0.08614740375 | AO59: 15663.84466 | AP59: 0.08909023241 | AQ59: 11116.67142 | AR59: 0.07628789058 | AS59: 11873.67799 | AT59: 0.07770731666 | AU59: 12759.29775 | AV59: 0.07911270924 | AW59: 13493.45749 | AX59: 0.07989967725 | AY59: 14184.73953 | AZ59: 0.08067762215 | BA59: 11116.67142 | BB59: 0.07628789058 | BC59: 11976.80208 | BD59: 0.07838221255 | BE59: 12976.42082 | BF59: 0.08045895848 | BG59: 13830.86082 | BH59: 0.08189756525 | BI59: 14647.81693 | BJ59: 0.08331143746 | BK59: 11116.67142 | BL59: 0.07628789058 | BM59: 12028.36412 | BN59: 0.0787196605 | BO59: 13086.67864 | BP59: 0.08114260068 | BQ59: 14004.87083 | BR59: 0.08292794189 | BS59: 14890.35954 | BT59: 0.08469093131 | BU59: 11116.67142 | BV59: 0.07628789058 | BW59: 12079.92617 | BX59: 0.07905710845 | BY59: 13198.0673 | BZ59: 0.08183325459 | CA59: 14182.46854 | CB59: 0.08397956267 | CC59: 15140.44167 | CD59: 0.0861133072
A60: NHS Eastbourne, Hailsham and Seaford CCG | B60: E38000055 | C60: 15193.59033 | D60: 0.09713329708 | E60: 16898.05027 | F60: 0.1032761904 | G60: 18979.89465 | H60: 0.110412418 | I60: 21109.70983 | J60: 0.1168218585 | K60: 23230.75123 | L60: 0.122979096 | M60: 15193.59033 | N60: 0.09713329708 | O60: 16756.86331 | P60: 0.1024132949 | Q60: 18657.33515 | R60: 0.1085359811 | S60: 20562.64429 | T60: 0.113794379 | U60: 22414.94767 | V60: 0.11866039 | W60: 15193.59033 | X60: 0.09713329708 | Y60: 16686.26983 | Z60: 0.1019818472 | AA60: 18498.38155 | AB60: 0.1076112946 | AC60: 20296.95107 | AD60: 0.1123240237 | AE60: 22024.46895 | AF60: 0.1165932713 | AG60: 15193.59033 | AH60: 0.09713329708 | AI60: 16615.67635 | AJ60: 0.1015503994 | AK60: 18340.97872 | AL60: 0.1066956295 | AM60: 20036.41678 | AN60: 0.1108822179 | AO60: 21645.30756 | AP60: 0.1145860644 | AQ60: 15193.59033 | AR60: 0.09713329708 | AS60: 16192.11546 | AT60: 0.0989617129 | AU60: 17429.12782 | AV60: 0.1013910868 | AW60: 18578.71617 | AX60: 0.1028152527 | AY60: 19595.78971 | AZ60: 0.103736314 | BA60: 15193.59033 | BB60: 0.09713329708 | BC60: 16333.30243 | BD60: 0.0998246084 | BE60: 17726.87505 | BF60: 0.1031231824 | BG60: 19044.85734 | BH60: 0.105394894 | BI60: 20237.45161 | BJ60: 0.1071331478 | BK60: 15193.59033 | BL60: 0.09713329708 | BM60: 16403.89591 | BN60: 0.1002560562 | BO60: 17878.07482 | BP60: 0.1040027622 | BQ60: 19285.2617 | BR60: 0.1067252999 | BS60: 20573.53009 | BT60: 0.1089122821 | BU60: 15193.59033 | BV60: 0.09713329708 | BW60: 16474.48939 | BX60: 0.1006875039 | BY60: 18030.82535 | BZ60: 0.1048913633 | CA60: 19530.62267 | CB60: 0.108083136 | CC60: 20920.05569 | CD60: 0.1107467215
A61: NHS Eastern Cheshire CCG | B61: E38000056 | C61: 14039.14655 | D61: 0.08615087478 | E61: 15517.90137 | F61: 0.09303298181 | G61: 17013.86571 | H61: 0.09942651772 | I61: 18462.07819 | J61: 0.1054373397 | K61: 19738.57168 | L61: 0.1106174158 | M61: 14039.14655 | N61: 0.08615087478 | O61: 15388.58585 | P61: 0.09225770892 | Q61: 16725.33357 | R61: 0.09774037853 | S61: 17984.30053 | T61: 0.1027087409 | U61: 19045.99593 | V61: 0.106736135 | W61: 14039.14655 | X61: 0.08615087478 | Y61: 15323.92809 | Z61: 0.09187007248 | AA61: 16583.14827 | AB61: 0.09690946859 | AC61: 17752.25834 | AD61: 0.1013835428 | AE61: 18714.49936 | AF61: 0.1048783869 | AG61: 14039.14655 | AH61: 0.08615087478 | AI61: 15259.27033 | AJ61: 0.09148243603 | AK61: 16442.35013 | AL61: 0.09608666509 | AM61: 17524.72168 | AN61: 0.1000840758 | AO61: 18392.61062 | AP61: 0.1030744823 | AQ61: 14039.14655 | AR61: 0.08615087478 | AS61: 14871.32378 | AT61: 0.08915661736 | AU61: 15626.69197 | AV61: 0.0913200793 | AW61: 16251.64424 | AX61: 0.09281350221 | AY61: 16652.67419 | AZ61: 0.09332366169 | BA61: 14039.14655 | BB61: 0.08615087478 | BC61: 15000.63929 | BD61: 0.08993189025 | BE61: 15893.02933 | BF61: 0.09287651547 | BG61: 16658.74691 | BH61: 0.09513847463 | BI61: 17197.41251 | BJ61: 0.09637644314 | BK61: 14039.14655 | BL61: 0.08615087478 | BM61: 15065.29705 | BN61: 0.09031952669 | BO61: 16028.27877 | BP61: 0.09366689322 | BQ61: 16868.70316 | BR61: 0.09633753948 | BS61: 17482.72605 | BT61: 0.09797537578 | BU61: 14039.14655 | BV61: 0.08615087478 | BW61: 15129.95481 | BX61: 0.09070716314 | BY61: 16164.91538 | BZ61: 0.09446537741 | CA61: 17082.98826 | CB61: 0.09756132645 | CC61: 17776.90866 | CD61: 0.09962401178
A62: NHS Enfield CCG | B62: E38000057 | C62: 24055.34658 | D62: 0.09439392003 | E62: 27006.12276 | F62: 0.09924343216 | G62: 30371.80361 | H62: 0.1049329865 | I62: 33999.14357 | J62: 0.1108836461 | K62: 38022.70613 | L62: 0.1176081229 | M62: 24055.34658 | N62: 0.09439392003 | O62: 26780.53024 | P62: 0.09841441364 | Q62: 29856.03198 | R62: 0.1031510226 | S62: 33119.04235 | T62: 0.108013314 | U62: 36689.98078 | V62: 0.1134858669 | W62: 24055.34658 | X62: 0.09439392003 | Y62: 26667.73398 | Z62: 0.09799990438 | AA62: 29601.86567 | AB62: 0.1022728913 | AC62: 32691.60374 | AD62: 0.1066192804 | AE62: 36052.08104 | AF62: 0.1115127777 | AG62: 24055.34658 | AH62: 0.09439392003 | AI62: 26554.93772 | AJ62: 0.09758539512 | AK62: 29350.17903 | AL62: 0.1014033272 | AM62: 32272.46466 | AN62: 0.1052523145 | AO62: 35432.66968 | AP62: 0.109596875 | AQ62: 24055.34658 | AR62: 0.09439392003 | AS62: 25878.16016 | AT62: 0.09509833957 | AU62: 27892.13229 | AV62: 0.0963658523 | AW62: 29927.36336 | AX62: 0.09760408113 | AY62: 32084.50536 | AZ62: 0.09924065996 | BA62: 24055.34658 | BB62: 0.09439392003 | BC62: 26103.75268 | BD62: 0.09592735809 | BE62: 28368.22918 | BF62: 0.09801074207 | BG62: 30677.2761 | BH62: 0.100049821 | BI62: 33132.74677 | BJ62: 0.102482978 | BK62: 24055.34658 | BL62: 0.09439392003 | BM62: 26216.54894 | BN62: 0.09634186735 | BO62: 28609.99714 | BP62: 0.09884603765 | BQ62: 31064.03081 | BR62: 0.1013111696 | BS62: 33681.77638 | BT62: 0.1041811827 | BU62: 24055.34658 | BV62: 0.09439392003 | BW62: 26329.3452 | BX62: 0.0967563766 | BY62: 28854.24476 | BZ62: 0.09968990037 | CA62: 31458.75956 | CB62: 0.1025985244 | CC62: 34247.87276 | CD62: 0.1059321768
A63: NHS Erewash CCG | B63: E38000058 | C63: 6585.785596 | D63: 0.08355475255 | E63: 7202.088019 | F63: 0.0892230924 | G63: 7886.515013 | H63: 0.09515582786 | I63: 8519.14598 | J63: 0.09968577088 | K63: 9105.517219 | L63: 0.1042298216 | M63: 6585.785596 | N63: 0.08355475255 | O63: 7142.126455 | P63: 0.08848025836 | Q63: 7752.918755 | R63: 0.0935439039 | S63: 8298.85019 | T63: 0.09710800597 | U63: 8786.240265 | V63: 0.1005750946 | W63: 6585.785596 | X63: 0.08355475255 | Y63: 7112.145673 | Z63: 0.08810884134 | AA63: 7687.084061 | AB63: 0.09274956637 | AC63: 8191.859173 | AD63: 0.09585606335 | AE63: 8633.420567 | AF63: 0.09882578488 | AG63: 6585.785596 | AH63: 0.08355475255 | AI63: 7082.164891 | AJ63: 0.08773742432 | AK63: 7621.891656 | AL63: 0.09196297848 | AM63: 8086.945587 | AN63: 0.09462842952 | AO63: 8485.030076 | AP63: 0.09712717578 | AQ63: 6585.785596 | AR63: 0.08355475255 | AS63: 6902.280199 | AT63: 0.08550892219 | AU63: 7244.225311 | AV63: 0.08740619343 | AW63: 7499.949536 | AX63: 0.08775976522 | AY63: 7682.920548 | AZ63: 0.08794551909 | BA63: 6585.785596 | BB63: 0.08355475255 | BC63: 6962.241763 | BD63: 0.08625175623 | BE63: 7367.544934 | BF63: 0.08889412324 | BG63: 7687.658195 | BH63: 0.08995621572 | BI63: 7934.044549 | BJ63: 0.09082010702 | BK63: 6585.785596 | BL63: 0.08355475255 | BM63: 6992.222545 | BN63: 0.08662317325 | BO63: 7430.16818 | BP63: 0.0896497126 | BQ63: 7784.465733 | BR63: 0.09108899758 | BS63: 8065.5739 | BT63: 0.09232570856 | BU63: 6585.785596 | BV63: 0.08355475255 | BW63: 7022.203327 | BX63: 0.08699459027 | BY63: 7493.433716 | BZ63: 0.09041305159 | CA63: 7883.269233 | CB63: 0.09224513496 | CC63: 8201.191885 | CD63: 0.09387811224
A64: NHS Fareham and Gosport CCG | B64: E38000059 | C64: 13324.1856 | D64: 0.08125494329 | E64: 14680.68014 | F64: 0.08711535808 | G64: 16219.61612 | H64: 0.09339868776 | I64: 17654.89955 | J64: 0.0987631436 | K64: 19051.84936 | L64: 0.1040516076 | M64: 13324.1856 | N64: 0.08125494329 | O64: 14558.3983 | P64: 0.08638973592 | Q64: 15944.69712 | R64: 0.09181560014 | S64: 17198.23472 | T64: 0.09620851824 | U64: 18383.91243 | V64: 0.1004036725 | W64: 13324.1856 | X64: 0.08125494329 | Y64: 14497.25737 | Z64: 0.08602692483 | AA64: 15809.22021 | AB64: 0.09103547283 | AC64: 16976.4464 | AD64: 0.09496781381 | AE64: 18064.20905 | AF64: 0.09865761361 | AG64: 13324.1856 | AH64: 0.08125494329 | AI64: 14436.11645 | AJ64: 0.08566411375 | AK64: 15675.06503 | AL64: 0.09026295652 | AM64: 16758.9645 | AN64: 0.09375119996 | AO64: 17753.77171 | AP64: 0.09696216118 | AQ64: 13324.1856 | AR64: 0.08125494329 | AS64: 14069.27091 | AT64: 0.08348724726 | AU64: 14897.89018 | AV64: 0.08578768961 | AW64: 15542.14392 | AX64: 0.08694419291 | AY64: 16075.73461 | AZ64: 0.0877975675 | BA64: 13324.1856 | BB64: 0.08125494329 | BC64: 14191.55276 | BD64: 0.08421286943 | BE64: 15151.66156 | BF64: 0.08724900125 | BG64: 15931.25687 | BH64: 0.08912092675 | BI64: 16601.09353 | BJ64: 0.09066681335 | BK64: 13324.1856 | BL64: 0.08125494329 | BM64: 14252.69368 | BN64: 0.08457568051 | BO64: 15280.52984 | BP64: 0.08799107357 | BQ64: 16131.93523 | BR64: 0.09024354008 | BS64: 16876.25686 | BT64: 0.09216961691 | BU64: 13324.1856 | BV64: 0.08125494329 | BW64: 14313.8346 | BX64: 0.08493849159 | BY64: 15410.71984 | BZ64: 0.08874075689 | CA64: 16336.75114 | CB64: 0.09138929928 | CC64: 17159.97373 | CD64: 0.09371913563
A65: NHS Fylde & Wyre CCG | B65: E38000060 | C65: 13627.79563 | D65: 0.09666474417 | E65: 14737.66366 | F65: 0.1027731078 | G65: 15977.01262 | H65: 0.1091773447 | I65: 17153.17559 | J65: 0.115013917 | K65: 18307.94119 | L65: 0.1204945451 | M65: 13627.79563 | N65: 0.09666474417 | O65: 14614.7867 | P65: 0.1019162253 | Q65: 15705.99113 | R65: 0.107325346 | S65: 16709.51421 | T65: 0.112039119 | U65: 17666.22867 | V65: 0.1162710851 | W65: 13627.79563 | X65: 0.09666474417 | Y65: 14553.34822 | Z65: 0.101487784 | AA65: 15572.43486 | AB65: 0.1064127024 | AC65: 16494.04127 | AD65: 0.1105943494 | AE65: 17359.07742 | AF65: 0.1142495552 | AG65: 13627.79563 | AH65: 0.09666474417 | AI65: 14491.90974 | AJ65: 0.1010593427 | AK65: 15440.18158 | AL65: 0.1055089626 | AM65: 16282.75213 | AN65: 0.1091776326 | AO65: 17060.82841 | AP65: 0.1122866158 | AQ65: 13627.79563 | AR65: 0.09666474417 | AS65: 14123.27887 | AT65: 0.09848869504 | AU65: 14674.02467 | AV65: 0.1002735046 | AW65: 15100.5803 | AX65: 0.1012510413 | AY65: 15448.67407 | AZ65: 0.1016761489 | BA65: 13627.79563 | BB65: 0.09666474417 | BC65: 14246.15583 | BD65: 0.09934557759 | BE65: 14924.19835 | BF65: 0.1019830419 | BG65: 15478.61332 | BH65: 0.103785794 | BI65: 15953.40645 | BJ65: 0.104998068 | BK65: 13627.79563 | BL65: 0.09666474417 | BM65: 14307.59431 | BN65: 0.09977401887 | BO65: 15051.23968 | BP65: 0.1028511663 | BQ65: 15673.5774 | BR65: 0.1050930495 | BS65: 16217.76637 | BT65: 0.1067379648 | BU65: 13627.79563 | BV65: 0.09666474417 | BW65: 14369.03279 | BX65: 0.1002024602 | BY65: 15179.58399 | BZ65: 0.1037281946 | CA65: 15872.56122 | CB65: 0.1064272577 | CC65: 16490.34401 | CD65: 0.1085319469
A66: NHS Gloucestershire CCG | B66: E38000062 | C66: 42305.3378 | D66: 0.08365698595 | E66: 46879.29283 | F66: 0.08950187641 | G66: 51888.28838 | H66: 0.09549171552 | I66: 56745.2218 | J66: 0.1008015451 | K66: 61431.18792 | L66: 0.1058027418 | M66: 42305.3378 | N66: 0.08365698595 | O66: 46488.9648 | P66: 0.08875666271 | Q66: 51008.83325 | R66: 0.09387322545 | S66: 55277.55066 | T66: 0.09819439134 | U66: 59277.03389 | V66: 0.1020926491 | W66: 42305.3378 | X66: 0.08365698595 | Y66: 46293.80078 | Z66: 0.08838405586 | AA66: 50575.4479 | AB66: 0.09307565222 | AC66: 54564.74708 | AD66: 0.09692817544 | AE66: 58245.96302 | AF66: 0.1003168389 | AG66: 42305.3378 | AH66: 0.08365698595 | AI66: 46098.63677 | AJ66: 0.08801144902 | AK66: 50146.29071 | AL66: 0.09228586019 | AM66: 53865.78391 | AN66: 0.09568654547 | AO66: 57244.7759 | AP66: 0.09859249751 | AQ66: 42305.3378 | AR66: 0.08365698595 | AS66: 44927.65268 | AT66: 0.08577580793 | AU66: 47660.1387 | AV66: 0.08771051327 | AW66: 49955.05477 | AX66: 0.08873957219 | AY66: 51832.96196 | AZ66: 0.08927174738 | BA66: 42305.3378 | BB66: 0.08365698595 | BC66: 45317.98071 | BD66: 0.08652102162 | BE66: 48471.94344 | BF66: 0.0892045041 | BG66: 51205.62149 | BH66: 0.09096106421 | BI66: 53527.28964 | BJ66: 0.09218988261 | BK66: 42305.3378 | BL66: 0.08365698595 | BM66: 45513.14472 | BN66: 0.08689362847 | BO66: 48884.18803 | BP66: 0.08996317132 | BQ66: 51850.57993 | BR66: 0.09210676081 | BS66: 54414.71504 | BT66: 0.09371829259 | BU66: 42305.3378 | BV66: 0.08365698595 | BW66: 45708.30874 | BX66: 0.08726623532 | BY66: 49300.66078 | BZ66: 0.09072961974 | CA66: 52508.83602 | CB66: 0.0932760792 | CC66: 55329.72637 | CD66: 0.09529421372
A67: NHS Great Yarmouth and Waveney CCG | B67: E38000063 | C67: 17650.63141 | D67: 0.09939537904 | E67: 19120.8785 | F67: 0.1059798165 | G67: 20756.37419 | H67: 0.1126105371 | I67: 22304.73067 | J67: 0.1182271317 | K67: 23805.11423 | L67: 0.1235345834 | M67: 17650.63141 | N67: 0.09939537904 | O67: 18961.72171 | P67: 0.1050976705 | Q67: 20404.66999 | R67: 0.1107024196 | S67: 21728.28336 | T67: 0.1151716493 | U67: 22971.30093 | V67: 0.1192075814 | W67: 17650.63141 | X67: 0.09939537904 | Y67: 18882.14331 | Z67: 0.1046565975 | AA67: 20231.35421 | AB67: 0.1097621214 | AC67: 21448.3203 | AD67: 0.1136876937 | AE67: 22572.20198 | AF67: 0.1171364919 | AG67: 17650.63141 | AH67: 0.09939537904 | AI67: 18802.56492 | AJ67: 0.1042155244 | AK67: 20059.72932 | AL67: 0.1088309968 | AM67: 21173.79325 | AN67: 0.1122325519 | AO67: 22184.67021 | AP67: 0.1151254292 | AQ67: 17650.63141 | AR67: 0.09939537904 | AS67: 18325.09454 | AT67: 0.1015690863 | AU67: 19065.48859 | AV67: 0.1034368956 | AW67: 19637.80251 | AX67: 0.1040909706 | AY67: 20089.90708 | AZ67: 0.1042548369 | BA67: 17650.63141 | BB67: 0.09939537904 | BC67: 18484.25133 | BD67: 0.1024512323 | BE67: 19390.13863 | BF67: 0.1051982347 | BG67: 20128.97917 | BH67: 0.1066944725 | BI67: 20745.73434 | BJ67: 0.1076581959 | BK67: 17650.63141 | BL67: 0.09939537904 | BM67: 18563.82973 | BN67: 0.1028923053 | BO67: 19554.99997 | BP67: 0.1060926648 | BQ67: 20382.29516 | BR67: 0.1080371841 | BS67: 21089.23211 | BT67: 0.1094407479 | BU67: 17650.63141 | BV67: 0.09939537904 | BW67: 18643.40813 | BX67: 0.1033333784 | BY67: 19721.55221 | BZ67: 0.1069962685 | CA67: 20640.83397 | CB67: 0.1094075796 | CC67: 21443.40763 | CD67: 0.1112787111
A68: NHS Greater Huddersfield CCG | B68: E38000064 | C68: 17522.46706 | D68: 0.08912750283 | E68: 19210.05899 | F68: 0.09444473447 | G68: 21071.71629 | H68: 0.1002937472 | I68: 22772.03676 | J68: 0.1051146453 | K68: 24482.45304 | L68: 0.1100532817 | M68: 17522.46706 | N68: 0.08912750283 | O68: 19050.26386 | P68: 0.09365911435 | Q68: 20715.13591 | R68: 0.0985965536 | S68: 22184.32843 | T68: 0.1024018114 | U68: 23626.34977 | V68: 0.1062049347 | W68: 17522.46706 | X68: 0.08912750283 | Y68: 18970.36629 | Z68: 0.09326630429 | AA68: 20539.41722 | AB68: 0.09776019617 | AC68: 21898.89623 | AD68: 0.1010842699 | AE68: 23216.58189 | AF68: 0.1043629501 | AG68: 17522.46706 | AH68: 0.08912750283 | AI68: 18890.46873 | AJ68: 0.09287349422 | AK68: 20365.41285 | AL68: 0.09693199832 | AM68: 21619.00622 | AN68: 0.09979231085 | AO68: 22818.69039 | AP68: 0.1025743522 | AQ68: 17522.46706 | AR68: 0.08912750283 | AS68: 18411.08333 | AT68: 0.09051663386 | AU68: 19357.38755 | AV68: 0.09213416252 | AW68: 20053.00957 | AX68: 0.09256374431 | AY68: 20667.92888 | AZ68: 0.09290627024 | BA68: 17522.46706 | BB68: 0.08912750283 | BC68: 18570.87846 | BD68: 0.09130225398 | BE68: 19686.53866 | BF68: 0.09370080278 | BG68: 20553.78148 | BH68: 0.09487528377 | BI68: 21341.28809 | BJ68: 0.09593314793 | BK68: 17522.46706 | BL68: 0.08912750283 | BM68: 18650.77603 | BN68: 0.09169506404 | BO68: 19853.68572 | BP68: 0.09449636229 | BQ68: 20812.04604 | BR68: 0.09606742081 | BS68: 21693.96843 | BT68: 0.09751851314 | BU68: 17522.46706 | BV68: 0.08912750283 | BW68: 18730.67359 | BX68: 0.0920878741 | BY68: 20022.5471 | BZ68: 0.09530008138 | CA68: 21075.63547 | CB68: 0.09728413713 | CC68: 22057.61197 | CD68: 0.09915315997
A69: NHS Greater Preston CCG | B69: E38000065 | C69: 13926.61041 | D69: 0.08485626623 | E69: 14929.51254 | F69: 0.09032860925 | G69: 16017.27433 | H69: 0.09576273067 | I69: 16983.81593 | J69: 0.100270492 | K69: 17960.50184 | L69: 0.104823753 | M69: 13926.61041 | N69: 0.08485626623 | O69: 14805.52707 | P69: 0.08957845518 | Q69: 15746.58217 | R69: 0.09414433918 | S69: 16545.97938 | T69: 0.09768555542 | U69: 17332.95836 | V69: 0.1011611904 | W69: 13926.61041 | X69: 0.08485626623 | Y69: 14743.53434 | Z69: 0.08920337814 | AA69: 15613.1882 | AB69: 0.09334681452 | AC69: 16333.33538 | AD69: 0.09643012974 | AE69: 17032.58903 | AF69: 0.09940813022 | AG69: 13926.61041 | AH69: 0.08485626623 | AI69: 14681.54161 | AJ69: 0.08882830111 | AK69: 15481.09563 | AL69: 0.0925570706 | AM69: 16124.82025 | AN69: 0.09519908049 | AO69: 16740.92537 | AP69: 0.09770587938 | AQ69: 13926.61041 | AR69: 0.08485626623 | AS69: 14309.58521 | AT69: 0.0865778389 | AU69: 14715.86971 | AV69: 0.08798200234 | AW69: 14958.16914 | AX69: 0.08831130677 | AY69: 15164.36748 | AZ69: 0.08850453765 | BA69: 13926.61041 | BB69: 0.08485626623 | BC69: 14433.57068 | BD69: 0.08732799297 | BE69: 14965.7394 | BF69: 0.08947590218 | BG69: 15331.23897 | BH69: 0.09051386805 | BI69: 15657.95534 | BJ69: 0.09138528856 | BK69: 13926.61041 | BL69: 0.08485626623 | BM69: 14495.56341 | BN69: 0.08770307 | BO69: 15092.62635 | BP69: 0.09023452319 | BQ69: 15523.64337 | BR69: 0.09164980144 | BS69: 15916.47818 | BT69: 0.09289411804 | BU69: 13926.61041 | BV69: 0.08485626623 | BW69: 14557.55614 | BX69: 0.08807814704 | BY69: 15220.8147 | BZ69: 0.09100092493 | CA69: 15720.01473 | CB69: 0.09280915533 | CC69: 16183.0373 | CD69: 0.09444985
A70: NHS Greenwich CCG | B70: E38000066 | C70: 17595.54936 | D70: 0.08219146749 | E70: 19931.6509 | F70: 0.08656901885 | G70: 22641.91878 | H70: 0.09231049731 | I70: 25496.31007 | J70: 0.09803256716 | K70: 28416.6919 | L70: 0.1037938925 | M70: 17595.54936 | N70: 0.08219146749 | O70: 19765.78643 | P70: 0.0858486207 | Q70: 22259.02343 | R70: 0.0907494432 | S70: 24838.84079 | T70: 0.095504617 | U70: 27423.74984 | V70: 0.1001671044 | W70: 17595.54936 | X70: 0.08219146749 | Y70: 19682.85419 | Z70: 0.08548842162 | AA70: 22070.33702 | AB70: 0.08998017375 | AC70: 24519.5278 | AD70: 0.09427686791 | AE70: 26948.48502 | AF70: 0.09843116743 | AG70: 17595.54936 | AH70: 0.08219146749 | AI70: 19599.92196 | AJ70: 0.08512822255 | AK70: 21883.49145 | AL70: 0.08921840937 | AM70: 24206.41487 | AN70: 0.09307295784 | AO70: 26486.9949 | AP70: 0.0967455435 | AQ70: 17595.54936 | AR70: 0.08219146749 | AS70: 19102.32855 | AT70: 0.08296702809 | AU70: 20801.07574 | AV70: 0.08480542949 | AW70: 22454.53451 | AX70: 0.08633702901 | AY70: 23992.45756 | AZ70: 0.08763407684 | BA70: 17595.54936 | BB70: 0.08219146749 | BC70: 19268.19302 | BD70: 0.08368742624 | BE70: 21154.51761 | BF70: 0.08624640251 | BG70: 23014.74801 | BH70: 0.08849103357 | BI70: 24773.44591 | BJ70: 0.09048668972 | BK70: 17595.54936 | BL70: 0.08219146749 | BM70: 19351.12525 | BN70: 0.08404762532 | BO70: 21333.9998 | BP70: 0.08697814662 | BQ70: 23303.66857 | BR70: 0.08960192467 | BS70: 25182.49837 | BT70: 0.09198078155 | BU70: 17595.54936 | BV70: 0.08219146749 | BW70: 19434.05749 | BX70: 0.0844078244 | BY70: 21515.32284 | BZ70: 0.0877173958 | CA70: 23598.54604 | CB70: 0.09073571994 | CC70: 25604.26637 | CD70: 0.09352131773
A71: NHS Guildford and Waverley CCG | B71: E38000067 | C71: 12272.11592 | D71: 0.07117571004 | E71: 13361.62074 | F71: 0.07479635437 | G71: 14629.79999 | H71: 0.0791912958 | I71: 15879.05641 | J71: 0.08298001889 | K71: 17147.80084 | L71: 0.08693875909 | M71: 12272.11592 | N71: 0.07117571004 | O71: 13250.35294 | P71: 0.07417349384 | Q71: 14381.94215 | R71: 0.07784963813 | S71: 15468.35848 | T71: 0.08083381313 | U71: 16546.97892 | V71: 0.08389261264 | W71: 12272.11592 | X71: 0.07117571004 | Y71: 13194.71904 | Z71: 0.07386206358 | AA71: 14259.80066 | AB71: 0.0771884847 | AC71: 15268.89489 | AD71: 0.07979146577 | AE71: 16259.39967 | AF71: 0.08243459578 | AG71: 12272.11592 | AH71: 0.07117571004 | AI71: 13139.08514 | AJ71: 0.07355063332 | AK71: 14138.85081 | AL71: 0.07653378156 | AM71: 15073.30425 | AN71: 0.07876935752 | AO71: 15980.1554 | AP71: 0.08101883694 | AQ71: 12272.11592 | AR71: 0.07117571004 | AS71: 12805.28172 | AT71: 0.07168205174 | AU71: 13438.17576 | AV71: 0.07274101851 | AW71: 13978.9662 | AX71: 0.07305061771 | AY71: 14470.72922 | AZ71: 0.07336609825 | BA71: 12272.11592 | BB71: 0.07117571004 | BC71: 12916.54953 | BD71: 0.07230491226 | BE71: 13666.96761 | BF71: 0.07397947175 | BG71: 14328.91188 | BH71: 0.07487934719 | BI71: 14943.29952 | BJ71: 0.07576201339 | BK71: 12272.11592 | BL71: 0.07117571004 | BM71: 12972.18343 | BN71: 0.07261634253 | BO71: 13783.15097 | BP71: 0.07460837379 | BQ71: 14509.39039 | BR71: 0.07582248322 | BS71: 15190.81415 | BT71: 0.07701690404 | BU71: 12272.11592 | BV71: 0.07117571004 | BW71: 13027.81733 | BX71: 0.07292777279 | BY71: 13900.52596 | BZ71: 0.0752437261 | CA71: 14693.58997 | CB71: 0.07678506467 | CC71: 15446.02286 | CD71: 0.0783108034
A72: NHS Halton CCG | B72: E38000068 | C72: 8529.518974 | D72: 0.08433378459 | E72: 9331.424383 | F72: 0.09102052656 | G72: 10201.05201 | H72: 0.09778615809 | I72: 10981.79897 | J72: 0.1038566197 | K72: 11649.46754 | L72: 0.1089753745 | M72: 8529.518974 | N72: 0.08433378459 | O72: 9253.719675 | P72: 0.09026257974 | Q72: 10028.26077 | R72: 0.09612980035 | S72: 10697.81046 | T72: 0.1011708952 | U72: 11240.91137 | V72: 0.1051535208 | W72: 8529.518974 | X72: 0.08433378459 | Y72: 9214.867321 | Z72: 0.08988360633 | AA72: 9943.111243 | AB72: 0.09531356636 | AC72: 10559.88581 | AD72: 0.09986651988 | AE72: 11045.3588 | AF72: 0.103324217 | AG72: 8529.518974 | AH72: 0.08433378459 | AI72: 9176.014968 | AJ72: 0.08950463293 | AK72: 9858.792441 | AL72: 0.09450529564 | AM72: 10424.63923 | AN72: 0.09858747143 | AO72: 10855.47396 | AP72: 0.1015479323 | AQ72: 8529.518974 | AR72: 0.08433378459 | AS72: 8942.900845 | AT72: 0.08723079248 | AU72: 9370.324898 | AV72: 0.08982289971 | AW72: 9667.928752 | AX72: 0.09143114008 | AY72: 9829.071056 | AZ72: 0.09194640838 | BA72: 8529.518974 | BB72: 0.08433378459 | BC72: 9020.605553 | BD72: 0.0879887393 | BE72: 9529.824503 | BF72: 0.09135184532 | BG72: 9909.908419 | BH72: 0.09371958029 | BI72: 10150.4167 | BJ72: 0.09495244811 | BK72: 8529.518974 | BL72: 0.08433378459 | BM72: 9059.457906 | BN72: 0.0883677127 | BO72: 9610.820397 | BP72: 0.09212826301 | BQ72: 10034.7053 | BR72: 0.09489980428 | BS72: 10318.72552 | BT72: 0.09652689919 | BU72: 8529.518974 | BV72: 0.08433378459 | BW72: 9098.31026 | BX72: 0.08874668611 | BY72: 9692.647018 | BZ72: 0.09291264396 | CA72: 10162.07523 | CB72: 0.09610436193 | CC72: 10492.26628 | CD72: 0.09815029261
A73: NHS Hambleton, Richmondshire and Whitby CCG | B73: E38000069 | C73: 11204.37487 | D73: 0.08805701722 | E73: 12104.66656 | F73: 0.09467125418 | G73: 13090.30816 | H73: 0.1016328273 | I73: 14006.34047 | J73: 0.1077410805 | K73: 14685.94652 | L73: 0.1124326024 | M73: 11204.37487 | N73: 0.08805701722 | O73: 12004.00014 | P73: 0.09388393662 | Q73: 12868.67032 | R73: 0.09991203665 | S73: 13644.5651 | T73: 0.1049581931 | U73: 14171.53345 | V73: 0.1084943611 | W73: 11204.37487 | X73: 0.08805701722 | Y73: 11953.66692 | Z73: 0.09349027784 | AA73: 12759.44975 | AB73: 0.09906405085 | AC73: 13468.86172 | AD73: 0.1036066286 | AE73: 13925.3132 | AF73: 0.1066093493 | AG73: 11204.37487 | AH73: 0.08805701722 | AI73: 11903.33371 | AJ73: 0.09309661906 | AK73: 12651.29475 | AL73: 0.09822433809 | AM73: 13296.56995 | AN73: 0.1022813073 | AO73: 13686.22921 | AP73: 0.1047789711 | AQ73: 11204.37487 | AR73: 0.08805701722 | AS73: 11601.33444 | AT73: 0.09073466638 | AU73: 12024.74162 | AV73: 0.09335979521 | AW73: 12332.59006 | AX73: 0.0948660774 | AY73: 12393.8853 | AZ73: 0.09488505052 | BA73: 11204.37487 | BB73: 0.08805701722 | BC73: 11702.00087 | BD73: 0.09152198394 | BE73: 12229.3304 | BF73: 0.09494821737 | BG73: 12640.85001 | BH73: 0.09723730778 | BI73: 12798.49161 | BJ73: 0.09798263364 | BK73: 11204.37487 | BL73: 0.08805701722 | BM73: 11752.33408 | BN73: 0.09191564272 | BO73: 12333.22314 | BP73: 0.09575483801 | BQ73: 12799.82982 | BR73: 0.09846022939 | BS73: 13010.40924 | BT73: 0.09960503171 | BU73: 11204.37487 | BV73: 0.08805701722 | BW73: 11802.66729 | BX73: 0.0923093015 | BY73: 12438.18144 | BZ73: 0.09656973167 | CA73: 12962.08745 | CB73: 0.099708365 | CC73: 13228.91441 | CD73: 0.1012778626
A74: NHS Hammersmith and Fulham CCG | B74: E38000070 | C74: 11266.91369 | D74: 0.07550538596 | E74: 12574.97233 | F74: 0.08129669205 | G74: 13853.77288 | H74: 0.08727335818 | I74: 15146.18357 | J74: 0.0927961253 | K74: 16494.99379 | L74: 0.09773073698 | M74: 11266.91369 | N74: 0.07550538596 | O74: 12469.94276 | P74: 0.08061768013 | Q74: 13618.21409 | R74: 0.0857894298 | S74: 14753.54783 | T74: 0.09039056386 | U74: 15915.67627 | V74: 0.0942983545 | W74: 11266.91369 | X74: 0.07550538596 | Y74: 12417.42798 | Z74: 0.08027817417 | AA74: 13502.13343 | AB74: 0.08505816702 | AC74: 14562.8565 | AD74: 0.08922225527 | AE74: 15638.38997 | AF74: 0.09265546845 | AG74: 11266.91369 | AH74: 0.07550538596 | AI74: 12364.9132 | AJ74: 0.0799386682 | AK74: 13387.18527 | AL74: 0.08433403851 | AM74: 14375.8678 | AN74: 0.08807663156 | AO74: 15369.14031 | AP74: 0.09106019853 | AQ74: 11266.91369 | AR74: 0.07550538596 | AS74: 12049.8245 | AT74: 0.07790163243 | AU74: 12721.27869 | AV74: 0.08013908713 | AW74: 13329.65794 | AX74: 0.08166681743 | AY74: 13913.73899 | AZ74: 0.08243713114 | BA74: 11266.91369 | BB74: 0.07550538596 | BC74: 12154.85407 | BD74: 0.07858064435 | BE74: 12938.71758 | BF74: 0.08150886717 | BG74: 13664.21326 | BH74: 0.08371653755 | BI74: 14369.39522 | BJ74: 0.08513683624 | BK74: 11266.91369 | BL74: 0.07550538596 | BM74: 12207.36885 | BN74: 0.07892015031 | BO74: 13049.13576 | BP74: 0.0822044586 | BQ74: 13836.75446 | BR74: 0.08477364573 | BS74: 14608.05089 | BT74: 0.08655084071 | BU74: 11266.91369 | BV74: 0.07550538596 | BW74: 12259.88363 | BX74: 0.07925965628 | BY74: 13160.68644 | BZ74: 0.0829071843 | CA74: 14012.85308 | CB74: 0.08585254919 | CC74: 14854.12526 | CD74: 0.08800879998
A75: NHS Hardwick CCG | B75: E38000071 | C75: 8264.498131 | D75: 0.09073889033 | E75: 8972.418309 | F75: 0.09668554213 | G75: 9725.328366 | H75: 0.1026094995 | I75: 10436.27189 | J75: 0.108192742 | K75: 11048.9495 | L75: 0.1129980518 | M75: 8264.498131 | N75: 0.09073889033 | O75: 8897.832054 | P75: 0.09588181092 | Q75: 9560.711452 | R75: 0.1008726678 | S75: 10166.76907 | T75: 0.1053988085 | U75: 10662.04792 | V75: 0.1090411937 | W75: 8264.498131 | X75: 0.09073889033 | Y75: 8860.538926 | Z75: 0.09547994532 | AA75: 9479.590137 | AB75: 0.1000167771 | AC75: 10035.87968 | AD75: 0.1040418794 | AE75: 10476.86017 | AF75: 0.1071472711 | AG75: 8264.498131 | AH75: 0.09073889033 | AI75: 8823.245798 | AJ75: 0.09507807972 | AK75: 9399.260248 | AL75: 0.09916923664 | AM75: 9907.531758 | AN75: 0.1027112975 | AO75: 10297.03975 | AP75: 0.1053082404 | AQ75: 8264.498131 | AR75: 0.09073889033 | AS75: 8599.487031 | AT75: 0.09266688611 | AU75: 8933.900896 | AV75: 0.09425934686 | AW75: 9189.41957 | AX75: 0.09526663456 | AY75: 9325.03899 | AZ75: 0.0953675495 | BA75: 8264.498131 | BB75: 0.09073889033 | BC75: 8674.073287 | BD75: 0.09347061731 | BE75: 9085.85497 | BF75: 0.09586257618 | BG75: 9419.056338 | BH75: 0.09764727698 | BI75: 9629.352443 | BJ75: 0.09847977545 | BK75: 8264.498131 | BL75: 0.09073889033 | BM75: 8711.366414 | BN75: 0.09387248291 | BO75: 9163.019148 | BP75: 0.09667671606 | BQ75: 9537.487583 | BR75: 0.09887505269 | BS75: 9788.740437 | BT75: 0.1001098429 | BU75: 8264.498131 | BV75: 0.09073889033 | BW75: 8748.659542 | BX75: 0.09427434852 | BY75: 9240.974754 | BZ75: 0.0974992061 | CA75: 9658.360624 | CB75: 0.1001281425 | CC75: 9953.083062 | CD75: 0.1017905815
A76: NHS Haringey CCG | B76: E38000072 | C76: 19742.71187 | D76: 0.09034739095 | E76: 22419.33893 | F76: 0.09598141504 | G76: 25528.23975 | H76: 0.1035376369 | I76: 28735.17418 | J76: 0.1112042345 | K76: 32082.84988 | L76: 0.1187110556 | M76: 19742.71187 | N76: 0.09034739095 | O76: 22232.49722 | P76: 0.09518151049 | Q76: 25095.78188 | R76: 0.1017836708 | S76: 27993.45776 | T76: 0.1083338148 | U76: 30961.78208 | V76: 0.1145629471 | W76: 19742.71187 | X76: 0.09034739095 | Y76: 22139.07637 | Z76: 0.09478155822 | AA76: 24882.67163 | AB76: 0.1009193366 | AC76: 27633.22847 | AD76: 0.1069397387 | AE76: 30425.19076 | AF76: 0.1125774837 | AG76: 19742.71187 | AH76: 0.09034739095 | AI76: 22045.65552 | AJ76: 0.09438160594 | AK76: 24671.64051 | AL76: 0.1000634349 | AM76: 27279.99371 | AN76: 0.1055727311 | AO76: 29904.15158 | AP76: 0.1106495655 | AQ76: 19742.71187 | AR76: 0.09034739095 | AS76: 21485.1304 | AT76: 0.09198189229 | AU76: 23449.11537 | AV76: 0.09510510778 | AW76: 25303.62995 | AX76: 0.09792426452 | AY76: 27087.72791 | AZ76: 0.100228402 | BA76: 19742.71187 | BB76: 0.09034739095 | BC76: 21671.97211 | BD76: 0.09278179684 | BE76: 23848.30725 | BF76: 0.09672415337 | BG76: 25935.6284 | BH76: 0.1003700789 | BI76: 27969.49225 | BJ76: 0.103491054 | BK76: 19742.71187 | BL76: 0.09034739095 | BM76: 21765.39296 | BN76: 0.09318174912 | BO76: 24051.02188 | BP76: 0.09754632496 | BQ76: 26261.57081 | BR76: 0.101631466 | BS76: 28431.32741 | BT76: 0.105199909 | BU76: 19742.71187 | BV76: 0.09034739095 | BW76: 21858.81381 | BX76: 0.09358170139 | BY76: 24255.81563 | BZ76: 0.09837692907 | CA76: 26594.23345 | CB76: 0.1029188601 | CC76: 28907.51886 | CD76: 0.1069618843
A77: NHS Harrogate and Rural District CCG | B77: E38000073 | C77: 10663.71429 | D77: 0.08289578892 | E77: 11674.28664 | F77: 0.08980220494 | G77: 12857.77171 | H77: 0.09711307941 | I77: 13864.74636 | J77: 0.1035146062 | K77: 14747.19766 | L77: 0.1090930438 | M77: 10663.71429 | N77: 0.08289578892 | O77: 11576.82441 | P77: 0.08905249546 | Q77: 12639.32661 | R77: 0.09546319195 | S77: 13505.35309 | T77: 0.1008313655 | U77: 14228.87085 | V77: 0.1052586984 | W77: 10663.71429 | X77: 0.08289578892 | Y77: 11528.09329 | Z77: 0.08867764073 | AA77: 12531.67939 | AB77: 0.09465014645 | AC77: 13330.80663 | AD77: 0.09952819641 | AE77: 13980.77732 | AF77: 0.1034234156 | AG77: 10663.71429 | AH77: 0.08289578892 | AI77: 11479.36218 | AJ77: 0.08830278599 | AK77: 12425.08238 | AL77: 0.09384503309 | AM77: 13159.64931 | AN77: 0.09825033081 | AO77: 13739.87433 | AP77: 0.1016413251 | AQ77: 10663.71429 | AR77: 0.08289578892 | AS77: 11186.97548 | AT77: 0.08605365757 | AU77: 11807.55489 | AV77: 0.08918092815 | AW77: 12202.01672 | AX77: 0.09110061758 | AY77: 12437.69806 | AZ77: 0.09200841881 | BA77: 10663.71429 | BB77: 0.08289578892 | BC77: 11284.43772 | BD77: 0.08680336704 | BE77: 12009.19652 | BF77: 0.09070390119 | BG77: 12508.24694 | BH77: 0.09338694146 | BI77: 12845.38267 | BJ77: 0.09502428373 | BK77: 10663.71429 | BL77: 0.08289578892 | BM77: 11333.16883 | BN77: 0.08717822178 | BO77: 12111.59266 | BP77: 0.09147728594 | BQ77: 12666.17995 | BR77: 0.09456607399 | BS77: 13058.91262 | BT77: 0.09660388086 | BU77: 10663.71429 | BV77: 0.08289578892 | BW77: 11381.89995 | BX77: 0.08755307652 | BY77: 12215.03902 | BZ77: 0.09225860284 | CA77: 12827.3692 | CB77: 0.09576951767 | CC77: 13279.08021 | CD77: 0.09823258032
A78: NHS Harrow CCG | B78: E38000074 | C78: 21408.15936 | D78: 0.1080238135 | E78: 23740.42608 | F78: 0.1143455644 | G78: 26287.5124 | H78: 0.1209065974 | I78: 28996.31107 | J78: 0.1274227064 | K78: 31813.50598 | L78: 0.1339854531 | M78: 21408.15936 | N78: 0.1080238135 | O78: 23542.40223 | P78: 0.1133917842 | Q78: 25841.57832 | R78: 0.1188555713 | S78: 28246.59083 | T78: 0.1241281017 | U78: 30699.33656 | V78: 0.1292930279 | W78: 21408.15936 | X78: 0.1080238135 | Y78: 23443.39031 | Z78: 0.1129148941 | AA78: 25621.82715 | AB78: 0.1178448494 | AC78: 27882.47434 | AD78: 0.1225280117 | AE78: 30166.0471 | AF78: 0.1270470312 | AG78: 21408.15936 | AH78: 0.1080238135 | AI78: 23344.37838 | AJ78: 0.112438004 | AK78: 25404.21989 | AL78: 0.1168439881 | AM78: 27525.42785 | AN78: 0.1209589904 | AO78: 29648.21408 | AP78: 0.1248661307 | AQ78: 21408.15936 | AR78: 0.1080238135 | AS78: 22750.30684 | AT78: 0.1095766633 | AU78: 24143.59855 | AV78: 0.1110458953 | AW78: 25527.73729 | AX78: 0.1121802483 | AY78: 26849.12101 | AZ78: 0.1130774975 | BA78: 21408.15936 | BB78: 0.1080238135 | BC78: 22948.33069 | BD78: 0.1105304435 | BE78: 24555.23001 | BF78: 0.1129391501 | BG78: 26166.55559 | BH78: 0.1149875004 | BI78: 27725.4595 | BJ78: 0.1167682762 | BK78: 21408.15936 | BL78: 0.1080238135 | BM78: 23047.34261 | BN78: 0.1110073336 | BO78: 24764.26161 | BP78: 0.1139005685 | BQ78: 26496.01522 | BR78: 0.1164352928 | BS78: 28184.45279 | BT78: 0.1187013679 | BU78: 21408.15936 | BV78: 0.1080238135 | BW78: 23146.35454 | BX78: 0.1114842238 | BY78: 24975.43712 | BZ78: 0.1148718477 | CA78: 26832.2676 | CB78: 0.1179129355 | CC78: 28657.71405 | CD78: 0.1206945504
A79: NHS Hartlepool and Stockton-On-Tees CCG | B79: E38000075 | C79: 19243.21206 | D79: 0.08291628773 | E79: 20873.73851 | F79: 0.08840309382 | G79: 22653.55556 | H79: 0.0938890731 | I79: 24384.99646 | J79: 0.09906157158 | K79: 26084.95974 | L79: 0.1040070165 | M79: 19243.21206 | N79: 0.08291628773 | O79: 20699.9036 | P79: 0.08766687953 | Q79: 22269.5825 | R79: 0.09229767284 | S79: 23754.35141 | T79: 0.09649964013 | U79: 25170.08758 | V79: 0.1003592009 | W79: 19243.21206 | X79: 0.08291628773 | Y79: 20612.98614 | Z79: 0.08729877239 | AA79: 22080.36501 | AB79: 0.09151344915 | AC79: 23448.06615 | AD79: 0.09525538735 | AE79: 24732.19037 | AF79: 0.09861319926 | AG79: 19243.21206 | AH79: 0.08291628773 | AI79: 20526.06868 | AJ79: 0.08693066525 | AK79: 21892.99354 | AL79: 0.09073687642 | AM79: 23147.72798 | AN79: 0.09403529405 | AO79: 24306.98484 | AP79: 0.09691780239 | AQ79: 19243.21206 | AR79: 0.08291628773 | AS79: 20004.56393 | AT79: 0.08472202241 | AU79: 20807.53125 | AV79: 0.08623811028 | AW79: 21467.32296 | AX79: 0.08720881932 | AY79: 22008.58008 | AZ79: 0.08775350907 | BA79: 19243.21206 | BB79: 0.08291628773 | BC79: 20178.39885 | BD79: 0.08545823669 | BE79: 21161.96792 | BF79: 0.08770709515 | BG79: 22004.6802 | BH79: 0.0893917785 | BI79: 22728.16335 | BJ79: 0.09062266089 | BK79: 19243.21206 | BL79: 0.08291628773 | BM79: 20265.3163 | BN79: 0.08582634383 | BO79: 21341.95529 | BP79: 0.08845306402 | BQ79: 22281.81302 | BR79: 0.09051760245 | BS79: 23105.05413 | BT79: 0.09212541519 | BU79: 19243.21206 | BV79: 0.08291628773 | BW79: 20352.23376 | BX79: 0.08619445097 | BY79: 21523.78868 | BZ79: 0.08920668386 | CA79: 22564.65972 | CB79: 0.09166663846 | CC79: 23493.66069 | CD79: 0.09367488313
A80: NHS Hastings and Rother CCG | B80: E38000076 | C80: 15385.81961 | D80: 0.1006661843 | E80: 16881.24988 | F80: 0.1074144177 | G80: 18711.3116 | H80: 0.1147651594 | I80: 20576.5566 | J80: 0.1212096878 | K80: 22419.64225 | L80: 0.1274857401 | M80: 15385.81961 | N80: 0.1006661843 | O80: 16740.48784 | P80: 0.1065187569 | Q80: 18393.89074 | R80: 0.11281827 | S80: 20044.25523 | T80: 0.1180740765 | U80: 21633.45964 | V80: 0.1230152373 | W80: 15385.81961 | X80: 0.1006661843 | Y80: 16670.10682 | Z80: 0.1060709266 | AA80: 18237.4694 | AB80: 0.1118588653 | AC80: 19785.73251 | AD80: 0.1165512047 | AE80: 21257.15878 | AF80: 0.1208754622 | AG80: 15385.81961 | AH80: 0.1006661843 | AI80: 16599.7258 | AJ80: 0.1056230962 | AK80: 18082.57412 | AL80: 0.1109088207 | AM80: 19532.2295 | AN80: 0.1150579023 | AO80: 20891.76434 | AP80: 0.1187977047 | AQ80: 15385.81961 | AR80: 0.1006661843 | AS80: 16177.43967 | AT80: 0.1029361139 | AU80: 17185.24977 | AV80: 0.1054051139 | AW80: 18113.86919 | AX80: 0.1067028109 | AY80: 18916.6623 | AZ80: 0.1075666001 | BA80: 15385.81961 | BB80: 0.1006661843 | BC80: 16318.20171 | BD80: 0.1038317747 | BE80: 17478.25364 | BF80: 0.1072022426 | BG80: 18567.43018 | BH80: 0.1093745887 | BI80: 19535.02614 | BJ80: 0.111082828 | BK80: 15385.81961 | BL80: 0.1006661843 | BM80: 16388.58273 | BN80: 0.1042796051 | BO80: 17627.04467 | BP80: 0.1081148471 | BQ80: 18801.34653 | BR80: 0.1107525125 | BS80: 19858.90197 | BT80: 0.1129244966 | BU80: 15385.81961 | BV80: 0.1006661843 | BW80: 16458.96375 | BX80: 0.1047274354 | BY80: 17777.36176 | BZ80: 0.1090368116 | CA80: 19040.08572 | CB80: 0.1121588461 | CC80: 20192.84559 | CD80: 0.114823414
A81: NHS Havering CCG | B81: E38000077 | C81: 17292.00397 | D81: 0.08612413571 | E81: 18705.74404 | F81: 0.08899868703 | G81: 20598.40755 | H81: 0.09295310267 | I81: 22665.98869 | J81: 0.09642639619 | K81: 24962.74299 | L81: 0.1003890573 | M81: 17292.00397 | N81: 0.08612413571 | O81: 18549.17939 | P81: 0.08825377957 | Q81: 20247.82638 | R81: 0.09137105769 | S81: 22077.64592 | T81: 0.09392344899 | U81: 24084.44978 | V81: 0.0968569524 | W81: 17292.00397 | X81: 0.08612413571 | Y81: 18470.89707 | Z81: 0.08788132584 | AA81: 20075.06403 | AB81: 0.09059144417 | AC81: 21791.90559 | AD81: 0.09270784307 | AE81: 23664.06084 | AF81: 0.0951663349 | AG81: 17292.00397 | AH81: 0.08612413571 | AI81: 18392.61474 | AJ81: 0.08750887212 | AK81: 19903.98716 | AL81: 0.08981943664 | AM81: 21511.71345 | AN81: 0.0915158404 | AO81: 23255.85612 | AP81: 0.09352471695 | AQ81: 17292.00397 | AR81: 0.08612413571 | AS81: 17922.92079 | AT81: 0.08527414975 | AU81: 18912.92116 | AV81: 0.08534711717 | AW81: 19944.02628 | AX81: 0.08484653399 | AY81: 21049.34751 | AZ81: 0.08465112003 | BA81: 17292.00397 | BB81: 0.08612413571 | BC81: 18079.48544 | BD81: 0.0860190572 | BE81: 19236.53455 | BF81: 0.08680746639 | BG81: 20445.33878 | BH81: 0.08697923414 | BI81: 21740.15999 | BJ81: 0.08742926078 | BK81: 17292.00397 | BL81: 0.08612413571 | BM81: 18157.76777 | BN81: 0.08639151093 | BO81: 19400.86947 | BP81: 0.08754904997 | BQ81: 20703.88214 | BR81: 0.08807913785 | BS81: 22101.9817 | BT81: 0.0888843469 | BU81: 17292.00397 | BV81: 0.08612413571 | BW81: 18236.05009 | BX81: 0.08676396466 | BY81: 19566.88988 | BZ81: 0.08829823954 | CA81: 20967.75612 | CB81: 0.0892017192 | CC81: 22475.05077 | CD81: 0.09038466486
A82: NHS Herefordshire CCG | B82: E38000078 | C82: 14662.70282 | D82: 0.09377528027 | E82: 16084.0263 | F82: 0.1001246657 | G82: 17684.54209 | H82: 0.1069974715 | I82: 19145.11086 | J82: 0.1128173887 | K82: 20455.31908 | L82: 0.1180205347 | M82: 14662.70282 | N82: 0.09377528027 | O82: 15950.23066 | P82: 0.09929177451 | Q82: 17385.15236 | R82: 0.1051860622 | S82: 18650.65499 | T82: 0.1099036829 | U82: 19739.09199 | V82: 0.1138881375 | W82: 14662.70282 | X82: 0.09377528027 | Y82: 15883.33283 | Z82: 0.09887532889 | AA82: 17237.61655 | AB82: 0.1042934206 | AC82: 18410.5127 | AD82: 0.108488584 | AE82: 19396.27486 | AF82: 0.1119101942 | AG82: 14662.70282 | AH82: 0.09377528027 | AI82: 15816.43501 | AJ82: 0.09845888328 | AK82: 17091.52012 | AL82: 0.1034094876 | AM82: 18175.03321 | AN82: 0.1071009618 | AO82: 19063.39367 | AP82: 0.1099895781 | AQ82: 14662.70282 | AR82: 0.09377528027 | AS82: 15415.04807 | AT82: 0.09596020958 | AU82: 16245.16836 | AV82: 0.09828877278 | AW82: 16857.51533 | AX82: 0.09933715574 | AY82: 17264.03869 | AZ82: 0.09960788533 | BA82: 14662.70282 | BB82: 0.09377528027 | BC82: 15548.84371 | BD82: 0.09679310081 | BE82: 16521.52812 | BF82: 0.09996084293 | BG82: 17278.82909 | BH82: 0.1018198532 | BI82: 17827.37974 | BJ82: 0.1028581799 | BK82: 14662.70282 | BL82: 0.09377528027 | BM82: 15615.74154 | BN82: 0.09720954643 | BO82: 16661.86706 | BP82: 0.1008099411 | BQ82: 17496.11448 | BR82: 0.1031002621 | BS82: 18122.43669 | BT82: 0.1045605625 | BU82: 14662.70282 | BV82: 0.09377528027 | BW82: 15682.63936 | BX82: 0.09762599204 | BY82: 16803.64537 | BZ82: 0.1016677479 | CA82: 17717.87982 | CB82: 0.1044070702 | CC82: 18426.66559 | CD82: 0.1063158642
A83: NHS Herts Valleys CCG | B83: E38000079 | C83: 36641.16274 | D83: 0.07863247939 | E83: 40415.71233 | F83: 0.08284624534 | G83: 44825.77779 | H83: 0.08737627733 | I83: 49436.95258 | J83: 0.09199626443 | K83: 54239.93144 | L83: 0.09659827505 | M83: 36641.16274 | N83: 0.07863247939 | O83: 40078.72264 | P83: 0.08215546622 | Q83: 44065.06181 | R83: 0.08589345798 | S83: 48156.51225 | T83: 0.08961351789 | U83: 52335.95557 | V83: 0.09320740083 | W83: 36641.16274 | X83: 0.07863247939 | Y83: 39910.2278 | Z83: 0.08181007665 | AA83: 43690.18976 | AB83: 0.08516274172 | AC83: 47534.64102 | AD83: 0.08845628981 | AE83: 51424.63073 | AF83: 0.09158438242 | AG83: 36641.16274 | AH83: 0.07863247939 | AI83: 39741.73295 | AJ83: 0.08146468709 | AK83: 43318.97499 | AL83: 0.08443915439 | AM83: 46924.84458 | AN83: 0.08732153147 | AO83: 50539.71902 | AP83: 0.09000840431 | AQ83: 36641.16274 | AR83: 0.07863247939 | AS83: 38730.76388 | AT83: 0.07939234971 | AU83: 41168.48943 | AV83: 0.08024733817 | AW83: 43513.00716 | AX83: 0.08097250951 | AY83: 45756.41985 | AZ83: 0.08148961683 | BA83: 36641.16274 | BB83: 0.07863247939 | BC83: 39067.75357 | BD83: 0.08008312884 | BE83: 41870.68879 | BF83: 0.08161609449 | BG83: 44604.03908 | BH83: 0.08300278961 | BI83: 47253.97247 | BJ83: 0.08415667404 | BK83: 36641.16274 | BL83: 0.07863247939 | BM83: 39236.24842 | BN83: 0.0804285184 | BO83: 42227.27441 | BP83: 0.08231116606 | BQ83: 45166.72018 | BR83: 0.08404987193 | BS83: 48038.33447 | BT83: 0.08555357876 | BU83: 36641.16274 | BV83: 0.07863247939 | BW83: 39404.74326 | BX83: 0.08077390797 | BY83: 42587.51731 | BZ83: 0.08301336656 | CA83: 45741.00254 | CB83: 0.08511854282 | CC83: 48847.07863 | CD83: 0.08699390674
A84: NHS Heywood, Middleton and Rochdale CCG | B84: E38000080 | C84: 16075.7186 | D84: 0.09566602359 | E84: 17312.50843 | F84: 0.1018023546 | G84: 18702.61221 | H84: 0.1080701041 | I84: 20065.45916 | J84: 0.1138142891 | K84: 21402.44922 | L84: 0.1193666995 | M84: 16075.7186 | N84: 0.09566602359 | O84: 17168.47447 | P84: 0.100955395 | Q84: 18385.97091 | R84: 0.1062404421 | S84: 19547.37973 | T84: 0.110875665 | U84: 20653.31794 | V84: 0.1151886109 | W84: 16075.7186 | X84: 0.09566602359 | Y84: 17096.45749 | Z84: 0.1005319151 | AA84: 18229.93373 | AB84: 0.1053388058 | AC84: 19295.76419 | AD84: 0.1094484639 | AE84: 20294.75145 | AF84: 0.1131887978 | AG84: 16075.7186 | AH84: 0.09566602359 | AI84: 17024.44051 | AJ84: 0.1001084353 | AK84: 18075.41887 | AL84: 0.104445966 | AM84: 19049.03422 | AN84: 0.1080489746 | AO84: 19946.57737 | AP84: 0.1112469457 | AQ84: 16075.7186 | AR84: 0.09566602359 | AS84: 16592.33864 | AT84: 0.09756755636 | AU84: 17180.29829 | AV84: 0.09927365241 | AW84: 17668.56943 | AX84: 0.1002187716 | AY84: 18064.55821 | AZ84: 0.1007504641 | BA84: 16075.7186 | BB84: 0.09566602359 | BC84: 16736.37259 | BD84: 0.09841451602 | BE84: 17472.58256 | BF84: 0.1009625711 | BG84: 18110.01226 | BH84: 0.1027227014 | BI84: 18653.77972 | BJ84: 0.1040366967 | BK84: 16075.7186 | BL84: 0.09566602359 | BM84: 16808.38957 | BN84: 0.09883799584 | BO84: 17621.00817 | BP84: 0.1018202252 | BQ84: 18337.67886 | BR84: 0.1040140605 | BS84: 18962.39188 | BT84: 0.1057579023 | BU84: 16075.7186 | BV84: 0.09566602359 | BW84: 16880.40655 | BX84: 0.09926147567 | BY84: 17770.95609 | BZ84: 0.1026866756 | CA84: 18570.03946 | CB84: 0.1053320446 | CC84: 19280.59736 | CD84: 0.1075326121
A85: NHS High Weald Lewes Havens CCG | B85: E38000081 | C85: 12123.11195 | D85: 0.08583341795 | E85: 13463.80671 | F85: 0.09098396208 | G85: 14946.21369 | H85: 0.09650189623 | I85: 16482.46847 | J85: 0.1017939011 | K85: 17928.2764 | L85: 0.106538367 | M85: 12123.11195 | N85: 0.08583341795 | O85: 13351.48664 | P85: 0.09022494013 | Q85: 14692.50828 | R85: 0.09486381894 | S85: 16055.63169 | T85: 0.09915780441 | U85: 17299.18985 | V85: 0.1028000347 | W85: 12123.11195 | X85: 0.08583341795 | Y85: 13295.32661 | Z85: 0.08984542915 | AA85: 14567.48518 | AB85: 0.09405659335 | AC85: 15848.32995 | AD85: 0.09787753181 | AE85: 16998.08193 | AF85: 0.1010107079 | AG85: 12123.11195 | AH85: 0.08583341795 | AI85: 13239.16657 | AJ85: 0.08946591818 | AK85: 14443.68182 | AL85: 0.09325724313 | AM85: 15645.05336 | AN85: 0.09662211808 | AO85: 16705.7011 | AP85: 0.0992732416 | AQ85: 12123.11195 | AR85: 0.08583341795 | AS85: 12902.20637 | AT85: 0.08718885233 | AU85: 13726.47613 | AV85: 0.08862652463 | AW85: 14507.71205 | AX85: 0.08959802403 | AY85: 15125.26657 | AZ85: 0.08988154606 | BA85: 12123.11195 | BB85: 0.08583341795 | BC85: 13014.52644 | BD85: 0.08794787428 | BE85: 13960.66574 | BF85: 0.09013859597 | BG85: 14871.40924 | BH85: 0.0918441776 | BI85: 15620.06813 | BJ85: 0.09282189283 | BK85: 12123.11195 | BL85: 0.08583341795 | BM85: 13070.68647 | BN85: 0.08832738526 | BO85: 14079.59016 | BP85: 0.09090644471 | BQ85: 15058.97986 | BR85: 0.09300259299 | BS85: 15879.22666 | BT85: 0.09436193639 | BU85: 12123.11195 | BV85: 0.08583341795 | BW85: 13126.8465 | BX85: 0.08870689623 | BY85: 14199.73431 | BZ85: 0.09168216881 | CA85: 15250.41777 | CB85: 0.09418489238 | CC85: 16146.44122 | CD85: 0.09594985274
A86: NHS Hillingdon CCG | B86: E38000082 | C86: 20546.83594 | D86: 0.08744078617 | E86: 23024.01485 | F86: 0.0912926838 | G86: 25937.10072 | H86: 0.09656403842 | I86: 28960.48442 | J86: 0.1014235639 | K86: 31974.81196 | L86: 0.1066253567 | M86: 20546.83594 | N86: 0.08744078617 | O86: 22832.72918 | P86: 0.09053421561 | Q86: 25498.87052 | R86: 0.0949325038 | S86: 28214.35186 | T86: 0.09881050591 | U86: 30858.85031 | V86: 0.102903996 | W86: 20546.83594 | X86: 0.08744078617 | Y86: 22737.08634 | Z86: 0.09015498151 | AA86: 25282.91573 | AB86: 0.09412850236 | AC86: 27851.97779 | AD86: 0.09754142252 | AE86: 30324.70301 | AF86: 0.1011227925 | AG86: 20546.83594 | AH86: 0.08744078617 | AI86: 22641.4435 | AJ86: 0.08977574741 | AK86: 25069.06782 | AL86: 0.09333234484 | AM86: 27496.63989 | AN86: 0.09629698076 | AO86: 29806.03701 | AP86: 0.099393214 | AQ86: 20546.83594 | AR86: 0.08744078617 | AS86: 22067.58646 | AT86: 0.08750034283 | AU86: 23830.22476 | AV86: 0.08872012197 | AW86: 25508.50897 | AX86: 0.08933427531 | AY86: 27002.44137 | AZ86: 0.09004415556 | BA86: 20546.83594 | BB86: 0.08744078617 | BC86: 22258.87214 | BD86: 0.08825881103 | BE86: 24234.74494 | BF86: 0.09022615393 | BG86: 26144.2703 | BH86: 0.09156079813 | BI86: 27880.18952 | BJ86: 0.09297115353 | BK86: 20546.83594 | BL86: 0.08744078617 | BM86: 22354.51498 | BN86: 0.08863804512 | BO86: 24440.16535 | BP86: 0.09099093578 | BQ86: 26472.15336 | BR86: 0.09270908929 | BS86: 28339.92114 | BT86: 0.09450420549 | BU86: 20546.83594 | BV86: 0.08744078617 | BW86: 22450.15782 | BX86: 0.08901727922 | BY86: 24647.69263 | BZ86: 0.09176356155 | CA86: 26806.79665 | CB86: 0.09388105572 | CC86: 28813.94368 | CD86: 0.0960849129
A87: NHS Horsham and Mid Sussex CCG | B87: E38000083 | C87: 14131.74398 | D87: 0.07615727519 | E87: 15689.77344 | F87: 0.08156463631 | G87: 17486.57671 | H87: 0.08716267925 | I87: 19171.50581 | J87: 0.09205563146 | K87: 20894.56417 | L87: 0.09685067291 | M87: 14131.74398 | N87: 0.07615727519 | O87: 15559.05288 | P87: 0.08088507423 | Q87: 17189.98421 | R87: 0.08568429974 | S87: 18675.56664 | T87: 0.08967428522 | U87: 20161.77927 | V87: 0.0934540617 | W87: 14131.74398 | X87: 0.07615727519 | Y87: 15493.6926 | Z87: 0.08054529319 | AA87: 17043.82685 | AB87: 0.08495577138 | AC87: 18434.70395 | AD87: 0.08851773722 | AE87: 19811.03686 | AF87: 0.09182829732 | AG87: 14131.74398 | AH87: 0.07615727519 | AI87: 15428.33232 | AJ87: 0.08020551215 | AK87: 16899.09542 | AL87: 0.08423435061 | AM87: 18198.51806 | AN87: 0.08738364575 | AO87: 19470.4601 | AP87: 0.09024965283 | AQ87: 14131.74398 | AR87: 0.07615727519 | AS87: 15036.17063 | AT87: 0.07816682591 | AU87: 16060.65124 | AV87: 0.08005508545 | AW87: 16877.04781 | AX87: 0.08103835499 | AY87: 17629.50746 | AZ87: 0.08171645248 | BA87: 14131.74398 | BB87: 0.07615727519 | BC87: 15166.89119 | BD87: 0.07884638799 | BE87: 16334.42893 | BF87: 0.08141974346 | BG87: 17299.62546 | BH87: 0.08306744193 | BI87: 18205.87188 | BJ87: 0.08438802206 | BK87: 14131.74398 | BL87: 0.07615727519 | BM87: 15232.25148 | BN87: 0.07918616903 | BO87: 16473.45667 | BP87: 0.08211273386 | BQ87: 17517.56267 | BR87: 0.0841139089 | BS87: 18507.74999 | BT87: 0.08578729019 | BU87: 14131.74398 | BV87: 0.07615727519 | BW87: 15297.61176 | BX87: 0.07952595007 | BY87: 16613.91032 | BZ87: 0.08281283184 | CA87: 17739.99327 | CB87: 0.08518195175 | CC87: 18819.01208 | CD87: 0.08723005505
A88: NHS Hounslow CCG | B88: E38000084 | C88: 20413.35761 | D88: 0.09551449377 | E88: 23232.88839 | F88: 0.1017914843 | G88: 26204.61983 | H88: 0.1086336947 | I88: 29413.52027 | J88: 0.1157010474 | K88: 32618.75315 | L88: 0.1226361123 | M88: 20413.35761 | N88: 0.09551449377 | O88: 23040.02101 | P88: 0.1009464643 | Q88: 25762.3303 | R88: 0.1068001422 | S88: 28657.05745 | T88: 0.1127254246 | U88: 31482.9477 | V88: 0.1183658459 | W88: 20413.35761 | X88: 0.09551449377 | Y88: 22943.58732 | Z88: 0.1005239543 | AA88: 25544.37512 | AB88: 0.1058965887 | AC88: 28289.66629 | AD88: 0.1112802545 | AE88: 30939.30231 | AF88: 0.1163219126 | AG88: 20413.35761 | AH88: 0.09551449377 | AI88: 22847.15364 | AJ88: 0.1001014442 | AK88: 25328.54633 | AL88: 0.1050018503 | AM88: 27929.40872 | AN88: 0.109863145 | AO88: 30411.41351 | AP88: 0.114337219 | AQ88: 20413.35761 | AR88: 0.09551449377 | AS88: 22268.55151 | AT88: 0.0975663841 | AU88: 24078.22783 | AV88: 0.09981853841 | AW88: 25913.75202 | AX88: 0.1019343561 | AY88: 27557.96493 | AZ88: 0.1036091621 | BA88: 20413.35761 | BB88: 0.09551449377 | BC88: 22461.41888 | BD88: 0.09841140415 | BE88: 24486.4951 | BF88: 0.1015110484 | BG88: 26558.3155 | BH88: 0.1044698116 | BI88: 28451.32101 | BJ88: 0.1069678961 | BK88: 20413.35761 | BL88: 0.09551449377 | BM88: 22557.85257 | BN88: 0.09883391417 | BO88: 24693.81832 | BP88: 0.1023705261 | BQ88: 26890.73811 | BR88: 0.1057774294 | BS88: 28919.22748 | BT88: 0.1087270753 | BU88: 20413.35761 | BV88: 0.09551449377 | BW88: 22654.28626 | BX88: 0.0992564242 | BY88: 24903.26793 | BZ88: 0.103238819 | CA88: 27230.01456 | CB88: 0.1071120076 | CC88: 29401.67898 | CD88: 0.1105409391
A89: NHS Hull CCG | B89: E38000085 | C89: 16470.75071 | D89: 0.07918630151 | E89: 17509.47407 | F89: 0.0837693717 | G89: 18798.95226 | H89: 0.08900176243 | I89: 20087.56574 | J89: 0.09350882478 | K89: 21259.67933 | L89: 0.09782661204 | M89: 16470.75071 | N89: 0.07918630151 | O89: 17364.09584 | P89: 0.08307384861 | Q89: 18481.46787 | R89: 0.08749866429 | S89: 19569.95166 | T89: 0.09109930017 | U89: 20517.23174 | V89: 0.09441023256 | W89: 16470.75071 | X89: 0.07918630151 | Y89: 17291.40672 | Z89: 0.08272608707 | AA89: 18325.01523 | AB89: 0.08675795487 | AC89: 19318.56213 | AD89: 0.08992906678 | AE89: 20161.86436 | AF89: 0.09277500624 | AG89: 16470.75071 | AH89: 0.07918630151 | AI89: 17218.7176 | AJ89: 0.08237832552 | AK89: 18170.08895 | AL89: 0.08602447188 | AM89: 19072.05379 | AN89: 0.08878155566 | AO89: 19816.79666 | AP89: 0.09118717403 | AQ89: 16470.75071 | AR89: 0.07918630151 | AS89: 16782.58289 | AT89: 0.08029175624 | AU89: 17272.585 | AV89: 0.08177532905 | AW89: 17692.82897 | AX89: 0.08236118133 | AY89: 17951.56875 | AZ89: 0.08260431048 | BA89: 16470.75071 | BB89: 0.07918630151 | BC89: 16927.96113 | BD89: 0.08098727933 | BE89: 17565.64752 | BF89: 0.08316280426 | BG89: 18133.87528 | BH89: 0.08441427838 | BI89: 18535.53326 | BJ89: 0.08529142859 | BK89: 16470.75071 | BL89: 0.07918630151 | BM89: 17000.65024 | BN89: 0.08133504088 | BO89: 17714.46832 | BP89: 0.08386738151 | BQ89: 18361.33739 | BR89: 0.08547312815 | BS89: 18841.39201 | BT89: 0.08669884046 | BU89: 16470.75071 | BV89: 0.07918630151 | BW89: 17073.33936 | BX89: 0.08168280243 | BY89: 17864.8155 | BZ89: 0.0845791852 | CA89: 18593.48927 | CB89: 0.0865538091 | CC89: 19156.75848 | CD89: 0.0881500022
A90: NHS Ipswich and East Suffolk CCG | B90: E38000086 | C90: 29147.38358 | D90: 0.08906491346 | E90: 32070.12621 | F90: 0.09585189255 | G90: 35447.49651 | H90: 0.103045048 | I90: 38659.87997 | J90: 0.1093198732 | K90: 41624.57197 | L90: 0.1149532504 | M90: 29147.38358 | N90: 0.08906491346 | O90: 31803.15826 | P90: 0.09505397294 | Q90: 34846.89769 | R90: 0.1012991212 | S90: 37660.20831 | T90: 0.1064930673 | U90: 40165.06808 | V90: 0.1109225852 | W90: 29147.38358 | X90: 0.08906491346 | Y90: 31669.67429 | Z90: 0.09465501313 | AA90: 34550.92952 | AB90: 0.1004387486 | AC90: 37174.69796 | AD90: 0.1051201729 | AE90: 39466.48668 | AF90: 0.1089933352 | AG90: 29147.38358 | AH90: 0.08906491346 | AI90: 31536.19032 | AJ90: 0.09425605332 | AK90: 34257.84885 | AL90: 0.09958676991 | AM90: 36698.61469 | AN90: 0.1037739359 | AO90: 38788.15241 | AP90: 0.1071200011 | AQ90: 29147.38358 | AR90: 0.08906491346 | AS90: 30735.28648 | AT90: 0.09186229446 | AU90: 32560.00218 | AV90: 0.09465116914 | AW90: 34034.90826 | AX90: 0.09624168153 | AY90: 35121.48635 | AZ90: 0.09699388664 | BA90: 29147.38358 | BB90: 0.08906491346 | BC90: 31002.25443 | BD90: 0.09266021408 | BE90: 33114.4011 | BF90: 0.09626279388 | BG90: 34886.70405 | BH90: 0.0986503338 | BI90: 36269.44411 | BJ90: 0.1001641649 | BK90: 29147.38358 | BL90: 0.08906491346 | BM90: 31135.7384 | BN90: 0.09305917389 | BO90: 33395.93179 | BP90: 0.09708119707 | BQ90: 35326.00319 | BR90: 0.09989255511 | BS90: 36870.7014 | BT90: 0.101824638 | BU90: 29147.38358 | BV90: 0.08906491346 | BW90: 31269.22237 | BX90: 0.0934581337 | BY90: 33680.34998 | BZ90: 0.09790799414 | CA90: 35774.35973 | CB90: 0.1011603883 | CC90: 37490.64899 | CD90: 0.1035367274
A91: NHS Isle of Wight CCG | B91: E38000087 | C91: 11969.97623 | D91: 0.1023599814 | E91: 13161.51183 | F91: 0.1097158372 | G91: 14431.74608 | H91: 0.1175606556 | I91: 15669.47603 | J91: 0.1238889629 | K91: 16826.15648 | L91: 0.129651383 | M91: 11969.97623 | N91: 0.1023599814 | O91: 13051.90198 | P91: 0.1088021172 | Q91: 14187.31146 | R91: 0.115569497 | S91: 15264.65673 | T91: 0.1206883043 | U91: 16236.88451 | V91: 0.1251108376 | W91: 11969.97623 | X91: 0.1023599814 | Y91: 12997.09705 | Z91: 0.1083452572 | AA91: 14066.8569 | AB91: 0.1145882771 | AC91: 15068.04821 | AD91: 0.119133841 | AE91: 15954.83356 | AF91: 0.1229375371 | AG91: 11969.97623 | AH91: 0.1023599814 | AI91: 12942.29213 | AJ91: 0.1078883972 | AK91: 13947.5775 | AL91: 0.11361663 | AM91: 14875.25721 | AN91: 0.1176095605 | AO91: 15680.95737 | AP91: 0.1208272258 | AQ91: 11969.97623 | AR91: 0.1023599814 | AS91: 12613.46257 | AT91: 0.1051472372 | AU91: 13256.57964 | AV91: 0.1079877781 | AW91: 13796.58323 | AX91: 0.1090811451 | AY91: 14200.54776 | AZ91: 0.1094201554 | BA91: 11969.97623 | BB91: 0.1023599814 | BC91: 12723.07242 | BD91: 0.1060609572 | BE91: 13482.21159 | BF91: 0.1098257706 | BG91: 14141.51987 | BH91: 0.1118083481 | BI91: 14664.03357 | BJ91: 0.1129914746 | BK91: 11969.97623 | BL91: 0.1023599814 | BM91: 12777.87735 | BN91: 0.1065178172 | BO91: 13596.79032 | BP91: 0.1107591261 | BQ91: 14319.41506 | BR91: 0.1132148566 | BS91: 14906.79009 | BT91: 0.1148619979 | BU91: 11969.97623 | BV91: 0.1023599814 | BW91: 12832.68227 | BX91: 0.1069746772 | BY91: 13712.54422 | BZ91: 0.1117020545 | CA91: 14500.97806 | CB91: 0.1146503642 | CC91: 15157.09277 | CD91: 0.1167906671
A92: NHS Islington CCG | B92: E38000088 | C92: 13939.84003 | D92: 0.07297581423 | E92: 15845.42738 | F92: 0.07643717981 | G92: 17949.61965 | H92: 0.0822170193 | I92: 20148.28249 | J92: 0.08814543046 | K92: 22528.5287 | L92: 0.09379071065 | M92: 13939.84003 | N92: 0.07297581423 | O92: 15713.926 | P92: 0.07580282682 | Q92: 17647.02259 | R92: 0.08083099391 | S92: 19630.83368 | T92: 0.08588167677 | U92: 21745.39141 | V92: 0.09053035557 | W92: 13939.84003 | X92: 0.07297581423 | Y92: 15648.17531 | Z92: 0.07548565032 | AA92: 17497.90625 | AB92: 0.0801479766 | AC92: 19379.5244 | AD92: 0.08478223993 | AE92: 21370.54818 | AF92: 0.08896980924 | AG92: 13939.84003 | AH92: 0.07297581423 | AI92: 15582.42462 | AJ92: 0.07516847382 | AK92: 17350.2447 | AL92: 0.07947162286 | AM92: 19133.09477 | AN92: 0.08370415069 | AO92: 21006.56911 | AP92: 0.08745449256 | AQ92: 13939.84003 | AR92: 0.07297581423 | AS92: 15187.92049 | AT92: 0.07326541482 | AU92: 16494.82608 | AV92: 0.07555343571 | AW92: 17754.3103 | AX92: 0.07767219486 | AY92: 19039.11774 | AZ92: 0.07926360423 | BA92: 13939.84003 | BB92: 0.07297581423 | BC92: 15319.42187 | BD92: 0.07389976782 | BE92: 16774.14645 | BF92: 0.07683284376 | BG92: 18195.21579 | BH92: 0.07960108406 | BI92: 19655.08631 | BJ92: 0.08182800296 | BK92: 13939.84003 | BL92: 0.07297581423 | BM92: 15385.17256 | BN92: 0.07421694432 | BO92: 16915.98882 | BP92: 0.07748254316 | BQ92: 18422.60528 | BR92: 0.08059587575 | BS92: 19977.70759 | BT92: 0.08317113901 | BU92: 13939.84003 | BV92: 0.07297581423 | BW92: 15450.92325 | BX92: 0.07453412082 | BY92: 17059.28599 | BZ92: 0.07813890614 | CA92: 18654.68304 | CB92: 0.0816111779 | CC92: 20310.35766 | CD92: 0.0845560269
A93: NHS Kernow CCG | B93: E38000089 | C93: 44778.70461 | D93: 0.09758260245 | E93: 49150.86424 | F93: 0.1035758087 | G93: 54122.45154 | H93: 0.1100631463 | I93: 58729.48619 | J93: 0.1151377944 | K93: 62940.41164 | L93: 0.1198271554 | M93: 44778.70461 | N93: 0.09758260245 | O93: 48741.35268 | P93: 0.1027128433 | Q93: 53204.56729 | R93: 0.1081965414 | S93: 57209.68266 | T93: 0.1121582549 | U93: 60732.37462 | V93: 0.1156234524 | W93: 44778.70461 | X93: 0.09758260245 | Y93: 48536.5969 | Z93: 0.1022813607 | AA93: 52752.24452 | AB93: 0.1072767001 | AC93: 56471.55996 | AD93: 0.1107111825 | AE93: 59675.51302 | AF93: 0.1136113792 | AG93: 44778.70461 | AH93: 0.09758260245 | AI93: 48331.84112 | AJ93: 0.101849878 | AK93: 52304.33466 | AL93: 0.1063658329 | AM93: 55747.76927 | AN93: 0.1092922076 | AO93: 58649.28268 | AP93: 0.1116576223 | AQ93: 44778.70461 | AR93: 0.09758260245 | AS93: 47103.30645 | AT93: 0.0992609821 | AU93: 49709.54649 | AV93: 0.1010890847 | AW93: 51698.12914 | AX93: 0.1013529822 | AY93: 53102.10016 | AZ93: 0.1010967905 | BA93: 44778.70461 | BB93: 0.09758260245 | BC93: 47512.81801 | BD93: 0.1001239474 | BE93: 50556.82426 | BF93: 0.1028121045 | BG93: 52993.11659 | BH93: 0.103891775 | BI93: 54838.80896 | BJ93: 0.1044031698 | BK93: 44778.70461 | BL93: 0.09758260245 | BM93: 47717.57378 | BN93: 0.1005554301 | BO93: 50987.0825 | BP93: 0.1036870755 | BQ93: 53660.98428 | BR93: 0.1052011141 | BS93: 55748.432 | BT93: 0.1061349275 | BU93: 44778.70461 | BV93: 0.09758260245 | BW93: 47922.32956 | BX93: 0.1009869127 | BY93: 51421.75365 | BZ93: 0.1045710206 | CA93: 54342.62194 | CB93: 0.1065374489 | CC93: 56686.33099 | CD93: 0.1079205174
A94: NHS Kingston CCG | B94: E38000090 | C94: 9222.42203 | D94: 0.06623399907 | E94: 10446.77852 | F94: 0.06980341122 | G94: 11890.93938 | H94: 0.0745419971 | I94: 13293.06695 | J94: 0.07874106712 | K94: 14688.88424 | L94: 0.08314776544 | M94: 9222.42203 | N94: 0.06623399907 | O94: 10359.88128 | P94: 0.06922278017 | Q94: 11689.65354 | R94: 0.07328017512 | S94: 12949.73701 | T94: 0.07670736292 | U94: 14174.76521 | V94: 0.08023754791 | W94: 9222.42203 | X94: 0.06623399907 | Y94: 10316.43266 | Z94: 0.06893246464 | AA94: 11590.4622 | AB94: 0.07265836381 | AC94: 12782.99202 | AD94: 0.07571965417 | AE94: 13928.68571 | AF94: 0.07884459248 | AG94: 9222.42203 | AH94: 0.06623399907 | AI94: 10272.98404 | AJ94: 0.06864214911 | AK94: 11492.23858 | AL94: 0.07204261895 | AM94: 12619.48469 | AN94: 0.07475112362 | AO94: 13689.73838 | AP94: 0.07749200939 | AQ94: 9222.42203 | AR94: 0.06623399907 | AS94: 10012.2923 | AT94: 0.06690025593 | AU94: 10923.21898 | AV94: 0.06847554529 | AW94: 11704.65413 | AX94: 0.06933215336 | AY94: 12398.13319 | AZ94: 0.07018076071 | BA94: 9222.42203 | BB94: 0.06623399907 | BC94: 10099.18955 | BD94: 0.06748088699 | BE94: 11109.0213 | BF94: 0.06964030404 | BG94: 11997.19718 | BH94: 0.07106502301 | BI94: 12802.50822 | BJ94: 0.07246976235 | BK94: 9222.42203 | BL94: 0.06623399907 | BM94: 10142.63817 | BN94: 0.06777120252 | BO94: 11203.37404 | BP94: 0.07023178309 | BQ94: 12148.07127 | BR94: 0.07195872097 | BS94: 13014.30472 | BT94: 0.07366865571 | BU94: 9222.42203 | BV94: 0.06623399907 | BW94: 10186.08679 | BX94: 0.06806151805 | BY94: 11298.6945 | BZ94: 0.07082932859 | CA94: 12302.05606 | CB94: 0.07287084504 | CC94: 13232.68499 | CD94: 0.07490481709
A95: NHS Knowsley CCG | B95: E38000091 | C95: 10511.78978 | D95: 0.08905277685 | E95: 11129.49096 | F95: 0.09423785739 | G95: 11868.7415 | H95: 0.09987160464 | I95: 12657.55777 | J95: 0.1054269346 | K95: 13415.69312 | L95: 0.1106357671 | M95: 10511.78978 | N95: 0.08905277685 | O95: 11036.48806 | P95: 0.09345036464 | Q95: 11666.83915 | R95: 0.09817266202 | S95: 12328.93258 | T95: 0.10268976 | U95: 12943.68766 | V95: 0.1067432596 | W95: 10511.78978 | X95: 0.08905277685 | Y95: 10989.98662 | Z95: 0.09305661826 | AA95: 11567.34401 | AB95: 0.09733544269 | AC95: 12169.32924 | AD95: 0.1013603968 | AE95: 12717.76552 | AF95: 0.1048801379 | AG95: 10511.78978 | AH95: 0.08905277685 | AI95: 10943.48517 | AJ95: 0.09266287188 | AK95: 11468.81955 | AL95: 0.09650639136 | AM95: 12012.8249 | AN95: 0.1000568458 | AO95: 12498.39133 | AP95: 0.1030710154 | AQ95: 10511.78978 | AR95: 0.08905277685 | AS95: 10664.47649 | AT95: 0.09030039362 | AU95: 10898.05716 | AV95: 0.09170361124 | AW95: 11137.17636 | AX95: 0.09276342127 | AY95: 11312.58673 | AZ95: 0.09329199019 | BA95: 10511.78978 | BB95: 0.08905277685 | BC95: 10757.47938 | BD95: 0.09108788638 | BE95: 11084.42855 | BF95: 0.09327186598 | BG95: 11417.18985 | BH95: 0.0950957009 | BI95: 11683.83777 | BJ95: 0.09635360193 | BK95: 10511.78978 | BL95: 0.08905277685 | BM95: 10803.98083 | BN95: 0.09148163275 | BO95: 11179.07028 | BP95: 0.09406824533 | BQ95: 11561.60203 | BR95: 0.09629853433 | BS95: 11878.28517 | BT95: 0.09795715954 | BU95: 10511.78978 | BV95: 0.08905277685 | BW95: 10850.48228 | BX95: 0.09187537913 | BY95: 11274.68268 | BZ95: 0.09487279268 | CA95: 11708.99168 | CB95: 0.09752616758 | CC95: 12078.77702 | CD95: 0.09961056428
A96: NHS Lambeth CCG | B96: E38000092 | C96: 23648.79991 | D96: 0.08866526661 | E96: 26521.85282 | F96: 0.09379633901 | G96: 29446.9945 | H96: 0.1003851998 | I96: 32827.70117 | J96: 0.1079645503 | K96: 36348.81636 | L96: 0.1145205304 | M96: 23648.79991 | N96: 0.08866526661 | O96: 26300.76363 | P96: 0.09301444204 | Q96: 28947.53835 | R96: 0.09868254704 | S96: 31979.25226 | T96: 0.1051741507 | U96: 35076.2432 | V96: 0.1105111632 | W96: 23648.79991 | X96: 0.08866526661 | Y96: 26190.21904 | Z96: 0.09262349356 | AA96: 28701.41212 | AB96: 0.09784349943 | AC96: 31567.18622 | AD96: 0.1038189378 | AE96: 34467.13488 | AF96: 0.1085921074 | AG96: 23648.79991 | AH96: 0.08866526661 | AI96: 26079.67445 | AJ96: 0.09223254508 | AK96: 28457.68713 | AL96: 0.09701263764 | AM96: 31163.12122 | AN96: 0.1024900389 | AO96: 33875.68049 | AP96: 0.106728672 | AQ96: 23648.79991 | AR96: 0.08866526661 | AS96: 25416.40689 | AT96: 0.08988685417 | AU96: 27045.76301 | AV96: 0.09219936938 | AW96: 28902.36007 | AX96: 0.09505479204 | AY96: 30678.63463 | AZ96: 0.09665606375 | BA96: 23648.79991 | BB96: 0.08866526661 | BC96: 25637.49607 | BD96: 0.09066875114 | BE96: 27506.79946 | BF96: 0.09377104881 | BG96: 29625.30266 | BH96: 0.09743242339 | BI96: 31679.56396 | BJ96: 0.09980959029 | BK96: 23648.79991 | BL96: 0.08866526661 | BM96: 25748.04067 | BN96: 0.09105969962 | BO96: 27740.91953 | BP96: 0.09456916727 | BQ96: 29998.14796 | BR96: 0.09865864619 | BS96: 32203.81327 | BT96: 0.1014612894 | BU96: 23648.79991 | BV96: 0.08866526661 | BW96: 25858.58526 | BX96: 0.09145064811 | BY96: 27977.44083 | BZ96: 0.09537547157 | CA96: 30378.68053 | CB96: 0.09991015106 | CC96: 32744.35904 | CD96: 0.1031643322
A97: NHS Lancashire North CCG | B97: E38000093 | C97: 11006.59098 | D97: 0.08206524738 | E97: 11800.01114 | F97: 0.08686698423 | G97: 12818.03477 | H97: 0.09228246778 | I97: 13671.00858 | J97: 0.09604474204 | K97: 14544.08128 | L97: 0.1004564255 | M97: 11006.59098 | N97: 0.08206524738 | O97: 11701.77513 | P97: 0.08614380982 | Q97: 12600.89818 | R97: 0.09071920936 | S97: 13317.68629 | T97: 0.09356250029 | U97: 14034.76528 | V97: 0.09693856391 | W97: 11006.59098 | X97: 0.08206524738 | Y97: 11652.65712 | Z97: 0.08578222262 | AA97: 12493.89577 | AB97: 0.08994885365 | AC97: 13146.08832 | AD97: 0.09235695038 | AE97: 13790.98472 | AF97: 0.09525476389 | AG97: 11006.59098 | AH97: 0.08206524738 | AI97: 11603.53912 | AJ97: 0.08542063542 | AK97: 12387.93729 | AL97: 0.08918601361 | AM97: 12977.82224 | AN97: 0.09117480847 | AO97: 13554.26969 | AP97: 0.09361976581 | AQ97: 11006.59098 | AR97: 0.08206524738 | AS97: 11308.83108 | AT97: 0.08325111221 | AU97: 11774.10884 | AV97: 0.08476680231 | AW97: 12036.36625 | AX97: 0.0845606734 | AY97: 12274.73101 | AZ97: 0.08478195197 | BA97: 11006.59098 | BB97: 0.08206524738 | BC97: 11407.06709 | BD97: 0.08397428661 | BE97: 11974.54262 | BF97: 0.08620981008 | BG97: 12337.42354 | BH97: 0.08667573095 | BI97: 12675.32826 | BJ97: 0.08754888978 | BK97: 11006.59098 | BL97: 0.08206524738 | BM97: 11456.1851 | BN97: 0.08433587381 | BO97: 12076.3254 | BP97: 0.08694258746 | BQ97: 12492.6887 | BR97: 0.08776653579 | BS97: 12885.14611 | BT97: 0.08899810821 | BU97: 11006.59098 | BV97: 0.08206524738 | BW97: 11505.3031 | BX97: 0.08469746102 | BY97: 12179.1521 | BZ97: 0.08768288051 | CA97: 12651.1551 | CB97: 0.08887983066 | CC97: 13101.48621 | CD97: 0.0904923761
A98: NHS Leeds North CCG | B98: E38000094 | C98: 14579.12936 | D98: 0.08964049039 | E98: 15710.36027 | F98: 0.09365899767 | G98: 17045.82642 | H98: 0.09830349722 | I98: 18431.14317 | J98: 0.1028294084 | K98: 19745.79558 | L98: 0.1072208709 | M98: 14579.12936 | N98: 0.08964049039 | O98: 15579.02543 | P98: 0.09287603095 | Q98: 16755.9493 | R98: 0.09663177223 | S98: 17953.07149 | T98: 0.1001621931 | U98: 19052.00185 | V98: 0.1034535287 | W98: 14579.12936 | X98: 0.08964049039 | Y98: 15513.35801 | Z98: 0.09248454759 | AA98: 16613.10121 | AB98: 0.09580796545 | AC98: 17720.88651 | AD98: 0.09886680713 | AE98: 18719.92229 | AF98: 0.1016503165 | AG98: 14579.12936 | AH98: 0.08964049039 | AI98: 15447.69059 | AJ98: 0.09209306423 | AK98: 16471.64675 | AL98: 0.0949921958 | AM98: 17493.20983 | AN98: 0.09759657347 | AO98: 18397.46747 | AP98: 0.09989936724 | AQ98: 14579.12936 | AR98: 0.08964049039 | AS98: 15053.68608 | AT98: 0.08974416406 | AU98: 15652.18645 | AV98: 0.09026635786 | AW98: 16219.34896 | AX98: 0.09048956128 | AY98: 16654.47112 | AZ98: 0.09043479108 | BA98: 14579.12936 | BB98: 0.08964049039 | BC98: 15185.02092 | BD98: 0.09052713079 | BE98: 15919.76533 | BF98: 0.09180948861 | BG98: 16626.70216 | BH98: 0.09276223029 | BI98: 17200.16744 | BJ98: 0.09339795528 | BK98: 14579.12936 | BL98: 0.08964049039 | BM98: 15250.68834 | BN98: 0.09091861415 | BO98: 16055.64522 | BP98: 0.0925931097 | BQ98: 16836.78761 | BR98: 0.09393432055 | BS98: 17485.98275 | BT98: 0.09494994975 | BU98: 14579.12936 | BV98: 0.08964049039 | BW98: 15316.35576 | BX98: 0.09131009751 | BY98: 16192.91876 | BZ98: 0.09338476793 | CA98: 17051.20458 | CB98: 0.09513057677 | CC98: 17780.68272 | CD98: 0.09655018851
A99: NHS Leeds South and East CCG | B99: E38000095 | C99: 15951.59219 | D99: 0.08171922227 | E99: 17064.89909 | F99: 0.08538426442 | G99: 18368.52285 | H99: 0.08952394411 | I99: 19710.35011 | J99: 0.09315790769 | K99: 21083.41209 | L99: 0.09714962718 | M99: 15951.59219 | N99: 0.08171922227 | O99: 16922.92822 | P99: 0.08467391284 | Q99: 18057.58659 | R99: 0.08800851248 | S99: 19201.26781 | T99: 0.09075180927 | U99: 20345.14844 | V99: 0.09374780407 | W99: 15951.59219 | X99: 0.08171922227 | Y99: 16851.94279 | Z99: 0.08431873706 | AA99: 17904.36079 | AB99: 0.08726172525 | AC99: 18954.02189 | AD99: 0.08958323989 | AE99: 19991.78367 | AF99: 0.09211954504 | AG99: 15951.59219 | AH99: 0.08171922227 | AI99: 16780.95736 | AJ99: 0.08396356127 | AK99: 17752.62987 | AL99: 0.08652222376 | AM99: 18711.57672 | AN99: 0.08843736045 | AO99: 19648.66054 | AP99: 0.09053847821 | AQ99: 15951.59219 | AR99: 0.08171922227 | AS99: 16355.04476 | AT99: 0.08183250654 | AU99: 16873.63697 | AV99: 0.0822382151 | AW99: 17355.08552 | AX99: 0.08202611549 | AY99: 17793.9438 | AZ99: 0.08199218415 | BA99: 15951.59219 | BB99: 0.08171922227 | BC99: 16497.01562 | BD99: 0.08254285812 | BE99: 17160.65506 | BF99: 0.08363707507 | BG99: 17788.86211 | BH99: 0.08407629316 | BI99: 18374.61748 | BJ99: 0.08466785311 | BK99: 15951.59219 | BL99: 0.08171922227 | BM99: 16568.00106 | BN99: 0.08289803391 | BO99: 17306.40644 | BP99: 0.08434743365 | BQ99: 18012.57498 | BR99: 0.08513363731 | BS99: 18678.75261 | BT99: 0.08606926833 | BU99: 15951.59219 | BV99: 0.08171922227 | BW99: 16638.98649 | BX99: 0.08325320969 | BY99: 17453.65269 | BZ99: 0.08506507796 | CA99: 18240.90033 | CB99: 0.08621278161 | CC99: 18992.34189 | CD99: 0.08751424703
A100: NHS Leeds West CCG | B100: E38000096 | C100: 18840.37138 | D100: 0.07035239498 | E100: 20151.75525 | F100: 0.07361102883 | G100: 21752.06737 | H100: 0.07759727229 | I100: 23436.11303 | J100: 0.08050880463 | K100: 25034.91151 | L100: 0.08390840431 | M100: 18840.37138 | N100: 0.07035239498 | O100: 19983.96196 | P100: 0.0729981077 | Q100: 21383.48419 | R100: 0.07628240651 | S100: 22830.10576 | T100: 0.07842702082 | U100: 24157.60059 | V100: 0.08096796016 | W100: 18840.37138 | X100: 0.07035239498 | Y100: 19900.06532 | Z100: 0.07269164713 | AA100: 21201.85066 | AB100: 0.07563445582 | AC100: 22535.78632 | AD100: 0.07741596125 | AE100: 23737.68181 | AF100: 0.07956053697 | AG100: 18840.37138 | AH100: 0.07035239498 | AI100: 19816.16867 | AJ100: 0.07238518657 | AK100: 21021.98915 | AL100: 0.0749928266 | AM100: 22247.18164 | AN100: 0.07642453328 | AO100: 23329.93363 | AP100: 0.07819390544 | AQ100: 18840.37138 | AR100: 0.07035239498 | AS100: 19312.78881 | AT100: 0.07054642317 | AU100: 19980.03287 | AV100: 0.07127580218 | AW100: 20632.42598 | AX100: 0.07087745097 | AY100: 21125.89278 | AZ100: 0.07080671935 | BA100: 18840.37138 | BB100: 0.07035239498 | BC100: 19480.5821 | BD100: 0.0711593443 | BE100: 20320.26349 | BF100: 0.07248952444 | BG100: 21148.78996 | BH100: 0.07265128809 | BI100: 21815.93266 | BJ100: 0.07311949543 | BK100: 18840.37138 | BL100: 0.07035239498 | BM100: 19564.47874 | BN100: 0.07146580487 | BO100: 20493.03686 | BP100: 0.07310586778 | BQ100: 21415.09588 | BR100: 0.07356611432 | BS100: 22177.34971 | BT100: 0.07433084096 | BU100: 18840.37138 | BV100: 0.07035239498 | BW100: 19648.37539 | BX100: 0.07177226544 | BY100: 20667.58225 | BZ100: 0.07372853258 | CA100: 21686.89244 | CB100: 0.07449980228 | CC100: 22550.00153 | CD100: 0.07557984157
A101: NHS Leicester City CCG | B101: E38000097 | C101: 29194.32684 | D101: 0.108917799 | E101: 31832.66777 | F101: 0.1137937648 | G101: 34759.90439 | H101: 0.1197131299 | I101: 37992.49605 | J101: 0.1253464073 | K101: 41080.30088 | L101: 0.1307540292 | M101: 29194.32684 | N101: 0.108917799 | O101: 31567.31824 | P101: 0.1128452071 | Q101: 34170.54952 | R101: 0.1176833914 | S101: 37010.21922 | T101: 0.1221056391 | U101: 39640.91477 | V101: 0.1261726232 | W101: 29194.32684 | X101: 0.108917799 | Y101: 31434.64348 | Z101: 0.1123709283 | AA101: 33880.12224 | AB101: 0.1166831597 | AC101: 36533.15701 | AD101: 0.1205316958 | AE101: 38951.96259 | AF101: 0.1239797651 | AG101: 29194.32684 | AH101: 0.108917799 | AI101: 31301.96872 | AJ101: 0.1118966495 | AK101: 33592.5284 | AL101: 0.1156926863 | AM101: 36065.35785 | AN101: 0.1189883136 | AO101: 38282.97847 | AP101: 0.121850463 | AQ101: 29194.32684 | AR101: 0.108917799 | AS101: 30505.92014 | AT101: 0.1090509764 | AU101: 31926.46751 | AV101: 0.1099547717 | AW101: 33448.00133 | AX101: 0.1103530232 | AY101: 34666.85366 | AZ101: 0.1103407399 | BA101: 29194.32684 | BB101: 0.108917799 | BC101: 30771.26967 | BD101: 0.1099995341 | BE101: 32470.48739 | BF101: 0.1118283765 | BG101: 34284.97541 | BH101: 0.1131144026 | BI101: 35798.98799 | BJ101: 0.1139441976 | BK101: 29194.32684 | BL101: 0.108917799 | BM101: 30903.94443 | BN101: 0.1104738129 | BO101: 32746.74749 | BP101: 0.1127798164 | BQ101: 34716.63052 | BR101: 0.1145385368 | BS101: 36391.95757 | BT101: 0.1158315538 | BU101: 29194.32684 | BV101: 0.108917799 | BW101: 31036.61919 | BX101: 0.1109480918 | BY101: 33025.84102 | BZ101: 0.1137410147 | CA101: 35157.18542 | CB101: 0.1159920337 | CC101: 37003.35981 | CD101: 0.1177775791
A102: NHS Lewisham CCG | B102: E38000098 | C102: 22347.92848 | D102: 0.09496017879 | E102: 25281.55855 | F102: 0.100371441 | G102: 28486.28418 | H102: 0.1065784353 | I102: 32089.60168 | J102: 0.1136719861 | K102: 35845.41582 | L102: 0.1207729644 | M102: 22347.92848 | N102: 0.09496017879 | O102: 25070.19792 | P102: 0.09953230871 | Q102: 28002.11481 | R102: 0.1047669665 | S102: 31258.27256 | T102: 0.1107271433 | U102: 34587.46151 | V102: 0.1165345738 | W102: 22347.92848 | X102: 0.09496017879 | Y102: 24964.5176 | Z102: 0.09911274258 | AA102: 27763.52173 | AB102: 0.1038742956 | AC102: 30854.52109 | AD102: 0.109296922 | AE102: 33985.35041 | AF102: 0.1145058976 | AG102: 22347.92848 | AH102: 0.09496017879 | AI102: 24858.83729 | AJ102: 0.09869317645 | AK102: 27527.25639 | AL102: 0.1029903337 | AM102: 30458.60921 | AN102: 0.1078944712 | AO102: 33400.69043 | AP102: 0.112536019 | AQ102: 22347.92848 | AR102: 0.09496017879 | AS102: 24224.75539 | AT102: 0.09617577969 | AU102: 26158.54682 | AV102: 0.09786945085 | AW102: 28243.46514 | AX102: 0.100047698 | AY102: 30240.37108 | AZ102: 0.1018880427 | BA102: 22347.92848 | BB102: 0.09496017879 | BC102: 24436.11602 | BD102: 0.09701491194 | BE102: 26605.4724 | BF102: 0.09954157586 | BG102: 28951.82037 | BH102: 0.1025569266 | BI102: 31229.80209 | BJ102: 0.1052217052 | BK102: 22347.92848 | BL102: 0.09496017879 | BM102: 24541.79634 | BN102: 0.09743447807 | BO102: 26832.42679 | BP102: 0.1003907018 | BQ102: 29317.1425 | BR102: 0.1038510184 | BS102: 31748.02901 | BT102: 0.1069677527 | BU102: 22347.92848 | BV102: 0.09496017879 | BW102: 24647.47665 | BX102: 0.0978540442 | BY102: 27061.70892 | BZ102: 0.1012485368 | CA102: 29689.99677 | CB102: 0.1051717916 | CC102: 32282.3652 | CD102: 0.1087680768
A103: NHS Lincolnshire East CCG | B103: E38000099 | C103: 19995.81298 | D103: 0.1025216006 | E103: 21680.41789 | F103: 0.1089139852 | G103: 23566.98293 | H103: 0.1151068816 | I103: 25383.9282 | J103: 0.1205314729 | K103: 27020.49293 | L103: 0.125431682 | M103: 19995.81298 | N103: 0.1025216006 | O103: 21500.17052 | P103: 0.1080084925 | Q103: 23168.28039 | R103: 0.1131595213 | S103: 24728.6573 | T103: 0.1174200252 | U103: 26075.07847 | V103: 0.1210429787 | W103: 19995.81298 | X103: 0.1025216006 | Y103: 21410.04683 | Z103: 0.1075557462 | AA103: 22971.80438 | AB103: 0.1121998846 | AC103: 24410.41199 | AD103: 0.1159088889 | AE103: 25622.5624 | AF103: 0.1189423563 | AG103: 19995.81298 | AH103: 0.1025216006 | AI103: 21319.92315 | AJ103: 0.1071029998 | AK103: 22777.24521 | AL103: 0.1112496103 | AM103: 24098.34602 | AN103: 0.1144270941 | AO103: 25183.1617 | AP103: 0.1169026167 | AQ103: 19995.81298 | AR103: 0.1025216006 | AS103: 20779.18103 | AT103: 0.1043865218 | AU103: 21650.14381 | AV103: 0.1057445727 | AW103: 22352.32338 | AX103: 0.1061363883 | AY103: 22808.02645 | AZ103: 0.1058770144 | BA103: 19995.81298 | BB103: 0.1025216006 | BC103: 20959.42841 | BD103: 0.1052920145 | BE103: 22018.17692 | BF103: 0.107542136 | BG103: 22910.66371 | BH103: 0.108787577 | BI103: 23551.63246 | BJ103: 0.1093289038 | BK103: 19995.81298 | BL103: 0.1025216006 | BM103: 21049.55209 | BN103: 0.1057447608 | BO103: 22205.06873 | BP103: 0.1084549611 | BQ103: 23198.61821 | BR103: 0.1101548823 | BS103: 23941.10545 | BT103: 0.1111368743 | BU103: 19995.81298 | BV103: 0.1025216006 | BW103: 21139.67578 | BX103: 0.1061975072 | BY103: 22393.87739 | BZ103: 0.1093771485 | CA103: 23492.5097 | CB103: 0.1115503785 | CC103: 24342.68534 | CD103: 0.1130010461
A104: NHS Lincolnshire West CCG | B104: E38000100 | C104: 15777.77023 | D104: 0.08160634235 | E104: 17335.18559 | F104: 0.08741017339 | G104: 19007.09919 | H104: 0.09325433808 | I104: 20604.97682 | J104: 0.09787657617 | K104: 22131.92672 | L104: 0.1026717699 | M104: 15777.77023 | N104: 0.08160634235 | O104: 17190.93621 | P104: 0.08668281672 | Q104: 18685.10373 | R104: 0.09167453502 | S104: 20072.35637 | T104: 0.09534655313 | U104: 21356.22068 | V104: 0.09907320783 | W104: 15777.77023 | X104: 0.08160634235 | Y104: 17118.81152 | Z104: 0.08631913838 | AA104: 18526.42808 | AB104: 0.0908960263 | AC104: 19813.67869 | AD104: 0.0941177973 | AE104: 20984.93437 | AF104: 0.09735078107 | AG104: 15777.77023 | AH104: 0.08160634235 | AI104: 17046.68684 | AJ104: 0.08595546005 | AK104: 18369.30049 | AL104: 0.09012511279 | AM104: 19560.02372 | AN104: 0.09291290004 | AO104: 20624.40913 | AP104: 0.09567827577 | AQ104: 15777.77023 | AR104: 0.08160634235 | AS104: 16613.93871 | AT104: 0.08377339003 | AU104: 17459.0441 | AV104: 0.08565913107 | AW104: 18140.8132 | AX104: 0.08617144786 | AY104: 18675.62704 | AZ104: 0.08663772054 | BA104: 15777.77023 | BB104: 0.08160634235 | BC104: 16758.18809 | BD104: 0.0845007467 | BE104: 17756.27067 | BF104: 0.08711741082 | BG104: 18594.64607 | BH104: 0.08832721867 | BI104: 19285.75064 | BJ104: 0.0894681325 | BK104: 15777.77023 | BL104: 0.08160634235 | BM104: 16830.31277 | BN104: 0.08486442504 | BO104: 17907.20604 | BP104: 0.0878579435 | BQ104: 18828.70263 | BR104: 0.08943902068 | BS104: 19605.31054 | BT104: 0.09095059633 | BU104: 15777.77023 | BV104: 0.08160634235 | BW104: 16902.43746 | BX104: 0.08522810337 | BY104: 18059.68947 | BZ104: 0.08860607139 | CA104: 19067.58493 | CB104: 0.09057374564 | CC104: 19934.80408 | CD104: 0.09247914305
A105: NHS Liverpool CCG | B105: E38000101 | C105: 30911.45582 | D105: 0.07840373313 | E105: 32848.52981 | F105: 0.08196968062 | G105: 35236.23808 | H105: 0.08646080896 | I105: 37916.64486 | J105: 0.09057533053 | K105: 40562.83987 | L105: 0.09471102986 | M105: 30911.45582 | N105: 0.07840373313 | O105: 32575.14879 | P105: 0.08128749011 | Q105: 34639.48803 | R105: 0.08499653539 | S105: 36936.9523 | T105: 0.08823503965 | U105: 39142.15414 | V105: 0.09139384081 | W105: 30911.45582 | X105: 0.07840373313 | Y105: 32438.45827 | Z105: 0.08094639485 | AA105: 34345.41649 | AB105: 0.08427495827 | AC105: 36461.14518 | AD105: 0.087098431 | AE105: 38462.15278 | AF105: 0.0898060913 | AG105: 30911.45582 | AH105: 0.07840373313 | AI105: 32301.76776 | AJ105: 0.0806052996 | AK105: 34054.21394 | AL105: 0.08356042092 | AM105: 35994.57675 | AN105: 0.08598389172 | AO105: 37801.86005 | AP105: 0.08826435988 | AQ105: 30911.45582 | AR105: 0.07840373313 | AS105: 31481.62468 | AT105: 0.07855872806 | AU105: 32367.24745 | AV105: 0.07942103217 | AW105: 33384.10621 | AX105: 0.0797479963 | AY105: 34232.71563 | AZ105: 0.07993068935 | BA105: 30911.45582 | BB105: 0.07840373313 | BC105: 31755.00571 | BD105: 0.07924091857 | BE105: 32918.09365 | BF105: 0.08077266931 | BG105: 34218.87831 | BH105: 0.08174210097 | BI105: 35350.14137 | BJ105: 0.08253979025 | BK105: 30911.45582 | BL105: 0.07840373313 | BM105: 31891.69622 | BN105: 0.07958201383 | BO105: 33197.82024 | BP105: 0.08145904755 | BQ105: 34649.39778 | BR105: 0.08277052644 | BS105: 35935.40713 | BT105: 0.08390633962 | BU105: 30911.45582 | BV105: 0.07840373313 | BW105: 32028.38673 | BX105: 0.07992310908 | BY105: 33480.41582 | BZ105: 0.08215246556 | CA105: 35088.79362 | CB105: 0.0838201558 | CC105: 36538.86608 | CD105: 0.08531536865
A106: NHS Luton CCG | B106: E38000102 | C106: 16801.26403 | D106: 0.1020856971 | E106: 18523.24501 | F106: 0.1058955237 | G106: 20434.27188 | H106: 0.1107428565 | I106: 22486.06995 | J106: 0.115835926 | K106: 24676.97708 | L106: 0.1215016104 | M106: 16801.26403 | N106: 0.1020856971 | O106: 18369.29479 | P106: 0.1050154058 | Q106: 20089.00341 | R106: 0.1088716855 | S106: 21906.47847 | T106: 0.1128501879 | U106: 23815.61244 | V106: 0.1172605241 | W106: 16801.26403 | X106: 0.1020856971 | Y106: 18292.31967 | Z106: 0.1045753469 | AA106: 19918.85908 | AB106: 0.107949594 | AC106: 21624.98838 | AD106: 0.111400105 | AE106: 23403.32623 | AF106: 0.1152305575 | AG106: 16801.26403 | AH106: 0.1020856971 | AI106: 18215.34456 | AJ106: 0.1041352879 | AK106: 19750.3747 | AL106: 0.1070364985 | AM106: 21348.96394 | AN106: 0.1099781781 | AO106: 23002.9894 | AP106: 0.1132594259 | AQ106: 16801.26403 | AR106: 0.1020856971 | AS106: 17753.49389 | AT106: 0.1014949342 | AU106: 18774.32727 | AV106: 0.1017468419 | AW106: 19804.59529 | AX106: 0.1020224361 | AY106: 20839.00989 | AZ106: 0.102604677 | BA106: 16801.26403 | BB106: 0.1020856971 | BC106: 17907.44411 | BD106: 0.1023750521 | BE106: 19093.03664 | BF106: 0.1034740767 | BG106: 20298.45103 | BH106: 0.1045665106 | BI106: 21516.50738 | BJ106: 0.1059404598 | BK106: 16801.26403 | BL106: 0.1020856971 | BM106: 17984.41922 | BN106: 0.102815111 | BO106: 19254.88124 | BP106: 0.1043511882 | BQ106: 20553.1487 | BR106: 0.1058785736 | BS106: 21871.35521 | BT106: 0.107687618 | BU106: 16801.26403 | BV106: 0.1020856971 | BW106: 18061.39434 | BX106: 0.10325517 | BY106: 19418.38578 | BZ106: 0.1052372956 | CA106: 20813.09769 | CB106: 0.1072176885 | CC106: 22237.2336 | CD106: 0.1094890871
A107: NHS Mansfield and Ashfield CCG | B107: E38000103 | C107: 14043.89927 | D107: 0.08782926376 | E107: 15331.28121 | F107: 0.09395318794 | G107: 16776.97707 | H107: 0.1000893513 | I107: 18227.73688 | J107: 0.1057784174 | K107: 19534.50361 | L107: 0.1109536727 | M107: 14043.89927 | N107: 0.08782926376 | O107: 15203.78778 | P107: 0.09317188245 | Q107: 16493.10771 | R107: 0.09839582218 | S107: 17757.38739 | T107: 0.1030489055 | U107: 18851.23925 | V107: 0.1070728118 | W107: 14043.89927 | X107: 0.08782926376 | Y107: 15140.04106 | Z107: 0.09278122971 | AA107: 16353.22017 | AB107: 0.09756127056 | AC107: 17528.95283 | AD107: 0.1017232639 | AE107: 18524.1995 | AF107: 0.1052152647 | AG107: 14043.89927 | AH107: 0.08782926376 | AI107: 15076.29435 | AJ107: 0.09239057696 | AK107: 16214.69739 | AL107: 0.09673486091 | AM107: 17304.95376 | AN107: 0.1004233621 | AO107: 18206.63842 | AP107: 0.1034115553 | AQ107: 14043.89927 | AR107: 0.08782926376 | AS107: 14693.81406 | AT107: 0.0900466605 | AU107: 15412.22055 | AV107: 0.09194738429 | AW107: 16051.66927 | AX107: 0.09315035555 | AY107: 16490.09468 | AZ107: 0.09366178959 | BA107: 14043.89927 | BB107: 0.08782926376 | BC107: 14821.30749 | BD107: 0.09082796599 | BE107: 15674.25381 | BF107: 0.09351064196 | BG107: 16452.44258 | BH107: 0.09547610597 | BI107: 17027.50923 | BJ107: 0.09671424077 | BK107: 14043.89927 | BL107: 0.08782926376 | BM107: 14885.0542 | BN107: 0.09121861873 | BO107: 15807.31757 | BP107: 0.09430448375 | BQ107: 16659.13458 | BR107: 0.09667557206 | BS107: 17308.98685 | BT107: 0.09831300041 | BU107: 14043.89927 | BV107: 0.08782926376 | BW107: 14948.80092 | BX107: 0.09160927147 | BY107: 15941.74608 | BZ107: 0.0951064675 | CA107: 16870.08812 | CB107: 0.09789976855 | CC107: 17599.2143 | CD107: 0.09996145805
A108: NHS Medway CCG | B108: E38000104 | C108: 17495.95554 | D108: 0.07921022971 | E108: 19437.47247 | F108: 0.08387620811 | G108: 21652.33549 | H108: 0.0892438195 | I108: 23848.76616 | J108: 0.09371567966 | K108: 26079.42061 | L108: 0.09811670658 | M108: 17495.95554 | N108: 0.07921022971 | O108: 19275.75073 | P108: 0.08317834956 | Q108: 21285.72091 | R108: 0.08773275457 | S108: 23232.79895 | T108: 0.09129518606 | U108: 25166.25952 | V108: 0.09468118706 | W108: 17495.95554 | X108: 0.07921022971 | Y108: 19194.88986 | Z108: 0.08282942028 | AA108: 21105.05748 | AB108: 0.08698811921 | AC108: 22933.64226 | AD108: 0.09011962537 | AE108: 24729.18131 | AF108: 0.09303679949 | AG108: 17495.95554 | AH108: 0.07921022971 | AI108: 19114.02899 | AJ108: 0.08248049101 | AK108: 20926.15662 | AL108: 0.08625074858 | AM108: 22640.29426 | AN108: 0.08896689037 | AO108: 24304.77102 | AP108: 0.09144007157 | AQ108: 17495.95554 | AR108: 0.07921022971 | AS108: 18628.86376 | AT108: 0.08038691535 | AU108: 19889.76542 | AV108: 0.08197908425 | AW108: 20998.99952 | AX108: 0.08251728828 | AY108: 22010.66492 | AZ108: 0.0828091231 | BA108: 17495.95554 | BB108: 0.07921022971 | BC108: 18790.5855 | BD108: 0.0810847739 | BE108: 20228.17887 | BF108: 0.08337391342 | BG108: 21523.85013 | BH108: 0.08457973173 | BI108: 22728.90237 | BJ108: 0.08551129561 | BK108: 17495.95554 | BL108: 0.07921022971 | BM108: 18871.44637 | BN108: 0.08143370318 | BO108: 20400.02946 | BP108: 0.08408222511 | BQ108: 21794.53288 | BR108: 0.08564340175 | BS108: 23105.08826 | BT108: 0.08692659241 | BU108: 17495.95554 | BV108: 0.07921022971 | BW108: 18952.30725 | BX108: 0.08178263245 | BY108: 20573.64261 | BZ108: 0.08479780153 | CA108: 22070.79652 | CB108: 0.08672900235 | CC108: 23492.96802 | CD108: 0.08838588419
A109: NHS Merton CCG | B109: E38000105 | C109: 13324.02841 | D109: 0.08117478013 | E109: 14809.93151 | F109: 0.08580493344 | G109: 16394.91356 | H109: 0.09076015038 | I109: 18209.29838 | J109: 0.09645777297 | K109: 20047.78445 | L109: 0.1017964073 | M109: 13324.02841 | N109: 0.08117478013 | O109: 14686.23997 | P109: 0.08508829648 | Q109: 16116.1532 | R109: 0.08921696858 | S109: 17737.17765 | T109: 0.09395686859 | U109: 19343.10931 | V109: 0.09821828633 | W109: 13324.02841 | X109: 0.08117478013 | Y109: 14624.3942 | Z109: 0.084729978 | AA109: 15978.78331 | AB109: 0.08845650639 | AC109: 17507.88286 | AD109: 0.09274225481 | AE109: 19005.82144 | AF109: 0.09650564356 | AG109: 13324.02841 | AH109: 0.08117478013 | AI109: 14562.54843 | AJ109: 0.08437165952 | AK109: 15842.75362 | AL109: 0.08770346335 | AM109: 17283.04026 | AN109: 0.09155122501 | AO109: 18678.30927 | AP109: 0.0948426387 | AQ109: 13324.02841 | AR109: 0.08117478013 | AS109: 14191.47382 | AT109: 0.08222174865 | AU109: 15054.71952 | AV109: 0.08334100709 | AW109: 16025.03617 | AX109: 0.08488736185 | AY109: 16907.97589 | AZ109: 0.08585343706 | BA109: 13324.02841 | BB109: 0.08117478013 | BC109: 14315.16536 | BD109: 0.08293838561 | BE109: 15312.03678 | BF109: 0.0847654826 | BG109: 16427.31871 | BH109: 0.08701832136 | BI109: 17462.23087 | BJ109: 0.08866777127 | BK109: 13324.02841 | BL109: 0.08117478013 | BM109: 14377.01113 | BN109: 0.08329670409 | BO109: 15442.7057 | BP109: 0.08548884907 | BQ109: 16634.78906 | BR109: 0.08811732738 | BS109: 17752.52888 | BT109: 0.09014181417 | BU109: 13324.02841 | BV109: 0.08117478013 | BW109: 14438.85689 | BX109: 0.08365502257 | BY109: 15574.71481 | BZ109: 0.08621963469 | CA109: 16846.53701 | CB109: 0.08923899251 | CC109: 18051.8509 | CD109: 0.09166167819
A110: NHS Mid Essex CCG | B110: E38000106 | C110: 25535.9469 | D110: 0.08104077086 | E110: 28418.57499 | F110: 0.08710407342 | G110: 31634.42019 | H110: 0.09339401333 | I110: 34601.42505 | J110: 0.09872018558 | K110: 37497.84982 | L110: 0.1035508942 | M110: 25535.9469 | N110: 0.08104077086 | O110: 28182.0051 | P110: 0.0863789772 | Q110: 31098.38366 | R110: 0.09181147751 | S110: 33706.57936 | T110: 0.09616713083 | U110: 36183.32907 | V110: 0.09992082478 | W110: 25535.9469 | X110: 0.08104077086 | Y110: 28063.72016 | Z110: 0.0860164291 | AA110: 30834.23104 | AB110: 0.09103162211 | AC110: 33271.97981 | AD110: 0.09492718919 | AE110: 35554.14284 | AF110: 0.09818331723 | AG110: 25535.9469 | AH110: 0.08104077086 | AI110: 27945.43521 | AJ110: 0.08565388099 | AK110: 30572.65552 | AL110: 0.09025937507 | AM110: 32845.81882 | AN110: 0.09371132332 | AO110: 34943.19244 | AP110: 0.09649616824 | AQ110: 25535.9469 | AR110: 0.08104077086 | AS110: 27235.72554 | AT110: 0.08347859235 | AU110: 29057.32148 | AV110: 0.08578566804 | AW110: 30461.42969 | AX110: 0.08690850126 | AY110: 31640.76298 | AZ110: 0.08737645802 | BA110: 25535.9469 | BB110: 0.08104077086 | BC110: 27472.29543 | BD110: 0.08420368856 | BE110: 29552.12443 | BF110: 0.08724647033 | BG110: 31223.90584 | BH110: 0.08908389683 | BI110: 32674.68575 | BJ110: 0.09023165179 | BK110: 25535.9469 | BL110: 0.08104077086 | BM110: 27590.58038 | BN110: 0.08456623667 | BO110: 29803.39156 | BP110: 0.087988284 | BQ110: 31617.1399 | BR110: 0.09020581997 | BS110: 33216.21578 | BT110: 0.09172709539 | BU110: 25535.9469 | BV110: 0.08104077086 | BW110: 27708.86532 | BX110: 0.08492878478 | BY110: 30057.23578 | BZ110: 0.08873770601 | CA110: 32018.4816 | CB110: 0.09135087475 | CC110: 33774.57947 | CD110: 0.09326902537
A111: NHS Milton Keynes CCG | B111: E38000107 | C111: 15739.55169 | D111: 0.07559823096 | E111: 18115.14202 | F111: 0.08193189517 | G111: 20718.15584 | H111: 0.08801255669 | I111: 23329.47911 | J111: 0.09403256392 | K111: 25919.30337 | L111: 0.09966662834 | M111: 15739.55169 | N111: 0.07559823096 | O111: 17964.34619 | P111: 0.0812498697 | Q111: 20367.03052 | R111: 0.0865209453 | S111: 22726.31193 | T111: 0.0916014185 | U111: 25010.6626 | V111: 0.09617266245 | W111: 15739.55169 | X111: 0.07559823096 | Y111: 17888.94827 | Z111: 0.08090885696 | AA111: 20194.00002 | AB111: 0.08578589641 | AC111: 22433.37183 | AD111: 0.09042068454 | AE111: 24575.748 | AF111: 0.09450029992 | AG111: 15739.55169 | AH111: 0.07559823096 | AI111: 17813.55036 | AJ111: 0.08056784422 | AK111: 20022.65761 | AL111: 0.08505801874 | AM111: 22146.11972 | AN111: 0.08926287673 | AO111: 24153.43863 | AP111: 0.09287640785 | AQ111: 15739.55169 | AR111: 0.07559823096 | AS111: 17361.16286 | AT111: 0.0785217678 | AU111: 19030.05334 | AV111: 0.08084134807 | AW111: 20538.93171 | AX111: 0.082784892 | AY111: 21870.68877 | AZ111: 0.08409862637 | BA111: 15739.55169 | BB111: 0.07559823096 | BC111: 17511.95869 | BD111: 0.07920379328 | BE111: 19354.16902 | BF111: 0.08221822012 | BG111: 21052.87572 | BH111: 0.08485641161 | BI111: 22585.37082 | BJ111: 0.08684676928 | BK111: 15739.55169 | BL111: 0.07559823096 | BM111: 17587.35661 | BN111: 0.07954480601 | BO111: 19518.75901 | BP111: 0.08291741296 | BQ111: 21317.93358 | BR111: 0.0859247625 | BS111: 22959.69452 | BT111: 0.08828614365 | BU111: 15739.55169 | BV111: 0.07559823096 | BW111: 17662.75453 | BX111: 0.07988581875 | BY111: 19685.03711 | BZ111: 0.08362377701 | CA111: 21588.45635 | CB111: 0.08701514047 | CC111: 23345.6542 | CD111: 0.08977026146
A112: NHS Nene CCG | B112: E38000108 | C112: 42107.90236 | D112: 0.08239004141 | E112: 47112.11277 | F112: 0.08859323925 | G112: 52675.24044 | H112: 0.09487273593 | I112: 58068.65521 | J112: 0.1005134931 | K112: 63159.74989 | L112: 0.1056890058 | M112: 42107.90236 | N112: 0.08239004141 | O112: 46720.5515 | P112: 0.08785691734 | Q112: 51783.91593 | R112: 0.09326738217 | S112: 56569.03534 | T112: 0.09791773755 | U112: 60948.35506 | V112: 0.101988546 | W112: 42107.90236 | X112: 0.08239004141 | Y112: 46524.77087 | Z112: 0.08748875639 | AA112: 51344.68149 | AB112: 0.09247628236 | AC112: 55840.71522 | AD112: 0.09665705743 | AE112: 59889.88627 | AF112: 0.1002173465 | AG112: 42107.90236 | AH112: 0.08239004141 | AI112: 46328.99024 | AJ112: 0.08712059544 | AK112: 50909.73227 | AL112: 0.0916929006 | AM112: 55126.53679 | AN112: 0.09542085577 | AO112: 58862.09532 | AP112: 0.09849748213 | AQ112: 42107.90236 | AR112: 0.08239004141 | AS112: 45154.30645 | AT112: 0.08491162971 | AU112: 48390.02643 | AV112: 0.08715468901 | AW112: 51130.67765 | AX112: 0.08850425405 | AY112: 53306.47709 | AZ112: 0.08920093222 | BA112: 42107.90236 | BB112: 0.08239004141 | BC112: 45545.86771 | BD112: 0.08564795162 | BE112: 49212.78752 | BF112: 0.08863655402 | BG112: 52408.4671 | BH112: 0.0907160339 | BI112: 55045.82693 | BJ112: 0.09211149085 | BK112: 42107.90236 | BL112: 0.08239004141 | BM112: 45741.64835 | BN112: 0.08601611258 | BO112: 49630.59589 | BP112: 0.08938906359 | BQ112: 53067.46521 | BR112: 0.09185672162 | BS112: 55956.83326 | BT112: 0.0936359325 | BU112: 42107.90236 | BV112: 0.08239004141 | BW112: 45937.42898 | BX112: 0.08638427353 | BY112: 50052.68947 | BZ112: 0.09014929121 | CA112: 53740.05043 | CB112: 0.09302092785 | CC112: 56896.15854 | CD112: 0.09520776194
A113: NHS Newark & Sherwood CCG | B113: E38000109 | C113: 8523.76651 | D113: 0.08772917363 | E113: 9444.813131 | F113: 0.09418441495 | G113: 10331.66779 | H113: 0.100093662 | I113: 11293.6042 | J113: 0.1058643063 | K113: 12137.14239 | L113: 0.1106595769 | M113: 8523.76651 | N113: 0.08772917363 | O113: 9366.144607 | P113: 0.09339992628 | Q113: 10156.54386 | R113: 0.09839705344 | S113: 11001.61579 | T113: 0.1031272572 | U113: 11711.69279 | V113: 0.1067805689 | W113: 8523.76651 | X113: 0.08772917363 | Y113: 9326.810346 | Z113: 0.09300768195 | AA113: 10070.2448 | AB113: 0.09756098433 | AC113: 10859.80584 | AD113: 0.101797955 | AE113: 11508.0543 | AF113: 0.1049239086 | AG113: 8523.76651 | AH113: 0.08772917363 | AI113: 9287.476084 | AJ113: 0.09261543761 | AK113: 9984.787691 | AL113: 0.096733072 | AM113: 10720.74939 | AN113: 0.1004944637 | AO113: 11310.3179 | AP113: 0.1031210603 | AQ113: 8523.76651 | AR113: 0.08772917363 | AS113: 9051.470513 | AT113: 0.09026197161 | AU113: 9489.725806 | AV113: 0.0919368902 | AW113: 9942.722539 | AX113: 0.09320137363 | AY113: 10241.47415 | AZ113: 0.09337594958 | BA113: 8523.76651 | BB113: 0.08772917363 | BC113: 9130.139037 | BD113: 0.09104646028 | BE113: 9651.378667 | BF113: 0.09350299038 | BG113: 10191.51872 | BH113: 0.09553354632 | BI113: 10576.10715 | BJ113: 0.0964269434 | BK113: 8523.76651 | BL113: 0.08772917363 | BM113: 9169.473298 | BN113: 0.09143870461 | BO113: 9733.46801 | BP113: 0.09429827562 | BQ113: 10319.83111 | BR113: 0.0967363246 | BS113: 10751.37539 | BT113: 0.09802493973 | BU113: 8523.76651 | BV113: 0.08772917363 | BW113: 9208.80756 | BX113: 0.09183094894 | BY113: 9816.399295 | BZ113: 0.09510171764 | CA113: 10450.78902 | CB113: 0.09796390155 | CC113: 10932.0919 | CD113: 0.09967261034
A114: NHS Newbury and District CCG | B114: E38000110 | C114: 6325.709283 | D114: 0.07464844564 | E114: 7059.06259 | F114: 0.08153225444 | G114: 7764.04249 | H114: 0.08782853495 | I114: 8476.804157 | J114: 0.09376995748 | K114: 9121.737974 | L114: 0.09910623614 | M114: 6325.709283 | N114: 0.07464844564 | O114: 7000.430322 | P114: 0.08085505107 | Q114: 7632.601873 | R114: 0.08634165015 | S114: 8257.884271 | T114: 0.09134827733 | U114: 8802.444186 | V114: 0.09563715978 | W114: 6325.709283 | X114: 0.07464844564 | Y114: 6971.114188 | Z114: 0.08051644938 | AA114: 7567.829454 | AB114: 0.08560893047 | AC114: 8151.561489 | AD114: 0.09017214037 | AE114: 8649.61643 | AF114: 0.09397671046 | AG114: 6325.709283 | AH114: 0.07464844564 | AI114: 6941.798053 | AJ114: 0.0801778477 | AK114: 7503.688961 | AL114: 0.08488335928 | AM114: 8047.303162 | AN114: 0.08901884029 | AO114: 8501.218115 | AP114: 0.0923643863 | AQ114: 6325.709283 | AR114: 0.07464844564 | AS114: 6765.901249 | AT114: 0.07814623757 | AU114: 7132.116448 | AV114: 0.08068005032 | AW114: 7463.973319 | AX114: 0.08256607654 | AY114: 7699.066295 | AZ114: 0.08364913402 | BA114: 6325.709283 | BB114: 0.07464844564 | BC114: 6824.533517 | BD114: 0.07882344095 | BE114: 7253.446248 | BF114: 0.08205255937 | BG114: 7650.509604 | BH114: 0.08462953102 | BI114: 7950.203538 | BJ114: 0.08637770032 | BK114: 6325.709283 | BL114: 0.07464844564 | BM114: 6853.849651 | BN114: 0.07916204263 | BO114: 7315.059037 | BP114: 0.08274953662 | BQ114: 7746.712511 | BR114: 0.08569372246 | BS114: 8081.739823 | BT114: 0.0878068212 | BU114: 6325.709283 | BV114: 0.07464844564 | BW114: 6883.165785 | BX114: 0.07950064432 | BY114: 7377.303752 | BZ114: 0.08345366236 | CA114: 7844.898913 | CB114: 0.08677985523 | CC114: 8217.364959 | CD114: 0.08928036679
A115: NHS Newcastle Gateshead CCG | B115: E38000212 | C115: 31494.41388 | D115: 0.07756480613 | E115: 33589.43263 | F115: 0.08114173501 | G115: 36189.29016 | H115: 0.08578507127 | I115: 38599.8737 | J115: 0.08933915128 | K115: 41353.51597 | L115: 0.09373813575 | M115: 31494.41388 | N115: 0.07756480613 | O115: 33310.11848 | P115: 0.08046699798 | Q115: 35577.20986 | R115: 0.08433416266 | S115: 37604.04576 | T115: 0.08703431413 | U115: 39907.83195 | V115: 0.09046112964 | W115: 31494.41388 | X115: 0.07756480613 | Y115: 33170.46141 | Z115: 0.08012962946 | AA115: 35275.58375 | AB115: 0.08361917165 | AC115: 37120.40218 | AD115: 0.08591492428 | AE115: 39215.86533 | AF115: 0.08889261341 | AG115: 31494.41388 | AH115: 0.07756480613 | AI115: 33030.80434 | AJ115: 0.07979226094 | AK115: 34976.90033 | AL115: 0.08291115615 | AM115: 36646.14945 | AN115: 0.08481726947 | AO115: 38543.95413 | AP115: 0.08736955782 | AQ115: 31494.41388 | AR115: 0.07756480613 | AS115: 32192.86191 | AT115: 0.07776804984 | AU115: 33246.5964 | AV115: 0.07880954914 | AW115: 33992.68489 | AX115: 0.07867584338 | AY115: 34912.00729 | AZ115: 0.07913683763 | BA115: 31494.41388 | BB115: 0.07756480613 | BC115: 32472.17605 | BD115: 0.07844278687 | BE115: 33811.5936 | BF115: 0.08014884939 | BG115: 34841.20555 | BH115: 0.08063973881 | BI115: 36049.09517 | BJ115: 0.08171433305 | BK115: 31494.41388 | BL115: 0.07756480613 | BM115: 32611.83313 | BN115: 0.07878015539 | BO115: 34098.50624 | BP115: 0.08082896279 | BQ115: 35278.8156 | BR115: 0.08165258436 | BS115: 36644.65923 | BT115: 0.08306432866 | BU115: 31494.41388 | BV115: 0.07756480613 | BW115: 32751.4902 | BX115: 0.07911752391 | BY115: 34388.36158 | BZ115: 0.08151605172 | CA115: 35725.44822 | CB115: 0.0826863126 | CC115: 37258.73661 | CD115: 0.08445628934
A116: NHS Newham CCG | B116: E38000113 | C116: 26800.56889 | D116: 0.103870122 | E116: 31310.20527 | F116: 0.1109661372 | G116: 35919.1088 | H116: 0.1201307986 | I116: 40961.72544 | J116: 0.129551918 | K116: 45850.09834 | L116: 0.1381692935 | M116: 26800.56889 | N116: 0.103870122 | O116: 31051.11619 | P116: 0.1100479026 | Q116: 35314.98078 | R116: 0.1181103036 | S116: 39911.6201 | T116: 0.1262306917 | U116: 44258.14016 | V116: 0.1333719267 | W116: 26800.56889 | X116: 0.103870122 | Y116: 30921.57165 | Z116: 0.1095887853 | AA116: 35017.27347 | AB116: 0.117114627 | AC116: 39401.61562 | AD116: 0.1246176723 | AE116: 43496.16043 | AF116: 0.1310757004 | AG116: 26800.56889 | AH116: 0.103870122 | AI116: 30792.02712 | AJ116: 0.109129668 | AK116: 34722.47062 | AL116: 0.1161286643 | AM116: 38901.51384 | AN116: 0.1230359727 | AO116: 42756.26532 | AP116: 0.1288460262 | AQ116: 26800.56889 | AR116: 0.103870122 | AS116: 30014.75989 | AT116: 0.1063749642 | AU116: 33014.6472 | AV116: 0.1104168803 | AW116: 36103.42273 | AX116: 0.1141862949 | AY116: 38756.83846 | AZ116: 0.1167937514 | BA116: 26800.56889 | BB116: 0.103870122 | BC116: 30273.84897 | BD116: 0.1072931988 | BE116: 33572.30382 | BF116: 0.1122819526 | BG116: 36998.19184 | BH116: 0.1170162307 | BI116: 40008.97678 | BJ116: 0.1205670708 | BK116: 26800.56889 | BL116: 0.103870122 | BM116: 30403.3935 | BN116: 0.1077523161 | BO116: 33855.48883 | BP116: 0.1132290596 | BQ116: 37459.65373 | BR116: 0.1184757218 | BS116: 40664.79995 | BT116: 0.1225433943 | BU116: 26800.56889 | BV116: 0.103870122 | BW116: 30532.93804 | BX116: 0.1082114334 | BY116: 34141.5783 | BZ116: 0.1141858806 | CA116: 37930.62998 | CB116: 0.1199653045 | CC116: 41341.00962 | CD116: 0.1245811524
A117: NHS North & West Reading CCG | B117: E38000114 | C117: 6253.559372 | D117: 0.07793568509 | E117: 6951.848984 | F117: 0.08389873261 | G117: 7690.381624 | H117: 0.0897989447 | I117: 8375.049434 | J117: 0.09504141437 | K117: 9015.79715 | L117: 0.09988696155 | M117: 6253.559372 | N117: 0.07793568509 | O117: 6894.008578 | P117: 0.08320068282 | Q117: 7560.106109 | R117: 0.08827774531 | S117: 8158.526173 | T117: 0.09258427342 | U117: 8699.919256 | V117: 0.09638731727 | W117: 6253.559372 | X117: 0.07793568509 | Y117: 6865.088376 | Z117: 0.08285165793 | AA117: 7495.907838 | AB117: 0.08752811581 | AC117: 8053.36736 | AD117: 0.09139091421 | AE117: 8548.726495 | AF117: 0.09471223682 | AG117: 6253.559372 | AH117: 0.07793568509 | AI117: 6836.168173 | AJ117: 0.08250263303 | AK117: 7432.335891 | AL117: 0.08678579976 | AM117: 7950.250401 | AN117: 0.09022072629 | AO117: 8401.915787 | AP117: 0.09308570559 | AQ117: 6253.559372 | AR117: 0.07793568509 | AS117: 6662.646957 | AT117: 0.08040848367 | AU117: 7064.057029 | AV117: 0.0824854861 | AW117: 7373.30656 | AX117: 0.08367347435 | AY117: 7608.345613 | AZ117: 0.08429365846 | BA117: 6253.559372 | BB117: 0.07793568509 | BC117: 6720.487362 | BD117: 0.08110653346 | BE117: 7184.311352 | BF117: 0.08388967015 | BG117: 7557.800739 | BH117: 0.08576714412 | BI117: 7856.796118 | BJ117: 0.08704626765 | BK117: 6253.559372 | BL117: 0.07793568509 | BM117: 6749.407565 | BN117: 0.08145555835 | BO117: 7245.378 | BP117: 0.08460273236 | BQ117: 7652.950465 | BR117: 0.08684691858 | BS117: 7986.925191 | BT117: 0.08848798129 | BU117: 6253.559372 | BV117: 0.07793568509 | BW117: 6778.327768 | BX117: 0.08180458324 | BY117: 7307.070972 | BZ117: 0.08532310804 | CA117: 7750.061971 | CB117: 0.08794895564 | CC117: 8121.099372 | CD117: 0.0899745111
A118: NHS North Derbyshire CCG | B118: E38000115 | C118: 20155.22218 | D118: 0.08834584982 | E118: 21955.24357 | F118: 0.09491286343 | G118: 23920.0008 | H118: 0.1015625034 | I118: 25683.35225 | J118: 0.1071926221 | K118: 27281.17677 | L118: 0.1122589777 | M118: 20155.22218 | N118: 0.08834584982 | O118: 21772.52325 | P118: 0.09412296062 | Q118: 23514.80428 | R118: 0.09984206982 | S118: 25019.54675 | T118: 0.1044221484 | U118: 26325.3999 | V118: 0.1083260633 | W118: 20155.22218 | X118: 0.08834584982 | Y118: 21681.16309 | Z118: 0.09372800922 | AA118: 23315.12812 | AB118: 0.09899426002 | AC118: 24697.15645 | AD118: 0.1030766129 | AE118: 25867.92393 | AF118: 0.1064436011 | AG118: 20155.22218 | AH118: 0.08834584982 | AI118: 21589.80293 | AJ118: 0.09333305781 | AK118: 23117.40001 | AL118: 0.09815472153 | AM118: 24381.02596 | AN118: 0.1017572035 | AO118: 25423.7071 | AP118: 0.1046156987 | AQ118: 20155.22218 | AR118: 0.08834584982 | AS118: 21041.64198 | AT118: 0.09096334939 | AU118: 21971.94065 | AV118: 0.09329118821 | AW118: 22612.2622 | AX118: 0.09437505093 | AY118: 23022.5387 | AZ118: 0.09473516048 | BA118: 20155.22218 | BB118: 0.08834584982 | BC118: 21224.3623 | BD118: 0.0917532522 | BE118: 22345.9682 | BF118: 0.09487928072 | BG118: 23177.87465 | BH118: 0.09673570389 | BI118: 23774.29516 | BJ118: 0.09782855385 | BK118: 20155.22218 | BL118: 0.08834584982 | BM118: 21315.72246 | BN118: 0.0921482036 | BO118: 22535.90406 | BP118: 0.09568573395 | BQ118: 23469.57962 | BR118: 0.09795317037 | BS118: 24168.03704 | BT118: 0.09944875748 | BU118: 20155.22218 | BV118: 0.08834584982 | BW118: 21407.08262 | BX118: 0.09254315501 | BY118: 22727.78798 | BZ118: 0.0965004585 | CA118: 23767.29892 | CB118: 0.09919573838 | CC118: 24574.01853 | CD118: 0.1011193257
A119: NHS North Durham CCG | B119: E38000116 | C119: 16690.64921 | D119: 0.08152119374 | E119: 18059.38598 | F119: 0.08661576009 | G119: 19405.5594 | H119: 0.09159614558 | I119: 20816.81245 | J119: 0.09589465842 | K119: 22080.52255 | L119: 0.0999570962 | M119: 16690.64921 | N119: 0.08152119374 | O119: 17909.21119 | P119: 0.08589549733 | Q119: 19077.05037 | R119: 0.09004555069 | S119: 20279.28154 | T119: 0.09341847033 | U119: 21307.52589 | V119: 0.09645779035 | W119: 16690.64921 | X119: 0.08152119374 | Y119: 17834.1238 | Z119: 0.08553536594 | AA119: 18915.16491 | AB119: 0.08928143541 | AC119: 20018.219 | AD119: 0.09221586051 | AE119: 20937.5364 | AF119: 0.09478287189 | AG119: 16690.64921 | AH119: 0.08152119374 | AI119: 17759.03641 | AJ119: 0.08517523456 | AK119: 18754.85881 | AL119: 0.08852477492 | AM119: 19762.22547 | AN119: 0.09103660159 | AO119: 20578.2704 | AP119: 0.09315649796 | AQ119: 16690.64921 | AR119: 0.08152119374 | AS119: 17308.51205 | AT119: 0.08301444627 | AU119: 17826.18904 | AV119: 0.08414136242 | AW119: 18329.93064 | AX119: 0.08443859701 | AY119: 18636.295 | AZ119: 0.08436530106 | BA119: 16690.64921 | BB119: 0.08152119374 | BC119: 17458.68683 | BD119: 0.08373470904 | BE119: 18129.42815 | BF119: 0.08557268079 | BG119: 18787.94759 | BH119: 0.08654849638 | BI119: 19244.28757 | BJ119: 0.08711764406 | BK119: 16690.64921 | BL119: 0.08152119374 | BM119: 17533.77423 | BN119: 0.08409484042 | BO119: 18283.41676 | BP119: 0.08629952215 | BQ119: 19024.16202 | BR119: 0.08763664097 | BS119: 19562.73132 | BT119: 0.08855921828 | BU119: 16690.64921 | BV119: 0.08152119374 | BW119: 17608.86162 | BX119: 0.0844549718 | BY119: 18438.98474 | BZ119: 0.08703381829 | CA119: 19265.24668 | CB119: 0.08874722075 | CC119: 19891.074 | CD119: 0.09004560433
A120: NHS North East Essex CCG | B120: E38000117 | C120: 23904.31042 | D120: 0.08988610372 | E120: 26202.95165 | F120: 0.09475969784 | G120: 29014.87071 | H120: 0.1006621937 | I120: 31776.36509 | J120: 0.1054642054 | K120: 34546.27925 | L120: 0.1102869341 | M120: 23904.31042 | N120: 0.08988610372 | O120: 25984.52175 | P120: 0.09396977345 | Q120: 28522.60135 | R120: 0.09895434827 | S120: 30953.74653 | T120: 0.1027339746 | U120: 33334.39597 | V120: 0.1064180691 | W120: 23904.31042 | X120: 0.08988610372 | Y120: 25875.30681 | Z120: 0.09357481125 | AA120: 28280.01668 | AB120: 0.09811274175 | AC120: 30554.22552 | AD120: 0.1014079838 | AE120: 32754.33644 | AF120: 0.1045662637 | AG120: 23904.31042 | AH120: 0.08988610372 | AI120: 25766.09186 | AJ120: 0.09317984905 | AK120: 28039.7987 | AL120: 0.09727934603 | AM120: 30162.46196 | AN120: 0.1001077397 | AO120: 32191.08891 | AP120: 0.1027681296 | AQ120: 23904.31042 | AR120: 0.08988610372 | AS120: 25110.80218 | AT120: 0.09081007587 | AU120: 26648.19107 | AV120: 0.09245139839 | AW120: 27970.52789 | AX120: 0.09283281743 | AY120: 29146.51235 | AZ120: 0.09304850067 | BA120: 23904.31042 | BB120: 0.08988610372 | BC120: 25329.23207 | BD120: 0.09160000027 | BE120: 27102.59356 | BF120: 0.09402787109 | BG120: 28671.46107 | BH120: 0.09515918044 | BI120: 30099.70667 | BJ120: 0.09609151665 | BK120: 23904.31042 | BL120: 0.08988610372 | BM120: 25438.44702 | BN120: 0.09199496246 | BO120: 27333.34483 | BP120: 0.09482842363 | BQ120: 29032.95539 | BR120: 0.09635896247 | BS120: 30598.95418 | BT120: 0.09768533449 | BU120: 23904.31042 | BV120: 0.08988610372 | BW120: 25547.66197 | BX120: 0.09238992466 | BY120: 27566.46277 | BZ120: 0.09563718697 | CA120: 29401.90295 | CB120: 0.0975834814 | CC120: 31113.72096 | CD120: 0.09932869671
A121: NHS North East Hampshire and Farnham CCG | B121: E38000118 | C121: 11984.29034 | D121: 0.07155654611 | E121: 13235.33774 | F121: 0.07746305594 | G121: 14587.46812 | H121: 0.08321430761 | I121: 15852.6748 | J121: 0.08822726401 | K121: 17032.38481 | L121: 0.09286001966 | M121: 11984.29034 | N121: 0.07155654611 | O121: 13125.14924 | P121: 0.07681815079 | Q121: 14340.15297 | R121: 0.0818034967 | S121: 15442.26101 | T121: 0.08594312673 | U121: 16434.59638 | V121: 0.08960089619 | W121: 11984.29034 | X121: 0.07155654611 | Y121: 13070.055 | Z121: 0.07649569821 | AA121: 14218.27892 | AB121: 0.08110826536 | AC121: 15242.93542 | AD121: 0.08483379019 | AE121: 16148.4691 | AF121: 0.08804093936 | AG121: 11984.29034 | AH121: 0.07155654611 | AI121: 13014.96075 | AJ121: 0.07617324564 | AK121: 14097.59388 | AL121: 0.08041981677 | AM121: 15047.48011 | AN121: 0.08374599349 | AO121: 15870.63471 | AP121: 0.08652619511 | AQ121: 11984.29034 | AR121: 0.07155654611 | AS121: 12684.39527 | AT121: 0.07423853018 | AU121: 13398.45297 | AV121: 0.07643156285 | AW121: 13953.89919 | AX121: 0.07765972392 | AY121: 14368.8295 | AZ121: 0.07833840092 | BA121: 11984.29034 | BB121: 0.07155654611 | BC121: 12794.58376 | BD121: 0.07488343533 | BE121: 13626.74388 | BF121: 0.07773384984 | BG121: 14303.60275 | BH121: 0.07960598148 | BI121: 14839.01383 | BJ121: 0.08090183094 | BK121: 11984.29034 | BL121: 0.07155654611 | BM121: 12849.67801 | BN121: 0.07520588791 | BO121: 13742.67286 | BP121: 0.07839516746 | BQ121: 14483.95639 | BR121: 0.0806097306 | BS121: 15085.27878 | BT121: 0.08224445961 | BU121: 11984.29034 | BV121: 0.07155654611 | BW121: 12904.77226 | BX121: 0.07552834048 | BY121: 13859.79085 | BZ121: 0.07906326782 | CA121: 14668.02854 | CB121: 0.08163417487 | CC121: 15339.19896 | CD121: 0.08362882435
A122: NHS North East Lincolnshire CCG | B122: E38000119 | C122: 11317.58444 | D122: 0.08742147725 | E122: 12109.39561 | F122: 0.09309190964 | G122: 12956.29684 | H122: 0.09870712206 | I122: 13843.28986 | J122: 0.1040379518 | K122: 14669.62055 | L122: 0.1092627778 | M122: 11317.58444 | N122: 0.08742147725 | O122: 12008.63681 | P122: 0.09231731868 | Q122: 12736.82896 | R122: 0.09703511321 | S122: 13485.76335 | T122: 0.1013509946 | U122: 14156.29262 | V122: 0.1054393909 | W122: 11317.58444 | X122: 0.08742147725 | Y122: 11958.25742 | Z122: 0.0919300232 | AA122: 12628.67772 | AB122: 0.09621116654 | AC122: 13312.12351 | AD122: 0.1000460206 | AE122: 13910.59178 | AF122: 0.1036093533 | AG122: 11317.58444 | AH122: 0.08742147725 | AI122: 11907.87802 | AJ122: 0.09154272772 | AK122: 12521.58161 | AL122: 0.09539525838 | AM122: 13141.85521 | AN122: 0.09876638513 | AO122: 13672.01213 | AP122: 0.1018323561 | AQ122: 11317.58444 | AR122: 0.08742147725 | AS122: 11605.60165 | AT122: 0.08921895484 | AU122: 11901.1628 | AV122: 0.09066861798 | AW122: 12189.19671 | AX122: 0.09160676922 | AY122: 12382.39442 | AZ122: 0.09222698061 | BA122: 11317.58444 | BB122: 0.08742147725 | BC122: 11706.36044 | BD122: 0.0899935458 | BE122: 12103.74853 | BF122: 0.09221201077 | BG122: 12493.83632 | BH122: 0.09389625976 | BI122: 12786.14721 | BJ122: 0.09523422619 | BK122: 11317.58444 | BL122: 0.08742147725 | BM122: 11756.73983 | BN122: 0.09038084128 | BO122: 12206.6241 | BP122: 0.09299576491 | BQ122: 12650.949 | BR122: 0.09507702544 | BS122: 12997.61781 | BT122: 0.09680930884 | BU122: 11317.58444 | BV122: 0.08742147725 | BW122: 11807.11923 | BX122: 0.09076813676 | BY122: 12310.55481 | BZ122: 0.09378755756 | CA122: 12811.30101 | CB122: 0.09628213595 | CC122: 13215.66204 | CD122: 0.09843335348
A123: NHS North Hampshire CCG | B123: E38000120 | C123: 13155.49384 | D123: 0.07419906281 | E123: 14731.22136 | F123: 0.07994801564 | G123: 16466.52535 | H123: 0.08596014485 | I123: 18093.99174 | J123: 0.09119036255 | K123: 19634.23937 | L123: 0.09598278925 | M123: 13155.49384 | N123: 0.07419906281 | O123: 14608.77976 | P123: 0.07928351113 | Q123: 16187.81284 | R123: 0.0845051829 | S123: 17626.6615 | T123: 0.08883510482 | U123: 18946.58111 | V123: 0.09262114346 | W123: 13155.49384 | X123: 0.07419906281 | Y123: 14547.55896 | Z123: 0.07895125888 | AA123: 16050.46653 | AB123: 0.08378819443 | AC123: 17399.69331 | AD123: 0.08769122722 | AE123: 18617.43825 | AF123: 0.09101211503 | AG123: 13155.49384 | AH123: 0.07419906281 | AI123: 14486.33816 | AJ123: 0.07861900662 | AK123: 15914.46018 | AL123: 0.08307820098 | AM123: 17177.13212 | AN123: 0.08656956013 | AO123: 18297.83502 | AP123: 0.08944972143 | AQ123: 13155.49384 | AR123: 0.07419906281 | AS123: 14119.01336 | AT123: 0.07662549309 | AU123: 15126.56135 | AV123: 0.07896513544 | AW123: 15931.89269 | AX123: 0.08029378434 | AY123: 16570.25262 | AZ123: 0.08100436361 | BA123: 13155.49384 | BB123: 0.07419906281 | BC123: 14241.45496 | BD123: 0.0772899976 | BE123: 15383.83443 | BF123: 0.08030817725 | BG123: 16330.09336 | BH123: 0.08230064189 | BI123: 17111.12315 | BJ123: 0.0836484315 | BK123: 13155.49384 | BL123: 0.07419906281 | BM123: 14302.67576 | BN123: 0.07762224986 | BO123: 15514.48092 | BP123: 0.08099019067 | BQ123: 16535.45857 | BR123: 0.08333564444 | BS123: 17394.41088 | BT123: 0.08503329528 | BU123: 13155.49384 | BV123: 0.07419906281 | BW123: 14363.89656 | BX123: 0.07795450211 | BY123: 15646.46738 | BZ123: 0.08167919909 | CA123: 16745.05796 | CB123: 0.08439198649 | CC123: 17686.50471 | CD123: 0.08646120802
A124: NHS North Kirklees CCG | B124: E38000121 | C124: 14536.62351 | D124: 0.09763986777 | E124: 15896.37259 | F124: 0.1032097948 | G124: 17387.51859 | H124: 0.109286729 | I124: 18732.39636 | J124: 0.1144592225 | K124: 20021.43627 | L124: 0.1191184928 | M124: 14536.62351 | N124: 0.09763986777 | O124: 15764.34512 | P124: 0.1023525848 | Q124: 17093.73702 | R124: 0.1074402075 | S124: 18249.40444 | T124: 0.1115080315 | U124: 19321.8352 | V124: 0.1149561828 | W124: 14536.62351 | X124: 0.09763986777 | Y124: 15698.33138 | Z124: 0.1019239799 | AA124: 16948.96485 | AB124: 0.106530263 | AC124: 18014.82984 | AD124: 0.1100747271 | AE124: 18986.976 | AF124: 0.112963922 | AG124: 14536.62351 | AH124: 0.09763986777 | AI124: 15632.31764 | AJ124: 0.1014953749 | AK124: 16805.60509 | AL124: 0.1056291961 | AM124: 17784.80994 | AN124: 0.108669253 | AO124: 18661.8221 | AP124: 0.1110294033 | AQ124: 14536.62351 | AR124: 0.09763986777 | AS124: 15236.23522 | AT124: 0.09892374511 | AU124: 15975.10719 | AV124: 0.1004092218 | AW124: 16497.83868 | AX124: 0.1008055645 | AY124: 16904.23617 | AZ124: 0.1005725617 | BA124: 14536.62351 | BB124: 0.09763986777 | BC124: 15368.2627 | BD124: 0.09978095504 | BE124: 16246.29018 | BF124: 0.1021137032 | BG124: 16909.38429 | BH124: 0.1033202022 | BI124: 17454.50019 | BJ124: 0.1038463838 | BK124: 14536.62351 | BL124: 0.09763986777 | BM124: 15434.27643 | BN124: 0.10020956 | BO124: 16384.00029 | BP124: 0.1029792602 | BQ124: 17121.63192 | BR124: 0.1046170837 | BS124: 17742.70788 | BT124: 0.1055610892 | BU124: 14536.62351 | BV124: 0.09763986777 | BW124: 15500.29017 | BX124: 0.100638165 | BY124: 16523.12281 | BZ124: 0.1038536946 | CA124: 17338.25564 | CB124: 0.1059407041 | CC124: 18039.87461 | CD124: 0.1073290969
A125: NHS North Lincolnshire CCG | B125: E38000122 | C125: 12117.7808 | D125: 0.087341652 | E125: 13221.72529 | F125: 0.09362501973 | G125: 14429.20189 | H125: 0.09980081543 | I125: 15456.34244 | J125: 0.105317133 | K125: 16467.11598 | L125: 0.1106512296 | M125: 12117.7808 | N125: 0.087341652 | O125: 13111.88253 | P125: 0.09284720673 | Q125: 14185.25481 | R125: 0.09811353442 | S125: 15057.41544 | T125: 0.102598906 | U125: 15890.98013 | V125: 0.1067798692 | W125: 12117.7808 | X125: 0.087341652 | Y125: 13056.96116 | Z125: 0.09245830023 | AA125: 14065.0405 | AB125: 0.0972820618 | AC125: 14863.66863 | AD125: 0.1012787451 | AE125: 15615.2167 | AF125: 0.1049268694 | AG125: 12117.7808 | AH125: 0.087341652 | AI125: 13002.03978 | AJ125: 0.09206939374 | AK125: 13945.99901 | AL125: 0.09645870112 | AM125: 14673.68378 | AN125: 0.09998421767 | AO125: 15347.44578 | AP125: 0.1031275755 | AQ125: 12117.7808 | AR125: 0.087341652 | AS125: 12672.51153 | AT125: 0.08973595474 | AU125: 13256.37935 | AV125: 0.09168888749 | AW125: 13610.71034 | AX125: 0.09274128062 | AY125: 13900.03765 | AZ125: 0.09340167753 | BA125: 12117.7808 | BB125: 0.087341652 | BC125: 12782.35428 | BD125: 0.09051376774 | BE125: 13481.56128 | BF125: 0.09324637765 | BG125: 13950.62629 | BH125: 0.09505741546 | BI125: 14353.19138 | BJ125: 0.09644665621 | BK125: 12117.7808 | BL125: 0.087341652 | BM125: 12837.27566 | BN125: 0.09090267424 | BO125: 13595.91148 | BP125: 0.09403729063 | BQ125: 14125.93214 | BR125: 0.09625192248 | BS125: 14590.53633 | BT125: 0.09804150204 | BU125: 12117.7808 | BV125: 0.087341652 | BW125: 12892.19703 | BX125: 0.09129158074 | BY125: 13711.4345 | BZ125: 0.09483631553 | CA125: 14304.85242 | CB125: 0.09747105765 | CC125: 14835.25924 | CD125: 0.09968592421
A126: NHS North Manchester CCG | B126: E38000123 | C126: 10464.43442 | D126: 0.07454362745 | E126: 11416.18808 | F126: 0.07775635525 | G126: 12518.39096 | H126: 0.08236867326 | I126: 13724.45624 | J126: 0.08677577286 | K126: 15046.21629 | L126: 0.09160000176 | M126: 10464.43442 | N126: 0.07454362745 | O126: 11321.70874 | P126: 0.07711285069 | Q126: 12307.46048 | R126: 0.08098079009 | S126: 13372.04642 | T126: 0.0845475874 | U126: 14522.42219 | V126: 0.08841119071 | W126: 10464.43442 | X126: 0.07454362745 | Y126: 11274.46907 | Z126: 0.07679109841 | AA126: 12203.51637 | AB126: 0.08029685728 | AC126: 13200.89161 | AD126: 0.08346542496 | AE126: 14271.71177 | AF126: 0.08688488843 | AG126: 10464.43442 | AH126: 0.07454362745 | AI126: 11227.2294 | AJ126: 0.07646934613 | AK126: 12100.58635 | AL126: 0.07961959698 | AM126: 13033.06009 | AN126: 0.08240427472 | AO126: 14028.26776 | AP126: 0.0854028233 | AQ126: 10464.43442 | AR126: 0.07454362745 | AS126: 10943.79138 | AT126: 0.07453883245 | AU126: 11504.30209 | AV126: 0.07569615801 | AW126: 12094.03548 | AX126: 0.07646709329 | AY126: 12712.35617 | AZ126: 0.0773916728 | BA126: 10464.43442 | BB126: 0.07454362745 | BC126: 11038.27072 | BD126: 0.07518233701 | BE126: 11699.00716 | BF126: 0.07697728094 | BG126: 12394.31527 | BH126: 0.07836567568 | BI126: 13124.34103 | BJ126: 0.07989979931 | BK126: 10464.43442 | BL126: 0.07454362745 | BM126: 11085.51039 | BN126: 0.07550408929 | BO126: 11797.88082 | BP126: 0.07762785118 | BQ126: 12549.17944 | BR126: 0.07934483716 | BS126: 13340.12328 | BT126: 0.08121346208 | BU126: 10464.43442 | BV126: 0.07454362745 | BW126: 11132.75006 | BX126: 0.07582584157 | BY126: 11897.76858 | BZ126: 0.07828509393 | CA126: 12707.23659 | CB126: 0.08034418682 | CC126: 13562.61319 | CD126: 0.0825679605
A127: NHS North Norfolk CCG | B127: E38000124 | C127: 14897.9915 | D127: 0.1032718113 | E127: 16212.27797 | F127: 0.1096758082 | G127: 17744.00271 | H127: 0.1165222138 | I127: 19187.52792 | J127: 0.1220270155 | K127: 20568.77888 | L127: 0.1273293232 | M127: 14897.9915 | N127: 0.1032718113 | O127: 16077.29564 | P127: 0.1087626548 | Q127: 17443.58161 | R127: 0.1145493933 | S127: 18691.85318 | T127: 0.1188746705 | U127: 19848.65263 | V127: 0.1228714413 | W127: 14897.9915 | X127: 0.1032718113 | Y127: 16009.80447 | Z127: 0.1083060781 | AA127: 17295.53755 | AB127: 0.1135772101 | AC127: 18451.11892 | AD127: 0.1173436716 | AE127: 19503.9692 | AF127: 0.1207377071 | AG127: 14897.9915 | AH127: 0.1032718113 | AI127: 15942.3133 | AJ127: 0.1078495014 | AK127: 17148.93783 | AL127: 0.1126145116 | AM127: 18215.05896 | AN127: 0.1158423999 | AO127: 19169.27581 | AP127: 0.1186658153 | AQ127: 14897.9915 | AR127: 0.1032718113 | AS127: 15537.36628 | AT127: 0.1051100412 | AU127: 16299.67047 | AV127: 0.1070374998 | AW127: 16894.2933 | AX127: 0.10744272 | AY127: 17360.12511 | AZ127: 0.1074664177 | BA127: 14897.9915 | BB127: 0.1032718113 | BC127: 15672.34862 | BD127: 0.1060231946 | BE127: 16576.98226 | BF127: 0.1088585649 | BG127: 17316.64563 | BH127: 0.1101287562 | BI127: 17926.533 | BJ127: 0.1109727188 | BK127: 14897.9915 | BL127: 0.1032718113 | BM127: 15739.83979 | BN127: 0.1064797713 | BO127: 16717.80466 | BP127: 0.1097833245 | BQ127: 17534.46664 | BR127: 0.1115140336 | BS127: 18223.19624 | BT127: 0.1128091881 | BU127: 14897.9915 | BV127: 0.1032718113 | BW127: 15807.33096 | BX127: 0.106936348 | BY127: 16860.07138 | BZ127: 0.1107175688 | CA127: 17756.77865 | CB127: 0.1129278723 | CC127: 18529.08137 | CD127: 0.1147027446
A128: NHS North Somerset CCG | B128: E38000125 | C128: 14875.70984 | D128: 0.08651686539 | E128: 16609.48352 | F128: 0.09245982813 | G128: 18431.65406 | H128: 0.09821834202 | I128: 20253.71945 | J128: 0.103208925 | K128: 22007.71386 | L128: 0.1078809503 | M128: 14875.70984 | N128: 0.08651686539 | O128: 16471.03495 | P128: 0.09168912797 | Q128: 18118.99205 | R128: 0.09655223302 | S128: 19729.5314 | T128: 0.100537767 | U128: 21235.39533 | V128: 0.1040950751 | W128: 14875.70984 | X128: 0.08651686539 | Y128: 16401.81066 | Z128: 0.0913037779 | AA128: 17964.91581 | AB128: 0.09573119372 | AC128: 19474.94909 | AD128: 0.09924046622 | AE128: 20865.73043 | AF128: 0.1022829923 | AG128: 14875.70984 | AH128: 0.08651686539 | AI128: 16332.58637 | AJ128: 0.09091842782 | AK128: 17812.34276 | AL128: 0.09491816457 | AM128: 19225.30997 | AN128: 0.09796835491 | AO128: 20506.7796 | AP128: 0.1005234294 | AQ128: 14875.70984 | AR128: 0.08651686539 | AS128: 15917.24065 | AT128: 0.08860632736 | AU128: 16928.4713 | AV128: 0.09020820258 | AW128: 17828.56829 | AX128: 0.09085083718 | AY128: 18566.50787 | AZ128: 0.09101229347 | BA128: 14875.70984 | BB128: 0.08651686539 | BC128: 16055.68922 | BD128: 0.08937702752 | BE128: 17217.08239 | BF128: 0.09174614935 | BG128: 18275.21611 | BH128: 0.09312686563 | BI128: 19173.96706 | BJ128: 0.09399003459 | BK128: 14875.70984 | BL128: 0.08651686539 | BM128: 16124.91351 | BN128: 0.08976237759 | BO128: 17363.64271 | BP128: 0.09252713795 | BQ128: 18505.5671 | BR128: 0.09430068847 | BS128: 19492.13144 | BT128: 0.0955496639 | BU128: 14875.70984 | BV128: 0.08651686539 | BW128: 16194.1378 | BX128: 0.09014772767 | BY128: 17511.70621 | BZ128: 0.09331613668 | CA128: 18740.66744 | CB128: 0.09549871299 | CC128: 19820.18607 | CD128: 0.09715777483
A129: NHS North Staffordshire CCG | B129: E38000126 | C129: 15322.6749 | D129: 0.08483376649 | E129: 16516.92547 | F129: 0.09014804862 | G129: 17884.81561 | H129: 0.09597947627 | I129: 19080.6233 | J129: 0.1007318303 | K129: 20138.00027 | L129: 0.104754475 | M129: 15322.6749 | N129: 0.08483376649 | O129: 16379.63638 | P129: 0.08939873584 | Q129: 17582.2314 | R129: 0.09435564773 | S129: 18588.20396 | T129: 0.09813221393 | U129: 19433.52546 | V129: 0.1010899161 | W129: 15322.6749 | X129: 0.08483376649 | Y129: 16310.99184 | Z129: 0.08902407944 | AA129: 17433.12139 | AB129: 0.09355544376 | AC129: 18349.05075 | AD129: 0.09686965871 | AE129: 19096.33348 | AF129: 0.09933590035 | AG129: 15322.6749 | AH129: 0.08483376649 | AI129: 16242.34729 | AJ129: 0.08864942305 | AK129: 17285.46612 | AL129: 0.09276304666 | AM129: 18114.54115 | AN129: 0.09563161835 | AO129: 18768.91441 | AP129: 0.09763272167 | AQ129: 15322.6749 | AR129: 0.08483376649 | AS129: 15830.48003 | AT129: 0.0864014847 | AU129: 16430.08383 | AV129: 0.08817260828 | AW129: 16802.44978 | AX129: 0.08870472905 | AY129: 16999.08433 | AZ129: 0.08842636461 | BA129: 15322.6749 | BB129: 0.08483376649 | BC129: 15967.76912 | BD129: 0.08715079749 | BE129: 16709.39233 | BF129: 0.08967152694 | BG129: 17222.02826 | BH129: 0.09091979864 | BI129: 17553.18174 | BJ129: 0.09130868572 | BK129: 15322.6749 | BL129: 0.08483376649 | BM129: 16036.41366 | BN129: 0.08752545388 | BO129: 16851.22868 | BP129: 0.09043269657 | BQ129: 17438.4187 | BR129: 0.09206218299 | BS129: 17843.39722 | BT129: 0.09281833761 | BU129: 15322.6749 | BV129: 0.08483376649 | BW129: 16105.0582 | BX129: 0.08790011027 | BY129: 16994.51976 | BZ129: 0.09120167306 | CA129: 17659.27065 | CB129: 0.09322812083 | CC129: 18142.63415 | CD129: 0.09437491755
A130: NHS North Tyneside CCG | B130: E38000127 | C130: 14100.75034 | D130: 0.08421375027 | E130: 15299.0306 | F130: 0.08912402771 | G130: 16672.34085 | H130: 0.09457874322 | I130: 18048.39678 | J130: 0.09986939342 | K130: 19400.18832 | L130: 0.1051272804 | M130: 14100.75034 | N130: 0.08421375027 | O130: 15171.29047 | P130: 0.08837988158 | Q130: 16389.00936 | R130: 0.09297146221 | S130: 17580.41275 | T130: 0.09727984035 | U130: 18718.4565 | V130: 0.1014330579 | W130: 14100.75034 | X130: 0.08421375027 | Y130: 15107.42041 | Z130: 0.08800780852 | AA130: 16249.38687 | AB130: 0.09217941267 | AC130: 17353.12703 | AD130: 0.09602217257 | AE130: 18392.15029 | AF130: 0.09966484391 | AG130: 14100.75034 | AH130: 0.08421375027 | AI130: 15043.55035 | AJ130: 0.08763573545 | AK130: 16111.12654 | AL130: 0.09139509045 | AM130: 17130.25448 | AN130: 0.09478892476 | AO130: 18075.30149 | AP130: 0.09794787847 | AQ130: 14100.75034 | AR130: 0.08421375027 | AS130: 14660.32997 | AT130: 0.08540329706 | AU130: 15310.1702 | AV130: 0.08685143068 | AW130: 15883.27296 | AX130: 0.08788884995 | AY130: 16362.60791 | AZ130: 0.08866699851 | BA130: 14100.75034 | BB130: 0.08421375027 | BC130: 14788.0701 | BD130: 0.08614744319 | BE130: 15571.70697 | BF130: 0.08833507468 | BG130: 16282.03072 | BH130: 0.09009534485 | BI130: 16898.81705 | BJ130: 0.09157265121 | BK130: 14100.75034 | BL130: 0.08421375027 | BM130: 14851.94016 | BN130: 0.08651951626 | BO130: 15704.5186 | BP130: 0.08908848766 | BQ130: 16487.68323 | BR130: 0.09123330695 | BS130: 17179.66333 | BT130: 0.09309452331 | BU130: 14100.75034 | BV130: 0.08421375027 | BW130: 14915.81022 | BX130: 0.08689158932 | BY130: 15838.69241 | BZ130: 0.08984962794 | CA130: 16697.57585 | CB130: 0.09239473135 | CC130: 17469.23981 | CD130: 0.09466370333
A131: NHS North West Surrey CCG | B131: E38000128 | C131: 21416.19196 | D131: 0.07752748319 | E131: 23409.46264 | F131: 0.08190281519 | G131: 25790.18805 | H131: 0.08674802573 | I131: 28139.81044 | J131: 0.09135115711 | K131: 30583.38563 | L131: 0.09582461972 | M131: 21416.19196 | N131: 0.07752748319 | O131: 23214.61786 | P131: 0.08122111069 | Q131: 25353.40056 | R131: 0.0852788448 | S131: 27412.87234 | T131: 0.08899127498 | U131: 29512.42151 | V131: 0.09246904847 | W131: 21416.19196 | X131: 0.07752748319 | Y131: 23117.19547 | Z131: 0.08088025844 | AA131: 25138.15672 | AB131: 0.08455484939 | AC131: 27059.82045 | AD131: 0.08784515145 | AE131: 28999.81197 | AF131: 0.09086292758 | AG131: 21416.19196 | AH131: 0.07752748319 | AI131: 23019.77308 | AJ131: 0.08053940619 | AK131: 24925.01283 | AL131: 0.08383791735 | AM131: 26713.62372 | AN131: 0.08672128203 | AO131: 28502.0595 | AP131: 0.08930335724 | AQ131: 21416.19196 | AR131: 0.07752748319 | AS131: 22435.23873 | AT131: 0.07849429268 | AU131: 23690.24819 | AV131: 0.07968465586 | AW131: 24776.63804 | AX131: 0.08043318413 | AY131: 25811.50976 | AZ131: 0.0808732603 | BA131: 21416.19196 | BB131: 0.07752748319 | BC131: 22630.08351 | BD131: 0.07917599718 | BE131: 24093.43664 | BF131: 0.08104082288 | BG131: 25396.04422 | BH131: 0.08244398203 | BI131: 26653.86556 | BJ131: 0.08351255033 | BK131: 21416.19196 | BL131: 0.07752748319 | BM131: 22727.50591 | BN131: 0.07951684943 | BO131: 24298.18078 | BP131: 0.08172950144 | BQ131: 25715.4924 | BR131: 0.08348101674 | BS131: 27095.06 | BT131: 0.08489491163 | BU131: 21416.19196 | BV131: 0.07752748319 | BW131: 22824.9283 | BX131: 0.07985770169 | BY131: 24505.02485 | BZ131: 0.08242524337 | CA131: 26041.5269 | CB131: 0.08453943286 | CC131: 27549.96911 | CD131: 0.08632024411
A132: NHS North, East, West Devon CCG | B132: E38000129 | C132: 64860.73356 | D132: 0.08792529764 | E132: 70549.64657 | F132: 0.09336656861 | G132: 77019.50211 | H132: 0.09918547121 | I132: 83246.57514 | J132: 0.103853109 | K132: 89084.47615 | L132: 0.1084122039 | M132: 64860.73356 | N132: 0.08792529764 | O132: 69961.8813 | P132: 0.09258871033 | Q132: 75713.92521 | R132: 0.09750415341 | S132: 81094.07677 | T132: 0.1011677896 | U132: 85962.55879 | V132: 0.1046129567 | W132: 64860.73356 | X132: 0.08792529764 | Y132: 69667.99867 | Z132: 0.09219978119 | AA132: 75070.55198 | AB132: 0.0966756194 | AC132: 80048.67327 | AD132: 0.09986361096 | AE132: 84468.27472 | AF132: 0.1027944734 | AG132: 64860.73356 | AH132: 0.08792529764 | AI132: 69374.11603 | AJ132: 0.09181085206 | AK132: 74433.45556 | AL132: 0.09585516865 | AM132: 79023.56822 | AN132: 0.09858475539 | AO132: 83017.29981 | AP132: 0.1010286957 | AQ132: 64860.73356 | AR132: 0.08792529764 | AS132: 67610.82022 | AT132: 0.08947727723 | AU132: 70742.69011 | AV132: 0.09110221257 | AW132: 73288.06122 | AX132: 0.09142950326 | AY132: 75174.20425 | AZ132: 0.09148396565 | BA132: 64860.73356 | BB132: 0.08792529764 | BC132: 68198.58549 | BD132: 0.09025513551 | BE132: 71947.83801 | BF132: 0.09265419823 | BG132: 75122.15249 | BH132: 0.09371759835 | BI132: 77629.71621 | BJ132: 0.09447222437 | BK132: 64860.73356 | BL132: 0.08792529764 | BM132: 68492.46813 | BN132: 0.09064406464 | BO132: 72559.82718 | BP132: 0.09344231595 | BQ132: 76068.05376 | BR132: 0.09489764436 | BS132: 78915.82145 | BT132: 0.09603736242 | BU132: 64860.73356 | BV132: 0.08792529764 | BW132: 68786.35076 | BX132: 0.09103299378 | BY132: 73178.09316 | BZ132: 0.09423851692 | CA132: 77033.45748 | CB132: 0.09610202036 | CC132: 80241.90571 | CD132: 0.09765115332
A133: NHS Northumberland CCG | B133: E38000130 | C133: 24421.45127 | D133: 0.09247047054 | E133: 26524.13383 | F133: 0.09961741843 | G133: 28886.70138 | H133: 0.107226063 | I133: 30890.1788 | J133: 0.1136253174 | K133: 32766.53739 | L133: 0.1196470364 | M133: 24421.45127 | N133: 0.09247047054 | O133: 26303.27464 | P133: 0.09878793151 | Q133: 28397.14214 | R133: 0.1054088424 | S133: 30091.08262 | T133: 0.1106859509 | U133: 31617.67761 | V133: 0.115451974 | W133: 24421.45127 | X133: 0.09247047054 | Y133: 26192.84505 | Z133: 0.09837318805 | AA133: 28155.893 | AB133: 0.104513337 | AC133: 29702.98572 | AD133: 0.1092583893 | AE133: 31067.78385 | AF133: 0.1134440365 | AG133: 24421.45127 | AH133: 0.09247047054 | AI133: 26082.41546 | AJ133: 0.09795844459 | AK133: 27916.9975 | AL133: 0.1036265683 | AM133: 29322.42444 | AN133: 0.1078585465 | AO133: 30533.82778 | AP133: 0.1114942956 | AQ133: 24421.45127 | AR133: 0.09247047054 | AS133: 25419.83789 | AT133: 0.09546998383 | AU133: 26533.05119 | AV133: 0.09848942536 | AW133: 27193.16766 | AX133: 0.1000263653 | AY133: 27647.58321 | AZ133: 0.1009551713 | BA133: 24421.45127 | BB133: 0.09247047054 | BC133: 25640.69708 | BD133: 0.09629947075 | BE133: 26984.95203 | BF133: 0.1001668598 | BG133: 27874.05799 | BH133: 0.1025309276 | BI133: 28551.20704 | BJ133: 0.1042547544 | BK133: 24421.45127 | BL133: 0.09247047054 | BM133: 25751.12668 | BN133: 0.09671421421 | BO133: 27214.43292 | BP133: 0.101018682 | BQ133: 28225.21556 | BR133: 0.103822613 | BS133: 29024.49138 | BT133: 0.1059829525 | BU133: 24421.45127 | BV133: 0.09247047054 | BW133: 25861.55627 | BX133: 0.09712895767 | BY133: 27446.26746 | BZ133: 0.1018792408 | CA133: 28583.61324 | CB133: 0.10514093 | CC133: 29512.48792 | CD133: 0.1077648723
A134: NHS Norwich CCG | B134: E38000131 | C134: 12714.70601 | D134: 0.076984173 | E134: 13785.28018 | F134: 0.08077628138 | G134: 15020.55071 | H134: 0.0853731426 | I134: 16231.35652 | J134: 0.08926174944 | K134: 17467.61746 | L134: 0.09309111843 | M134: 12714.70601 | N134: 0.076984173 | O134: 13670.59156 | P134: 0.0801042515 | Q134: 14766.26107 | R134: 0.08392782236 | S134: 15812.08304 | T134: 0.08695602199 | U134: 16855.99391 | V134: 0.08983155995 | W134: 12714.70601 | X134: 0.076984173 | Y134: 13613.24725 | Z134: 0.07976823656 | AA134: 14640.95007 | AB134: 0.08321558523 | AC134: 15608.45456 | AD134: 0.08583619975 | AE134: 16563.24454 | AF134: 0.08827139491 | AG134: 12714.70601 | AH134: 0.076984173 | AI134: 13555.90294 | AJ134: 0.07943222163 | AK134: 14516.86161 | AL134: 0.08251029675 | AM134: 15408.77991 | AN134: 0.08473812094 | AO134: 16278.97999 | AP134: 0.08675644848 | AQ134: 12714.70601 | AR134: 0.076984173 | AS134: 13211.83709 | AT134: 0.077416132 | AU134: 13798.00435 | AV134: 0.07842448763 | AW134: 14291.59162 | AX134: 0.07859432258 | AY134: 14742.41723 | AZ134: 0.07856756143 | BA134: 12714.70601 | BB134: 0.076984173 | BC134: 13326.52571 | BD134: 0.07808816187 | BE134: 14032.73325 | BF134: 0.07975862938 | BG134: 14648.8443 | BH134: 0.0805589766 | BI134: 15223.48344 | BJ134: 0.08113133359 | BK134: 12714.70601 | BL134: 0.076984173 | BM134: 13383.87001 | BN134: 0.07842417681 | BO134: 14151.93152 | BP134: 0.08043612324 | BQ134: 14833.09128 | BR134: 0.08157221339 | BS134: 15475.44791 | BT134: 0.08247414147 | BU134: 12714.70601 | BV134: 0.076984173 | BW134: 13441.21432 | BX134: 0.07876019175 | BY134: 14272.35234 | BZ134: 0.08112056576 | CA134: 15021.13704 | CB134: 0.08260634093 | CC134: 15735.24478 | CD134: 0.083858691
A135: NHS Nottingham City CCG | B135: E38000132 | C135: 19935.55209 | D135: 0.07767905273 | E135: 21366.88018 | F135: 0.08143486616 | G135: 23156.33919 | H135: 0.08605745201 | I135: 25067.76926 | J135: 0.08956613284 | K135: 27034.97651 | L135: 0.09396933093 | M135: 19935.55209 | N135: 0.07767905273 | O135: 21189.24247 | P135: 0.08075784158 | Q135: 22764.91168 | R135: 0.0846027638 | S135: 24421.46259 | T135: 0.08725690506 | U135: 26090.4176 | V135: 0.09068619255 | W135: 19935.55209 | X135: 0.07767905273 | Y135: 21100.42362 | Z135: 0.08041932928 | AA135: 22572.02072 | AB135: 0.08388591023 | AC135: 24107.57094 | AD135: 0.08613538282 | AE135: 25638.31103 | AF135: 0.08911474116 | AG135: 19935.55209 | AH135: 0.07767905273 | AI135: 21011.60476 | AJ135: 0.08008081699 | AK135: 22381.01163 | AL135: 0.08317605035 | AM135: 23799.77409 | AN135: 0.08503563701 | AO135: 25199.30797 | AP135: 0.08758883548 | AQ135: 19935.55209 | AR135: 0.07767905273 | AS135: 20478.69163 | AT135: 0.07804974325 | AU135: 21274.47618 | AV135: 0.07906375866 | AW135: 22077.63739 | AX135: 0.07888251175 | AY135: 22826.32209 | AZ135: 0.07934070938 | BA135: 19935.55209 | BB135: 0.07767905273 | BC135: 20656.32934 | BD135: 0.07872676783 | BE135: 21635.79388 | BF135: 0.08040654778 | BG135: 22628.33951 | BH135: 0.08085014831 | BI135: 23569.25518 | BJ135: 0.08192302808 | BK135: 19935.55209 | BL135: 0.07767905273 | BM135: 20745.1482 | BN135: 0.07906528012 | BO135: 21819.27552 | BP135: 0.08108843288 | BQ135: 22912.35473 | BR135: 0.0818649233 | BS135: 23958.37572 | BT135: 0.08327554993 | BU135: 19935.55209 | BV135: 0.07767905273 | BW135: 20833.96705 | BX135: 0.07940379241 | BY135: 22004.63903 | BZ135: 0.08177731168 | CA135: 23202.22574 | CB135: 0.08290062075 | CC135: 24359.5922 | CD135: 0.0846701154
A136: NHS Nottingham North and East CCG | B136: E38000133 | C136: 10321.93889 | D136: 0.08417826529 | E136: 11299.24736 | F136: 0.08929387826 | G136: 12313.80267 | H136: 0.094257522 | I136: 13323.08397 | J136: 0.09893868983 | K136: 14219.24395 | L136: 0.10299322 | M136: 10321.93889 | N136: 0.08417826529 | O136: 11205.13439 | P136: 0.08855013741 | Q136: 12104.97164 | R136: 0.09265899909 | S136: 12978.3603 | T136: 0.09637873384 | U136: 13720.53912 | V136: 0.09938098743 | W136: 10321.93889 | X136: 0.08417826529 | Y136: 11158.0779 | Z136: 0.08817826699 | AA136: 12002.06212 | AB136: 0.09187126544 | AC136: 12810.93842 | AD136: 0.09513544048 | AE136: 13481.83752 | AF136: 0.09765201738 | AG136: 10321.93889 | AH136: 0.08417826529 | AI136: 11111.02142 | AJ136: 0.08780639656 | AK136: 11900.15659 | AL136: 0.091091217 | AM136: 12646.76734 | AN136: 0.09391628797 | AO136: 13250.05426 | AP136: 0.09597315845 | AQ136: 10321.93889 | AR136: 0.08417826529 | AS136: 10828.68252 | AT136: 0.08557517401 | AU136: 11309.80732 | AV136: 0.0865723157 | AW136: 11728.22307 | AX136: 0.08709507702 | AY136: 11997.17368 | AZ136: 0.08689825928 | BA136: 10321.93889 | BB136: 0.08417826529 | BC136: 10922.79549 | BD136: 0.08631891486 | BE136: 11502.57443 | BF136: 0.08804787531 | BG136: 12021.95369 | BH136: 0.08927635296 | BI136: 12389.42483 | BJ136: 0.08973942362 | BK136: 10321.93889 | BL136: 0.08417826529 | BM136: 10969.85197 | BN136: 0.08669078529 | BO136: 11600.46398 | BP136: 0.08879718292 | BQ136: 12173.44024 | BR136: 0.09040130881 | BS136: 12594.87129 | BT136: 0.09122751914 | BU136: 10321.93889 | BV136: 0.08417826529 | BW136: 11016.90845 | BX136: 0.08706265571 | BY136: 11699.35752 | BZ136: 0.08955417574 | CA136: 12328.05012 | CB136: 0.09154945881 | CC136: 12806.70413 | CD136: 0.09276187262
A137: NHS Nottingham West CCG | B137: E38000134 | C137: 7682.964058 | D137: 0.0823645375 | E137: 8292.047919 | F137: 0.08666438043 | G137: 8975.139457 | H137: 0.09141515031 | I137: 9613.865311 | J137: 0.09516794012 | K137: 10172.3463 | L137: 0.09856924713 | M137: 7682.964058 | N137: 0.0823645375 | O137: 8223.03825 | P137: 0.08594312552 | Q137: 8823.216297 | R137: 0.08986775613 | S137: 9365.525771 | T137: 0.09270961959 | U137: 9816.362421 | V137: 0.0951197909 | W137: 7682.964058 | X137: 0.0823645375 | Y137: 8188.533415 | Z137: 0.08558249806 | AA137: 8748.350316 | AB137: 0.08910521813 | AC137: 9244.914751 | AD137: 0.09151568749 | AE137: 9645.973206 | AF137: 0.09346873262 | AG137: 7682.964058 | AH137: 0.0823645375 | AI137: 8154.02858 | AJ137: 0.08522187061 | AK137: 8674.214735 | AL137: 0.08835011953 | AM137: 9126.645618 | AN137: 0.09034493782 | AO137: 9480.522419 | AP137: 0.09186552732 | AQ137: 7682.964058 | AR137: 0.0823645375 | AS137: 7946.999571 | AT137: 0.08305810588 | AU137: 8244.739647 | AV137: 0.08397575521 | AW137: 8464.924713 | AX137: 0.08379454279 | AY137: 8586.195219 | AZ137: 0.08319956608 | BA137: 7682.964058 | BB137: 0.0823645375 | BC137: 8016.009241 | BD137: 0.08377936079 | BE137: 8384.97641 | BF137: 0.08540411907 | BG137: 8676.528767 | BH137: 0.08588921765 | BI137: 8866.190678 | BJ137: 0.08591270037 | BK137: 7682.964058 | BL137: 0.0823645375 | BM137: 8050.514075 | BN137: 0.08413998825 | BO137: 8456.190392 | BP137: 0.08612946009 | BQ137: 8785.659947 | BR137: 0.08696951046 | BS137: 9012.841816 | BT137: 0.08733373853 | BU137: 7682.964058 | BV137: 0.0823645375 | BW137: 8085.01891 | BX137: 0.0845006157 | BY137: 8528.134773 | BZ137: 0.08686224051 | CA137: 8897.041176 | CB137: 0.08807207658 | CC137: 9164.051656 | CD137: 0.08879895016
A138: NHS Oldham CCG | B138: E38000135 | C138: 16713.25219 | D138: 0.09386303599 | E138: 18044.7024 | F138: 0.09903788365 | G138: 19538.40204 | H138: 0.1044164282 | I138: 21014.2991 | J138: 0.1095179232 | K138: 22430.71959 | L138: 0.1145242499 | M138: 16713.25219 | N138: 0.09386303599 | O138: 17894.44659 | P138: 0.09821320852 | Q138: 19207.26607 | R138: 0.1026467832 | S138: 20471.04667 | T138: 0.1066867139 | U138: 21644.96435 | V138: 0.110512429 | W138: 16713.25219 | X138: 0.09386303599 | Y138: 17819.31869 | Z138: 0.09780087095 | AA138: 19044.08609 | AB138: 0.1017747226 | AC138: 20207.20536 | AD138: 0.1053116811 | AE138: 21268.86806 | AF138: 0.1085921988 | AG138: 16713.25219 | AH138: 0.09386303599 | AI138: 17744.19078 | AJ138: 0.09738853339 | AK138: 18882.4981 | AL138: 0.1009111699 | AM138: 19948.48702 | AN138: 0.103963347 | AO138: 20903.67225 | AP138: 0.106727623 | AQ138: 16713.25219 | AR138: 0.09386303599 | AS138: 17293.42336 | AT138: 0.094914508 | AU138: 17946.4022 | AV138: 0.09590851965 | AW138: 18500.94674 | AX138: 0.09641935972 | AY138: 18929.64388 | AZ138: 0.0966488506 | BA138: 16713.25219 | BB138: 0.09386303599 | BC138: 17443.67917 | BD138: 0.09573918313 | BE138: 18252.06617 | BF138: 0.09754203809 | BG138: 18963.83886 | BH138: 0.09883176392 | BI138: 19547.67157 | BJ138: 0.09980430702 | BK138: 16713.25219 | BL138: 0.09386303599 | BM138: 17518.80707 | BN138: 0.0961515207 | BO138: 18407.28615 | BP138: 0.09837155917 | BQ138: 19202.56757 | BR138: 0.1000759202 | BS138: 19871.37134 | BT138: 0.101457017 | BU138: 16713.25219 | BV138: 0.09386303599 | BW138: 17593.93498 | BX138: 0.09656385826 | BY138: 18564.09814 | BZ138: 0.09920958815 | CA138: 19446.21835 | CB138: 0.1013457283 | CC138: 20205.13343 | CD138: 0.103161102
A139: NHS Oxfordshire CCG | B139: E38000136 | C139: 39560.19077 | D139: 0.07330848486 | E139: 43795.30133 | F139: 0.07856786863 | G139: 48309.93781 | H139: 0.0838626841 | I139: 52889.44515 | J139: 0.08864548999 | K139: 57222.14937 | L139: 0.09320782735 | M139: 39560.19077 | N139: 0.07330848486 | O139: 43430.8171 | P139: 0.07791399143 | Q139: 47491.52074 | R139: 0.08244196914 | S139: 51521.84996 | T139: 0.08635332858 | U139: 55216.49199 | V139: 0.08994085873 | W139: 39560.19077 | X139: 0.07330848486 | Y139: 43248.57499 | Z139: 0.07758705283 | AA139: 47088.21426 | AB139: 0.0817418572 | AC139: 50857.65025 | AD139: 0.08524009496 | AE139: 54256.49801 | AF139: 0.08837714688 | AG139: 39560.19077 | AH139: 0.07330848486 | AI139: 43066.33288 | AJ139: 0.07726011423 | AK139: 46688.84247 | AL139: 0.08104857561 | AM139: 50206.34722 | AN139: 0.08414847684 | AO139: 53324.32774 | AP139: 0.08685875643 | AQ139: 39560.19077 | AR139: 0.07330848486 | AS139: 41972.8802 | AT139: 0.07529848264 | AU139: 44375.24039 | AV139: 0.07703232369 | AW139: 46562.27861 | AX139: 0.07804082631 | AY139: 48285.57731 | AZ139: 0.07865125311 | BA139: 39560.19077 | BB139: 0.07330848486 | BC139: 42337.36442 | BD139: 0.07595235984 | BE139: 45130.70229 | BF139: 0.07834375289 | BG139: 47727.57305 | BH139: 0.07999392104 | BI139: 49863.10647 | BJ139: 0.08122085365 | BK139: 39560.19077 | BL139: 0.07330848486 | BM139: 42519.60654 | BN139: 0.07627929844 | BO139: 45514.33529 | BP139: 0.07900971303 | BQ139: 48328.55377 | BR139: 0.08100119632 | BS139: 50689.35719 | BT139: 0.08256671421 | BU139: 39560.19077 | BV139: 0.07330848486 | BW139: 42701.84865 | BX139: 0.07660623704 | BY139: 45901.90298 | BZ139: 0.07968250353 | CA139: 48941.92542 | CB139: 0.08202923943 | CC139: 51541.29219 | CD139: 0.08395441131
A140: NHS Portsmouth CCG | B140: E38000137 | C140: 12342.28255 | D140: 0.0720927719 | E140: 13349.81296 | F140: 0.07567063236 | G140: 14585.01092 | H140: 0.08026973538 | I140: 15842.0948 | J140: 0.08399838175 | K140: 17075.18641 | L140: 0.08818916647 | M140: 12342.28255 | N140: 0.0720927719 | O140: 13238.95819 | P140: 0.07504227519 | Q140: 14338.70851 | R140: 0.07891419105 | S140: 15433.98189 | T140: 0.08183447452 | U140: 16478.79764 | V140: 0.08510896413 | W140: 12342.28255 | X140: 0.0720927719 | Y140: 13183.5308 | Z140: 0.0747280966 | AA140: 14217.33353 | AB140: 0.07824619445 | AC140: 15235.77377 | AD140: 0.08078353008 | AE140: 16193.34029 | AF140: 0.08363464666 | AG140: 12342.28255 | AH140: 0.0720927719 | AI140: 13128.10342 | AJ140: 0.07441391802 | AK140: 14097.14269 | AL140: 0.07758471488 | AM140: 15041.41423 | AN140: 0.07975299168 | AO140: 15916.15641 | AP140: 0.08220305966 | AQ140: 12342.28255 | AR140: 0.0720927719 | AS140: 12795.5391 | AT140: 0.0725288465 | AU140: 13400.86474 | AV140: 0.07375269534 | AW140: 13953.9642 | AX140: 0.07398708484 | AY140: 14417.8675 | AZ140: 0.07446476345 | BA140: 12342.28255 | BB140: 0.0720927719 | BC140: 12906.39387 | BD140: 0.07315720367 | BE140: 13628.22081 | BF140: 0.07500396703 | BG140: 14301.70723 | BH140: 0.07583089732 | BI140: 14886.95095 | BJ140: 0.07688746489 | BK140: 12342.28255 | BL140: 0.0720927719 | BM140: 12961.82126 | BN140: 0.07347138226 | BO140: 13743.67506 | BP140: 0.07563937843 | BQ140: 14481.04977 | BR140: 0.07678181214 | BS140: 15132.6393 | BT140: 0.0781563852 | BU140: 12342.28255 | BV140: 0.0720927719 | BW140: 13017.24864 | BX140: 0.07378556085 | BY140: 13860.31346 | BZ140: 0.07628130687 | CA140: 14664.08996 | CB140: 0.07775233277 | CC140: 15385.96496 | CD140: 0.07946475034
A141: NHS Redbridge CCG | B141: E38000138 | C141: 24902.87652 | D141: 0.10807602 | E141: 27813.75717 | F141: 0.1119265882 | G141: 31225.15773 | H141: 0.1176000216 | I141: 34955.4132 | J141: 0.1237097013 | K141: 39000.56026 | L141: 0.1302797978 | M141: 24902.87652 | N141: 0.10807602 | O141: 27582.39303 | P141: 0.1109955454 | Q141: 30696.86804 | R141: 0.1156103798 | S141: 34053.38247 | T141: 0.1205173502 | U141: 37637.36998 | V141: 0.1257261157 | W141: 24902.87652 | X141: 0.10807602 | Y141: 27466.71097 | Z141: 0.110530024 | AA141: 30436.53298 | AB141: 0.1146299073 | AC141: 33615.29337 | AD141: 0.1189669216 | AE141: 36984.88842 | AF141: 0.1235465273 | AG141: 24902.87652 | AH141: 0.10807602 | AI141: 27351.0289 | AJ141: 0.1100645026 | AK141: 30178.73777 | AL141: 0.1136590004 | AM141: 33185.71058 | AN141: 0.1174465975 | AO141: 36351.31787 | AP141: 0.1214301105 | AQ141: 24902.87652 | AR141: 0.10807602 | AS141: 26656.93649 | AT141: 0.1072713742 | AU141: 28685.30347 | AV141: 0.1080344361 | AW141: 30782.17634 | AX141: 0.1089403183 | AY141: 32926.61749 | AZ141: 0.109990037 | BA141: 24902.87652 | BB141: 0.10807602 | BC141: 26888.30063 | BD141: 0.108202417 | BE141: 29172.95549 | BF141: 0.1098710285 | BG141: 31550.77468 | BH141: 0.1116604427 | BI141: 33998.82077 | BJ141: 0.1135716888 | BK141: 24902.87652 | BL141: 0.10807602 | BM141: 27003.9827 | BN141: 0.1086679384 | BO141: 29420.59128 | BP141: 0.1108036731 | BQ141: 31947.16616 | BR141: 0.1130633004 | BS141: 34560.4007 | BT141: 0.1154476239 | BU141: 24902.87652 | BV141: 0.10807602 | BW141: 27119.66476 | BX141: 0.1091334598 | BY141: 29670.76692 | BZ141: 0.1117458833 | CA141: 32351.73037 | CB141: 0.114495082 | CC141: 35139.43754 | CD141: 0.1173818731
A142: NHS Redditch and Bromsgrove CCG | B142: E38000139 | C142: 12422.57165 | D142: 0.08440393836 | E142: 13534.52982 | F142: 0.09059256905 | G142: 14801.09722 | H142: 0.09692925489 | I142: 15949.46701 | J142: 0.1022532825 | K142: 16977.48036 | L142: 0.106964972 | M142: 12422.57165 | N142: 0.08440393836 | O142: 13421.91938 | P142: 0.08983881778 | Q142: 14550.5333 | R142: 0.0952883648 | S142: 15537.13821 | T142: 0.0996098103 | U142: 16382.34144 | V142: 0.1032153568 | W142: 12422.57165 | X142: 0.08440393836 | Y142: 13365.61416 | Z142: 0.08946194215 | AA142: 14427.0583 | AB142: 0.09447975309 | AC142: 15336.88256 | AD142: 0.09832595563 | AE142: 16097.48232 | AF142: 0.1014206295 | AG142: 12422.57165 | AH142: 0.08440393836 | AI142: 13309.30894 | AJ142: 0.08908506652 | AK142: 14304.78792 | AL142: 0.09367903028 | AM142: 15140.51524 | AN142: 0.09706702938 | AO142: 15820.87934 | AP142: 0.09967791924 | AQ142: 12422.57165 | AR142: 0.08440393836 | AS142: 12971.47762 | AT142: 0.08682381271 | AU142: 13596.463 | AV142: 0.08904036021 | AW142: 14041.83163 | AX142: 0.09002328266 | AY142: 14325.73039 | AZ142: 0.09025787799 | BA142: 12422.57165 | BB142: 0.08440393836 | BC142: 13084.08806 | BD142: 0.08757756398 | BE142: 13827.75277 | BF142: 0.09055502799 | BG142: 14393.16692 | BH142: 0.09227572074 | BI142: 14793.83079 | BJ142: 0.09320709922 | BK142: 12422.57165 | BL142: 0.08440393836 | BM142: 13140.39328 | BN142: 0.08795443961 | BO142: 13945.20461 | BP142: 0.09132419522 | BQ142: 14574.3621 | BR142: 0.09343737724 | BS142: 15039.00425 | BT142: 0.09475179089 | BU142: 12422.57165 | BV142: 0.08440393836 | BW142: 13196.6985 | BX142: 0.08833131525 | BY142: 14063.86108 | BZ142: 0.09210125135 | CA142: 14759.29314 | CB142: 0.09462298459 | CC142: 15291.79901 | CD142: 0.09634449983
A143: NHS Richmond CCG | B143: E38000140 | C143: 10927.24198 | D143: 0.06999258247 | E143: 12378.95084 | F143: 0.0743034264 | G143: 13918.54147 | H143: 0.0789211923 | I143: 15569.14076 | J143: 0.08377712417 | K143: 17160.51124 | L143: 0.08858409685 | M143: 10927.24198 | N143: 0.06999258247 | O143: 12275.84581 | P143: 0.07368454868 | Q143: 13682.60747 | R143: 0.0775833946 | S143: 15166.54637 | T143: 0.0816107747 | U143: 16558.94528 | V143: 0.08547875942 | W143: 10927.24198 | X143: 0.06999258247 | Y143: 12224.2933 | Z143: 0.07337510982 | AA143: 13566.34192 | AB143: 0.07692414333 | AC143: 14971.01843 | AD143: 0.08055864414 | AE143: 16271.0099 | AF143: 0.08399241122 | AG143: 10927.24198 | AH143: 0.06999258247 | AI143: 12172.74078 | AJ143: 0.07306567096 | AK143: 13451.21066 | AL143: 0.07627132378 | AM143: 14779.28702 | AN143: 0.07952694265 | AO143: 15991.41982 | AP143: 0.08254914217 | AQ143: 10927.24198 | AR143: 0.06999258247 | AS143: 11863.4257 | AT143: 0.07120903779 | AU143: 12784.24339 | AV143: 0.0724894726 | AW143: 13706.54153 | AX143: 0.07375452825 | AY143: 14480.12441 | AZ143: 0.07474769985 | BA143: 10927.24198 | BB143: 0.06999258247 | BC143: 11966.53072 | BD143: 0.07182791551 | BE143: 13002.02862 | BF143: 0.07372436278 | BG143: 14049.58237 | BH143: 0.0756004217 | BI143: 14953.27993 | BJ143: 0.07719017104 | BK143: 10927.24198 | BL143: 0.06999258247 | BM143: 12018.08324 | BN143: 0.07213735437 | BO143: 13112.62268 | BP143: 0.07435145545 | BQ143: 14226.49983 | BR143: 0.07655240976 | BS143: 15201.10108 | BT143: 0.078469446 | BU143: 10927.24198 | BV143: 0.06999258247 | BW143: 12069.63575 | BX143: 0.07244679324 | BY143: 13224.35104 | BZ143: 0.07498497984 | CA143: 14407.06494 | CB143: 0.07752402574 | CC143: 15456.62583 | CD143: 0.07978848767
A144: NHS Rotherham CCG | B144: E38000141 | C144: 18926.89922 | D144: 0.0898116125 | E144: 20362.39254 | F144: 0.09534740843 | G144: 21987.67414 | H144: 0.1010741663 | I144: 23456.36798 | J144: 0.105850036 | K144: 24891.34534 | L144: 0.1105987085 | M144: 18926.89922 | N144: 0.0898116125 | O144: 20193.02718 | P144: 0.09455435089 | Q144: 21615.52818 | R144: 0.09936346503 | S144: 22850.74431 | T144: 0.1031170772 | U144: 24020.04316 | V144: 0.1067272868 | W144: 18926.89922 | X144: 0.0898116125 | Y144: 20108.34449 | Z144: 0.09415782212 | AA144: 21432.13895 | AB144: 0.09852045117 | AC144: 22556.61117 | AD144: 0.1017897616 | AE144: 23603.00042 | AF144: 0.1048742576 | AG144: 18926.89922 | AH144: 0.0898116125 | AI144: 20023.66181 | AJ144: 0.09376129335 | AK144: 21250.53888 | AL144: 0.09768566184 | AM144: 22268.18917 | AN144: 0.1004882183 | AO144: 23198.04491 | AP144: 0.1030749352 | AQ144: 18926.89922 | AR144: 0.0898116125 | AS144: 19515.5657 | AT144: 0.09138212072 | AU144: 20198.51088 | AV144: 0.09284964088 | AW144: 20654.45562 | AX144: 0.09320602717 | AY144: 21009.09963 | AZ144: 0.09334888308 | BA144: 18926.89922 | BB144: 0.0898116125 | BC144: 19684.93107 | BD144: 0.09217517826 | BE144: 20542.03022 | BF144: 0.09442874976 | BG144: 21170.49276 | BH144: 0.09553471461 | BI144: 21694.41339 | BJ144: 0.09639391002 | BK144: 18926.89922 | BL144: 0.0898116125 | BM144: 19769.61375 | BN144: 0.09257170703 | BO144: 20716.47364 | BP144: 0.09523064099 | BQ144: 21436.6301 | BR144: 0.09673569542 | BS144: 22053.35508 | BT144: 0.09798878114 | BU144: 18926.89922 | BV144: 0.0898116125 | BW144: 19854.29644 | BX144: 0.0929682358 | BY144: 20892.70622 | BZ144: 0.09604075675 | CA144: 21708.25463 | CB144: 0.09796143785 | CC144: 22423.4546 | CD144: 0.09963322937
A145: NHS Rushcliffe CCG | B145: E38000142 | C145: 7263.831487 | D145: 0.07767142309 | E145: 8056.524876 | F145: 0.08258020579 | G145: 8861.914051 | H145: 0.08749915137 | I145: 9644.753702 | J145: 0.09210039823 | K145: 10413.47011 | L145: 0.09634964941 | M145: 7263.831487 | N145: 0.07767142309 | O145: 7989.406187 | P145: 0.08189223234 | Q145: 8711.666015 | R145: 0.08601565971 | S145: 9395.069589 | T145: 0.08971609615 | U145: 10047.97135 | V145: 0.09296790667 | W145: 7263.831487 | X145: 0.07767142309 | Y145: 7955.846842 | Z145: 0.08154824561 | AA145: 8637.625517 | AB145: 0.08528461213 | AC145: 9273.805551 | AD145: 0.08855811259 | AE145: 9873.02791 | AF145: 0.09134925898 | AG145: 7263.831487 | AH145: 0.07767142309 | AI145: 7922.287497 | AJ145: 0.08120425889 | AK145: 8564.307364 | AL145: 0.08456069672 | AM145: 9154.896079 | AN145: 0.08742261344 | AO145: 9703.154892 | AP145: 0.08977752491 | AQ145: 7263.831487 | AR145: 0.07767142309 | AS145: 7720.931428 | AT145: 0.07914033854 | AU145: 8139.567724 | AV145: 0.0803669799 | AW145: 8489.592449 | AX145: 0.08106944661 | AY145: 8784.923775 | AZ145: 0.08128167816 | BA145: 7263.831487 | BB145: 0.07767142309 | BC145: 7788.050118 | BD145: 0.07982831199 | BE145: 8278.258219 | BF145: 0.08173635682 | BG145: 8702.342181 | BH145: 0.08310105215 | BI145: 9072.403059 | BJ145: 0.0839415531 | BK145: 7263.831487 | BL145: 0.07767142309 | BM145: 7821.609463 | BN145: 0.08017229871 | BO145: 8348.686986 | BP145: 0.08243174354 | BQ145: 8812.064225 | BR145: 0.08414881804 | BS145: 9222.973945 | BT145: 0.08533469601 | BU145: 7263.831487 | BV145: 0.07767142309 | BW145: 7855.168807 | BX145: 0.08051628544 | BY145: 8419.838099 | BZ145: 0.08313426243 | CA145: 8924.0485 | CB145: 0.0852181866 | CC145: 9378.225378 | CD145: 0.08677114525
A146: NHS Salford CCG | B146: E38000143 | C146: 15281.2127 | D146: 0.07776698573 | E146: 16590.69053 | F146: 0.08068617126 | G146: 18239.92545 | H146: 0.08493958021 | I146: 19982.14472 | J146: 0.08911052763 | K146: 21853.2034 | L146: 0.09362181219 | M146: 15281.2127 | N146: 0.07776698573 | O146: 16453.15724 | P146: 0.08001730005 | Q146: 17932.69271 | R146: 0.08350886051 | S146: 19468.90607 | T146: 0.08682173595 | U146: 21092.68751 | V146: 0.09036366852 | W146: 15281.2127 | X146: 0.07776698573 | Y146: 16384.39059 | Z146: 0.07968286445 | AA146: 17781.29195 | AB146: 0.08280381835 | AC146: 19219.64155 | AD146: 0.08571013891 | AE146: 20728.67185 | AF146: 0.08880418066 | AG146: 15281.2127 | AH146: 0.07776698573 | AI146: 16315.62394 | AJ146: 0.07934842884 | AK146: 17631.36828 | AL146: 0.08210565466 | AM146: 18975.21696 | AN146: 0.0846201256 | AO146: 20375.20654 | AP146: 0.08728989179 | AQ146: 15281.2127 | AR146: 0.07776698573 | AS146: 15903.02404 | AT146: 0.07734181522 | AU146: 16762.84494 | AV146: 0.07806112014 | AW146: 17607.65085 | AX146: 0.07852145401 | AY146: 18464.58619 | AZ146: 0.07910455911 | BA146: 15281.2127 | BB146: 0.07776698573 | BC146: 16040.55734 | BD146: 0.07801068643 | BE146: 17046.4444 | BF146: 0.07938178447 | BG146: 18044.96895 | BH146: 0.08047167746 | BI146: 19062.76214 | BJ146: 0.08166721848 | BK146: 15281.2127 | BL146: 0.07776698573 | BM146: 16109.32399 | BN146: 0.07834512203 | BO146: 17190.45975 | BP146: 0.08005243433 | BQ146: 18270.50831 | BR146: 0.08147747194 | BS146: 19376.0643 | BT146: 0.08300944351 | BU146: 15281.2127 | BV146: 0.07776698573 | BW146: 16178.09064 | BX146: 0.07867955763 | BY146: 17335.95218 | BZ146: 0.08072996264 | CA146: 18500.69779 | CB146: 0.08250400371 | CC146: 19699.10558 | CD146: 0.08439339207
A147: NHS Sandwell and West Birmingham CCG | B147: E38000144 | C147: 43324.00573 | D147: 0.1147899044 | E147: 46732.5385 | F147: 0.1193557197 | G147: 50503.32829 | H147: 0.1242638854 | I147: 54554.44598 | J147: 0.1293004503 | K147: 58768.15979 | L147: 0.1345732993 | M147: 43324.00573 | N147: 0.1147899044 | O147: 46343.37057 | P147: 0.118361778 | Q147: 49647.75673 | R147: 0.122158744 | S147: 53145.22966 | T147: 0.1259604419 | U147: 56711.27214 | V147: 0.1298632291 | W147: 43324.00573 | X147: 0.1147899044 | Y147: 46148.78661 | Z147: 0.1178648072 | AA147: 49226.14093 | AB147: 0.1211213546 | AC147: 52460.81583 | AD147: 0.1243383007 | AE147: 55726.75714 | AF147: 0.1276087867 | AG147: 43324.00573 | AH147: 0.1147899044 | AI147: 45954.20265 | AJ147: 0.1173678364 | AK147: 48808.63847 | AL147: 0.1200940861 | AM147: 51789.69116 | AN147: 0.1227476563 | AO147: 54770.77656 | AP147: 0.1254196853 | AQ147: 43324.00573 | AR147: 0.1147899044 | AS147: 44786.69887 | AT147: 0.1143860113 | AU147: 46390.00348 | AV147: 0.1141430133 | AW147: 48034.71965 | AX147: 0.1138479324 | AY147: 49603.3219 | AZ147: 0.1135867229 | BA147: 43324.00573 | BB147: 0.1147899044 | BC147: 45175.86679 | BD147: 0.115379953 | BE147: 47179.76184 | BF147: 0.1160862208 | BG147: 49235.47844 | BH147: 0.1166938719 | BI147: 51221.14571 | BJ147: 0.1172913801 | BK147: 43324.00573 | BL147: 0.1147899044 | BM147: 45370.45076 | BN147: 0.1158769238 | BO147: 47580.81101 | BP147: 0.1170730058 | BQ147: 49854.7493 | BR147: 0.1181616167 | BS147: 52068.50125 | BT147: 0.1192317409 | BU147: 43324.00573 | BV147: 0.1147899044 | BW147: 45565.03472 | BX147: 0.1163738947 | BY147: 47985.9735 | BZ147: 0.1180699117 | CA147: 50486.78818 | CB147: 0.1196596231 | CC147: 52942.19713 | CD147: 0.1212324184
A148: NHS Scarborough and Ryedale CCG | B148: E38000145 | C148: 9021.153476 | D148: 0.09763153112 | E148: 9721.993084 | F148: 0.1047177196 | G148: 10371.34924 | H148: 0.1112089775 | I148: 11075.00335 | J148: 0.1171462169 | K148: 11714.34451 | L148: 0.1224581279 | M148: 9021.153476 | N148: 0.09763153112 | O148: 9641.026389 | P148: 0.1038456095 | Q148: 10195.5519 | R148: 0.1093239535 | S148: 10788.70588 | T148: 0.1141178959 | U148: 11303.94218 | V148: 0.1181679091 | W148: 9021.153476 | X148: 0.09763153112 | Y148: 9600.543041 | Z148: 0.1034095545 | AA148: 10108.921 | AB148: 0.1083950354 | AC148: 10649.65984 | AD148: 0.1126471317 | AE148: 11107.50595 | AF148: 0.1161144256 | AG148: 9021.153476 | AH148: 0.09763153112 | AI148: 9560.059694 | AJ148: 0.1029734995 | AK148: 10023.13528 | AL148: 0.1074751799 | AM148: 10513.31363 | AN148: 0.1112049252 | AO148: 10916.76308 | AP148: 0.1141204587 | AQ148: 9021.153476 | AR148: 0.09763153112 | AS148: 9317.159609 | AT148: 0.1003571694 | AU148: 9526.169728 | AV148: 0.1021463621 | AW148: 9750.450735 | AX148: 0.1031357175 | AY148: 9885.722117 | AZ148: 0.1033422759 | BA148: 9021.153476 | BB148: 0.09763153112 | BC148: 9398.126304 | BD148: 0.1012292794 | BE148: 9688.444194 | BF148: 0.1038863842 | BG148: 9994.397814 | BH148: 0.1057160759 | BI148: 10208.51984 | BJ148: 0.1067167034 | BK148: 9021.153476 | BL148: 0.09763153112 | BM148: 9438.609651 | BN148: 0.1016653345 | BO148: 9770.849197 | BP148: 0.1047699892 | BQ148: 10120.20936 | BR148: 0.1070468517 | BS148: 10377.58921 | BT148: 0.1084841021 | BU148: 9021.153476 | BV148: 0.09763153112 | BW148: 9479.092999 | BX148: 0.1021013895 | BY148: 9854.099379 | BZ148: 0.1056626569 | CA148: 10248.61486 | CB148: 0.1084050652 | CC148: 10551.91415 | CD148: 0.1103064411
A149: NHS Sheffield CCG | B149: E38000146 | C149: 37641.01602 | D149: 0.08116836163 | E149: 40386.29495 | F149: 0.08432080956 | G149: 43576.02909 | H149: 0.08835366806 | I149: 46786.26427 | J149: 0.09165510377 | K149: 50207.33871 | L149: 0.0956840576 | M149: 37641.01602 | N149: 0.08116836163 | O149: 40050.27403 | P149: 0.08361924594 | Q149: 42838.73107 | R149: 0.08685874102 | S149: 45578.67156 | T149: 0.08928940869 | U149: 48451.38269 | V149: 0.09233759469 | W149: 37641.01602 | X149: 0.08116836163 | Y149: 39882.26358 | Z149: 0.08326846412 | AA149: 42475.39912 | AB149: 0.08612205823 | AC149: 44992.18022 | AD149: 0.08814046198 | AE149: 47610.90653 | AF149: 0.09073583345 | AG149: 37641.01602 | AH149: 0.08116836163 | AI149: 39714.25312 | AJ149: 0.08291768231 | AK149: 42115.61187 | AL149: 0.08539256259 | AM149: 44417.0767 | AN149: 0.08701382421 | AO149: 46794.79007 | AP149: 0.0891804964 | AQ149: 37641.01602 | AR149: 0.08116836163 | AS149: 38706.19038 | AT149: 0.08081299143 | AU149: 40031.3271 | AV149: 0.08116651885 | AW149: 41199.34769 | AX149: 0.08071023721 | AY149: 42383.35656 | AZ149: 0.08077328205 | BA149: 37641.01602 | BB149: 0.08116836163 | BC149: 39042.21129 | BD149: 0.08151455506 | BE149: 40711.90988 | BF149: 0.0825464515 | BG149: 42228.30793 | BH149: 0.08272598819 | BI149: 43764.48569 | BJ149: 0.08340540801 | BK149: 37641.01602 | BL149: 0.08116836163 | BM149: 39210.22175 | BN149: 0.08186533687 | BO149: 41057.51832 | BP149: 0.08324719855 | BQ149: 42758.97662 | BR149: 0.08376557737 | BS149: 44487.86942 | BT149: 0.08478401704 | BU149: 37641.01602 | BV149: 0.08116836163 | BW149: 39378.23221 | BX149: 0.08221611868 | BY149: 41406.67147 | BZ149: 0.08395513274 | CA149: 43300.58655 | CB149: 0.08482660062 | CC149: 45233.73979 | CD149: 0.08620548061
A150: NHS Shropshire CCG | B150: E38000147 | C150: 23513.49276 | D150: 0.09062473122 | E150: 26053.41341 | F150: 0.09798936891 | G150: 28640.69813 | H150: 0.105049509 | I150: 31126.83559 | J150: 0.1115097643 | K150: 33391.62904 | L150: 0.117328282 | M150: 23513.49276 | N150: 0.09062473122 | O150: 25836.59369 | P150: 0.09717388932 | Q150: 28155.64501 | R150: 0.1032704116 | S150: 30322.22253 | T150: 0.1086272929 | U150: 32221.83365 | V150: 0.1132179679 | W150: 23513.49276 | X150: 0.09062473122 | Y150: 25728.18384 | Z150: 0.09676614953 | AA150: 27916.61643 | AB150: 0.1023936929 | AC150: 29931.44625 | AD150: 0.1072273635 | AE150: 31661.91921 | AF150: 0.1112505945 | AG150: 23513.49276 | AH150: 0.09062473122 | AI150: 25619.77398 | AJ150: 0.09635840973 | AK150: 27679.91983 | AL150: 0.1015255276 | AM150: 29548.25761 | AN150: 0.1058546164 | AO150: 31118.23288 | AP150: 0.109340242 | AQ150: 23513.49276 | AR150: 0.09062473122 | AS150: 24969.31484 | AT150: 0.09391197096 | AU150: 26308.71197 | AV150: 0.09649615599 | AW150: 27404.30065 | AX150: 0.09817403687 | AY150: 28179.39242 | AZ150: 0.09901402818 | BA150: 23513.49276 | BB150: 0.09062473122 | BC150: 25186.13455 | BD150: 0.09472745055 | BE150: 26756.45331 | BF150: 0.09813839977 | BG150: 28089.89178 | BH150: 0.1006301203 | BI150: 29099.48295 | BJ150: 0.1022469534 | BK150: 23513.49276 | BL150: 0.09062473122 | BM150: 25294.54441 | BN150: 0.09513519034 | BO150: 26983.82196 | BP150: 0.09897235169 | BQ150: 28443.47371 | BR150: 0.1018968034 | BS150: 29581.39192 | BT150: 0.1039402386 | BU150: 23513.49276 | BV150: 0.09062473122 | BW150: 25402.95427 | BX150: 0.09554293014 | BY150: 27213.5226 | BZ150: 0.09981485696 | CA150: 28804.34573 | CB150: 0.1031896028 | CC150: 30078.28119 | CD150: 0.1056861602
A151: NHS Slough CCG | B151: E38000148 | C151: 11041.78131 | D151: 0.1008750348 | E151: 12384.97061 | F151: 0.1082791625 | G151: 13860.00338 | H151: 0.115461541 | I151: 15418.47044 | J151: 0.1226218422 | K151: 16889.90837 | L151: 0.129404753 | M151: 11041.78131 | N151: 0.1008750348 | O151: 12282.12604 | P151: 0.1073800144 | Q151: 13625.77777 | R151: 0.1135103113 | S151: 15021.28846 | T151: 0.1194630862 | U151: 16300.13685 | V151: 0.1248861236 | W151: 11041.78131 | X151: 0.1008750348 | Y151: 12230.70376 | Z151: 0.1069304403 | AA151: 13510.35409 | AB151: 0.1125487678 | AC151: 14828.38915 | AD151: 0.1179289737 | AE151: 16017.8468 | AF151: 0.1227233129 | AG151: 11041.78131 | AH151: 0.1008750348 | AI151: 12179.28147 | AJ151: 0.1064808662 | AK151: 13396.0565 | AL151: 0.1115966053 | AM151: 14639.23535 | AN151: 0.1164246489 | AO151: 15743.73843 | AP151: 0.1206231875 | AQ151: 11041.78131 | AR151: 0.1008750348 | AS151: 11870.74777 | AT151: 0.1037834216 | AU151: 12733.91871 | AV151: 0.106080629 | AW151: 13580.91165 | AX151: 0.1080078865 | AY151: 14262.07384 | AZ151: 0.1092711756 | BA151: 11041.78131 | BB151: 0.1008750348 | BC151: 11973.59233 | BD151: 0.1046825698 | BE151: 12950.12697 | BF151: 0.1078817641 | BG151: 13919.34072 | BH151: 0.1106993854 | BI151: 14725.95256 | BJ151: 0.1128252572 | BK151: 11041.78131 | BL151: 0.1008750348 | BM151: 12025.01462 | BN151: 0.1051321439 | BO151: 13059.92022 | BP151: 0.1087964031 | BQ151: 14093.87973 | BR151: 0.11208748 | BS151: 14968.91487 | BT151: 0.114686752 | BU151: 11041.78131 | BV151: 0.1008750348 | BW151: 12076.4369 | BX151: 0.105581718 | BY151: 13170.83956 | BZ151: 0.1097204229 | CA151: 14272.01736 | CB151: 0.113504194 | CC151: 15219.42974 | CD151: 0.116606112
A152: NHS Solihull CCG | B152: E38000149 | C152: 15203.33584 | D152: 0.08916912517 | E152: 16403.1719 | F152: 0.094098049 | G152: 17699.06802 | H152: 0.09894380601 | I152: 18936.40195 | J152: 0.1027923241 | K152: 20221.93613 | L152: 0.1066107978 | M152: 15203.33584 | N152: 0.08916912517 | O152: 16266.25168 | P152: 0.09331259568 | Q152: 17398.51923 | R152: 0.09726363613 | S152: 18445.64304 | T152: 0.1001283413 | U152: 19511.98665 | V152: 0.1028679178 | W152: 15203.33584 | X152: 0.08916912517 | Y152: 16197.79157 | Z152: 0.09291986902 | AA152: 17250.41225 | AB152: 0.09643566779 | AC152: 18207.29624 | AD152: 0.09883452527 | AE152: 19172.17427 | AF152: 0.1010764143 | AG152: 15203.33584 | AH152: 0.08916912517 | AI152: 16129.33146 | AJ152: 0.09252714236 | AK152: 17103.75023 | AL152: 0.0956157772 | AM152: 17973.5774 | AN152: 0.09756583106 | AO152: 18842.21074 | AP152: 0.09933683433 | AQ152: 15203.33584 | AR152: 0.08916912517 | AS152: 15718.57079 | AT152: 0.09017078239 | AU152: 16254.12192 | AV152: 0.09086606617 | AW152: 16665.91035 | AX152: 0.09046743217 | AY152: 17058.62683 | AZ152: 0.08993371377 | BA152: 15203.33584 | BB152: 0.08916912517 | BC152: 15855.49101 | BD152: 0.09095623571 | BE152: 16531.55157 | BF152: 0.09241699222 | BG152: 17084.07403 | BH152: 0.09273734682 | BI152: 17617.03028 | BJ152: 0.09287763749 | BK152: 15203.33584 | BL152: 0.08916912517 | BM152: 15923.95112 | BN152: 0.09134896237 | BO152: 16672.43381 | BP152: 0.09320457186 | BQ152: 17299.73481 | BR152: 0.09390801658 | BS152: 17909.5011 | BT152: 0.09441955451 | BU152: 15203.33584 | BV152: 0.08916912517 | BW152: 15992.41123 | BX152: 0.09174168904 | BY152: 16814.761 | BZ152: 0.09400022923 | CA152: 17519.84205 | CB152: 0.09510282301 | CC152: 18211.06348 | CD152: 0.09600940256
A153: NHS Somerset CCG | B153: E38000150 | C153: 41239.76891 | D153: 0.09177037008 | E153: 45516.3923 | F153: 0.09835002658 | G153: 50341.35299 | H153: 0.1050616767 | I153: 55001.83085 | J153: 0.1110116475 | K153: 59323.41562 | L153: 0.1162930597 | M153: 41239.76891 | N153: 0.09177037008 | O153: 45137.30259 | P153: 0.09753090448 | Q153: 49488.18572 | R153: 0.1032811289 | S153: 53579.50575 | T153: 0.1081409312 | U153: 57243.91585 | V153: 0.1122165684 | W153: 41239.76891 | X153: 0.09177037008 | Y153: 44947.75774 | Z153: 0.09712134343 | AA153: 49067.75473 | AB153: 0.1024036955 | AC153: 52888.72538 | AD153: 0.1067467109 | AE153: 56248.57772 | AF153: 0.1102653841 | AG153: 41239.76891 | AH153: 0.09177037008 | AI153: 44758.21289 | AJ153: 0.09671178238 | AK153: 48651.42551 | AL153: 0.1015348224 | AM153: 52211.35779 | AN153: 0.105379562 | AO153: 55282.08769 | AP153: 0.1083707514 | AQ153: 41239.76891 | AR153: 0.09177037008 | AS153: 43620.94376 | AT153: 0.09425441607 | AU153: 46239.58726 | AV153: 0.09650135083 | AW153: 48421.45686 | AX153: 0.09773030489 | AY153: 50057.82532 | AZ153: 0.09812950938 | BA153: 41239.76891 | BB153: 0.09177037008 | BC153: 44000.03347 | BD153: 0.09507353817 | BE153: 47027.12628 | BF153: 0.09814493339 | BG153: 49633.38532 | BH153: 0.1001763721 | BI153: 51693.43446 | BJ153: 0.1013358317 | BK153: 41239.76891 | BL153: 0.09177037008 | BM153: 44189.57832 | BN153: 0.09548309922 | BO153: 47427.04844 | BP153: 0.09897956516 | BQ153: 50258.41675 | BR153: 0.1014378895 | BS153: 52550.10529 | BT153: 0.1030151833 | BU153: 41239.76891 | BV153: 0.09177037008 | BW153: 44379.12318 | BX153: 0.09589266028 | BY153: 47831.07236 | BZ153: 0.09982275725 | CA153: 50896.33497 | CB153: 0.1027254167 | CC153: 53433.40603 | CD153: 0.1047467381
A154: NHS South Cheshire CCG | B154: E38000151 | C154: 12161.06584 | D154: 0.0831810249 | E154: 13363.21473 | F154: 0.09001222372 | G154: 14542.30316 | H154: 0.09607758433 | I154: 15627.43699 | J154: 0.1014505128 | K154: 16671.20659 | L154: 0.1064708557 | M154: 12161.06584 | N154: 0.0831810249 | O154: 13252.14545 | P154: 0.08926408087 | Q154: 14296.20006 | R154: 0.09445163891 | S154: 15223.68975 | T154: 0.09882945828 | U154: 16087.32196 | V154: 0.1027418697 | W154: 12161.06584 | X154: 0.0831810249 | Y154: 13196.6108 | Z154: 0.08889000945 | AA154: 14174.9233 | AB154: 0.09365039176 | AC154: 15027.6019 | AD154: 0.0975564912 | AE154: 15807.84964 | AF154: 0.1009570164 | AG154: 12161.06584 | AH154: 0.0831810249 | AI154: 13141.07616 | AJ154: 0.08851593803 | AK154: 14054.82972 | AL154: 0.09285696166 | AM154: 14835.32146 | AN154: 0.09630824114 | AO154: 15536.47732 | AP154: 0.09922389398 | AQ154: 12161.06584 | AR154: 0.0831810249 | AS154: 12807.8683 | AT154: 0.08627150949 | AU154: 13359.11519 | AV154: 0.08826053902 | AW154: 13759.5041 | AX154: 0.08932422814 | AY154: 14069.60219 | AZ154: 0.08985567881 | BA154: 12161.06584 | BB154: 0.0831810249 | BC154: 12918.93759 | BD154: 0.08701965234 | BE154: 13586.28728 | BF154: 0.08976141172 | BG154: 14103.52726 | BH154: 0.09155756466 | BI154: 14528.85063 | BJ154: 0.09278867436 | BK154: 12161.06584 | BL154: 0.0831810249 | BM154: 12974.47223 | BN154: 0.08739372376 | BO154: 13701.64811 | BP154: 0.09052357364 | BQ154: 14280.95133 | BR154: 0.09270936986 | BS154: 14769.38777 | BT154: 0.09432486763 | BU154: 12161.06584 | BV154: 0.0831810249 | BW154: 13030.00687 | BX154: 0.08776779518 | BY154: 13818.19212 | BZ154: 0.0912935526 | CA154: 14462.03351 | CB154: 0.09388492279 | CC154: 15017.40209 | CD154: 0.09590881399
A155: NHS South Devon and Torbay CCG | B155: E38000152 | C155: 23363.2678 | D155: 0.1003059755 | E155: 25460.01163 | F155: 0.1068850194 | G155: 27996.71311 | H155: 0.1139096473 | I155: 30323.13699 | J155: 0.1197880106 | K155: 32522.16298 | L155: 0.125075621 | M155: 23363.2678 | N155: 0.1003059755 | O155: 25247.60515 | P155: 0.1059933046 | Q155: 27521.49713 | R155: 0.1119761459 | S155: 29538.07114 | T155: 0.1166866996 | U155: 31380.92389 | V155: 0.1206865775 | W155: 23363.2678 | X155: 0.1003059755 | Y155: 25141.40191 | Z155: 0.1055474472 | AA155: 27287.31618 | AB155: 0.1110233387 | AC155: 29156.78835 | AD155: 0.1151804865 | AE155: 30834.67771 | AF155: 0.1185857923 | AG155: 23363.2678 | AH155: 0.1003059755 | AI155: 25035.19868 | AJ155: 0.1051015897 | AK155: 27055.41992 | AL155: 0.1100798272 | AM155: 28782.90887 | AN155: 0.1137035193 | AO155: 30304.26352 | AP155: 0.1165458946 | AQ155: 23363.2678 | AR155: 0.1003059755 | AS155: 24397.97925 | AT155: 0.1024264452 | AU155: 25712.0209 | AV155: 0.1046139674 | AW155: 26691.03705 | AX155: 0.105439824 | AY155: 27437.16415 | AZ155: 0.1055194375 | BA155: 23363.2678 | BB155: 0.1003059755 | BC155: 24610.38572 | BD155: 0.10331816 | BE155: 26150.68181 | BF155: 0.1063987379 | BG155: 27359.97248 | BH155: 0.1080823753 | BI155: 28334.79401 | BJ155: 0.1089715945 | BK155: 23363.2678 | BL155: 0.1003059755 | BM155: 24716.58896 | BN155: 0.1037640175 | BO155: 26373.4393 | BP155: 0.1073050667 | BQ155: 27704.96452 | BR155: 0.109445226 | BS155: 28804.93893 | BT155: 0.1107797051 | BU155: 23363.2678 | BV155: 0.1003059755 | BW155: 24822.7922 | BX155: 0.1042098749 | BY155: 26598.48148 | BZ155: 0.1082206912 | CA155: 28057.06954 | CB155: 0.1108361758 | CC155: 29289.69846 | CD155: 0.1126440215
A156: NHS South East Staffs and Seisdon Peninsular CCG | B156: E38000153 | C156: 15743.44397 | D156: 0.08455125653 | E156: 17387.62799 | F156: 0.09184253112 | G156: 19009.8109 | H156: 0.0984352263 | I156: 20351.07179 | J156: 0.103863794 | K156: 21581.91242 | L156: 0.108462722 | M156: 15743.44397 | N156: 0.08455125653 | O156: 17242.84536 | P156: 0.09107778028 | Q156: 18687.52561 | R156: 0.09676639191 | S156: 19824.41272 | T156: 0.1011759351 | U156: 20824.72965 | V156: 0.104657401 | W156: 15743.44397 | X156: 0.08455125653 | Y156: 17170.45405 | Z156: 0.09069540486 | AA156: 18528.70713 | AB156: 0.09594400958 | AC156: 19568.6303 | AD156: 0.09987052313 | AE156: 20462.30937 | AF156: 0.1028360105 | AG156: 15743.44397 | AH156: 0.08455125653 | AI156: 17098.06273 | AJ156: 0.09031302945 | AK156: 18371.4381 | AL156: 0.09512965049 | AM156: 19317.81438 | AN156: 0.09859045818 | AO156: 20110.3932 | AP156: 0.1010674098 | AQ156: 15743.44397 | AR156: 0.08455125653 | AS156: 16663.71485 | AT156: 0.08801877694 | AU156: 17460.36236 | AV156: 0.09041198404 | AW156: 17914.48843 | AX156: 0.09142843949 | AY156: 18208.14654 | AZ156: 0.09150742053 | BA156: 15743.44397 | BB156: 0.08455125653 | BC156: 16808.49748 | BD156: 0.08878352777 | BE156: 17757.85648 | BF156: 0.09195244656 | BG156: 18363.24176 | BH156: 0.09371869839 | BI156: 18803.70085 | BJ156: 0.0945004566 | BK156: 15743.44397 | BL156: 0.08455125653 | BM156: 16880.88879 | BN156: 0.08916590319 | BO156: 17908.92771 | BP156: 0.09273471268 | BQ156: 18594.67863 | BR156: 0.09489986034 | BS156: 19115.62991 | BT156: 0.09606809684 | BU156: 15743.44397 | BV156: 0.08455125653 | BW156: 16953.28011 | BX156: 0.08954827861 | BY156: 18061.54839 | BZ156: 0.09352500204 | CA156: 18830.88723 | CB156: 0.09610537528 | CC156: 19437.25539 | CD156: 0.09768446772
A157: NHS South Eastern Hampshire CCG | B157: E38000154 | C157: 14972.72529 | D157: 0.08627823724 | E157: 16429.19413 | F157: 0.09238188334 | G157: 17999.15646 | H157: 0.09856070779 | I157: 19571.08032 | J157: 0.1040572114 | K157: 21004.99153 | L157: 0.1089583543 | M157: 14972.72529 | N157: 0.08627823724 | O157: 16292.12945 | P157: 0.09161116428 | Q157: 17693.4916 | R157: 0.09688693242 | S157: 19063.8974 | T157: 0.1013605774 | U157: 20266.98744 | V157: 0.1051301351 | W157: 14972.72529 | X157: 0.08627823724 | Y157: 16223.59712 | Z157: 0.09122580474 | AA157: 17542.86348 | AB157: 0.09606211523 | AC157: 18817.57396 | AD157: 0.1000509037 | AE157: 19913.7469 | AF157: 0.1032977845 | AG157: 14972.72529 | AH157: 0.08627823724 | AI157: 16155.06478 | AJ157: 0.09084044521 | AK157: 17393.70491 | AL157: 0.09524534503 | AM157: 18576.03335 | AN157: 0.09876665968 | AO157: 19570.74441 | AP157: 0.1015185414 | AQ157: 14972.72529 | AR157: 0.08627823724 | AS157: 15743.87074 | AT157: 0.08852828802 | AU157: 16529.61387 | AV157: 0.0905137108 | AW157: 17224.6032 | AX157: 0.09158125905 | AY157: 17716.67975 | AZ157: 0.09190102577 | BA157: 14972.72529 | BB157: 0.08627823724 | BC157: 15880.93542 | BD157: 0.08929900708 | BE157: 16811.76604 | BF157: 0.09205873422 | BG157: 17656.76138 | BH157: 0.09387899499 | BI157: 18297.14927 | BJ157: 0.09491207217 | BK157: 14972.72529 | BL157: 0.08627823724 | BM157: 15949.46776 | BN157: 0.08968436661 | BO157: 16955.04645 | BP157: 0.09284331643 | BQ157: 17879.63958 | BR157: 0.09506401309 | BS157: 18601.17748 | BT157: 0.09648914555 | BU157: 14972.72529 | BV157: 0.08627823724 | BW157: 16018.0001 | BX157: 0.09006972615 | BY157: 17099.79639 | BZ157: 0.09363594563 | CA157: 18107.11305 | CB157: 0.0962734637 | CC157: 18914.65651 | CD157: 0.09811524279
